Workbook

Sheet Overview
C1: ******************************************************************************************************************************************************
C2: COPYRIGHT NOTIFICATION
C4: GREET® SOFTWARE
C6: GREET1 MODEL
C8: Email contact: greet@anl.gov
C9: ******************************************************************************************************************************************************
C11: © COPYRIGHT 2012 UChicago Argonne, LLC ALL RIGHTS RESERVED
C13: THIS SOFTWARE DISCLOSES MATERIAL PROTECTED UNDER COPYRIGHT LAW, AND FURTHER DISSEMINATION IS PROHIBITED WITHOUT PRIOR WRITTEN CONSENT OF THE PATENT COUNSEL OF ARGONNE NATIONAL LABORATORY, EXCEPT AS NOTED IN THE “LICENSING TERMS AND CONDITIONS” NOTED BELOW.
C15: ******************************************************************************************************************************************************
C17: ARGONNE NATIONAL LABORATORY, WITH A FACILITY IN THE STATE OF ILLINOIS, IS OWNED BY THE UNITED STATES GOVERNMENT, AND OPERATED BY UCHICAGO ARGONNE, LLC UNDER PROVISION OF A CONTRACT WITH THE DEPARTMENT OF ENERGY.
C20: ******************************************************************************************************************************************************
C22: GOVERNMENT LICENSE
C24: ******************************************************************************************************************************************************
C26: NOTICE: This data was produced by UChicago Argonne, LLC under Contract No. DE-AC02-06CH11357 with the Department of Energy. For 5 years from May 2012, the Government is granted for itself and others acting on its behalf a nonexclusive, paid-up, irrevocable worldwide license in this data to reproduce, prepare derivative works, and perform publicly and display publicly, by or on behalf of the Government. There is provision for the possible extension of the term of this license. Subsequent to that period or any extension granted, the Government is granted for itself and others acting on its behalf a nonexclusive, paid-up, irrevocable worldwide license in this ﻿data to reproduce, prepare derivative works, distribute copies to the public, perform publicly and display publicly, and to permit others to do so. The specific term of the license can be identified by inquiry made to UChicago Argonne, LLC or DOE.
C28: ******************************************************************************************************************************************************
C30: END-USER LICENSING TERMS AND CONDITIONS
C32: ******************************************************************************************************************************************************
C34: Redistribution and use of the GREET software is permitted provided that the following conditions are met:
C36: 1. Redistributions of the GREET software must retain the above copyright notice, this list of conditions and the following disclaimer. Modification or reverse compilation of the source code is not permitted.
C38: 2. Neither the names of UChicago Argonne, LLC or the Department of Energy nor the names of its contributors may be used to endorse or promote products derived from this software without prior written permission.
C40: 3. The software redistribution, if any, must include the following acknowledgment: "This product includes software produced by UChicago Argonne, LLC under Contract No. DE-AC02-06CH11357 with the Department of Energy.”
C42: 4. Any published results should indicate that the GREET software was developed by Argonne National Laboratory. If you publish results generated using GREET you should identify the GREET software version number. If you publish results generated using input data other than the input data supplied with the GREET software you must indicate that these results relied upon changed input data.
C44: *****************************************************************************************************************************************************
C46: DISCLAIMER
C48: *****************************************************************************************************************************************************
C51: THIS SOFTWARE AND MANUAL ARE SUPPLIED "AS IS" WITHOUT WARRANTY OF ANY KIND.
C52: Neither the United States GOVERNMENT, nor the United States Department of Energy, NOR uchicago argonne, LLC, nor any of their employees, makes any warranty, express or implied, or assumes any legal liability or responsibility for the accuracy, completeness, or usefulness of any information, data, apparatus, product, or process disclosed, or represents that its use would not infringe privately owned rights
C56: Color Scheme for Cells in the GREET Model
C57: Clear cells are primarily for calculations and secondary assumptions
C60: Yellow cells are key input assumptions that users can change for their own simulations
... 57 more rows

Sheet Region Selection
B1: Fuel Carbon Intensity Calculator for the Low Carbon Fuel Standard | Y1: Feedstock | Z1: 1 | AA1: 1 | AB1: 1-U.S Ave Mix | AC1: 1 | AD1: 1 | AE1: 1-U.S Ave Mix | AF1: 1 | AG1: 3 | AI1: 2 | AJ1: =VLOOKUP(AI1,$AH$2:$AI$30,2,FALSE) -> Corn Ethanol - Dry Mill | AN1: Corn Ethanol - Dry Mill
Z2: =VLOOKUP(Z1,AA1:AB31,2) -> 1-U.S Ave Mix | AA2: 2 | AB2: 2-User Defined Mix | AC2: 2 | AD2: 2 | AE2: 2-User Defined Mix | AF2: 2 | AG2: =VLOOKUP(AG1,AD1:AE31,2) -> 3-CAMX Mix | AH2: 1 | AI2: SELECT ETHANOL----- | AM2: Feedstock Production, g/MJ
Y3: Feedstock | Z3: 3 | AA3: 3 | AB3: 3-CAMX Mix | AC3: 3 | AD3: 3 | AE3: 3-CAMX Mix | AF3: 3 | AH3: 2 | AI3: Corn Ethanol - Dry Mill | AJ3: DNAVCORNETOHDM | AM3: Fuel Production, g/MJ
Z4: =VLOOKUP(Z3,AA1:AB31,2) -> 3-CAMX Mix | AA4: 4 | AB4: 4-NWPP Mix | AC4: 4 | AD4: 4 | AE4: 4-NWPP Mix | AF4: 4 | AH4: 3 | AI4: Grain Sorghum Ethanol | AJ4: DNAVSGETOH | AM4: Tailpipe Emissions, g/MJ
A5: LCFS Baseline Year: 2014 | B5: Release Date: Aug, 1st 2017 (Draft - Do Not Use - For Discussion Only) | E5: Color Scheme for cells | F5: User Inputs | G5: Final CI | AA5: 5 | AB5: 5-AZNM Mix | AC5: 5 | AD5: 5 | AE5: 5-AZNM Mix | AF5: 5 | AH5: 4 | AI5: Sugarcane Ethanol | AJ5: DNAVSCETOH | AM5: Denaturant, g/MJ
A6: Select Feedstock and Fuel | F6: CI Summary of Corn Ethanol - Dry Mill | AA6: 6 | AB6: 6-RMPA Mix | AC6: 6 | AD6: 6 | AE6: 6-RMPA Mix | AF6: 6 | AH6: 5 | AI6: Molasses Ethanol | AJ6: DNAVMOLETOH | AM6: Indirect Land Use, g/MJ
B7: Feedstock Production Calculation | D7: Fuel Production Calculation | F7: Feedstock Production: 18.8122 | W7: Note: Do not change this setting, for Model Utility | AA7: 7 | AB7: 7-MROW Mix | AC7: 7 | AD7: 7 | AE7: 7-MROW Mix | AF7: 7 | AH7: 6 | AI7: Cellulosic Ethanol (Corn Stover) | AJ7: DNAVCETOH | AM7: Total Carbon Intensity, g/MJ
A8: Step 1a) Select Regional Electricity Mix for Feedstock (shown in the U.S. map far right) | D8: Step 2a) Select Regional Electricity Mix for Fuel | F8: Fuel Production: 36.8965 | AA8: 8 | AB8: 8-SPNO Mix | AC8: 8 | AD8: 8 | AE8: 8-SPNO Mix | AF8: 8 | AH8: 7 | AJ8: DNAVUDETOH
A9: Step 1b) Select Region for Crude Oil Use | B9: User Defined Crude | D9: Step 2b) Select Region for Crude Oil Use | E9: CA Crude | F9: Tailpipe Emission: 0 | AA9: 9 | AB9: 9-SPSO Mix | AC9: 9 | AD9: 9 | AE9: 9-SPSO Mix | AF9: 9 | AH9: 8
A10: Step 1c) Select Region for Natural Gas Use | B10: U.S. Average NG | D10: Step 2c) Select Region for Natural Gas Use | E10: User Defined Natural Gas | F10: Indirect Land Use: 19.8 | AA10: 10 | AB10: 10-ERCT Mix | AC10: 10 | AD10: 10 | AE10: 10-ERCT Mix | AF10: 10 | AH10: 9 | AI10: SELECT BD or RD----
B11: Feedstock Production | D11: Fuel Production | F11: Total CI of Corn Ethanol - Dry Mill : 75.5088 | AA11: 11 | AB11: 11-MROE Mix | AC11: 11 | AD11: 11 | AE11: 11-MROE Mix | AF11: 11 | AH11: 10 | AI11: Soybean Biodiesel | AJ11: DNAVSBBD
A12: 1) User Defined Electricity Resources Mix | B12: User Defined Electricity for Feedstock Production | D12: User Defined Electricity for Fuel Production | AA12: 12 | AB12: 12-SRMW Mix | AC12: 12 | AD12: 12 | AE12: 12-SRMW Mix | AF12: 12 | AH12: 11 | AI12: Tallow Biodiesel | AJ12: DNAVTALLOWBD
A13: Resid Oil/Fossil fuels | B13: 0.0138 | AA13: 13 | AB13: 13-SRMV Mix | AC13: 13 | AD13: 13 | AE13: 13-SRMV Mix | AF13: 13 | AH13: 12 | AI13: UCO Biodiesel | AJ13: DNAVUCOBD
A14: Natural gas | B14: 0.5075 | AA14: 14 | AB14: 14-RFCM Mix | AC14: 14 | AD14: 14 | AE14: 14-RFCM Mix | AF14: 14 | AH14: 13 | AI14: Canola Biodiesel | AJ14: DNAVCANBD
A15: Coal | B15: 0.0715 | AA15: 15 | AB15: 15-RFCW Mix | AC15: 15 | AD15: 15 | AE15: 15-RFCW Mix | AF15: 15 | AH15: 14 | AI15: Corn Oil Biodiesel | AJ15: DNAVCOILBD
A16: Nuclear | B16: 0.1518 | AA16: 16 | AB16: 16-SRTV Mix | AC16: 16 | AD16: 16 | AE16: 16-SRTV Mix | AF16: 16 | AH16: 15 | AI16: Soybean Renewable Diesel | AJ16: DNAVSBRD
A17: Biomass | B17: 0.0262 | AA17: 17 | AB17: 17-SRSO Mix | AC17: 17 | AD17: 17 | AE17: 17-SRSO Mix | AF17: 17 | AH17: 16 | AI17: Tallow Renewable Diesel | AJ17: DNAVTALLOWRD
A18: Hydroelectric | B18: 0.1519 | AA18: 18 | AB18: 18-NEWE Mix | AC18: 18 | AD18: 18 | AE18: 18-NEWE Mix | AF18: 18 | AH18: 17 | AI18: UCO Renewable Diesel | AJ18: DNAVUCORD
A19: Geothermal | B19: 0.0432 | AA19: 19 | AB19: 19-NYUP Mix | AC19: 19 | AD19: 19 | AE19: 19-NYUP Mix | AF19: 19 | AH19: 18 | AI19: Canola Renewable Diesel | AJ19: DNAVCANRD
A20: Wind | B20: 0.0305 | AA20: 20 | AB20: 20-RFCE Mix | AC20: 20 | AD20: 20 | AE20: 20-RFCE Mix | AF20: 20 | AH20: 19 | AI20: Corn Oil Renewable Diesel | AJ20: DNAVCOILRD
A21: Solar PV | B21: 0.0036 | AA21: 21 | AB21: 21-NYLI Mix | AC21: 21 | AD21: 21 | AE21: 21-NYLI Mix | AF21: 21 | AH21: 20 | AI21: SELECT NG or RNG ----
A22: Others (purchased) | B22: =1-SUM(B13:B21) -> 0 | AA22: 22 | AB22: 22-NYCW Mix | AC22: 22 | AD22: 22 | AE22: 22-NYCW Mix | AF22: 22 | AH22: 21 | AI22: North American NG - LNG | AJ22: DNAVNANGLNG
A23: Total | B23: =SUM(B13:B22) -> 1 | D23: =SUM(D13:D22) -> 0 | AA23: 23 | AB23: 23-SRVC Mix | AC23: 23 | AD23: 23 | AE23: 23-SRVC Mix | AF23: 23 | AH23: 22 | AI23: North American NG - L-CNG | AJ23: DNAVNANGLCNG
AA24: 24 | AB24: 24-FRCC Mix | AC24: 24 | AD24: 24 | AE24: 24-FRCC Mix | AF24: 24 | AH24: 23 | AI24: Landfill Gas - CNG | AJ24: DNAVLFGCNG
A25: 2) User Defined Crude Sources | AA25: 25 | AB25: 25-AKMS Mix | AC25: 25 | AD25: 25 | AE25: 25-AKMS Mix | AF25: 25 | AH25: 24 | AI25: Landfill Gas - LNG | AJ25: DNAVLFGLNG
B26: User Defined Crude for Feedstock Production | D26: User Defined Crude for Fuel Production | AA26: 26 | AB26: 26-AKGD | AC26: 26 | AD26: 26 | AE26: 26-AKGD | AF26: 26 | AH26: 25 | AI26: Landfill Gas - L-CNG | AJ26: DNAVLFGLCNG
A27: U.S Source | B27: 0.5621 | AA27: 27 | AB27: 27-HIOA Mix | AC27: 27 | AD27: 27 | AE27: 27-HIOA Mix | AF27: 27 | AH27: 26 | AI27: ----- | AJ27: DNAVAWCNG
A28: Canada-Oil Sands | B28: 0.10347 | AA28: 28 | AB28: 28-HIMS Mix | AC28: 28 | AD28: 28 | AE28: 28-HIMS Mix | AF28: 28 | AH28: 27
A29: Canada-Conv. crude | B29: 0.0919 | AA29: 29 | AB29: 29- Brazilian Mix | AC29: 29 | AD29: 29 | AE29: 29- Brazilian Mix | AF29: 29 | AH29: 28
A30: Mexico | B30: 0.0343 | AA30: 30 | AB30: 30-Canadian | AC30: 30 | AD30: 30 | AE30: 30-Canadian | AF30: 30
A31: Middle East | B31: 0.0887
A32: Latin America | B32: 0.095
A33: Africa | B33: 0.017
A34: Others | B34: =1-SUM(B27:B33) -> 0.00753
A35: Total | B35: =SUM(B27:B34) -> 1
A37: 3) User Defined NG Sources
B38: User Defined NG in Feedstock Production | D38: User Defined NG for Fuel Production
A39: North America NG Source | B39: 0
A40: Specific Country NG Source | B40: 0.9
A41: North American Shale Gas | B41: 0
A42: Specific Country Shale Gas | B42: 0.1
A43: LNG | B43: 0
A44: Other
A46: Total | B46: =SUM(B39:B45) -> 1

Sheet Inputs
Z5: Simulation years
A6: Scenario Control Variables and Input Assumptions | Z6: Today
A7: 1. Key Options for Simulation | Z7: 1990
B8: 1.1) Target Year for Simulation | Z8: 1991
E9: 2014 | Z9: 1992
Z10: 1993
B11: 1.2) Point-Estimation or Probability-Estimation Option | Z11: 1994
F12: Load Stochastic Toolkit | G12: … To load the stochastic toolkit | Z12: 1995
F13: Show Stochastic Toolkit | G13: … To show the stochastic toolkit under ADD-INS tab | Z13: 1996
F14: Unload Stochastic Toolkit | G14: … To unload the stochastic toolkit | Z14: 1997
A15: 2. Vehicle Types for Simulation | Z15: 1998
E16: 1 | F16: 1 -- Passenger Cars; 2 -- Light-Duty Trucks 1; 3 -- Light-Duty Trucks 2 | Z16: 1999
Z17: 2000
A18: 3. Petroleum-Based Fuels | Z18: 2001
B19: 3.1) Petroleum Recovery Options | Z19: 2002
C20: 3.1.a) Share of crude oil sources | Z20: 2003
E21: =IF('Region Selection'!B9="User Defined Crude",2,1) -> 2 | F21: Basis of share of crude oil sources: 1 -- EIA projection, 2 -- User defined | Z21: 2004
F22: U.S. Domestic | G22: Canada (Oil Sands) | H22: Canada (Conv. Crude) | I22: Mexico | J22: Middle East | K22: Latin America | L22: Africa | M22: Others | Z22: 2005
E23: EIA projection | F23: =Fuel_Prod_TS!$AR$9 -> 0.491 | G23: =Fuel_Prod_TS!$AS$9 -> 0.094 | H23: =Fuel_Prod_TS!$AT$9 -> 0.076 | I23: =Fuel_Prod_TS!$AU$9 -> 0.056 | J23: =Fuel_Prod_TS!$AV$9 -> 0.132 | K23: =Fuel_Prod_TS!$AW$9 -> 0.099 | L23: =Fuel_Prod_TS!$AX$9 -> 0.042 | M23: =1-SUM(F23:L23) -> 0.01 | Z23: 2006
E24: User defined | F24: 0.5620608655 | G24: 0.1034759739 | H24: 0.09192513389 | I24: 0.0343421658 | J24: 0.0886648873 | K24: 0.09496033971 | L24: 0.01712761472 | M24: =1-SUM(F24:L24) -> 0.007443019257 | Z24: 2007
E25: Used in calculation | F25: =IF($E21=1,F23,F24) -> 0.5620608655 | G25: 0.1034759739 | H25: 0.09192513389 | I25: 0.0343421658 | J25: 0.0886648873 | K25: 0.09496033971 | L25: 0.01712761472 | M25: 0.007443019257 | Z25: 2008
E26: California | F26: ='[2]T1 Calculator'!Y10 -> 0.0333 | G26: ='[2]T1 Calculator'!Y11 -> 0.0045 | H26: ='[2]T1 Calculator'!Y12 -> 0 | I26: ='[2]T1 Calculator'!Y13 -> 0.2051 | J26: ='[2]T1 Calculator'!Y14 -> 0.1802 | K26: ='[2]T1 Calculator'!Y15 -> 0.0136 | L26: ='[2]T1 Calculator'!Y16 -> 0.0307 | M26: =1-SUM(F26:L26) -> 0.5326 | Z26: 2009
E27: API gravity | F27: =AvgAPI(F31:H31,F32:H32) -> 34.86596426 | G27: =1/((G45+I45)/(32+131.5)+(F45+H45)/(8+131.5)+(F45+H45)*G40*(1-F42)/(80+131.5))*((G45+I45)+(F45+H45)*(1+G40*(1-F42)))-131.5 -> 17.64829778 | H27: 26.5 | I27: 26.5 | J27: 31.8 | K27: 24.8 | L27: 38.3 | M27: 32 | Z27: 2010
E28: S Content (wt %) | F28: 1.39 | G28: =(Fuel_Specs!H8*(G46+I46)+Fuel_Specs!H9*(F46+H46)+Fuel_Specs!H12*(F46+H46)*Petroleum!C23/Petroleum!B23)/((G46+I46)+(F46+H46)*(1+Petroleum!C23/Petroleum!B23))*100 -> 2.946117088 | H28: 1.94 | I28: 2.2 | J28: 2.26 | K28: 2.8 | L28: 0.289 | M28: 0.764 | Z28: 2011
E29: Average transportation distances (mi) | F29: See T&D_Flowcharts tab | G29: 1708 | H29: 1708 | I29: 797 | J29: 14596 | K29: 4620 | L29: 7280 | M29: 6128 | Z29: 2012
E30: U.S. Domestic crude | F30: Shale Oil (Bakken) | G30: Shale Oil (Eagle Ford) | H30: Rest of U.S. domestic crude | Z30: 2013
E31: API gravity | F31: 42 | G31: 48 | H31: 32 | Z31: 2014
E32: Vol. Share (%) | F32: =Fuel_Prod_TS!L24 -> 0.1030003441 | G32: =Fuel_Prod_TS!M24 -> 0.1266624613 | H32: =1-SUM(F32:G32) -> 0.7703371946 | Z32: 2015
Z33: 2016
C34: 3.1.b) Efficiency for Petroleum Recovery | Z34: 2017
D35: 3.1.b.i) Conventional Crude Recovery | Z35: 2018
E36: =Fuel_Prod_TS!$C$9 -> 0.98 | Z36: 2019
Z37: 2020
C38: 3.1.c) Key parameters of Oil Sands Recovery Methods and Products | Z38: 2021
E39: Dilbit Composition | F39: Bitumen | G39: Diluent | Z39: 2022
E40: Volumetric Shares | F40: 0.7 | G40: =1-F40 -> 0.3 | Z40: 2023
Z41: 2024
E42: Recovered Diluent in Refineries | F42: 1 | G42: by volume | Z42: 2025
Z43: 2026
E44: Share of oil sands recovery methods and products | F44: Surface Mining + Bitumen | G44: Surface Mining + SCO | H44: In-Situ + Bitumen | I44: In-Situ + SCO | Z44: 2027
E45: Volumetric Shares | F45: =Fuel_Prod_TS!D24 -> 0.04772884711 | G45: =Fuel_Prod_TS!E24 -> 0.3755269668 | H45: =Fuel_Prod_TS!F24 -> 0.5115753515 | I45: =Fuel_Prod_TS!G24 -> 0.06516883458 | Z45: 2028
E46: Mass Shares | F46: =F$45*Fuel_Specs!$E$10/(($F$45+$H$45)*Fuel_Specs!$E$10+($G$45+$I$45)*Fuel_Specs!$E$8) -> 0.05109300529 | G46: =G$45*Fuel_Specs!$E$8/(($F$45+$H$45)*Fuel_Specs!$E$10+($G$45+$I$45)*Fuel_Specs!$E$8) -> 0.3419342012 | H46: =H$45*Fuel_Specs!$E$10/(($F$45+$H$45)*Fuel_Specs!$E$10+($G$45+$I$45)*Fuel_Specs!$E$8) -> 0.5476336371 | I46: =1-SUM(F46:H46) -> 0.05933915634 | Z46: 2029
E47: Energy Shares | F47: =F$45*Fuel_Specs!$B$10/(($F$45+$H$45)*Fuel_Specs!$B$10+($G$45+$I$45)*Fuel_Specs!$B$8) -> 0.05024065479 | G47: =G$45*Fuel_Specs!$B$8/(($F$45+$H$45)*Fuel_Specs!$B$10+($G$45+$I$45)*Fuel_Specs!$B$8) -> 0.350445338 | H47: =H$45*Fuel_Specs!$B$10/(($F$45+$H$45)*Fuel_Specs!$B$10+($G$45+$I$45)*Fuel_Specs!$B$8) -> 0.5384978308 | I47: =1-SUM(F47:H47) -> 0.06081617641 | Z47: 2030
Z48: 2031
B49: 3.2) Conventional Crude Transport Options | Z49: 2032
F50: Domestic: Alaska | G50: Domestic: U.S. 48 States | H50: Imported: Offshore Countries | I50: Imported Canada and Mexico | Z50: 2033
E51: Domestic Share of Crude Input to Refineries | G51: =1-SUM(F53,H53,I54,I55) -> 0.5361830549 | Z51: 2034
E52: Mode Shares | Z52: 2035
E53: Ocean Tanker | F53: =MIN(2.8%,F24) -> 0.028 | H53: =IFERROR(SUM(J25:M25)/(1-G25-F25*(F32+G32)),0) -> 0.2712863322 | Z53: 2036
E54: Pipeline | G54: See T&D_Flowcharts tab | I54: =IFERROR(H25/(1-G25-F25*(F32+G32)),0) -> 0.1197815955 | Z54: 2037
E55: Rail | G55: See T&D_Flowcharts tab | I55: =IFERROR(I25/(1-G25-F25*(F32+G32)),0) -> 0.04474901737 | Z55: 2038
E56: Average transportation distances (mi) | Z56: 2039
E57: Ocean Tanker | F57: 2100 | H57: 8372.538258 | Z57: 2040
E58: Pipeline | G58: See T&D_Flowcharts tab | I58: 1676.685878
E59: Rail | G59: See T&D_Flowcharts tab | I59: =I29 -> 797
B61: 3.3) Petroleum Refining Efficiency
C62: 3.3.a) Simulation scenarios
... 72 more rows

Sheet Results
B1: WTW Results Menu | D1: Select a vehicle type from a pink drop down menu, then press "Go"
B2: SI ICE Vehicles | F2: SI Hybrid Vehicles (HEV) | K2: SI Plug-in Hybrids (PHEV) | R2: Per Vehicle Distnace Travelled | Y2: Per Energy in Fuels
B3: Select Fuels | F3: Select Fuels | K3: Select Fuels | R3: Energy Unit | S3: Btu | T3: mBtu | U3: J | V3: kJ | W3: MJ | Y3: Energy Unit | Z3: Btu | AA3: mBtu | AB3: J | AC3: kJ | AD3: MJ
B4: SIDI ICE Vehicles | F4: CIDI Hybrid Vehicles (HEV) | K4: CIDI Plug-in Hybrids (PHEV) | S4: 1 | T4: 0.001 | U4: =BTU2J -> 1055.05585 | V4: =BTU2kJ -> 1.05505585 | W4: =BTU2MJ -> 0.00105505585 | Z4: 1 | AA4: 0.001 | AB4: =BTU2J -> 1055.05585 | AC4: =BTU2kJ -> 1.05505585 | AD4: =BTU2MJ -> 0.00105505585
B5: Select Fuels | F5: Select Fuels | K5: Select Fuels | R5: Emission Unit | S5: g | T5: mg | U5: kg | V5: lb | W5: oz | Y5: Emission Unit | Z5: g | AA5: mg | AB5: kg | AC5: lb | AD5: oz
B6: CIDI ICE Vehicles | F6: Battery Electric Vehicles (BEV) and Fuel Cell Vehicles (FCV) | S6: 1 | T6: 1000 | U6: =g2kg -> 0.001 | V6: =g2lb -> 0.002204622622 | W6: =g2lb*16 -> 0.03527396195 | Z6: 1 | AA6: 1000 | AB6: =g2kg -> 0.001 | AC6: =g2lb -> 0.002204622622 | AD6: =g2lb*16 -> 0.03527396195
B7: Select Fuels | F7: Select Fuels | R7: Functional Unit | S7: mile | T7: km | Y7: Functional Unit | Z7: mBtu | AA7: mmBtu | AB7: J | AC7: kJ | AD7: MJ
B8: Unit Selection | D8: Select units from a pink drop down menu for the Results | S8: 1 | T8: 1.60934 | Z8: 0.001 | AA8: 1e-06 | AB8: =BTU2J -> 1055.05585 | AC8: =BTU2kJ -> 1.05505585 | AD8: =BTU2MJ -> 0.00105505585
B9: Per Vehicle Distance Travelled | G9: Per Energy in Fuels
B10: Energy Unit: | C10: Btu | D10: Emission Unit: | E10: g | G10: Energy Unit: | H10: Btu | I10: Emission Unit: | J10: g
D11: Service Functional Unit: | E11: mile | I11: Energy Functional Unit: | J11: mmBtu
A12: ="1. Well-to-Pump Energy Consumption, Water Consmption and Emissions: "&Results_EnergyUnit_Energy&" or Gallon or "&Results_EnergyUnit_Emission&" per "&Results_EnergyFunctionalUnit&" of Fuel Available at Fuel Station Pumps" -> 1. Well-to-Pump Energy Consumption, Water Consmption and Emissions: Btu or Gallon or g per mmBtu of Fuel Available at Fuel Station Pumps
B13: Baseline Gasoline | C13: CA Gasoline | D13: ="Low-Level EtOH Blend with Gasoline (E"&Inputs!F774*100&", "&IF(EtOH!C7=1,"Corn"&IF(EtOH!C130=1,", dry",IF(EtOH!C130=0,", wet","")),IF(EtOH!D7=1,"Willow",IF(EtOH!E7=1,"Poplar",IF(EtOH!F7=1,"Switchgrass",IF(EtOH!G7=1,"Miscanthus",IF(EtOH!H7=1,"Corn Stover",IF(EtOH!I7=1,"Forest Residue",IF(EtOH!M7=1,"Sugarcane",IF(EtOH!J7=1,IF(EtOH!D201=1,"Grain",IF(EtOH!D201=3,"Forage","Sweet"))&" Sorghum",IF(EtOH!L7=1,"Solid Waste","Mixed Source"))))))))))&")" -> Low-Level EtOH Blend with Gasoline (E10, Corn) | E13: Baseline Conventional and LS Diesel | F13: ="Compressed Natural Gas, "& IF(Inputs!F114=1,"NA NG",IF(Inputs!F114=2,"Non-NA NG",IF(Inputs!F114=3,"FG",IF(RNG!G5=1,"LFG",IF(RNG!G6=1,"AD Gas","RNG"))))) -> Compressed Natural Gas, NA NG | G13: ="Liquefied Natural Gas, "&IF(Inputs!$G$114=1,"NA NG",IF(Inputs!$G$114=2,"Non-NA NG",IF(Inputs!$G$114=3,"FG",IF(RNG!$H$5=1,"LFG",IF(RNG!$H$5=0,"AD Gas","RNG"))))) -> Liquefied Natural Gas, NA NG | H13: ="Liquefied Petroleum Gas, " &IF(NG!C5=1, "Crude", IF(NG!C5=0, IF(Inputs!$G$114=1, "NA NG", IF(Inputs!$G$114=2, "Non-NA NG", IF(Inputs!$G$114=3, "FG", IF(RNG!$H$5=1, "LFG", IF(RNG!$H$5=0, "AD Gas", "RNG"))))), "Crude and NG Mix")) -> Liquefied Petroleum Gas, Crude and NG Mix | I13: ="Naphtha, "&IF('MeOH&FTD'!E9=1,"Crude",IF('MeOH&FTD'!E9=0,IF(Inputs!F149=1,"NA NG",IF(Inputs!F149=2,"Non-NA NG",IF(Inputs!F149=3,"FG",IF(RNG!E5=1,"LFG",IF(RNG!E6=1,"AD Gas","RNG"))))),"Mixed Sources")) -> Naphtha, NA NG | J13: ="M"&Vehicles!C5*100&" for MeOH FFV, "&IF(Inputs!F146=1,"NA NG",IF(Inputs!F146=2,"Non-NA NG",IF(Inputs!F146=3,"FG",IF(Inputs!F146=4,IF(RNG!E5=1,"LFG",IF(RNG!E6=1,"AD Gas","RNG")),IF(Inputs!F146=5,"Biomass",IF(Inputs!F146=9,"Black Liquor","Coal")))))) -> M85 for MeOH FFV, NA NG | K13: ="M"&Vehicles!C6*100&" for Dedi. MeOH Vehicles, "&IF(Inputs!F146=1,"NA NG",IF(Inputs!F146=2,"Non-NA NG",IF(Inputs!F146=3,"FG",IF(Inputs!F146=4,IF(RNG!E5=1,"LFG",IF(RNG!E6=1,"AD Gas","RNG")),IF(Inputs!F146=5,"Biomass",IF(Inputs!F146=9,"Black Liquor","Coal")))))) -> M90 for Dedi. MeOH Vehicles, NA NG | L13: ="MeOH for FCV: "&IF(Inputs!F146=1,"NA NG",IF(Inputs!F146=2,"Non-NA NG",IF(Inputs!F146=3,"FG",IF(Inputs!F146=4,IF(RNG!E5=1,"LFG",IF(RNG!E6=1,"AD Gas","RNG")),IF(Inputs!F146=5,"Biomass",IF(Inputs!F146=9,"Black Liquor","Coal")))))) -> MeOH for FCV: NA NG | M13: ="E"&Inputs!F775*100&" for FFV, "&IF(EtOH!C7=1,"Corn"&IF(EtOH!C130=1,", dry",IF(EtOH!C130=0,", wet","")),IF(EtOH!D7=1,"Willow",IF(EtOH!E7=1,"Poplar",IF(EtOH!F7=1,"Switchgrass",IF(EtOH!G7=1,"Miscanthus",IF(EtOH!H7=1,"Corn Stover",IF(EtOH!I7=1,"Forest Residue",IF(EtOH!M7=1,"Sugarcane",IF(EtOH!J7=1,IF(EtOH!D201=1,"Grain",IF(EtOH!D201=3,"Forage","Sweet"))&" Sorghum",IF(EtOH!L7=1,"Solid Waste","Mixed Source")))))))))) -> E85 for FFV, Corn | N13: ="BtOH for FFV: BtOH"&Vehicles!C12*100&", Corn" -> BtOH for FFV: BtOH100, Corn | O13: ="E"&Inputs!F776*100&" for Dedi. EtOH Vehicle, "&IF(EtOH!C7=1,"Corn"&IF(EtOH!C130=1,", dry",IF(EtOH!C130=0,", wet","")),IF(EtOH!D7=1,"Willow",IF(EtOH!E7=1,"Poplar",IF(EtOH!F7=1,"Switchgrass",IF(EtOH!G7=1,"Miscanthus",IF(EtOH!H7=1,"Corn Stover",IF(EtOH!I7=1,"Forest Residue",IF(EtOH!M7=1,"Sugarcane",IF(EtOH!J7=1,IF(EtOH!D201=1,"Grain",IF(EtOH!D201=3,"Forage","Sweet"))&" Sorghum",IF(EtOH!L7=1,"Solid Waste","Mixed Source")))))))))) -> E85 for Dedi. EtOH Vehicle, Corn | P13: ="EtOH for FCV, "&IF(EtOH!C6=1,"Corn"&IF(EtOH!C130=1,", dry",IF(EtOH!C130=0,", wet","")),IF(EtOH!D6=1,"Willow",IF(EtOH!E6=1,"Poplar",IF(EtOH!F6=1,"Switchgrass",IF(EtOH!G6=1,"Miscanthus",IF(EtOH!H6=1,"Corn Stover",IF(EtOH!I6=1,"Forest Residue",IF(EtOH!M6=1,"Sugarcane",IF(EtOH!J6=1,IF(EtOH!D201=1,"Grain",IF(EtOH!D201=3,"Forage","Sweet"))&" Sorghum",IF(EtOH!L6=1,"Solid Waste","Mixed Source")))))))))) -> EtOH for FCV, Corn | Q13: =IF(Inputs!$J$597=2,"Palm FFB",IF(Inputs!$J$597=3,"Canola",IF(Inputs!$J$597=4,"Jatropha",IF(Inputs!$J$597=5,"Camelina",IF(Inputs!$J$597=6,"Algae",IF(Inputs!$J$597=7,"Tallow",IF(Inputs!$J$597=8,"Corn Oil","Soybean")))))))&"-based RG"&Vehicles!C16*100 -> Soybean-based RG100 | R13: =IF(Pyrolysis!B26=1,"Corn Stover","Forest Residue")&"-based Pyrolysis RG"&Vehicles!C16*100 -> Forest Residue-based Pyrolysis RG100 | S13: ="Grid-Connected SI PHEV: Gasoline and Electricity ("&VLOOKUP(Inputs!$F$639,Inputs!$G$639:$H$657,2,FALSE)&")" -> Grid-Connected SI PHEV: Gasoline and Electricity (U.S. Mix) | T13: ="Grid-Connected SI PHEV: CA gasoline and Electricity ("&VLOOKUP(Inputs!$F$639,Inputs!$G$639:$H$657,2,FALSE)&")" -> Grid-Connected SI PHEV: CA gasoline and Electricity (U.S. Mix) | U13: ="Grid-Connected SI PHEV: Low-Level EtOH Blend with Gasoline (E"&Inputs!F774*100&", "&IF(EtOH!C6=1,"Corn"&IF(EtOH!C130=1,", dry",IF(EtOH!C130=0,", wet","")),IF(EtOH!D6=1,"Willow",IF(EtOH!E6=1,"Poplar",IF(EtOH!F6=1,"Switchgrass",IF(EtOH!G6=1,"Miscanthus",IF(EtOH!H6=1,"Corn Stover",IF(EtOH!I6=1,"Forest Residue",IF(EtOH!M6=1,"Sugarcane",IF(EtOH!J6=1,IF(EtOH!D201=1,"Grain",IF(EtOH!D201=3,"Forage","Sweet"))&" Sorghum",IF(EtOH!L6=1,"Solid Waste","Mixed Source"))))))))))&") and Electricity ("&VLOOKUP(Inputs!$F$639,Inputs!$G$639:$H$657,2,FALSE)&")" -> Grid-Connected SI PHEV: Low-Level EtOH Blend with Gasoline (E10, Corn) and Electricity (U.S. Mix) | V13: ="Grid-Connected SI PHEV: CNG ("&IF(Inputs!F114=1,"NA NG",IF(Inputs!F114=2,"Non-NA NG",IF(Inputs!F114=3,"FG",IF(RNG!G5=1,"LFG",IF(RNG!G6=1,"AD Gas","RNG")))))&") and Electricity ("&VLOOKUP(Inputs!$F$639,Inputs!$G$639:$H$657,2,FALSE)&")" -> Grid-Connected SI PHEV: CNG (NA NG) and Electricity (U.S. Mix) | W13: ="Grid-Connected SI PHEV: LNG ("&IF(Inputs!$H$114=1,"NA NG",IF(Inputs!$H$114=2,"Non-NA NG",IF(Inputs!$H$114=3,"FG",IF(RNG!$H$5=1,"LFG",IF(RNG!$H$5=0,"AD Gas","RNG")))))&") and Electricity ("&VLOOKUP(Inputs!$F$639,Inputs!$G$639:$H$657,2,FALSE)&")" -> Grid-Connected SI PHEV: LNG (NA NG) and Electricity (U.S. Mix) | X13: ="Grid-Connected SI PHEV: LPG ("&IF(NG!C5=1,"Crude",IF(NG!C5=0,IF(Inputs!$G$114=1,"NA NG",IF(Inputs!$G$114=2,"Non-NA NG",IF(Inputs!$G$114=3,"FG",IF(RNG!$H$5=1,"LFG",IF(RNG!$H$5=0,"AD Gas","RNG"))))),"Crude and NG Mix"))&") and Electricity ("&VLOOKUP(Inputs!$F$639,Inputs!$G$639:$H$657,2,FALSE)&")" -> Grid-Connected SI PHEV: LPG (Crude and NG Mix) and Electricity (U.S. Mix) | Y13: ="Grid-Connected SI PHEV: M"&Vehicles!C6*100&" ("&IF(Inputs!F146=1,"NA NG",IF(Inputs!F146=2,"Non-NA NG",IF(Inputs!F146=3,"FG",IF(Inputs!F146=4,IF(RNG!E5=1,"LFG",IF(RNG!E6=1,"AD Gas","RNG")),IF(Inputs!F146=5,"Biomass",IF(Inputs!F146=9,"Black Liquor","Coal"))))))&") and Electricity ("&VLOOKUP(Inputs!$F$639,Inputs!$G$639:$H$657,2,FALSE)&")" -> Grid-Connected SI PHEV: M90 (NA NG) and Electricity (U.S. Mix) | Z13: ="Grid-Connected SI PHEV: LPG ("&IF(NG!E5=1,"Crude",IF(NG!E5=0,IF(Inputs!$G$114=1,"NA NG",IF(Inputs!$G$114=2,"Non-NA NG",IF(Inputs!$G$114=3,"FG",IF(RNG!$H$5=1,"LFG",IF(RNG!$H$5=0,"AD Gas","RNG"))))),"Crude and NG Mix"))&") and Electricity ("&VLOOKUP(Inputs!$F$639,Inputs!$G$639:$H$657,2,FALSE)&")" -> Grid-Connected SI PHEV: LPG (NA NG) and Electricity (U.S. Mix) | AA13: ="Grid-Connected SI PHEV: G.H2 ("&IF(Inputs!F204=1,"Central Plants, "&IF(Inputs!F209=1,IF(Inputs!F230=1,"NA NG",IF(Inputs!F230=2,"Non-NA NG",IF(Inputs!F230=3,"FG",IF(RNG!G5=1,"LFG",IF(RNG!G6=1,"Manure-based AD Gas",IF(RNG!G7=1,"WWTP-based AD Gas","RNG")))))),"")&IF(Inputs!F210=1,"Solar","")&IF(Inputs!F211=1,"Nuclear","")&IF(Inputs!F212=1,"Electrolysis (Nuclear HTGR)","")&IF(Inputs!F213=1,"Coal","")&IF(Inputs!F214=1,"Biomass","")&IF(Inputs!F217=1,"Coke Oven Gas","")&IF(Inputs!F218=1,"Pet Coke","")&IF(MAX(Inputs!F209:F218)<1,"Mixed Sources",""),"Refueling Station, "&IF(Inputs!F222=1,IF(Inputs!F231=1,"NA NG",IF(Inputs!F231=2,"Non-NA NG",IF(Inputs!F231=3,"FG",IF(RNG!G5=1,"LFG",IF(RNG!G6=1,"Manure-based AD Gas",IF(RNG!G7=1,"WWTP-based AD Gas","RNG")))))),"")&IF(Inputs!F223=1,"Electrolysis","")&IF(Inputs!F224=1,"EtOH","")&IF(Inputs!F226=1,"MeOH","")&IF(MAX(Inputs!F222:F226)<1,"Mixed Sources",""))&") and Electricity ("&VLOOKUP(Inputs!$F$639,Inputs!$G$639:$H$657,2,FALSE)&")" -> Grid-Connected SI PHEV: G.H2 (Refueling Station, NA NG) and Electricity (U.S. Mix) | AB13: ="Grid-Connected SI PHEV: L.H2 ("&IF(Inputs!G204=1,"Central Plants, "&IF(Inputs!G209=1,IF(Inputs!G230=1,"NA NG",IF(Inputs!G230=2,"Non-NA NG",IF(Inputs!G230=3,"FG",IF(RNG!H5=1,"LFG",IF(RNG!H6=1,"Manure-based AD Gas",IF(RNG!H7=1,"WWTP-based AD Gas","RNG")))))),"")&IF(Inputs!G210=1,"Solar","")&IF(Inputs!G211=1,"Nuclear","")&IF(Inputs!G212=1,"Electrolysis (Nuclear HTGR)","")&IF(Inputs!G213=1,"Coal","")&IF(Inputs!G214=1,"Biomass","")&IF(Inputs!G217=1,"Coke Oven Gas","")&IF(Inputs!G218=1,"Pet Coke","")&IF(MAX(Inputs!G209:G218)<1,"Mixed Sources",""),"Refueling Station, "&IF(Inputs!G222=1,IF(Inputs!G231=1,"NA NG",IF(Inputs!G231=2,"Non-NA NG",IF(Inputs!G231=3,"FG",IF(RNG!H5=1,"LFG",IF(RNG!H6=1,"Manure-based AD Gas",IF(RNG!H7=1,"WWTP-based AD Gas","RNG")))))),"")&IF(Inputs!G223=1,"Electrolysis","")&IF(Inputs!G224=1,"EtOH","")&IF(Inputs!G226=1,"MeOH","")&IF(MAX(Inputs!G222:G226)<1,"Mixed Sources",""))&") and Electricity ("&VLOOKUP(Inputs!$F$639,Inputs!$G$639:$H$657,2,FALSE)&")" -> Grid-Connected SI PHEV: L.H2 (Central Plants, NA NG) and Electricity (U.S. Mix) | AC13: ="DME: "&IF(Inputs!F147=1,"NA NG",IF(Inputs!F147=2,"Non-NA NG",IF(Inputs!F147=3,"FG",IF(Inputs!F147=4,IF(RNG!E5=1,"LFG",IF(RNG!E6=1,"AD Gas","RNG")),IF(Inputs!F147=5,"Biomass",IF(Inputs!F147=9,"Black Liquor",IF(Inputs!F147=10,"NG via Methanol","Coal"))))))) -> DME: NA NG | AD13: ="FTD"&TEXT(Vehicles!C13*100,"0")&": "&IF(Inputs!F148=1,"NA NG",IF(Inputs!F148=2,"Non-NA NG",IF(Inputs!F148=3,"FG",IF(Inputs!F148=4,IF(RNG!E5=1,"LFG",IF(RNG!E6=1,"AD Gas","RNG")),IF(Inputs!F148=5,"Biomass",IF(Inputs!F148=6,"Coal",IF(Inputs!F148=8,"NG/Biomass("&TEXT(Inputs!J180*100,"0")&"/"&TEXT(Inputs!J181*100,"0")&")","Coal/Biomass("&TEXT(Inputs!F180*100,"0")&"/"&TEXT(Inputs!F181*100,"0")&")"))))))) -> FTD100: NA NG | AE13: =IF(Inputs!$F$597=2,"Palm FFB",IF(Inputs!$F$597=3,"Canola",IF(Inputs!$F$597=4,"Jatropha",IF(Inputs!$F$597=5,"Camelina",IF(Inputs!$F$597=6,"Algae",IF(Inputs!$F$597=7,"Tallow",IF(Inputs!$F$597=8,"Corn Oil","Soybean")))))))&"-based BD"&Vehicles!C14*100 -> Soybean-based BD20 | AF13: =IF(Inputs!E628=1,IF(Inputs!$G$597=2,"Palm FFB",IF(Inputs!$G$597=3,"Canola",IF(Inputs!$G$597=4,"Jatropha",IF(Inputs!$G$597=5,"Camelina",IF(Inputs!$G$597=6,"Algae",IF(Inputs!$G$597=7,"Tallow",IF(Inputs!$G$597=8,"Corn Oil","Soybean"))))))),IF(Inputs!E628=3,IF(Inputs!$I$597=2,"Palm FFB",IF(Inputs!$I$597=3,"Canola",IF(Inputs!$I$597=4,"Jatropha",IF(Inputs!$I$597=5,"Camelina",IF(Inputs!$I$597=6,"Algae",IF(Inputs!$I$597=7,"Tallow",IF(Inputs!$I$597=8,"Corn Oil","Soybean"))))))),IF(Inputs!$H$597=2,"Palm FFB",IF(Inputs!$H$597=3,"Canola",IF(Inputs!$H$597=4,"Jatropha",IF(Inputs!$H$597=5,"Camelina",IF(Inputs!$H$597=6,"Algae",IF(Inputs!$H$597=7,"Tallow",IF(Inputs!$H$597=8,"Corn Oil","Soybean")))))))))&"-based RD"&IF(Inputs!$E$628=3,"III","II")&" "&Vehicles!C15*100 -> Soybean-based RDII 100 | AG13: =IF(Pyrolysis!$B$26=1,"Corn Stover","Forest Residue")&"-based RD"&IF(Inputs!E628=1,"I ","II ")&Vehicles!C15*100 -> Forest Residue-based RDII 100 | AH13: ="E-Diesel, "&IF(EtOH!C6=1,"Corn"&IF(EtOH!C130=1,", dry",IF(EtOH!C130=0,", wet","")),IF(EtOH!D6=1,"Willow",IF(EtOH!E6=1,"Poplar",IF(EtOH!F6=1,"Switchgrass",IF(EtOH!G6=1,"Miscanthus",IF(EtOH!H6=1,"Corn Stover",IF(EtOH!I6=1,"Forest Residue",IF(EtOH!M6=1,"Sugarcane",IF(EtOH!J6=1,IF(EtOH!D201=1,"Grain",IF(EtOH!D201=3,"Forage","Sweet"))&" Sorghum",IF(EtOH!L6=1,"Solid Waste","Mixed Source")))))))))) -> E-Diesel, Corn | AI13: ="Grid-Connected CIDI PHEV: Diesel and Electricity ("&VLOOKUP(Inputs!$F$639,Inputs!$G$639:$H$657,2,FALSE)&")" -> Grid-Connected CIDI PHEV: Diesel and Electricity (U.S. Mix) | AJ13: ="Grid-Connected CIDI PHEV: DME ("&IF(Inputs!F147=1,"NA NG",IF(Inputs!F147=2,"Non-NA NG",IF(Inputs!F147=3,"FG",IF(Inputs!F147=4,IF(RNG!E5=1,"LFG",IF(RNG!E6=1,"AD Gas","RNG")),IF(Inputs!F147=5,"Biomass",IF(Inputs!F147=9,"Black Liquor",IF(Inputs!F147=10,"NG via Methanol","Coal")))))))&") and Electricity ("&VLOOKUP(Inputs!$F$639,Inputs!$G$639:$H$657,2,FALSE)&")" -> Grid-Connected CIDI PHEV: DME (NA NG) and Electricity (U.S. Mix) | AK13: ="Grid-Connected CIDI PHEV: FTD"&Vehicles!C13*100&" ("&IF(Inputs!F148=1,"NA NG",IF(Inputs!F148=2,"Non-NA NG",IF(Inputs!F148=3,"FG",IF(Inputs!F148=4,IF(RNG!E5=1,"LFG",IF(RNG!E6=1,"AD Gas","RNG")),IF(Inputs!F148=5,"Biomass",IF(Inputs!F148=6,"Coal","Coal/Biomass("&Inputs!F180*100&"/"&Inputs!F181*100&")"))))))&") and Electricity ("&VLOOKUP(Inputs!$F$639,Inputs!$G$639:$H$657,2,FALSE)&")" -> Grid-Connected CIDI PHEV: FTD100 (NA NG) and Electricity (U.S. Mix) | AL13: ="Grid-Connected CIDI PHEV: BD"&Vehicles!C14*100&" ("&IF(Inputs!$F$597=2,"Palm FFB",IF(Inputs!$F$597=3,"Canola",IF(Inputs!$F$597=4,"Jatropha",IF(Inputs!$F$597=5,"Camelina",IF(Inputs!$F$597=6,"Algae",IF(Inputs!$F$597=7,"Tallow",IF(Inputs!$F$597=8,"Corn Oil","Soybean")))))))&") and Electricity ("&VLOOKUP(Inputs!$F$639,Inputs!$G$639:$H$657,2,FALSE)&")" -> Grid-Connected CIDI PHEV: BD20 (Soybean) and Electricity (U.S. Mix) | AM13: ="Grid-Connected CIDI PHEV: E-Diesel ("&IF(EtOH!C6=1,"Corn"&IF(EtOH!C130=1,", dry",IF(EtOH!C130=0,", wet","")),IF(EtOH!D6=1,"Willow",IF(EtOH!E6=1,"Poplar",IF(EtOH!F6=1,"Switchgrass",IF(EtOH!G6=1,"Miscanthus",IF(EtOH!H6=1,"Corn Stover",IF(EtOH!I6=1,"Forest Residue",IF(EtOH!M6=1,"Sugarcane",IF(EtOH!J6=1,IF(EtOH!D201=1,"Grain",IF(EtOH!D201=3,"Forage","Sweet"))&" Sorghum",IF(EtOH!L6=1,"Solid Waste","Mixed Source"))))))))))&") and Electricity ("&VLOOKUP(Inputs!$F$639,Inputs!$G$639:$H$657,2,FALSE)&")" -> Grid-Connected CIDI PHEV: E-Diesel (Corn) and Electricity (U.S. Mix) | AN13: ="Electricity ("&VLOOKUP(Inputs!$F$639,Inputs!$G$639:$H$657,2,FALSE)&")" -> Electricity (U.S. Mix) | AO13: ="FCV: G.H2"&IF(Inputs!F204=1,", Central Plants, "&IF(Inputs!F209=1,IF(Inputs!F230=1,"NA NG",IF(Inputs!F230=2,"Non-NA NG",IF(Inputs!F230=3,"FG",IF(RNG!G5=1,"LFG",IF(RNG!G6=1,"Manure-based AD Gas",IF(RNG!G7=1,"WWTP-based AD Gas","RNG")))))),"")&IF(Inputs!F210=1,"Solar","")&IF(Inputs!F211=1,"Nuclear","")&IF(Inputs!F212=1,"Electrolysis (Nuclear HTGR)","")&IF(Inputs!F213=1,"Coal","")&IF(Inputs!F214=1,"Biomass","")&IF(Inputs!F217=1,"Coke Oven Gas","")&IF(Inputs!F218=1,"Pet Coke","")&IF(MAX(Inputs!F209:F218)<1,"Mixed Sources",""),", Refueling Station, "&IF(Inputs!F222=1,IF(Inputs!F231=1,"NA NG",IF(Inputs!F231=2,"Non-NA NG",IF(Inputs!F231=3,"FG",IF(RNG!G5=1,"LFG",IF(RNG!G6=1,"Manure-based AD Gas",IF(RNG!G7=1,"WWTP-based AD Gas","RNG")))))),"")&IF(Inputs!F223=1,"Electrolysis","")&IF(Inputs!F224=1,"EtOH","")&IF(Inputs!F226=1,"MeOH","")&IF(MAX(Inputs!F222:F226)<1,"Mixed Sources","")) -> FCV: G.H2, Refueling Station, NA NG | AP13: ="FCV: L.H2"&IF(Inputs!G204=1,", Central Plants, "&IF(Inputs!G209=1,IF(Inputs!G230=1,"NA NG",IF(Inputs!G230=2,"Non-NA NG",IF(Inputs!G230=3,"FG",IF(RNG!H5=1,"LFG",IF(RNG!H6=1,"Manure-based AD Gas",IF(RNG!H7=1,"WWTP-based AD Gas","RNG")))))),"")&IF(Inputs!G210=1,"Solar","")&IF(Inputs!G211=1,"Nuclear","")&IF(Inputs!G212=1,"Electrolysis (Nuclear HTGR)","")&IF(Inputs!G213=1,"Coal","")&IF(Inputs!G214=1,"Biomass","")&IF(Inputs!G217=1,"Coke Oven Gas","")&IF(Inputs!G218=1,"Pet Coke","")&IF(MAX(Inputs!G209:G218)<1,"Mixed Sources",""),", Refueling Station, "&IF(Inputs!G222=1,IF(Inputs!G231=1,"NA NG",IF(Inputs!G231=2,"Non-NA NG",IF(Inputs!G231=3,"FG",IF(RNG!H5=1,"LFG",IF(RNG!H6=1,"Manure-based AD Gas",IF(RNG!H7=1,"WWTP-based AD Gas","RNG")))))),"")&IF(Inputs!G223=1,"Electrolysis","")&IF(Inputs!G224=1,"EtOH","")&IF(Inputs!G226=1,"MeOH","")&IF(MAX(Inputs!G222:G226)<1,"Mixed Sources","")) -> FCV: L.H2, Central Plants, NA NG | AQ13: ="Grid-Connected FC PHEV: G.H2 ("&IF(Inputs!F204=1,"Central Plants, "&IF(Inputs!F209=1,IF(Inputs!F230=1,"NA NG",IF(Inputs!F230=2,"Non-NA NG",IF(Inputs!F230=3,"FG",IF(RNG!G5=1,"LFG",IF(RNG!G6=1,"Manure-based AD Gas",IF(RNG!G7=1,"WWTP-based AD Gas","RNG")))))),"")&IF(Inputs!F210=1,"Solar","")&IF(Inputs!F211=1,"Nuclear","")&IF(Inputs!F212=1,"Electrolysis (Nuclear HTGR)","")&IF(Inputs!F213=1,"Coal","")&IF(Inputs!F214=1,"Biomass","")&IF(Inputs!F217=1,"Coke Oven Gas","")&IF(Inputs!F218=1,"Pet Coke","")&IF(MAX(Inputs!F209:F218)<1,"Mixed Sources",""),"Refueling Station, "&IF(Inputs!F222=1,IF(Inputs!F231=1,"NA NG",IF(Inputs!F231=2,"Non-NA NG",IF(Inputs!F231=3,"FG",IF(RNG!G5=1,"LFG",IF(RNG!G6=1,"Manure-based AD Gas",IF(RNG!G7=1,"WWTP-based AD Gas","RNG")))))),"")&IF(Inputs!F223=1,"Electrolysis","")&IF(Inputs!F224=1,"EtOH","")&IF(Inputs!F226=1,"MeOH","")&IF(MAX(Inputs!F222:F226)<1,"Mixed Sources",""))&") and Electricity ("&VLOOKUP(Inputs!$F$639,Inputs!$G$639:$H$657,2,FALSE)&")" -> Grid-Connected FC PHEV: G.H2 (Refueling Station, NA NG) and Electricity (U.S. Mix) | AR13: ="Grid-Connected FC PHEV: L.H2 ("&IF(Inputs!G204=1,"Central Plants, "&IF(Inputs!G209=1,IF(Inputs!G230=1,"NA NG",IF(Inputs!G230=2,"Non-NA NG",IF(Inputs!G230=3,"FG",IF(RNG!H5=1,"LFG",IF(RNG!H6=1,"Manure-based AD Gas",IF(RNG!H7=1,"WWTP-based AD Gas","RNG")))))),"")&IF(Inputs!G210=1,"Solar","")&IF(Inputs!G211=1,"Nuclear","")&IF(Inputs!G212=1,"Electrolysis (Nuclear HTGR)","")&IF(Inputs!G213=1,"Coal","")&IF(Inputs!G214=1,"Biomass","")&IF(Inputs!G217=1,"Coke Oven Gas","")&IF(Inputs!G218=1,"Pet Coke","")&IF(MAX(Inputs!G209:G218)<1,"Mixed Sources",""),"Refueling Station, "&IF(Inputs!G222=1,IF(Inputs!G231=1,"NA NG",IF(Inputs!G231=2,"Non-NA NG",IF(Inputs!G231=3,"FG",IF(RNG!H5=1,"LFG",IF(RNG!H6=1,"Manure-based AD Gas",IF(RNG!H7=1,"WWTP-based AD Gas","RNG")))))),"")&IF(Inputs!G223=1,"Electrolysis","")&IF(Inputs!G224=1,"EtOH","")&IF(Inputs!G226=1,"MeOH","")&IF(MAX(Inputs!G222:G226)<1,"Mixed Sources",""))&") and Electricity ("&VLOOKUP(Inputs!$F$639,Inputs!$G$639:$H$657,2,FALSE)&")" -> Grid-Connected FC PHEV: L.H2 (Central Plants, NA NG) and Electricity (U.S. Mix) | AS13: ="Blended feedstock-based RG"&Vehicles!C16*100&" via Indirect Liquefaction (IDL)" -> Blended feedstock-based RG100 via Indirect Liquefaction (IDL)
A14: Total Energy | B14: =(Inputs!$E$1398*(Petroleum!$B263*Petroleum!$F$262+Petroleum!$F263)+(1-Inputs!$E$1398)*(Petroleum!$B263*Petroleum!$D$262+Petroleum!$D263))/1000000*HLOOKUP($H$10,$Z$3:$AD$4,2,FALSE)/HLOOKUP($J$11,$Z$7:$AD$8,2,FALSE) -> 310719.5538 | C14: =(Petroleum!$C263*Petroleum!$G$262+Petroleum!$G263)/1000000*HLOOKUP($H$10,$Z$3:$AD$4,2,FALSE)/HLOOKUP($J$11,$Z$7:$AD$8,2,FALSE) -> 279751.9389 | D14: =((1-Vehicles!$C$28)*(1-Vehicles!$C$7)*Fuel_Specs!$B$15/((1-Vehicles!$C$28)*(1-Vehicles!$C$7)*Fuel_Specs!$B$15+Vehicles!$C$28*(1-Vehicles!$C$7)*Fuel_Specs!$B$16+Vehicles!$C$7*Fuel_Specs!$B$31)*(Petroleum!$B263*Petroleum!$D$262+(Petroleum!$D263-'T&D'!G212))+Vehicles!$C$28*(1-Vehicles!$C$7)*Fuel_Specs!$B$16/((1-Vehicles!$C$28)*(1-Vehicles!$C$7)*Fuel_Specs!$B$15+Vehicles!$C$28*(1-Vehicles!$C$7)*Fuel_Specs!$B$16+Vehicles!$C$7*Fuel_Specs!$B$31)*(Petroleum!B263*Petroleum!$F$262+Petroleum!$F263)+Vehicles!$C$7*Fuel_Specs!$B$31/((1-Vehicles!$C$28)*(1-Vehicles!$C$7)*Fuel_Specs!$B$15+Vehicles!$C$28*(1-Vehicles!$C$7)*Fuel_Specs!$B$16+Vehicles!$C$7*Fuel_Specs!$B$31)*(EtOH!BR490*EtOH!$BS$489+EtOH!$BS490)+Petroleum!AR124+Petroleum!AS124)/1000000*HLOOKUP($H$10,$Z$3:$AD$4,2,FALSE)/HLOOKUP($J$11,$Z$7:$AD$8,2,FALSE) -> 310719.5538 | E14: =(Inputs!$E$97*(IF(Inputs!F$102=1,Petroleum!$B263,Petroleum!$C263)*Petroleum!$K$262+Petroleum!$K263)+(1-Inputs!$E$97)*(IF(Inputs!F$101=1,Petroleum!$B263,Petroleum!$C263)*Petroleum!$J$262+Petroleum!$J263))/1000000*HLOOKUP($H$10,$Z$3:$AD$4,2,FALSE)/HLOOKUP($J$11,$Z$7:$AD$8,2,FALSE) -> 293428.5245 | F14: =(NG!$I85*NG!$J$84+NG!$J85)/1000000*HLOOKUP($H$10,$Z$3:$AD$4,2,FALSE)/HLOOKUP($J$11,$Z$7:$AD$8,2,FALSE) -> 204473.6009 | G14: =(NG!$Q85*NG!$R$84+NG!$R85)/1000000*HLOOKUP($H$10,$Z$3:$AD$4,2,FALSE)/HLOOKUP($J$11,$Z$7:$AD$8,2,FALSE) -> 266487.4548 | H14: =(NG!$W85*NG!$X$84+NG!$X85)/1000000*HLOOKUP($H$10,$Z$3:$AD$4,2,FALSE)/HLOOKUP($J$11,$Z$7:$AD$8,2,FALSE) -> 173136.488 | I14: =('MeOH&FTD'!BJ138*'MeOH&FTD'!BK$137+'MeOH&FTD'!BK138)/1000000*HLOOKUP($H$10,$Z$3:$AD$4,2,FALSE)/HLOOKUP($J$11,$Z$7:$AD$8,2,FALSE) -> 834859.3541 | J14: =((1-Vehicles!$C$27)*(1-Vehicles!$C$5)*Fuel_Specs!$B$15/((1-Vehicles!$C$27)*(1-Vehicles!$C$5)*Fuel_Specs!$B$15+Vehicles!$C$27*(1-Vehicles!$C$5)*Fuel_Specs!$B$16+Vehicles!$C$5*Fuel_Specs!$B$30)*(Petroleum!$B263*Petroleum!$D$262+Petroleum!$D263)+Vehicles!$C$27*(1-Vehicles!$C$5)*Fuel_Specs!$B$16/((1-Vehicles!$C$27)*(1-Vehicles!$C$5)*Fuel_Specs!$B$15+Vehicles!$C$27*(1-Vehicles!$C$5)*Fuel_Specs!$B$16+Vehicles!$C$5*Fuel_Specs!$B$30)*(Petroleum!B263*Petroleum!$F$262+Petroleum!$F263)+Vehicles!$C$5*Fuel_Specs!$B$30/((1-Vehicles!$C$27)*(1-Vehicles!$C$5)*Fuel_Specs!$B$15+Vehicles!$C$27*(1-Vehicles!$C$5)*Fuel_Specs!$B$16+Vehicles!$C$5*Fuel_Specs!$B$30)*('MeOH&FTD'!$N138*'MeOH&FTD'!$O$137+'MeOH&FTD'!$O138))/1000000*HLOOKUP($H$10,$Z$3:$AD$4,2,FALSE)/HLOOKUP($J$11,$Z$7:$AD$8,2,FALSE) -> 568495.8012 | K14: =((1-Vehicles!$C$27)*(1-Vehicles!$C$6)*Fuel_Specs!$B$15/((1-Vehicles!$C$27)*(1-Vehicles!$C$6)*Fuel_Specs!$B$15+Vehicles!$C$27*(1-Vehicles!$C$6)*Fuel_Specs!$B$16+Vehicles!$C$6*Fuel_Specs!$B$30)*(Petroleum!$B263*Petroleum!$D$262+Petroleum!$D263)+Vehicles!$C$27*(1-Vehicles!$C$6)*Fuel_Specs!$B$16/((1-Vehicles!$C$27)*(1-Vehicles!$C$6)*Fuel_Specs!$B$15+Vehicles!$C$27*(1-Vehicles!$C$6)*Fuel_Specs!$B$16+Vehicles!$C$6*Fuel_Specs!$B$30)*(Petroleum!B263*Petroleum!$F$262+Petroleum!$F263)+Vehicles!$C$6*Fuel_Specs!$B$30/((1-Vehicles!$C$27)*(1-Vehicles!$C$6)*Fuel_Specs!$B$15+Vehicles!$C$27*(1-Vehicles!$C$6)*Fuel_Specs!$B$16+Vehicles!$C$6*Fuel_Specs!$B$30)*('MeOH&FTD'!$N138*'MeOH&FTD'!$O$137+'MeOH&FTD'!$O138))/1000000*HLOOKUP($H$10,$Z$3:$AD$4,2,FALSE)/HLOOKUP($J$11,$Z$7:$AD$8,2,FALSE) -> 599255.9826 | L14: =('MeOH&FTD'!$N138*'MeOH&FTD'!$O$137+'MeOH&FTD'!$O138)/1000000*HLOOKUP($H$10,$Z$3:$AD$4,2,FALSE)/HLOOKUP($J$11,$Z$7:$AD$8,2,FALSE) -> 670260.6897 | M14: =((1-Vehicles!$C$29)*(1-Vehicles!$C$8)*Fuel_Specs!$B$15/((1-Vehicles!$C$29)*(1-Vehicles!$C$8)*Fuel_Specs!$B$15+Vehicles!$C$29*(1-Vehicles!$C$8)*Fuel_Specs!$B$16+Vehicles!$C$8*Fuel_Specs!$B$31)*(Petroleum!$B263*Petroleum!$D$262+(Petroleum!$D263-'T&D'!G212))+Vehicles!$C$29*(1-Vehicles!$C$8)*Fuel_Specs!$B$16/((1-Vehicles!$C$29)*(1-Vehicles!$C$8)*Fuel_Specs!$B$15+Vehicles!$C$29*(1-Vehicles!$C$8)*Fuel_Specs!$B$16+Vehicles!$C$8*Fuel_Specs!$B$31)*(Petroleum!B263*Petroleum!$F$262+Petroleum!$F263)+Vehicles!$C$8*Fuel_Specs!$B$31/((1-Vehicles!$C$29)*(1-Vehicles!$C$8)*Fuel_Specs!$B$15+Vehicles!$C$29*(1-Vehicles!$C$8)*Fuel_Specs!$B$16+Vehicles!$C$8*Fuel_Specs!$B$31)*(EtOH!BR490*EtOH!$BS$489+EtOH!$BS490)+Petroleum!AR124+Petroleum!AS124)/1000000*HLOOKUP($H$10,$Z$3:$AD$4,2,FALSE)/HLOOKUP($J$11,$Z$7:$AD$8,2,FALSE) -> 589082.6666 | N14: =((1-Vehicles!$C$30)*(1-Vehicles!$C$12)*Fuel_Specs!$B$15/((1-Vehicles!$C$30)*(1-Vehicles!$C$12)*Fuel_Specs!$B$15+Vehicles!$C$30*(1-Vehicles!$C$12)*Fuel_Specs!$B$16+Vehicles!$C$12*Fuel_Specs!$B$32)*(Petroleum!$B263*Petroleum!$D$262+Petroleum!$D263)+Vehicles!$C$30*(1-Vehicles!$C$12)*Fuel_Specs!$B$16/((1-Vehicles!$C$30)*(1-Vehicles!$C$12)*Fuel_Specs!$B$15+Vehicles!$C$30*(1-Vehicles!$C$12)*Fuel_Specs!$B$16+Vehicles!$C$12*Fuel_Specs!$B$32)*(Petroleum!B263*Petroleum!$F$262+Petroleum!$F263)+Vehicles!$C$12*Fuel_Specs!$B$32/((1-Vehicles!$C$30)*(1-Vehicles!$C$12)*Fuel_Specs!$B$15+Vehicles!$C$30*(1-Vehicles!$C$12)*Fuel_Specs!$B$16+Vehicles!$C$12*Fuel_Specs!$B$32)*(EtOH!$BT490*EtOH!$BU$489+EtOH!$BU490))/1000000*HLOOKUP($H$10,$Z$3:$AD$4,2,FALSE)/HLOOKUP($J$11,$Z$7:$AD$8,2,FALSE) -> 725870.2159 | O14: =((1-Vehicles!$C$29)*(1-Vehicles!$C$9)*Fuel_Specs!$B$15/((1-Vehicles!$C$29)*(1-Vehicles!$C$9)*Fuel_Specs!$B$15+Vehicles!$C$29*(1-Vehicles!$C$9)*Fuel_Specs!$B$16+Vehicles!$C$9*Fuel_Specs!$B$31)*(Petroleum!$B263*Petroleum!$D$262+(Petroleum!$D263-'T&D'!G212))+Vehicles!$C$29*(1-Vehicles!$C$9)*Fuel_Specs!$B$16/((1-Vehicles!$C$29)*(1-Vehicles!$C$9)*Fuel_Specs!$B$15+Vehicles!$C$29*(1-Vehicles!$C$9)*Fuel_Specs!$B$16+Vehicles!$C$9*Fuel_Specs!$B$31)*(Petroleum!B263*Petroleum!$F$262+Petroleum!$F263)+Vehicles!$C$9*Fuel_Specs!$B$31/((1-Vehicles!$C$29)*(1-Vehicles!$C$9)*Fuel_Specs!$B$15+Vehicles!$C$29*(1-Vehicles!$C$9)*Fuel_Specs!$B$16+Vehicles!$C$9*Fuel_Specs!$B$31)*(EtOH!BR490*EtOH!$BS$489+EtOH!$BS490)+Petroleum!AR124+Petroleum!AS124)/1000000*HLOOKUP($H$10,$Z$3:$AD$4,2,FALSE)/HLOOKUP($J$11,$Z$7:$AD$8,2,FALSE) -> 589082.6666 | P14: =(EtOH!$BP490*EtOH!$BQ$489+EtOH!$BQ490)/1000000*HLOOKUP($H$10,$Z$3:$AD$4,2,FALSE)/HLOOKUP($J$11,$Z$7:$AD$8,2,FALSE) -> 683197.4324 | Q14: =((1-Vehicles!$C$33)*(1-Vehicles!$C$16)*Fuel_Specs!$B$15/((1-Vehicles!$C$33)*(1-Vehicles!$C$16)*Fuel_Specs!$B$15+Vehicles!$C$33*(1-Vehicles!$C$16)*Fuel_Specs!$B$16+Vehicles!$C$16*Fuel_Specs!$B$44)*(Petroleum!$B263*Petroleum!$D$262+Petroleum!$D263)+Vehicles!$C$33*(1-Vehicles!$C$16)*Fuel_Specs!$B$16/((1-Vehicles!$C$33)*(1-Vehicles!$C$16)*Fuel_Specs!$B$15+Vehicles!$C$33*(1-Vehicles!$C$16)*Fuel_Specs!$B$16+Vehicles!$C$16*Fuel_Specs!$B$44)*(Petroleum!B263*Petroleum!$F$262+Petroleum!$F263)+Vehicles!$C$16*Fuel_Specs!$B$44/((1-Vehicles!$C$33)*(1-Vehicles!$C$16)*Fuel_Specs!$B$15+Vehicles!$C$33*(1-Vehicles!$C$16)*Fuel_Specs!$B$16+Vehicles!$C$16*Fuel_Specs!$B$44)*(BioOil!$BO335*BioOil!$BP$333+BioOil!$BP335))/1000000*HLOOKUP($H$10,$Z$3:$AD$4,2,FALSE)/HLOOKUP($J$11,$Z$7:$AD$8,2,FALSE) -> 469435.7797 | R14: =((1-Vehicles!$C$33)*(1-Vehicles!$C$16)*Fuel_Specs!$B$15/((1-Vehicles!$C$33)*(1-Vehicles!$C$16)*Fuel_Specs!$B$15+Vehicles!$C$33*(1-Vehicles!$C$16)*Fuel_Specs!$B$16+Vehicles!$C$16*Fuel_Specs!$B$44)*(Petroleum!$B263*Petroleum!$D$262+Petroleum!$D263)+Vehicles!$C$33*(1-Vehicles!$C$16)*Fuel_Specs!$B$16/((1-Vehicles!$C$33)*(1-Vehicles!$C$16)*Fuel_Specs!$B$15+Vehicles!$C$33*(1-Vehicles!$C$16)*Fuel_Specs!$B$16+Vehicles!$C$16*Fuel_Specs!$B$44)*(Petroleum!B263*Petroleum!$F$262+Petroleum!$F263)+Vehicles!$C$16*Fuel_Specs!$B$44/((1-Vehicles!$C$33)*(1-Vehicles!$C$16)*Fuel_Specs!$B$15+Vehicles!$C$33*(1-Vehicles!$C$16)*Fuel_Specs!$B$16+Vehicles!$C$16*Fuel_Specs!$B$44)*(Pyrolysis!$Z172*Pyrolysis!$AA$171+Pyrolysis!$AA172))/1000000*HLOOKUP($H$10,$Z$3:$AD$4,2,FALSE)/HLOOKUP($J$11,$Z$7:$AD$8,2,FALSE) -> 982400.9103 | S14: =AN14*(Vehicles!$C$23/Vehicles!$AR$59)/(Vehicles!$C$23*(1/Vehicles!$AR$59+1/Vehicles!$AS$59)+Vehicles!$C$24/Vehicles!$AT$59)+B14*(Vehicles!$C$23/Vehicles!$AS$59+Vehicles!$C$24/Vehicles!$AT$59)/(Vehicles!$C$23*(1/Vehicles!$AR$59+1/Vehicles!$AS$59)+Vehicles!$C$24/Vehicles!$AT$59) -> 587212.9129 | T14: =AN14*(Vehicles!$D$23/Vehicles!$AV$59)/(Vehicles!$D$23*(1/Vehicles!$AV$59+1/Vehicles!$AW$59)+Vehicles!$D$24/Vehicles!$AX$59)+C14*(Vehicles!$D$23/Vehicles!$AW$59+Vehicles!$D$24/Vehicles!$AX$59)/(Vehicles!$D$23*(1/Vehicles!$AV$59+1/Vehicles!$AW$59)+Vehicles!$D$24/Vehicles!$AX$59) -> 564076.9954 | U14: =AN14*(Vehicles!$F$23/Vehicles!$BD$59)/(Vehicles!$F$23*(1/Vehicles!$BD$59+1/Vehicles!$BE$59)+Vehicles!$F$24/Vehicles!$BF$59)+D14*(Vehicles!$F$23/Vehicles!$BE$59+Vehicles!$F$24/Vehicles!$BF$59)/(Vehicles!$F$23*(1/Vehicles!$BD$59+1/Vehicles!$BE$59)+Vehicles!$F$24/Vehicles!$BF$59) -> 587212.9129 | V14: =AN14*(Vehicles!$G$23/Vehicles!$BH$59)/(Vehicles!$G$23*(1/Vehicles!$BH$59+1/Vehicles!$BI$59)+Vehicles!$G$24/Vehicles!$BJ$59)+F14*(Vehicles!$G$23/Vehicles!$BI$59+Vehicles!$G$24/Vehicles!$BJ$59)/(Vehicles!$G$23*(1/Vehicles!$BH$59+1/Vehicles!$BI$59)+Vehicles!$G$24/Vehicles!$BJ$59) -> 507836.5187 | W14: =AN14*(Vehicles!$H$23/Vehicles!$BL$59)/(Vehicles!$H$23*(1/Vehicles!$BL$59+1/Vehicles!$BM$59)+Vehicles!$H$24/Vehicles!$BN$59)+G14*(Vehicles!$H$23/Vehicles!$BM$59+Vehicles!$H$24/Vehicles!$BN$59)/(Vehicles!$H$23*(1/Vehicles!$BL$59+1/Vehicles!$BM$59)+Vehicles!$H$24/Vehicles!$BN$59) -> 554167.094 | X14: =AN14*(Vehicles!$I$23/Vehicles!$BP$59)/(Vehicles!$I$23*(1/Vehicles!$BP$59+1/Vehicles!$BQ$59)+Vehicles!$I$24/Vehicles!$BR$59)+H14*(Vehicles!$I$23/Vehicles!$BQ$59+Vehicles!$I$24/Vehicles!$BR$59)/(Vehicles!$I$23*(1/Vehicles!$BP$59+1/Vehicles!$BQ$59)+Vehicles!$I$24/Vehicles!$BR$59) -> 484424.549 | Y14: =AN14*(Vehicles!$J$23/Vehicles!$BT$59)/(Vehicles!$J$23*(1/Vehicles!$BT$59+1/Vehicles!$BU$59)+Vehicles!$J$24/Vehicles!$BV$59)+K14*(Vehicles!$J$23/Vehicles!$BU$59+Vehicles!$J$24/Vehicles!$BV$59)/(Vehicles!$J$23*(1/Vehicles!$BT$59+1/Vehicles!$BU$59)+Vehicles!$J$24/Vehicles!$BV$59) -> 793039.945 | Z14: =AN14*(Vehicles!$K$23/Vehicles!$BX$59)/(Vehicles!$K$23*(1/Vehicles!$BX$59+1/Vehicles!$BY$59)+Vehicles!$K$24/Vehicles!$BZ$59)+O14*(Vehicles!$K$23/Vehicles!$BY$59+Vehicles!$K$24/Vehicles!$BZ$59)/(Vehicles!$K$23*(1/Vehicles!$BX$59+1/Vehicles!$BY$59)+Vehicles!$K$24/Vehicles!$BZ$59) -> 785316.3455 | AA14: =AN14*(Vehicles!$L$23/Vehicles!$CB$59)/(Vehicles!$L$23*(1/Vehicles!$CB$59+1/Vehicles!$CC$59)+Vehicles!$L$24/Vehicles!$CD$59)+AO14*(Vehicles!$L$23/Vehicles!$CC$59+Vehicles!$L$24/Vehicles!$CD$59)/(Vehicles!$L$23*(1/Vehicles!$CB$59+1/Vehicles!$CC$59)+Vehicles!$L$24/Vehicles!$CD$59) -> 1001957.832 | AB14: =AN14*(Vehicles!$L$23/Vehicles!$CB$59)/(Vehicles!$L$23*(1/Vehicles!$CB$59+1/Vehicles!$CC$59)+Vehicles!$L$24/Vehicles!$CE$59)+AP14*(Vehicles!$L$23/Vehicles!$CC$59+Vehicles!$L$24/Vehicles!$CE$59)/(Vehicles!$L$23*(1/Vehicles!$CB$59+1/Vehicles!$CC$59)+Vehicles!$L$24/Vehicles!$CE$59) -> 1541238.032 | AC14: =('MeOH&FTD'!$AJ138*'MeOH&FTD'!$AK$137+'MeOH&FTD'!$AK138)/1000000*HLOOKUP($H$10,$Z$3:$AD$4,2,FALSE)/HLOOKUP($J$11,$Z$7:$AD$8,2,FALSE) -> 649744.958 | AD14: =((1-Vehicles!$C$34)*(1-Vehicles!$C$13)*Fuel_Specs!$B$20/((1-Vehicles!$C$34)*(1-Vehicles!$C$13)*Fuel_Specs!$B$20+Vehicles!$C$34*(1-Vehicles!$C$13)*Fuel_Specs!$B$23+Vehicles!$C$13*Fuel_Specs!$B$40)*(Petroleum!B263*Petroleum!$J$262+Petroleum!$J263)+Vehicles!$C$34*(1-Vehicles!$C$13)*Fuel_Specs!$B$23/((1-Vehicles!$C$34)*(1-Vehicles!$C$13)*Fuel_Specs!$B$20+Vehicles!$C$34*(1-Vehicles!$C$13)*Fuel_Specs!$B$23+Vehicles!$C$13*Fuel_Specs!$B$40)*(Petroleum!B263*Petroleum!$K$262+Petroleum!$K263)+Vehicles!$C$13*Fuel_Specs!$B$40/((1-Vehicles!$C$34)*(1-Vehicles!$C$13)*Fuel_Specs!$B$20+Vehicles!$C$34*(1-Vehicles!$C$13)*Fuel_Specs!$B$23+Vehicles!$C$13*Fuel_Specs!$B$40)*('MeOH&FTD'!$AZ138*'MeOH&FTD'!$BA$137+'MeOH&FTD'!$BA138))/1000000*HLOOKUP($H$10,$Z$3:$AD$4,2,FALSE)/HLOOKUP($J$11,$Z$7:$AD$8,2,FALSE) -> 728970.6038 | AE14: =((1-Vehicles!$C$35)*(1-Vehicles!$C$14)*Fuel_Specs!$B$20/((1-Vehicles!$C$35)*(1-Vehicles!$C$14)*Fuel_Specs!$B$20+Vehicles!$C$35*(1-Vehicles!$C$14)*Fuel_Specs!$B$23+Vehicles!$C$14*Fuel_Specs!$B$39)*(Petroleum!B263*Petroleum!$J$262+Petroleum!$J263)+Vehicles!$C$35*(1-Vehicles!$C$14)*Fuel_Specs!$B$23/((1-Vehicles!$C$35)*(1-Vehicles!$C$14)*Fuel_Specs!$B$20+Vehicles!$C$35*(1-Vehicles!$C$14)*Fuel_Specs!$B$23+Vehicles!$C$14*Fuel_Specs!$B$39)*(Petroleum!B263*Petroleum!$K$262+Petroleum!$K263)+Vehicles!$C$14*Fuel_Specs!$B$39/((1-Vehicles!$C$35)*(1-Vehicles!$C$14)*Fuel_Specs!$B$20+Vehicles!$C$35*(1-Vehicles!$C$14)*Fuel_Specs!$B$23+Vehicles!$C$14*Fuel_Specs!$B$39)*(BioOil!$W335*BioOil!$X$333+BioOil!$X335))/1000000*HLOOKUP($H$10,$Z$3:$AD$4,2,FALSE)/HLOOKUP($J$11,$Z$7:$AD$8,2,FALSE) -> 362329.1924 | AF14: =((1-Vehicles!$C$36)*(1-Vehicles!$C$15)*Fuel_Specs!$B$20/((1-Vehicles!$C$36)*(1-Vehicles!$C$15)*Fuel_Specs!$B$20+Vehicles!$C$36*(1-Vehicles!$C$15)*Fuel_Specs!$B$23+Vehicles!$C$15*IF(Inputs!$E$628=1,IF(Inputs!$E$628=1,Fuel_Specs!$B$41,IF(Inputs!$E$628=3,Fuel_Specs!$B$43,Fuel_Specs!$B$42)),Fuel_Specs!$B$42))*(Petroleum!B263*Petroleum!$J$262+Petroleum!$J263)+Vehicles!$C$36*(1-Vehicles!$C$15)*Fuel_Specs!$B$23/((1-Vehicles!$C$36)*(1-Vehicles!$C$15)*Fuel_Specs!$B$20+Vehicles!$C$36*(1-Vehicles!$C$15)*Fuel_Specs!$B$23+Vehicles!$C$15*IF(Inputs!$E$628=1,IF(Inputs!$E$628=1,Fuel_Specs!$B$41,IF(Inputs!$E$628=3,Fuel_Specs!$B$43,Fuel_Specs!$B$42)),Fuel_Specs!$B$42))*(Petroleum!B263*Petroleum!$K$262+Petroleum!$K263)+Vehicles!$C$15*IF(Inputs!$E$628=1,IF(Inputs!$E$628=1,Fuel_Specs!$B$41,IF(Inputs!$E$628=3,Fuel_Specs!$B$43,Fuel_Specs!$B$42)),Fuel_Specs!$B$42)/((1-Vehicles!$C$36)*(1-Vehicles!$C$15)*Fuel_Specs!$B$20+Vehicles!$C$36*(1-Vehicles!$C$15)*Fuel_Specs!$B$23+Vehicles!$C$15*IF(Inputs!$E$628=1,IF(Inputs!$E$628=1,Fuel_Specs!$B$41,IF(Inputs!$E$628=3,Fuel_Specs!$B$43,Fuel_Specs!$B$42)),Fuel_Specs!$B$42))*(BioOil!$BA335*BioOil!$BB$333+BioOil!$BB335))/1000000*HLOOKUP($H$10,$Z$3:$AD$4,2,FALSE)/HLOOKUP($J$11,$Z$7:$AD$8,2,FALSE) -> 486560.5835 | AG14: =((1-Vehicles!$C$36)*(1-Vehicles!$C$15)*Fuel_Specs!$B$20/((1-Vehicles!$C$36)*(1-Vehicles!$C$15)*Fuel_Specs!$B$20+Vehicles!$C$36*(1-Vehicles!$C$15)*Fuel_Specs!$B$23+Vehicles!$C$15*IF(Inputs!$E$628=1,Fuel_Specs!$B$41,Fuel_Specs!$B$42))*(Petroleum!B263*Petroleum!$J$262+Petroleum!$J263)+Vehicles!$C$36*(1-Vehicles!$C$15)*Fuel_Specs!$B$23/((1-Vehicles!$C$36)*(1-Vehicles!$C$15)*Fuel_Specs!$B$20+Vehicles!$C$36*(1-Vehicles!$C$15)*Fuel_Specs!$B$23+Vehicles!$C$15*IF(Inputs!$E$628=1,Fuel_Specs!$B$41,Fuel_Specs!$B$42))*(Petroleum!B263*Petroleum!$K$262+Petroleum!$K263)+Vehicles!$C$15*IF(Inputs!$E$628=1,Fuel_Specs!$B$41,Fuel_Specs!$B$42)/((1-Vehicles!$C$36)*(1-Vehicles!$C$15)*Fuel_Specs!$B$20+Vehicles!$C$36*(1-Vehicles!$C$15)*Fuel_Specs!$B$23+Vehicles!$C$15*IF(Inputs!$E$628=1,Fuel_Specs!$B$41,Fuel_Specs!$B$42))*(Pyrolysis!$AB172*Pyrolysis!$AC$171+Pyrolysis!$AC172))/1000000*HLOOKUP($H$10,$Z$3:$AD$4,2,FALSE)/HLOOKUP($J$11,$Z$7:$AD$8,2,FALSE) -> 1014827.797 | AH14: =(((1-Vehicles!$C$37)*(1-Vehicles!$C$17-Vehicles!$C$18)*Fuel_Specs!$B$20*(Petroleum!B263*Petroleum!$J$262+Petroleum!$J263)+Vehicles!$C$37*(1-Vehicles!$C$17-Vehicles!$C$18)*Fuel_Specs!$B$23*(Petroleum!B263*Petroleum!$K$262+Petroleum!$K263)+Vehicles!$C$17*Fuel_Specs!$B$31*(EtOH!BP490*EtOH!$BQ$489+EtOH!$BQ490)+Vehicles!$C$18*Fuel_Specs!$B$34*('E-D Additives'!$B54*'E-D Additives'!$B$53))/((1-Vehicles!$C$37)*(1-Vehicles!$C$17-Vehicles!$C$18)*Fuel_Specs!$B$20+Vehicles!$C$37*(1-Vehicles!$C$17-Vehicles!$C$18)*Fuel_Specs!$B$23+Vehicles!$C$17*Fuel_Specs!$B$31+Vehicles!$C$18*Fuel_Specs!$B$34))/1000000*HLOOKUP($H$10,$Z$3:$AD$4,2,FALSE)/HLOOKUP($J$11,$Z$7:$AD$8,2,FALSE) -> 318709.3371 | AI14: =AN14*(Vehicles!$M$23/Vehicles!$CM$59)/(Vehicles!$M$23*(1/Vehicles!$CM$59+1/Vehicles!$CN$59)+Vehicles!$M$24/Vehicles!$CO$59)+E14*(Vehicles!$M$23/Vehicles!$CN$59+Vehicles!$M$24/Vehicles!$CO$59)/(Vehicles!$M$23*(1/Vehicles!$CM$59+1/Vehicles!$CN$59)+Vehicles!$M$24/Vehicles!$CO$59) -> 585440.1952 | AJ14: =AN14*(Vehicles!$N$23/Vehicles!$CQ$59)/(Vehicles!$N$23*(1/Vehicles!$CQ$59+1/Vehicles!$CR$59)+Vehicles!$N$24/Vehicles!$CS$59)+AC14*(Vehicles!$N$23/Vehicles!$CR$59+Vehicles!$N$24/Vehicles!$CS$59)/(Vehicles!$N$23*(1/Vehicles!$CQ$59+1/Vehicles!$CR$59)+Vehicles!$N$24/Vehicles!$CS$59) -> 848068.4841 | AK14: =AN14*(Vehicles!$O$23/Vehicles!$CU$59)/(Vehicles!$O$23*(1/Vehicles!$CU$59+1/Vehicles!$CV$59)+Vehicles!$O$24/Vehicles!$CW$59)+AD14*(Vehicles!$O$23/Vehicles!$CV$59+Vehicles!$O$24/Vehicles!$CW$59)/(Vehicles!$O$23*(1/Vehicles!$CU$59+1/Vehicles!$CV$59)+Vehicles!$O$24/Vehicles!$CW$59) -> 906462.9162 | AL14: =AN14*(Vehicles!$P$23/Vehicles!$CY$59)/(Vehicles!$P$23*(1/Vehicles!$CY$59+1/Vehicles!$CZ$59)+Vehicles!$P$24/Vehicles!$DA$59)+AE14*(Vehicles!$P$23/Vehicles!$CZ$59+Vehicles!$P$24/Vehicles!$DA$59)/(Vehicles!$P$23*(1/Vehicles!$CY$59+1/Vehicles!$CZ$59)+Vehicles!$P$24/Vehicles!$DA$59) -> 636224.4499 | AM14: =AN14*(Vehicles!$R$23/Vehicles!$DG$59)/(Vehicles!$R$23*(1/Vehicles!$DG$59+1/Vehicles!$DH$59)+Vehicles!$R$24/Vehicles!$DI$59)+AH14*(Vehicles!$R$23/Vehicles!$DH$59+Vehicles!$R$24/Vehicles!$DI$59)/(Vehicles!$R$23*(1/Vehicles!$DG$59+1/Vehicles!$DH$59)+Vehicles!$R$24/Vehicles!$DI$59) -> 604073.7914 | AN14: =(Electric!$G186+Electric!$F186-1000000)/1000000*HLOOKUP($H$10,$Z$3:$AD$4,2,FALSE)/HLOOKUP($J$11,$Z$7:$AD$8,2,FALSE) -> 1404012.553 | AO14: =((Hydrogen!$AF163*Hydrogen!$AG$162+Hydrogen!$AG163)-1000000*(Hydrogen!$M$7+Hydrogen!$C$7+Hydrogen!$D$7+Hydrogen!$E$7))/1000000*HLOOKUP($H$10,$Z$3:$AD$4,2,FALSE)/HLOOKUP($J$11,$Z$7:$AD$8,2,FALSE) -> 855062.2707 | AP14: =((Hydrogen!$BJ163*Hydrogen!$BK$162+Hydrogen!$BK163)-1000000*(Hydrogen!$M$8+Hydrogen!$C$8+Hydrogen!$D$8+Hydrogen!$E$8))/1000000*HLOOKUP($H$10,$Z$3:$AD$4,2,FALSE)/HLOOKUP($J$11,$Z$7:$AD$8,2,FALSE) -> 1591375.022 | AQ14: =AN14*(Vehicles!$S$23/Vehicles!$DW$59)/(Vehicles!$S$23*(1/Vehicles!$DW$59+1/Vehicles!$DX$59)+Vehicles!$S$24/Vehicles!$DY$59)+AO14*(Vehicles!$S$23/Vehicles!$DX$59+Vehicles!$S$24/Vehicles!$DY$59)/(Vehicles!$S$23*(1/Vehicles!$DW$59+1/Vehicles!$DX$59)+Vehicles!$S$24/Vehicles!$DY$59) -> 1031307.266 | AR14: =AN14*(Vehicles!$S$23/Vehicles!$DW$59)/(Vehicles!$S$23*(1/Vehicles!$DW$59+1/Vehicles!$DX$59)+Vehicles!$S$24/Vehicles!$DY$59)+AP14*(Vehicles!$S$23/Vehicles!$DX$59+Vehicles!$S$24/Vehicles!$DY$59)/(Vehicles!$S$23*(1/Vehicles!$DW$59+1/Vehicles!$DX$59)+Vehicles!$S$24/Vehicles!$DY$59) -> 1531220.763 | AS14: =((1-Vehicles!$C$33)*(1-Vehicles!$C$16)*Fuel_Specs!$B$15/((1-Vehicles!$C$33)*(1-Vehicles!$C$16)*Fuel_Specs!$B$15+Vehicles!$C$33*(1-Vehicles!$C$16)*Fuel_Specs!$B$16+Vehicles!$C$16*Fuel_Specs!$B$45)*(Petroleum!$B263*Petroleum!$D$262+Petroleum!$D263)+Vehicles!$C$33*(1-Vehicles!$C$16)*Fuel_Specs!$B$16/((1-Vehicles!$C$33)*(1-Vehicles!$C$16)*Fuel_Specs!$B$15+Vehicles!$C$33*(1-Vehicles!$C$16)*Fuel_Specs!$B$16+Vehicles!$C$16*Fuel_Specs!$B$45)*(Petroleum!B263*Petroleum!$F$262+Petroleum!$F263)+Vehicles!$C$16*Fuel_Specs!$B$45/((1-Vehicles!$C$33)*(1-Vehicles!$C$16)*Fuel_Specs!$B$15+Vehicles!$C$33*(1-Vehicles!$C$16)*Fuel_Specs!$B$16+Vehicles!$C$16*Fuel_Specs!$B$45)*(IDL!$L113*IDL!$M$112+IDL!$M113))/1000000*HLOOKUP($H$10,$Z$3:$AD$4,2,FALSE)/HLOOKUP($J$11,$Z$7:$AD$8,2,FALSE) -> 3185161.49 | AV14: Select Fuels | AY14: Select Fuels | BB14: Select Fuels | BE14: Select Fuels | BH14: Select Fuels | BK14: Select Fuels | BN14: Select Fuels | BQ14: Select Fuels
A15: WTP Efficiency | B15: =HLOOKUP($H$10,$Z$3:$AD$4,2,FALSE)/HLOOKUP($J$11,$Z$7:$AD$8,2,FALSE)/(HLOOKUP($H$10,$Z$3:$AD$4,2,FALSE)/HLOOKUP($J$11,$Z$7:$AD$8,2,FALSE)+B14) -> 0.7629397128 | C15: 0.7814014338 | D15: 0.7629397128 | E15: 0.7731389722 | F15: 0.8302382047 | G15: 0.7895853972 | H15: 0.8524157336 | I15: 0.5450009004 | J15: 0.6375535078 | K15: 0.625290767 | L15: 0.5987089358 | M15: 0.6292938819 | N15: 0.5794178443 | O15: 0.6292938819 | P15: 0.5941073702 | Q15: 0.6805333134 | R15: 0.5044388321 | S15: 0.6300351968 | T15: 0.639354714 | U15: 0.6300351968 | V15: 0.6632018708 | W15: 0.6434314585 | X15: 0.6736617234 | Y15: 0.5577120592 | Z15: 0.5601248219 | AA15: 0.4995110207 | AB15: 0.3935089855 | AC15: 0.6061542999 | AD15: 0.5783788329 | AE15: 0.7340369755 | AF15: 0.6726937409 | AG15: 0.4963203314 | AH15: 0.7583172211 | AI15: 0.6307396539 | AJ15: 0.5411054886 | AK15: 0.524531577 | AL15: 0.6111630957 | AM15: 0.6234127166 | AN15: 0.4159712056 | AO15: 0.539065462 | AP15: 0.3858955155 | AQ15: 0.4922938134 | AR15: 0.3950662915 | AS15: 0.2389394059 | AV15: SI - Gasoline | AW15: RNAVGASCRFG | AY15: SIDI - Gasoline | AZ15: RNAVGASCRFGSIDI | BB15: CIDI - Diesel | BC15: RNAVDIESELCIDI | BE15: SI HEV - Gasoline | BF15: RNAVHEV | BH15: SI PHEV - Gasoline and Electricity | BI15: RNAVPHEV | BK15: CIDI HEV - Diesel | BL15: RNAVHEVDIESEL | BN15: CIDI PHEV - Diesel and Electricity | BO15: RNAVPHEVDIESEL | BQ15: BEV - Electricity | BR15: RNAVPHEVELECTRIC
A16: Fossil Fuels | B16: =(Inputs!$E$1398*(Petroleum!$B264*Petroleum!$F$262+Petroleum!$F264)+(1-Inputs!$E$1398)*(Petroleum!$B264*Petroleum!$D$262+Petroleum!$D264))/1000000*HLOOKUP($H$10,$Z$3:$AD$4,2,FALSE)/HLOOKUP($J$11,$Z$7:$AD$8,2,FALSE) -> 297984.2442 | C16: =(Petroleum!$C264*Petroleum!$G$262+Petroleum!$G264)/1000000*HLOOKUP($H$10,$Z$3:$AD$4,2,FALSE)/HLOOKUP($J$11,$Z$7:$AD$8,2,FALSE) -> 269147.3669 | D16: =((1-Vehicles!$C$28)*(1-Vehicles!$C$7)*Fuel_Specs!$B$15/((1-Vehicles!$C$28)*(1-Vehicles!$C$7)*Fuel_Specs!$B$15+Vehicles!$C$28*(1-Vehicles!$C$7)*Fuel_Specs!$B$16+Vehicles!$C$7*Fuel_Specs!$B$31)*(Petroleum!$B264*Petroleum!$D$262+(Petroleum!$D264-'T&D'!G213))+Vehicles!$C$28*(1-Vehicles!$C$7)*Fuel_Specs!$B$16/((1-Vehicles!$C$28)*(1-Vehicles!$C$7)*Fuel_Specs!$B$15+Vehicles!$C$28*(1-Vehicles!$C$7)*Fuel_Specs!$B$16+Vehicles!$C$7*Fuel_Specs!$B$31)*(Petroleum!B264*Petroleum!$F$262+Petroleum!$F264)+Vehicles!$C$7*Fuel_Specs!$B$31/((1-Vehicles!$C$28)*(1-Vehicles!$C$7)*Fuel_Specs!$B$15+Vehicles!$C$28*(1-Vehicles!$C$7)*Fuel_Specs!$B$16+Vehicles!$C$7*Fuel_Specs!$B$31)*(EtOH!BR491*EtOH!$BS$489+EtOH!$BS491)+Petroleum!AR125+Petroleum!AS125)/1000000*HLOOKUP($H$10,$Z$3:$AD$4,2,FALSE)/HLOOKUP($J$11,$Z$7:$AD$8,2,FALSE) -> 297984.2442 | E16: =(Inputs!$E$97*(IF(Inputs!F$102=1,Petroleum!$B264,Petroleum!$C264)*Petroleum!$K$262+Petroleum!$K264)+(1-Inputs!$E$97)*(IF(Inputs!F$101=1,Petroleum!$B264,Petroleum!$C264)*Petroleum!$J$262+Petroleum!$J264))/1000000*HLOOKUP($H$10,$Z$3:$AD$4,2,FALSE)/HLOOKUP($J$11,$Z$7:$AD$8,2,FALSE) -> 285858.7816 | F16: =(NG!$I86*NG!$J$84+NG!$J86)/1000000*HLOOKUP($H$10,$Z$3:$AD$4,2,FALSE)/HLOOKUP($J$11,$Z$7:$AD$8,2,FALSE) -> 190388.5787 | G16: =(NG!$Q86*NG!$R$84+NG!$R86)/1000000*HLOOKUP($H$10,$Z$3:$AD$4,2,FALSE)/HLOOKUP($J$11,$Z$7:$AD$8,2,FALSE) -> 264516.9067 | H16: =(NG!$W86*NG!$X$84+NG!$X86)/1000000*HLOOKUP($H$10,$Z$3:$AD$4,2,FALSE)/HLOOKUP($J$11,$Z$7:$AD$8,2,FALSE) -> 169178.5655 | I16: =('MeOH&FTD'!BJ139*'MeOH&FTD'!BK$137+'MeOH&FTD'!BK139)/1000000*HLOOKUP($H$10,$Z$3:$AD$4,2,FALSE)/HLOOKUP($J$11,$Z$7:$AD$8,2,FALSE) -> 857853.735 | J16: =((1-Vehicles!$C$27)*(1-Vehicles!$C$5)*Fuel_Specs!$B$15/((1-Vehicles!$C$27)*(1-Vehicles!$C$5)*Fuel_Specs!$B$15+Vehicles!$C$27*(1-Vehicles!$C$5)*Fuel_Specs!$B$16+Vehicles!$C$5*Fuel_Specs!$B$30)*(Petroleum!$B264*Petroleum!$D$262+Petroleum!$D264)+Vehicles!$C$27*(1-Vehicles!$C$5)*Fuel_Specs!$B$16/((1-Vehicles!$C$27)*(1-Vehicles!$C$5)*Fuel_Specs!$B$15+Vehicles!$C$27*(1-Vehicles!$C$5)*Fuel_Specs!$B$16+Vehicles!$C$5*Fuel_Specs!$B$30)*(Petroleum!B264*Petroleum!$F$262+Petroleum!$F264)+Vehicles!$C$5*Fuel_Specs!$B$30/((1-Vehicles!$C$27)*(1-Vehicles!$C$5)*Fuel_Specs!$B$15+Vehicles!$C$27*(1-Vehicles!$C$5)*Fuel_Specs!$B$16+Vehicles!$C$5*Fuel_Specs!$B$30)*('MeOH&FTD'!$N139*'MeOH&FTD'!$O$137+'MeOH&FTD'!$O139))/1000000*HLOOKUP($H$10,$Z$3:$AD$4,2,FALSE)/HLOOKUP($J$11,$Z$7:$AD$8,2,FALSE) -> 550844.5295 | K16: =((1-Vehicles!$C$27)*(1-Vehicles!$C$6)*Fuel_Specs!$B$15/((1-Vehicles!$C$27)*(1-Vehicles!$C$6)*Fuel_Specs!$B$15+Vehicles!$C$27*(1-Vehicles!$C$6)*Fuel_Specs!$B$16+Vehicles!$C$6*Fuel_Specs!$B$30)*(Petroleum!$B264*Petroleum!$D$262+Petroleum!$D264)+Vehicles!$C$27*(1-Vehicles!$C$6)*Fuel_Specs!$B$16/((1-Vehicles!$C$27)*(1-Vehicles!$C$6)*Fuel_Specs!$B$15+Vehicles!$C$27*(1-Vehicles!$C$6)*Fuel_Specs!$B$16+Vehicles!$C$6*Fuel_Specs!$B$30)*(Petroleum!B264*Petroleum!$F$262+Petroleum!$F264)+Vehicles!$C$6*Fuel_Specs!$B$30/((1-Vehicles!$C$27)*(1-Vehicles!$C$6)*Fuel_Specs!$B$15+Vehicles!$C$27*(1-Vehicles!$C$6)*Fuel_Specs!$B$16+Vehicles!$C$6*Fuel_Specs!$B$30)*('MeOH&FTD'!$N139*'MeOH&FTD'!$O$137+'MeOH&FTD'!$O139))/1000000*HLOOKUP($H$10,$Z$3:$AD$4,2,FALSE)/HLOOKUP($J$11,$Z$7:$AD$8,2,FALSE) -> 580491.9874 | L16: =('MeOH&FTD'!$N139*'MeOH&FTD'!$O$137+'MeOH&FTD'!$O139)/1000000*HLOOKUP($H$10,$Z$3:$AD$4,2,FALSE)/HLOOKUP($J$11,$Z$7:$AD$8,2,FALSE) -> 648928.1595 | M16: =((1-Vehicles!$C$29)*(1-Vehicles!$C$8)*Fuel_Specs!$B$15/((1-Vehicles!$C$29)*(1-Vehicles!$C$8)*Fuel_Specs!$B$15+Vehicles!$C$29*(1-Vehicles!$C$8)*Fuel_Specs!$B$16+Vehicles!$C$8*Fuel_Specs!$B$31)*(Petroleum!$B264*Petroleum!$D$262+(Petroleum!$D264-'T&D'!G213))+Vehicles!$C$29*(1-Vehicles!$C$8)*Fuel_Specs!$B$16/((1-Vehicles!$C$29)*(1-Vehicles!$C$8)*Fuel_Specs!$B$15+Vehicles!$C$29*(1-Vehicles!$C$8)*Fuel_Specs!$B$16+Vehicles!$C$8*Fuel_Specs!$B$31)*(Petroleum!B264*Petroleum!$F$262+Petroleum!$F264)+Vehicles!$C$8*Fuel_Specs!$B$31/((1-Vehicles!$C$29)*(1-Vehicles!$C$8)*Fuel_Specs!$B$15+Vehicles!$C$29*(1-Vehicles!$C$8)*Fuel_Specs!$B$16+Vehicles!$C$8*Fuel_Specs!$B$31)*(EtOH!BR491*EtOH!$BS$489+EtOH!$BS491)+Petroleum!AR125+Petroleum!AS125)/1000000*HLOOKUP($H$10,$Z$3:$AD$4,2,FALSE)/HLOOKUP($J$11,$Z$7:$AD$8,2,FALSE) -> 519985.5437 | N16: =((1-Vehicles!$C$30)*(1-Vehicles!$C$12)*Fuel_Specs!$B$15/((1-Vehicles!$C$30)*(1-Vehicles!$C$12)*Fuel_Specs!$B$15+Vehicles!$C$30*(1-Vehicles!$C$12)*Fuel_Specs!$B$16+Vehicles!$C$12*Fuel_Specs!$B$32)*(Petroleum!$B264*Petroleum!$D$262+Petroleum!$D264)+Vehicles!$C$30*(1-Vehicles!$C$12)*Fuel_Specs!$B$16/((1-Vehicles!$C$30)*(1-Vehicles!$C$12)*Fuel_Specs!$B$15+Vehicles!$C$30*(1-Vehicles!$C$12)*Fuel_Specs!$B$16+Vehicles!$C$12*Fuel_Specs!$B$32)*(Petroleum!B264*Petroleum!$F$262+Petroleum!$F264)+Vehicles!$C$12*Fuel_Specs!$B$32/((1-Vehicles!$C$30)*(1-Vehicles!$C$12)*Fuel_Specs!$B$15+Vehicles!$C$30*(1-Vehicles!$C$12)*Fuel_Specs!$B$16+Vehicles!$C$12*Fuel_Specs!$B$32)*(EtOH!$BT491*EtOH!$BU$489+EtOH!$BU491))/1000000*HLOOKUP($H$10,$Z$3:$AD$4,2,FALSE)/HLOOKUP($J$11,$Z$7:$AD$8,2,FALSE) -> 690961.3211 | O16: =((1-Vehicles!$C$29)*(1-Vehicles!$C$9)*Fuel_Specs!$B$15/((1-Vehicles!$C$29)*(1-Vehicles!$C$9)*Fuel_Specs!$B$15+Vehicles!$C$29*(1-Vehicles!$C$9)*Fuel_Specs!$B$16+Vehicles!$C$9*Fuel_Specs!$B$31)*(Petroleum!$B264*Petroleum!$D$262+(Petroleum!$D264-'T&D'!G213))+Vehicles!$C$29*(1-Vehicles!$C$9)*Fuel_Specs!$B$16/((1-Vehicles!$C$29)*(1-Vehicles!$C$9)*Fuel_Specs!$B$15+Vehicles!$C$29*(1-Vehicles!$C$9)*Fuel_Specs!$B$16+Vehicles!$C$9*Fuel_Specs!$B$31)*(Petroleum!B264*Petroleum!$F$262+Petroleum!$F264)+Vehicles!$C$9*Fuel_Specs!$B$31/((1-Vehicles!$C$29)*(1-Vehicles!$C$9)*Fuel_Specs!$B$15+Vehicles!$C$29*(1-Vehicles!$C$9)*Fuel_Specs!$B$16+Vehicles!$C$9*Fuel_Specs!$B$31)*(EtOH!BR491*EtOH!$BS$489+EtOH!$BS491)+Petroleum!AR125+Petroleum!AS125)/1000000*HLOOKUP($H$10,$Z$3:$AD$4,2,FALSE)/HLOOKUP($J$11,$Z$7:$AD$8,2,FALSE) -> 519985.5437 | P16: =(EtOH!$BP491*EtOH!$BQ$489+EtOH!$BQ491)/1000000*HLOOKUP($H$10,$Z$3:$AD$4,2,FALSE)/HLOOKUP($J$11,$Z$7:$AD$8,2,FALSE) -> 595270.6283 | Q16: =((1-Vehicles!$C$33)*(1-Vehicles!$C$16)*Fuel_Specs!$B$15/((1-Vehicles!$C$33)*(1-Vehicles!$C$16)*Fuel_Specs!$B$15+Vehicles!$C$33*(1-Vehicles!$C$16)*Fuel_Specs!$B$16+Vehicles!$C$16*Fuel_Specs!$B$44)*(Petroleum!$B264*Petroleum!$D$262+Petroleum!$D264)+Vehicles!$C$33*(1-Vehicles!$C$16)*Fuel_Specs!$B$16/((1-Vehicles!$C$33)*(1-Vehicles!$C$16)*Fuel_Specs!$B$15+Vehicles!$C$33*(1-Vehicles!$C$16)*Fuel_Specs!$B$16+Vehicles!$C$16*Fuel_Specs!$B$44)*(Petroleum!B264*Petroleum!$F$262+Petroleum!$F264)+Vehicles!$C$16*Fuel_Specs!$B$44/((1-Vehicles!$C$33)*(1-Vehicles!$C$16)*Fuel_Specs!$B$15+Vehicles!$C$33*(1-Vehicles!$C$16)*Fuel_Specs!$B$16+Vehicles!$C$16*Fuel_Specs!$B$44)*(BioOil!$BO336*BioOil!$BP$333+BioOil!$BP336))/1000000*HLOOKUP($H$10,$Z$3:$AD$4,2,FALSE)/HLOOKUP($J$11,$Z$7:$AD$8,2,FALSE) -> 157042.0883 | R16: =((1-Vehicles!$C$33)*(1-Vehicles!$C$16)*Fuel_Specs!$B$15/((1-Vehicles!$C$33)*(1-Vehicles!$C$16)*Fuel_Specs!$B$15+Vehicles!$C$33*(1-Vehicles!$C$16)*Fuel_Specs!$B$16+Vehicles!$C$16*Fuel_Specs!$B$44)*(Petroleum!$B264*Petroleum!$D$262+Petroleum!$D264)+Vehicles!$C$33*(1-Vehicles!$C$16)*Fuel_Specs!$B$16/((1-Vehicles!$C$33)*(1-Vehicles!$C$16)*Fuel_Specs!$B$15+Vehicles!$C$33*(1-Vehicles!$C$16)*Fuel_Specs!$B$16+Vehicles!$C$16*Fuel_Specs!$B$44)*(Petroleum!B264*Petroleum!$F$262+Petroleum!$F264)+Vehicles!$C$16*Fuel_Specs!$B$44/((1-Vehicles!$C$33)*(1-Vehicles!$C$16)*Fuel_Specs!$B$15+Vehicles!$C$33*(1-Vehicles!$C$16)*Fuel_Specs!$B$16+Vehicles!$C$16*Fuel_Specs!$B$44)*(Pyrolysis!$Z173*Pyrolysis!$AA$171+Pyrolysis!$AA173))/1000000*HLOOKUP($H$10,$Z$3:$AD$4,2,FALSE)/HLOOKUP($J$11,$Z$7:$AD$8,2,FALSE) -> 382556.415 | S16: =AN16*(Vehicles!$C$23/Vehicles!$AR$59)/(Vehicles!$C$23*(1/Vehicles!$AR$59+1/Vehicles!$AS$59)+Vehicles!$C$24/Vehicles!$AT$59)+B16*(Vehicles!$C$23/Vehicles!$AS$59+Vehicles!$C$24/Vehicles!$AT$59)/(Vehicles!$C$23*(1/Vehicles!$AR$59+1/Vehicles!$AS$59)+Vehicles!$C$24/Vehicles!$AT$59) -> 514656.319 | T16: =AN16*(Vehicles!$D$23/Vehicles!$AV$59)/(Vehicles!$D$23*(1/Vehicles!$AV$59+1/Vehicles!$AW$59)+Vehicles!$D$24/Vehicles!$AX$59)+C16*(Vehicles!$D$23/Vehicles!$AW$59+Vehicles!$D$24/Vehicles!$AX$59)/(Vehicles!$D$23*(1/Vehicles!$AV$59+1/Vehicles!$AW$59)+Vehicles!$D$24/Vehicles!$AX$59) -> 493112.2764 | U16: =AN16*(Vehicles!$F$23/Vehicles!$BD$59)/(Vehicles!$F$23*(1/Vehicles!$BD$59+1/Vehicles!$BE$59)+Vehicles!$F$24/Vehicles!$BF$59)+D16*(Vehicles!$F$23/Vehicles!$BE$59+Vehicles!$F$24/Vehicles!$BF$59)/(Vehicles!$F$23*(1/Vehicles!$BD$59+1/Vehicles!$BE$59)+Vehicles!$F$24/Vehicles!$BF$59) -> 514656.319 | V16: =AN16*(Vehicles!$G$23/Vehicles!$BH$59)/(Vehicles!$G$23*(1/Vehicles!$BH$59+1/Vehicles!$BI$59)+Vehicles!$G$24/Vehicles!$BJ$59)+F16*(Vehicles!$G$23/Vehicles!$BI$59+Vehicles!$G$24/Vehicles!$BJ$59)/(Vehicles!$G$23*(1/Vehicles!$BH$59+1/Vehicles!$BI$59)+Vehicles!$G$24/Vehicles!$BJ$59) -> 434271.554 | W16: =AN16*(Vehicles!$H$23/Vehicles!$BL$59)/(Vehicles!$H$23*(1/Vehicles!$BL$59+1/Vehicles!$BM$59)+Vehicles!$H$24/Vehicles!$BN$59)+G16*(Vehicles!$H$23/Vehicles!$BM$59+Vehicles!$H$24/Vehicles!$BN$59)/(Vehicles!$H$23*(1/Vehicles!$BL$59+1/Vehicles!$BM$59)+Vehicles!$H$24/Vehicles!$BN$59) -> 489652.8576 | X16: =AN16*(Vehicles!$I$23/Vehicles!$BP$59)/(Vehicles!$I$23*(1/Vehicles!$BP$59+1/Vehicles!$BQ$59)+Vehicles!$I$24/Vehicles!$BR$59)+H16*(Vehicles!$I$23/Vehicles!$BQ$59+Vehicles!$I$24/Vehicles!$BR$59)/(Vehicles!$I$23*(1/Vehicles!$BP$59+1/Vehicles!$BQ$59)+Vehicles!$I$24/Vehicles!$BR$59) -> 418425.5445 | Y16: =AN16*(Vehicles!$J$23/Vehicles!$BT$59)/(Vehicles!$J$23*(1/Vehicles!$BT$59+1/Vehicles!$BU$59)+Vehicles!$J$24/Vehicles!$BV$59)+K16*(Vehicles!$J$23/Vehicles!$BU$59+Vehicles!$J$24/Vehicles!$BV$59)/(Vehicles!$J$23*(1/Vehicles!$BT$59+1/Vehicles!$BU$59)+Vehicles!$J$24/Vehicles!$BV$59) -> 718768.8381 | Z16: =AN16*(Vehicles!$K$23/Vehicles!$BX$59)/(Vehicles!$K$23*(1/Vehicles!$BX$59+1/Vehicles!$BY$59)+Vehicles!$K$24/Vehicles!$BZ$59)+O16*(Vehicles!$K$23/Vehicles!$BY$59+Vehicles!$K$24/Vehicles!$BZ$59)/(Vehicles!$K$23*(1/Vehicles!$BX$59+1/Vehicles!$BY$59)+Vehicles!$K$24/Vehicles!$BZ$59) -> 672832.2393 | AA16: =AN16*(Vehicles!$L$23/Vehicles!$CB$59)/(Vehicles!$L$23*(1/Vehicles!$CB$59+1/Vehicles!$CC$59)+Vehicles!$L$24/Vehicles!$CD$59)+AO16*(Vehicles!$L$23/Vehicles!$CC$59+Vehicles!$L$24/Vehicles!$CD$59)/(Vehicles!$L$23*(1/Vehicles!$CB$59+1/Vehicles!$CC$59)+Vehicles!$L$24/Vehicles!$CD$59) -> 892124.0112 | AB16: =AN16*(Vehicles!$L$23/Vehicles!$CB$59)/(Vehicles!$L$23*(1/Vehicles!$CB$59+1/Vehicles!$CC$59)+Vehicles!$L$24/Vehicles!$CE$59)+AP16*(Vehicles!$L$23/Vehicles!$CC$59+Vehicles!$L$24/Vehicles!$CE$59)/(Vehicles!$L$23*(1/Vehicles!$CB$59+1/Vehicles!$CC$59)+Vehicles!$L$24/Vehicles!$CE$59) -> 1334559.87 | AC16: =('MeOH&FTD'!$AJ139*'MeOH&FTD'!$AK$137+'MeOH&FTD'!$AK139)/1000000*HLOOKUP($H$10,$Z$3:$AD$4,2,FALSE)/HLOOKUP($J$11,$Z$7:$AD$8,2,FALSE) -> 629792.7091 | AD16: =((1-Vehicles!$C$34)*(1-Vehicles!$C$13)*Fuel_Specs!$B$20/((1-Vehicles!$C$34)*(1-Vehicles!$C$13)*Fuel_Specs!$B$20+Vehicles!$C$34*(1-Vehicles!$C$13)*Fuel_Specs!$B$23+Vehicles!$C$13*Fuel_Specs!$B$40)*(Petroleum!B264*Petroleum!$J$262+Petroleum!$J264)+Vehicles!$C$34*(1-Vehicles!$C$13)*Fuel_Specs!$B$23/((1-Vehicles!$C$34)*(1-Vehicles!$C$13)*Fuel_Specs!$B$20+Vehicles!$C$34*(1-Vehicles!$C$13)*Fuel_Specs!$B$23+Vehicles!$C$13*Fuel_Specs!$B$40)*(Petroleum!B264*Petroleum!$K$262+Petroleum!$K264)+Vehicles!$C$13*Fuel_Specs!$B$40/((1-Vehicles!$C$34)*(1-Vehicles!$C$13)*Fuel_Specs!$B$20+Vehicles!$C$34*(1-Vehicles!$C$13)*Fuel_Specs!$B$23+Vehicles!$C$13*Fuel_Specs!$B$40)*('MeOH&FTD'!$AZ139*'MeOH&FTD'!$BA$137+'MeOH&FTD'!$BA139))/1000000*HLOOKUP($H$10,$Z$3:$AD$4,2,FALSE)/HLOOKUP($J$11,$Z$7:$AD$8,2,FALSE) -> 733523.6932 | AE16: =((1-Vehicles!$C$35)*(1-Vehicles!$C$14)*Fuel_Specs!$B$20/((1-Vehicles!$C$35)*(1-Vehicles!$C$14)*Fuel_Specs!$B$20+Vehicles!$C$35*(1-Vehicles!$C$14)*Fuel_Specs!$B$23+Vehicles!$C$14*Fuel_Specs!$B$39)*(Petroleum!B264*Petroleum!$J$262+Petroleum!$J264)+Vehicles!$C$35*(1-Vehicles!$C$14)*Fuel_Specs!$B$23/((1-Vehicles!$C$35)*(1-Vehicles!$C$14)*Fuel_Specs!$B$20+Vehicles!$C$35*(1-Vehicles!$C$14)*Fuel_Specs!$B$23+Vehicles!$C$14*Fuel_Specs!$B$39)*(Petroleum!B264*Petroleum!$K$262+Petroleum!$K264)+Vehicles!$C$14*Fuel_Specs!$B$39/((1-Vehicles!$C$35)*(1-Vehicles!$C$14)*Fuel_Specs!$B$20+Vehicles!$C$35*(1-Vehicles!$C$14)*Fuel_Specs!$B$23+Vehicles!$C$14*Fuel_Specs!$B$39)*(BioOil!$W336*BioOil!$X$333+BioOil!$X336))/1000000*HLOOKUP($H$10,$Z$3:$AD$4,2,FALSE)/HLOOKUP($J$11,$Z$7:$AD$8,2,FALSE) -> 297065.383 | AF16: =((1-Vehicles!$C$36)*(1-Vehicles!$C$15)*Fuel_Specs!$B$20/((1-Vehicles!$C$36)*(1-Vehicles!$C$15)*Fuel_Specs!$B$20+Vehicles!$C$36*(1-Vehicles!$C$15)*Fuel_Specs!$B$23+Vehicles!$C$15*IF(Inputs!$E$628=1,IF(Inputs!$E$628=1,Fuel_Specs!$B$41,IF(Inputs!$E$628=3,Fuel_Specs!$B$43,Fuel_Specs!$B$42)),Fuel_Specs!$B$42))*(Petroleum!B264*Petroleum!$J$262+Petroleum!$J264)+Vehicles!$C$36*(1-Vehicles!$C$15)*Fuel_Specs!$B$23/((1-Vehicles!$C$36)*(1-Vehicles!$C$15)*Fuel_Specs!$B$20+Vehicles!$C$36*(1-Vehicles!$C$15)*Fuel_Specs!$B$23+Vehicles!$C$15*IF(Inputs!$E$628=1,IF(Inputs!$E$628=1,Fuel_Specs!$B$41,IF(Inputs!$E$628=3,Fuel_Specs!$B$43,Fuel_Specs!$B$42)),Fuel_Specs!$B$42))*(Petroleum!B264*Petroleum!$K$262+Petroleum!$K264)+Vehicles!$C$15*IF(Inputs!$E$628=1,IF(Inputs!$E$628=1,Fuel_Specs!$B$41,IF(Inputs!$E$628=3,Fuel_Specs!$B$43,Fuel_Specs!$B$42)),Fuel_Specs!$B$42)/((1-Vehicles!$C$36)*(1-Vehicles!$C$15)*Fuel_Specs!$B$20+Vehicles!$C$36*(1-Vehicles!$C$15)*Fuel_Specs!$B$23+Vehicles!$C$15*IF(Inputs!$E$628=1,IF(Inputs!$E$628=1,Fuel_Specs!$B$41,IF(Inputs!$E$628=3,Fuel_Specs!$B$43,Fuel_Specs!$B$42)),Fuel_Specs!$B$42))*(BioOil!$BA336*BioOil!$BB$333+BioOil!$BB336))/1000000*HLOOKUP($H$10,$Z$3:$AD$4,2,FALSE)/HLOOKUP($J$11,$Z$7:$AD$8,2,FALSE) -> 274898.815 | AG16: =((1-Vehicles!$C$36)*(1-Vehicles!$C$15)*Fuel_Specs!$B$20/((1-Vehicles!$C$36)*(1-Vehicles!$C$15)*Fuel_Specs!$B$20+Vehicles!$C$36*(1-Vehicles!$C$15)*Fuel_Specs!$B$23+Vehicles!$C$15*IF(Inputs!$E$628=1,Fuel_Specs!$B$41,Fuel_Specs!$B$42))*(Petroleum!B264*Petroleum!$J$262+Petroleum!$J264)+Vehicles!$C$36*(1-Vehicles!$C$15)*Fuel_Specs!$B$23/((1-Vehicles!$C$36)*(1-Vehicles!$C$15)*Fuel_Specs!$B$20+Vehicles!$C$36*(1-Vehicles!$C$15)*Fuel_Specs!$B$23+Vehicles!$C$15*IF(Inputs!$E$628=1,Fuel_Specs!$B$41,Fuel_Specs!$B$42))*(Petroleum!B264*Petroleum!$K$262+Petroleum!$K264)+Vehicles!$C$15*IF(Inputs!$E$628=1,Fuel_Specs!$B$41,Fuel_Specs!$B$42)/((1-Vehicles!$C$36)*(1-Vehicles!$C$15)*Fuel_Specs!$B$20+Vehicles!$C$36*(1-Vehicles!$C$15)*Fuel_Specs!$B$23+Vehicles!$C$15*IF(Inputs!$E$628=1,Fuel_Specs!$B$41,Fuel_Specs!$B$42))*(Pyrolysis!$AB173*Pyrolysis!$AC$171+Pyrolysis!$AC173))/1000000*HLOOKUP($H$10,$Z$3:$AD$4,2,FALSE)/HLOOKUP($J$11,$Z$7:$AD$8,2,FALSE) -> 415666.2832 | AH16: =(((1-Vehicles!$C$37)*(1-Vehicles!$C$17-Vehicles!$C$18)*Fuel_Specs!$B$20*(Petroleum!B264*Petroleum!$J$262+Petroleum!$J264)+Vehicles!$C$37*(1-Vehicles!$C$17-Vehicles!$C$18)*Fuel_Specs!$B$23*(Petroleum!B264*Petroleum!$K$262+Petroleum!$K264)+Vehicles!$C$17*Fuel_Specs!$B$31*(EtOH!BP491*EtOH!$BQ$489+EtOH!$BQ491)+Vehicles!$C$18*Fuel_Specs!$B$34*('E-D Additives'!$B55*'E-D Additives'!$B$53))/((1-Vehicles!$C$37)*(1-Vehicles!$C$17-Vehicles!$C$18)*Fuel_Specs!$B$20+Vehicles!$C$37*(1-Vehicles!$C$17-Vehicles!$C$18)*Fuel_Specs!$B$23+Vehicles!$C$17*Fuel_Specs!$B$31+Vehicles!$C$18*Fuel_Specs!$B$34))/1000000*HLOOKUP($H$10,$Z$3:$AD$4,2,FALSE)/HLOOKUP($J$11,$Z$7:$AD$8,2,FALSE) -> 306017.6841 | AI16: =AN16*(Vehicles!$M$23/Vehicles!$CM$59)/(Vehicles!$M$23*(1/Vehicles!$CM$59+1/Vehicles!$CN$59)+Vehicles!$M$24/Vehicles!$CO$59)+E16*(Vehicles!$M$23/Vehicles!$CN$59+Vehicles!$M$24/Vehicles!$CO$59)/(Vehicles!$M$23*(1/Vehicles!$CM$59+1/Vehicles!$CN$59)+Vehicles!$M$24/Vehicles!$CO$59) -> 514317.1127 | AJ16: =AN16*(Vehicles!$N$23/Vehicles!$CQ$59)/(Vehicles!$N$23*(1/Vehicles!$CQ$59+1/Vehicles!$CR$59)+Vehicles!$N$24/Vehicles!$CS$59)+AC16*(Vehicles!$N$23/Vehicles!$CR$59+Vehicles!$N$24/Vehicles!$CS$59)/(Vehicles!$N$23*(1/Vehicles!$CQ$59+1/Vehicles!$CR$59)+Vehicles!$N$24/Vehicles!$CS$59) -> 767818.6927 | AK16: =AN16*(Vehicles!$O$23/Vehicles!$CU$59)/(Vehicles!$O$23*(1/Vehicles!$CU$59+1/Vehicles!$CV$59)+Vehicles!$O$24/Vehicles!$CW$59)+AD16*(Vehicles!$O$23/Vehicles!$CV$59+Vehicles!$O$24/Vehicles!$CW$59)/(Vehicles!$O$23*(1/Vehicles!$CU$59+1/Vehicles!$CV$59)+Vehicles!$O$24/Vehicles!$CW$59) -> 844275.1463 | AL16: =AN16*(Vehicles!$P$23/Vehicles!$CY$59)/(Vehicles!$P$23*(1/Vehicles!$CY$59+1/Vehicles!$CZ$59)+Vehicles!$P$24/Vehicles!$DA$59)+AE16*(Vehicles!$P$23/Vehicles!$CZ$59+Vehicles!$P$24/Vehicles!$DA$59)/(Vehicles!$P$23*(1/Vehicles!$CY$59+1/Vehicles!$CZ$59)+Vehicles!$P$24/Vehicles!$DA$59) -> 522577.1037 | AM16: =AN16*(Vehicles!$R$23/Vehicles!$DG$59)/(Vehicles!$R$23*(1/Vehicles!$DG$59+1/Vehicles!$DH$59)+Vehicles!$R$24/Vehicles!$DI$59)+AH16*(Vehicles!$R$23/Vehicles!$DH$59+Vehicles!$R$24/Vehicles!$DI$59)/(Vehicles!$R$23*(1/Vehicles!$DG$59+1/Vehicles!$DH$59)+Vehicles!$R$24/Vehicles!$DI$59) -> 529175.5294 | AN16: =(Electric!$G187+Electric!$F187-1000000*(Electric!$F187+Electric!$G187)/(Electric!$F$186+Electric!$G$186))/1000000*HLOOKUP($H$10,$Z$3:$AD$4,2,FALSE)/HLOOKUP($J$11,$Z$7:$AD$8,2,FALSE) -> 1154735.608 | AO16: =((Hydrogen!$AF164*Hydrogen!$AG$162+Hydrogen!$AG164)-1000000*(Hydrogen!$M$7+Hydrogen!$C$7+Hydrogen!$D$7+Hydrogen!$E$7))/1000000*HLOOKUP($H$10,$Z$3:$AD$4,2,FALSE)/HLOOKUP($J$11,$Z$7:$AD$8,2,FALSE) -> 796175.6841 | AP16: =((Hydrogen!$BJ164*Hydrogen!$BK$162+Hydrogen!$BK164)-1000000*(Hydrogen!$M$8+Hydrogen!$C$8+Hydrogen!$D$8+Hydrogen!$E$8))/1000000*HLOOKUP($H$10,$Z$3:$AD$4,2,FALSE)/HLOOKUP($J$11,$Z$7:$AD$8,2,FALSE) -> 1400260.842 | AQ16: =AN16*(Vehicles!$S$23/Vehicles!$DW$59)/(Vehicles!$S$23*(1/Vehicles!$DW$59+1/Vehicles!$DX$59)+Vehicles!$S$24/Vehicles!$DY$59)+AO16*(Vehicles!$S$23/Vehicles!$DX$59+Vehicles!$S$24/Vehicles!$DY$59)/(Vehicles!$S$23*(1/Vehicles!$DW$59+1/Vehicles!$DX$59)+Vehicles!$S$24/Vehicles!$DY$59) -> 911294.2914 | AR16: =AN16*(Vehicles!$S$23/Vehicles!$DW$59)/(Vehicles!$S$23*(1/Vehicles!$DW$59+1/Vehicles!$DX$59)+Vehicles!$S$24/Vehicles!$DY$59)+AP16*(Vehicles!$S$23/Vehicles!$DX$59+Vehicles!$S$24/Vehicles!$DY$59)/(Vehicles!$S$23*(1/Vehicles!$DW$59+1/Vehicles!$DX$59)+Vehicles!$S$24/Vehicles!$DY$59) -> 1321432.95 | AS16: =((1-Vehicles!$C$33)*(1-Vehicles!$C$16)*Fuel_Specs!$B$15/((1-Vehicles!$C$33)*(1-Vehicles!$C$16)*Fuel_Specs!$B$15+Vehicles!$C$33*(1-Vehicles!$C$16)*Fuel_Specs!$B$16+Vehicles!$C$16*Fuel_Specs!$B$45)*(Petroleum!$B264*Petroleum!$D$262+Petroleum!$D264)+Vehicles!$C$33*(1-Vehicles!$C$16)*Fuel_Specs!$B$16/((1-Vehicles!$C$33)*(1-Vehicles!$C$16)*Fuel_Specs!$B$15+Vehicles!$C$33*(1-Vehicles!$C$16)*Fuel_Specs!$B$16+Vehicles!$C$16*Fuel_Specs!$B$45)*(Petroleum!B264*Petroleum!$F$262+Petroleum!$F264)+Vehicles!$C$16*Fuel_Specs!$B$45/((1-Vehicles!$C$33)*(1-Vehicles!$C$16)*Fuel_Specs!$B$15+Vehicles!$C$33*(1-Vehicles!$C$16)*Fuel_Specs!$B$16+Vehicles!$C$16*Fuel_Specs!$B$45)*(IDL!$L114*IDL!$M$112+IDL!$M114))/1000000*HLOOKUP($H$10,$Z$3:$AD$4,2,FALSE)/HLOOKUP($J$11,$Z$7:$AD$8,2,FALSE) -> 184531.7319 | AV16: SI - CA gasoline | AW16: RNAVGASCARFG | AY16: SIDI - CA gasoline | AZ16: RNAVGASCARFGSIDI | BB16: CIDI - DME | BC16: RNAVDMECIDI | BE16: SI HEV - CA gasoline | BF16: RNAVHEVCRFG | BH16: SI PHEV - CA gasoline and Electricity | BI16: RNAVPHEVCRFG | BK16: CIDI HEV - DME | BL16: RNAVHEVDMETHER | BN16: CIDI PHEV - DME and Electricity | BO16: RNAVPHEVDMETHER | BQ16: FC PHEV - Gaseous H2 and Electricity | BR16: RNAVPHEVFCVGH2
A17: Coal | B17: =(Inputs!$E$1398*(Petroleum!$B265*Petroleum!$F$262+Petroleum!$F265)+(1-Inputs!$E$1398)*(Petroleum!$B265*Petroleum!$D$262+Petroleum!$D265))/1000000*HLOOKUP($H$10,$Z$3:$AD$4,2,FALSE)/HLOOKUP($J$11,$Z$7:$AD$8,2,FALSE) -> 24624.7282 | C17: =(Petroleum!$C265*Petroleum!$G$262+Petroleum!$G265)/1000000*HLOOKUP($H$10,$Z$3:$AD$4,2,FALSE)/HLOOKUP($J$11,$Z$7:$AD$8,2,FALSE) -> 18978.75764 | D17: =((1-Vehicles!$C$28)*(1-Vehicles!$C$7)*Fuel_Specs!$B$15/((1-Vehicles!$C$28)*(1-Vehicles!$C$7)*Fuel_Specs!$B$15+Vehicles!$C$28*(1-Vehicles!$C$7)*Fuel_Specs!$B$16+Vehicles!$C$7*Fuel_Specs!$B$31)*(Petroleum!$B265*Petroleum!$D$262+(Petroleum!$D265-'T&D'!G214))+Vehicles!$C$28*(1-Vehicles!$C$7)*Fuel_Specs!$B$16/((1-Vehicles!$C$28)*(1-Vehicles!$C$7)*Fuel_Specs!$B$15+Vehicles!$C$28*(1-Vehicles!$C$7)*Fuel_Specs!$B$16+Vehicles!$C$7*Fuel_Specs!$B$31)*(Petroleum!B265*Petroleum!$F$262+Petroleum!$F265)+Vehicles!$C$7*Fuel_Specs!$B$31/((1-Vehicles!$C$28)*(1-Vehicles!$C$7)*Fuel_Specs!$B$15+Vehicles!$C$28*(1-Vehicles!$C$7)*Fuel_Specs!$B$16+Vehicles!$C$7*Fuel_Specs!$B$31)*(EtOH!BR492*EtOH!$BS$489+EtOH!$BS492)+Petroleum!AR126+Petroleum!AS126)/1000000*HLOOKUP($H$10,$Z$3:$AD$4,2,FALSE)/HLOOKUP($J$11,$Z$7:$AD$8,2,FALSE) -> 24624.7282 | E17: =(Inputs!$E$97*(IF(Inputs!F$102=1,Petroleum!$B265,Petroleum!$C265)*Petroleum!$K$262+Petroleum!$K265)+(1-Inputs!$E$97)*(IF(Inputs!F$101=1,Petroleum!$B265,Petroleum!$C265)*Petroleum!$J$262+Petroleum!$J265))/1000000*HLOOKUP($H$10,$Z$3:$AD$4,2,FALSE)/HLOOKUP($J$11,$Z$7:$AD$8,2,FALSE) -> 20904.87568 | F17: =(NG!$I87*NG!$J$84+NG!$J87)/1000000*HLOOKUP($H$10,$Z$3:$AD$4,2,FALSE)/HLOOKUP($J$11,$Z$7:$AD$8,2,FALSE) -> 39600.55547 | G17: =(NG!$Q87*NG!$R$84+NG!$R87)/1000000*HLOOKUP($H$10,$Z$3:$AD$4,2,FALSE)/HLOOKUP($J$11,$Z$7:$AD$8,2,FALSE) -> 5537.849441 | H17: =(NG!$W87*NG!$X$84+NG!$X87)/1000000*HLOOKUP($H$10,$Z$3:$AD$4,2,FALSE)/HLOOKUP($J$11,$Z$7:$AD$8,2,FALSE) -> 10992.7625 | I17: =('MeOH&FTD'!BJ140*'MeOH&FTD'!BK$137+'MeOH&FTD'!BK140)/1000000*HLOOKUP($H$10,$Z$3:$AD$4,2,FALSE)/HLOOKUP($J$11,$Z$7:$AD$8,2,FALSE) -> -64655.90269 | J17: =((1-Vehicles!$C$27)*(1-Vehicles!$C$5)*Fuel_Specs!$B$15/((1-Vehicles!$C$27)*(1-Vehicles!$C$5)*Fuel_Specs!$B$15+Vehicles!$C$27*(1-Vehicles!$C$5)*Fuel_Specs!$B$16+Vehicles!$C$5*Fuel_Specs!$B$30)*(Petroleum!$B265*Petroleum!$D$262+Petroleum!$D265)+Vehicles!$C$27*(1-Vehicles!$C$5)*Fuel_Specs!$B$16/((1-Vehicles!$C$27)*(1-Vehicles!$C$5)*Fuel_Specs!$B$15+Vehicles!$C$27*(1-Vehicles!$C$5)*Fuel_Specs!$B$16+Vehicles!$C$5*Fuel_Specs!$B$30)*(Petroleum!B265*Petroleum!$F$262+Petroleum!$F265)+Vehicles!$C$5*Fuel_Specs!$B$30/((1-Vehicles!$C$27)*(1-Vehicles!$C$5)*Fuel_Specs!$B$15+Vehicles!$C$27*(1-Vehicles!$C$5)*Fuel_Specs!$B$16+Vehicles!$C$5*Fuel_Specs!$B$30)*('MeOH&FTD'!$N140*'MeOH&FTD'!$O$137+'MeOH&FTD'!$O140))/1000000*HLOOKUP($H$10,$Z$3:$AD$4,2,FALSE)/HLOOKUP($J$11,$Z$7:$AD$8,2,FALSE) -> 49522.7926 | K17: =((1-Vehicles!$C$27)*(1-Vehicles!$C$6)*Fuel_Specs!$B$15/((1-Vehicles!$C$27)*(1-Vehicles!$C$6)*Fuel_Specs!$B$15+Vehicles!$C$27*(1-Vehicles!$C$6)*Fuel_Specs!$B$16+Vehicles!$C$6*Fuel_Specs!$B$30)*(Petroleum!$B265*Petroleum!$D$262+Petroleum!$D265)+Vehicles!$C$27*(1-Vehicles!$C$6)*Fuel_Specs!$B$16/((1-Vehicles!$C$27)*(1-Vehicles!$C$6)*Fuel_Specs!$B$15+Vehicles!$C$27*(1-Vehicles!$C$6)*Fuel_Specs!$B$16+Vehicles!$C$6*Fuel_Specs!$B$30)*(Petroleum!B265*Petroleum!$F$262+Petroleum!$F265)+Vehicles!$C$6*Fuel_Specs!$B$30/((1-Vehicles!$C$27)*(1-Vehicles!$C$6)*Fuel_Specs!$B$15+Vehicles!$C$27*(1-Vehicles!$C$6)*Fuel_Specs!$B$16+Vehicles!$C$6*Fuel_Specs!$B$30)*('MeOH&FTD'!$N140*'MeOH&FTD'!$O$137+'MeOH&FTD'!$O140))/1000000*HLOOKUP($H$10,$Z$3:$AD$4,2,FALSE)/HLOOKUP($J$11,$Z$7:$AD$8,2,FALSE) -> 52681.38912 | L17: =('MeOH&FTD'!$N140*'MeOH&FTD'!$O$137+'MeOH&FTD'!$O140)/1000000*HLOOKUP($H$10,$Z$3:$AD$4,2,FALSE)/HLOOKUP($J$11,$Z$7:$AD$8,2,FALSE) -> 59972.47816 | M17: =((1-Vehicles!$C$29)*(1-Vehicles!$C$8)*Fuel_Specs!$B$15/((1-Vehicles!$C$29)*(1-Vehicles!$C$8)*Fuel_Specs!$B$15+Vehicles!$C$29*(1-Vehicles!$C$8)*Fuel_Specs!$B$16+Vehicles!$C$8*Fuel_Specs!$B$31)*(Petroleum!$B265*Petroleum!$D$262+(Petroleum!$D265-'T&D'!G214))+Vehicles!$C$29*(1-Vehicles!$C$8)*Fuel_Specs!$B$16/((1-Vehicles!$C$29)*(1-Vehicles!$C$8)*Fuel_Specs!$B$15+Vehicles!$C$29*(1-Vehicles!$C$8)*Fuel_Specs!$B$16+Vehicles!$C$8*Fuel_Specs!$B$31)*(Petroleum!B265*Petroleum!$F$262+Petroleum!$F265)+Vehicles!$C$8*Fuel_Specs!$B$31/((1-Vehicles!$C$29)*(1-Vehicles!$C$8)*Fuel_Specs!$B$15+Vehicles!$C$29*(1-Vehicles!$C$8)*Fuel_Specs!$B$16+Vehicles!$C$8*Fuel_Specs!$B$31)*(EtOH!BR492*EtOH!$BS$489+EtOH!$BS492)+Petroleum!AR126+Petroleum!AS126)/1000000*HLOOKUP($H$10,$Z$3:$AD$4,2,FALSE)/HLOOKUP($J$11,$Z$7:$AD$8,2,FALSE) -> 69774.88048 | N17: =((1-Vehicles!$C$30)*(1-Vehicles!$C$12)*Fuel_Specs!$B$15/((1-Vehicles!$C$30)*(1-Vehicles!$C$12)*Fuel_Specs!$B$15+Vehicles!$C$30*(1-Vehicles!$C$12)*Fuel_Specs!$B$16+Vehicles!$C$12*Fuel_Specs!$B$32)*(Petroleum!$B265*Petroleum!$D$262+Petroleum!$D265)+Vehicles!$C$30*(1-Vehicles!$C$12)*Fuel_Specs!$B$16/((1-Vehicles!$C$30)*(1-Vehicles!$C$12)*Fuel_Specs!$B$15+Vehicles!$C$30*(1-Vehicles!$C$12)*Fuel_Specs!$B$16+Vehicles!$C$12*Fuel_Specs!$B$32)*(Petroleum!B265*Petroleum!$F$262+Petroleum!$F265)+Vehicles!$C$12*Fuel_Specs!$B$32/((1-Vehicles!$C$30)*(1-Vehicles!$C$12)*Fuel_Specs!$B$15+Vehicles!$C$30*(1-Vehicles!$C$12)*Fuel_Specs!$B$16+Vehicles!$C$12*Fuel_Specs!$B$32)*(EtOH!$BT492*EtOH!$BU$489+EtOH!$BU492))/1000000*HLOOKUP($H$10,$Z$3:$AD$4,2,FALSE)/HLOOKUP($J$11,$Z$7:$AD$8,2,FALSE) -> 36287.76991 | O17: =((1-Vehicles!$C$29)*(1-Vehicles!$C$9)*Fuel_Specs!$B$15/((1-Vehicles!$C$29)*(1-Vehicles!$C$9)*Fuel_Specs!$B$15+Vehicles!$C$29*(1-Vehicles!$C$9)*Fuel_Specs!$B$16+Vehicles!$C$9*Fuel_Specs!$B$31)*(Petroleum!$B265*Petroleum!$D$262+(Petroleum!$D265-'T&D'!G214))+Vehicles!$C$29*(1-Vehicles!$C$9)*Fuel_Specs!$B$16/((1-Vehicles!$C$29)*(1-Vehicles!$C$9)*Fuel_Specs!$B$15+Vehicles!$C$29*(1-Vehicles!$C$9)*Fuel_Specs!$B$16+Vehicles!$C$9*Fuel_Specs!$B$31)*(Petroleum!B265*Petroleum!$F$262+Petroleum!$F265)+Vehicles!$C$9*Fuel_Specs!$B$31/((1-Vehicles!$C$29)*(1-Vehicles!$C$9)*Fuel_Specs!$B$15+Vehicles!$C$29*(1-Vehicles!$C$9)*Fuel_Specs!$B$16+Vehicles!$C$9*Fuel_Specs!$B$31)*(EtOH!BR492*EtOH!$BS$489+EtOH!$BS492)+Petroleum!AR126+Petroleum!AS126)/1000000*HLOOKUP($H$10,$Z$3:$AD$4,2,FALSE)/HLOOKUP($J$11,$Z$7:$AD$8,2,FALSE) -> 69774.88048 | P17: =(EtOH!$BP492*EtOH!$BQ$489+EtOH!$BQ492)/1000000*HLOOKUP($H$10,$Z$3:$AD$4,2,FALSE)/HLOOKUP($J$11,$Z$7:$AD$8,2,FALSE) -> 84872.19643 | Q17: =((1-Vehicles!$C$33)*(1-Vehicles!$C$16)*Fuel_Specs!$B$15/((1-Vehicles!$C$33)*(1-Vehicles!$C$16)*Fuel_Specs!$B$15+Vehicles!$C$33*(1-Vehicles!$C$16)*Fuel_Specs!$B$16+Vehicles!$C$16*Fuel_Specs!$B$44)*(Petroleum!$B265*Petroleum!$D$262+Petroleum!$D265)+Vehicles!$C$33*(1-Vehicles!$C$16)*Fuel_Specs!$B$16/((1-Vehicles!$C$33)*(1-Vehicles!$C$16)*Fuel_Specs!$B$15+Vehicles!$C$33*(1-Vehicles!$C$16)*Fuel_Specs!$B$16+Vehicles!$C$16*Fuel_Specs!$B$44)*(Petroleum!B265*Petroleum!$F$262+Petroleum!$F265)+Vehicles!$C$16*Fuel_Specs!$B$44/((1-Vehicles!$C$33)*(1-Vehicles!$C$16)*Fuel_Specs!$B$15+Vehicles!$C$33*(1-Vehicles!$C$16)*Fuel_Specs!$B$16+Vehicles!$C$16*Fuel_Specs!$B$44)*(BioOil!$BO337*BioOil!$BP$333+BioOil!$BP337))/1000000*HLOOKUP($H$10,$Z$3:$AD$4,2,FALSE)/HLOOKUP($J$11,$Z$7:$AD$8,2,FALSE) -> 35925.99766 | R17: =((1-Vehicles!$C$33)*(1-Vehicles!$C$16)*Fuel_Specs!$B$15/((1-Vehicles!$C$33)*(1-Vehicles!$C$16)*Fuel_Specs!$B$15+Vehicles!$C$33*(1-Vehicles!$C$16)*Fuel_Specs!$B$16+Vehicles!$C$16*Fuel_Specs!$B$44)*(Petroleum!$B265*Petroleum!$D$262+Petroleum!$D265)+Vehicles!$C$33*(1-Vehicles!$C$16)*Fuel_Specs!$B$16/((1-Vehicles!$C$33)*(1-Vehicles!$C$16)*Fuel_Specs!$B$15+Vehicles!$C$33*(1-Vehicles!$C$16)*Fuel_Specs!$B$16+Vehicles!$C$16*Fuel_Specs!$B$44)*(Petroleum!B265*Petroleum!$F$262+Petroleum!$F265)+Vehicles!$C$16*Fuel_Specs!$B$44/((1-Vehicles!$C$33)*(1-Vehicles!$C$16)*Fuel_Specs!$B$15+Vehicles!$C$33*(1-Vehicles!$C$16)*Fuel_Specs!$B$16+Vehicles!$C$16*Fuel_Specs!$B$44)*(Pyrolysis!$Z174*Pyrolysis!$AA$171+Pyrolysis!$AA174))/1000000*HLOOKUP($H$10,$Z$3:$AD$4,2,FALSE)/HLOOKUP($J$11,$Z$7:$AD$8,2,FALSE) -> 57402.40689 | S17: =AN17*(Vehicles!$C$23/Vehicles!$AR$59)/(Vehicles!$C$23*(1/Vehicles!$AR$59+1/Vehicles!$AS$59)+Vehicles!$C$24/Vehicles!$AT$59)+B17*(Vehicles!$C$23/Vehicles!$AS$59+Vehicles!$C$24/Vehicles!$AT$59)/(Vehicles!$C$23*(1/Vehicles!$AR$59+1/Vehicles!$AS$59)+Vehicles!$C$24/Vehicles!$AT$59) -> 195648.701 | T17: =AN17*(Vehicles!$D$23/Vehicles!$AV$59)/(Vehicles!$D$23*(1/Vehicles!$AV$59+1/Vehicles!$AW$59)+Vehicles!$D$24/Vehicles!$AX$59)+C17*(Vehicles!$D$23/Vehicles!$AW$59+Vehicles!$D$24/Vehicles!$AX$59)/(Vehicles!$D$23*(1/Vehicles!$AV$59+1/Vehicles!$AW$59)+Vehicles!$D$24/Vehicles!$AX$59) -> 191430.5941 | U17: =AN17*(Vehicles!$F$23/Vehicles!$BD$59)/(Vehicles!$F$23*(1/Vehicles!$BD$59+1/Vehicles!$BE$59)+Vehicles!$F$24/Vehicles!$BF$59)+D17*(Vehicles!$F$23/Vehicles!$BE$59+Vehicles!$F$24/Vehicles!$BF$59)/(Vehicles!$F$23*(1/Vehicles!$BD$59+1/Vehicles!$BE$59)+Vehicles!$F$24/Vehicles!$BF$59) -> 195648.701 | V17: =AN17*(Vehicles!$G$23/Vehicles!$BH$59)/(Vehicles!$G$23*(1/Vehicles!$BH$59+1/Vehicles!$BI$59)+Vehicles!$G$24/Vehicles!$BJ$59)+F17*(Vehicles!$G$23/Vehicles!$BI$59+Vehicles!$G$24/Vehicles!$BJ$59)/(Vehicles!$G$23*(1/Vehicles!$BH$59+1/Vehicles!$BI$59)+Vehicles!$G$24/Vehicles!$BJ$59) -> 206837.1475 | W17: =AN17*(Vehicles!$H$23/Vehicles!$BL$59)/(Vehicles!$H$23*(1/Vehicles!$BL$59+1/Vehicles!$BM$59)+Vehicles!$H$24/Vehicles!$BN$59)+G17*(Vehicles!$H$23/Vehicles!$BM$59+Vehicles!$H$24/Vehicles!$BN$59)/(Vehicles!$H$23*(1/Vehicles!$BL$59+1/Vehicles!$BM$59)+Vehicles!$H$24/Vehicles!$BN$59) -> 181388.8862 | X17: =AN17*(Vehicles!$I$23/Vehicles!$BP$59)/(Vehicles!$I$23*(1/Vehicles!$BP$59+1/Vehicles!$BQ$59)+Vehicles!$I$24/Vehicles!$BR$59)+H17*(Vehicles!$I$23/Vehicles!$BQ$59+Vehicles!$I$24/Vehicles!$BR$59)/(Vehicles!$I$23*(1/Vehicles!$BP$59+1/Vehicles!$BQ$59)+Vehicles!$I$24/Vehicles!$BR$59) -> 185464.2539 | Y17: =AN17*(Vehicles!$J$23/Vehicles!$BT$59)/(Vehicles!$J$23*(1/Vehicles!$BT$59+1/Vehicles!$BU$59)+Vehicles!$J$24/Vehicles!$BV$59)+K17*(Vehicles!$J$23/Vehicles!$BU$59+Vehicles!$J$24/Vehicles!$BV$59)/(Vehicles!$J$23*(1/Vehicles!$BT$59+1/Vehicles!$BU$59)+Vehicles!$J$24/Vehicles!$BV$59) -> 208765.7921 | Z17: =AN17*(Vehicles!$K$23/Vehicles!$BX$59)/(Vehicles!$K$23*(1/Vehicles!$BX$59+1/Vehicles!$BY$59)+Vehicles!$K$24/Vehicles!$BZ$59)+O17*(Vehicles!$K$23/Vehicles!$BY$59+Vehicles!$K$24/Vehicles!$BZ$59)/(Vehicles!$K$23*(1/Vehicles!$BX$59+1/Vehicles!$BY$59)+Vehicles!$K$24/Vehicles!$BZ$59) -> 221743.2009 | AA17: =AN17*(Vehicles!$L$23/Vehicles!$CB$59)/(Vehicles!$L$23*(1/Vehicles!$CB$59+1/Vehicles!$CC$59)+Vehicles!$L$24/Vehicles!$CD$59)+AO17*(Vehicles!$L$23/Vehicles!$CC$59+Vehicles!$L$24/Vehicles!$CD$59)/(Vehicles!$L$23*(1/Vehicles!$CB$59+1/Vehicles!$CC$59)+Vehicles!$L$24/Vehicles!$CD$59) -> 308811.7777 | AB17: =AN17*(Vehicles!$L$23/Vehicles!$CB$59)/(Vehicles!$L$23*(1/Vehicles!$CB$59+1/Vehicles!$CC$59)+Vehicles!$L$24/Vehicles!$CE$59)+AP17*(Vehicles!$L$23/Vehicles!$CC$59+Vehicles!$L$24/Vehicles!$CE$59)/(Vehicles!$L$23*(1/Vehicles!$CB$59+1/Vehicles!$CC$59)+Vehicles!$L$24/Vehicles!$CE$59) -> 581101.4757 | AC17: =('MeOH&FTD'!$AJ140*'MeOH&FTD'!$AK$137+'MeOH&FTD'!$AK140)/1000000*HLOOKUP($H$10,$Z$3:$AD$4,2,FALSE)/HLOOKUP($J$11,$Z$7:$AD$8,2,FALSE) -> 56093.88134 | AD17: =((1-Vehicles!$C$34)*(1-Vehicles!$C$13)*Fuel_Specs!$B$20/((1-Vehicles!$C$34)*(1-Vehicles!$C$13)*Fuel_Specs!$B$20+Vehicles!$C$34*(1-Vehicles!$C$13)*Fuel_Specs!$B$23+Vehicles!$C$13*Fuel_Specs!$B$40)*(Petroleum!B265*Petroleum!$J$262+Petroleum!$J265)+Vehicles!$C$34*(1-Vehicles!$C$13)*Fuel_Specs!$B$23/((1-Vehicles!$C$34)*(1-Vehicles!$C$13)*Fuel_Specs!$B$20+Vehicles!$C$34*(1-Vehicles!$C$13)*Fuel_Specs!$B$23+Vehicles!$C$13*Fuel_Specs!$B$40)*(Petroleum!B265*Petroleum!$K$262+Petroleum!$K265)+Vehicles!$C$13*Fuel_Specs!$B$40/((1-Vehicles!$C$34)*(1-Vehicles!$C$13)*Fuel_Specs!$B$20+Vehicles!$C$34*(1-Vehicles!$C$13)*Fuel_Specs!$B$23+Vehicles!$C$13*Fuel_Specs!$B$40)*('MeOH&FTD'!$AZ140*'MeOH&FTD'!$BA$137+'MeOH&FTD'!$BA140))/1000000*HLOOKUP($H$10,$Z$3:$AD$4,2,FALSE)/HLOOKUP($J$11,$Z$7:$AD$8,2,FALSE) -> -12805.26786 | AE17: =((1-Vehicles!$C$35)*(1-Vehicles!$C$14)*Fuel_Specs!$B$20/((1-Vehicles!$C$35)*(1-Vehicles!$C$14)*Fuel_Specs!$B$20+Vehicles!$C$35*(1-Vehicles!$C$14)*Fuel_Specs!$B$23+Vehicles!$C$14*Fuel_Specs!$B$39)*(Petroleum!B265*Petroleum!$J$262+Petroleum!$J265)+Vehicles!$C$35*(1-Vehicles!$C$14)*Fuel_Specs!$B$23/((1-Vehicles!$C$35)*(1-Vehicles!$C$14)*Fuel_Specs!$B$20+Vehicles!$C$35*(1-Vehicles!$C$14)*Fuel_Specs!$B$23+Vehicles!$C$14*Fuel_Specs!$B$39)*(Petroleum!B265*Petroleum!$K$262+Petroleum!$K265)+Vehicles!$C$14*Fuel_Specs!$B$39/((1-Vehicles!$C$35)*(1-Vehicles!$C$14)*Fuel_Specs!$B$20+Vehicles!$C$35*(1-Vehicles!$C$14)*Fuel_Specs!$B$23+Vehicles!$C$14*Fuel_Specs!$B$39)*(BioOil!$W337*BioOil!$X$333+BioOil!$X337))/1000000*HLOOKUP($H$10,$Z$3:$AD$4,2,FALSE)/HLOOKUP($J$11,$Z$7:$AD$8,2,FALSE) -> 25077.34876 | AF17: =((1-Vehicles!$C$36)*(1-Vehicles!$C$15)*Fuel_Specs!$B$20/((1-Vehicles!$C$36)*(1-Vehicles!$C$15)*Fuel_Specs!$B$20+Vehicles!$C$36*(1-Vehicles!$C$15)*Fuel_Specs!$B$23+Vehicles!$C$15*IF(Inputs!$E$628=1,IF(Inputs!$E$628=1,Fuel_Specs!$B$41,IF(Inputs!$E$628=3,Fuel_Specs!$B$43,Fuel_Specs!$B$42)),Fuel_Specs!$B$42))*(Petroleum!B265*Petroleum!$J$262+Petroleum!$J265)+Vehicles!$C$36*(1-Vehicles!$C$15)*Fuel_Specs!$B$23/((1-Vehicles!$C$36)*(1-Vehicles!$C$15)*Fuel_Specs!$B$20+Vehicles!$C$36*(1-Vehicles!$C$15)*Fuel_Specs!$B$23+Vehicles!$C$15*IF(Inputs!$E$628=1,IF(Inputs!$E$628=1,Fuel_Specs!$B$41,IF(Inputs!$E$628=3,Fuel_Specs!$B$43,Fuel_Specs!$B$42)),Fuel_Specs!$B$42))*(Petroleum!B265*Petroleum!$K$262+Petroleum!$K265)+Vehicles!$C$15*IF(Inputs!$E$628=1,IF(Inputs!$E$628=1,Fuel_Specs!$B$41,IF(Inputs!$E$628=3,Fuel_Specs!$B$43,Fuel_Specs!$B$42)),Fuel_Specs!$B$42)/((1-Vehicles!$C$36)*(1-Vehicles!$C$15)*Fuel_Specs!$B$20+Vehicles!$C$36*(1-Vehicles!$C$15)*Fuel_Specs!$B$23+Vehicles!$C$15*IF(Inputs!$E$628=1,IF(Inputs!$E$628=1,Fuel_Specs!$B$41,IF(Inputs!$E$628=3,Fuel_Specs!$B$43,Fuel_Specs!$B$42)),Fuel_Specs!$B$42))*(BioOil!$BA337*BioOil!$BB$333+BioOil!$BB337))/1000000*HLOOKUP($H$10,$Z$3:$AD$4,2,FALSE)/HLOOKUP($J$11,$Z$7:$AD$8,2,FALSE) -> 32661.74511 | AG17: =((1-Vehicles!$C$36)*(1-Vehicles!$C$15)*Fuel_Specs!$B$20/((1-Vehicles!$C$36)*(1-Vehicles!$C$15)*Fuel_Specs!$B$20+Vehicles!$C$36*(1-Vehicles!$C$15)*Fuel_Specs!$B$23+Vehicles!$C$15*IF(Inputs!$E$628=1,Fuel_Specs!$B$41,Fuel_Specs!$B$42))*(Petroleum!B265*Petroleum!$J$262+Petroleum!$J265)+Vehicles!$C$36*(1-Vehicles!$C$15)*Fuel_Specs!$B$23/((1-Vehicles!$C$36)*(1-Vehicles!$C$15)*Fuel_Specs!$B$20+Vehicles!$C$36*(1-Vehicles!$C$15)*Fuel_Specs!$B$23+Vehicles!$C$15*IF(Inputs!$E$628=1,Fuel_Specs!$B$41,Fuel_Specs!$B$42))*(Petroleum!B265*Petroleum!$K$262+Petroleum!$K265)+Vehicles!$C$15*IF(Inputs!$E$628=1,Fuel_Specs!$B$41,Fuel_Specs!$B$42)/((1-Vehicles!$C$36)*(1-Vehicles!$C$15)*Fuel_Specs!$B$20+Vehicles!$C$36*(1-Vehicles!$C$15)*Fuel_Specs!$B$23+Vehicles!$C$15*IF(Inputs!$E$628=1,Fuel_Specs!$B$41,Fuel_Specs!$B$42))*(Pyrolysis!$AB174*Pyrolysis!$AC$171+Pyrolysis!$AC174))/1000000*HLOOKUP($H$10,$Z$3:$AD$4,2,FALSE)/HLOOKUP($J$11,$Z$7:$AD$8,2,FALSE) -> 55490.33152 | AH17: =(((1-Vehicles!$C$37)*(1-Vehicles!$C$17-Vehicles!$C$18)*Fuel_Specs!$B$20*(Petroleum!B265*Petroleum!$J$262+Petroleum!$J265)+Vehicles!$C$37*(1-Vehicles!$C$17-Vehicles!$C$18)*Fuel_Specs!$B$23*(Petroleum!B265*Petroleum!$K$262+Petroleum!$K265)+Vehicles!$C$17*Fuel_Specs!$B$31*(EtOH!BP492*EtOH!$BQ$489+EtOH!$BQ492)+Vehicles!$C$18*Fuel_Specs!$B$34*('E-D Additives'!$B56*'E-D Additives'!$B$53))/((1-Vehicles!$C$37)*(1-Vehicles!$C$17-Vehicles!$C$18)*Fuel_Specs!$B$20+Vehicles!$C$37*(1-Vehicles!$C$17-Vehicles!$C$18)*Fuel_Specs!$B$23+Vehicles!$C$17*Fuel_Specs!$B$31+Vehicles!$C$18*Fuel_Specs!$B$34))/1000000*HLOOKUP($H$10,$Z$3:$AD$4,2,FALSE)/HLOOKUP($J$11,$Z$7:$AD$8,2,FALSE) -> 25342.25105 | AI17: =AN17*(Vehicles!$M$23/Vehicles!$CM$59)/(Vehicles!$M$23*(1/Vehicles!$CM$59+1/Vehicles!$CN$59)+Vehicles!$M$24/Vehicles!$CO$59)+E17*(Vehicles!$M$23/Vehicles!$CN$59+Vehicles!$M$24/Vehicles!$CO$59)/(Vehicles!$M$23*(1/Vehicles!$CM$59+1/Vehicles!$CN$59)+Vehicles!$M$24/Vehicles!$CO$59) -> 199693.5523 | AJ17: =AN17*(Vehicles!$N$23/Vehicles!$CQ$59)/(Vehicles!$N$23*(1/Vehicles!$CQ$59+1/Vehicles!$CR$59)+Vehicles!$N$24/Vehicles!$CS$59)+AC17*(Vehicles!$N$23/Vehicles!$CR$59+Vehicles!$N$24/Vehicles!$CS$59)/(Vehicles!$N$23*(1/Vehicles!$CQ$59+1/Vehicles!$CR$59)+Vehicles!$N$24/Vehicles!$CS$59) -> 225630.1285 | AK17: =AN17*(Vehicles!$O$23/Vehicles!$CU$59)/(Vehicles!$O$23*(1/Vehicles!$CU$59+1/Vehicles!$CV$59)+Vehicles!$O$24/Vehicles!$CW$59)+AD17*(Vehicles!$O$23/Vehicles!$CV$59+Vehicles!$O$24/Vehicles!$CW$59)/(Vehicles!$O$23*(1/Vehicles!$CU$59+1/Vehicles!$CV$59)+Vehicles!$O$24/Vehicles!$CW$59) -> 174846.9932 | AL17: =AN17*(Vehicles!$P$23/Vehicles!$CY$59)/(Vehicles!$P$23*(1/Vehicles!$CY$59+1/Vehicles!$CZ$59)+Vehicles!$P$24/Vehicles!$DA$59)+AE17*(Vehicles!$P$23/Vehicles!$CZ$59+Vehicles!$P$24/Vehicles!$DA$59)/(Vehicles!$P$23*(1/Vehicles!$CY$59+1/Vehicles!$CZ$59)+Vehicles!$P$24/Vehicles!$DA$59) -> 202768.9352 | AM17: =AN17*(Vehicles!$R$23/Vehicles!$DG$59)/(Vehicles!$R$23*(1/Vehicles!$DG$59+1/Vehicles!$DH$59)+Vehicles!$R$24/Vehicles!$DI$59)+AH17*(Vehicles!$R$23/Vehicles!$DH$59+Vehicles!$R$24/Vehicles!$DI$59)/(Vehicles!$R$23*(1/Vehicles!$DG$59+1/Vehicles!$DH$59)+Vehicles!$R$24/Vehicles!$DI$59) -> 202964.1853 | AN17: =(Electric!$G188+Electric!$F188-1000000*(Electric!$F188+Electric!$G188)/(Electric!$F$186+Electric!$G$186))/1000000*HLOOKUP($H$10,$Z$3:$AD$4,2,FALSE)/HLOOKUP($J$11,$Z$7:$AD$8,2,FALSE) -> 700877.1806 | AO17: =((Hydrogen!$AF165*Hydrogen!$AG$162+Hydrogen!$AG165)-1000000*(Hydrogen!$M$7+Hydrogen!$C$7+Hydrogen!$D$7+Hydrogen!$E$7))/1000000*HLOOKUP($H$10,$Z$3:$AD$4,2,FALSE)/HLOOKUP($J$11,$Z$7:$AD$8,2,FALSE) -> 165565.9349 | AP17: =((Hydrogen!$BJ165*Hydrogen!$BK$162+Hydrogen!$BK165)-1000000*(Hydrogen!$M$8+Hydrogen!$C$8+Hydrogen!$D$8+Hydrogen!$E$8))/1000000*HLOOKUP($H$10,$Z$3:$AD$4,2,FALSE)/HLOOKUP($J$11,$Z$7:$AD$8,2,FALSE) -> 537339.9714 | AQ17: =AN17*(Vehicles!$S$23/Vehicles!$DW$59)/(Vehicles!$S$23*(1/Vehicles!$DW$59+1/Vehicles!$DX$59)+Vehicles!$S$24/Vehicles!$DY$59)+AO17*(Vehicles!$S$23/Vehicles!$DX$59+Vehicles!$S$24/Vehicles!$DY$59)/(Vehicles!$S$23*(1/Vehicles!$DW$59+1/Vehicles!$DX$59)+Vehicles!$S$24/Vehicles!$DY$59) -> 337432.0052 | AR17: =AN17*(Vehicles!$S$23/Vehicles!$DW$59)/(Vehicles!$S$23*(1/Vehicles!$DW$59+1/Vehicles!$DX$59)+Vehicles!$S$24/Vehicles!$DY$59)+AP17*(Vehicles!$S$23/Vehicles!$DX$59+Vehicles!$S$24/Vehicles!$DY$59)/(Vehicles!$S$23*(1/Vehicles!$DW$59+1/Vehicles!$DX$59)+Vehicles!$S$24/Vehicles!$DY$59) -> 589844.9351 | AS17: =((1-Vehicles!$C$33)*(1-Vehicles!$C$16)*Fuel_Specs!$B$15/((1-Vehicles!$C$33)*(1-Vehicles!$C$16)*Fuel_Specs!$B$15+Vehicles!$C$33*(1-Vehicles!$C$16)*Fuel_Specs!$B$16+Vehicles!$C$16*Fuel_Specs!$B$45)*(Petroleum!$B265*Petroleum!$D$262+Petroleum!$D265)+Vehicles!$C$33*(1-Vehicles!$C$16)*Fuel_Specs!$B$16/((1-Vehicles!$C$33)*(1-Vehicles!$C$16)*Fuel_Specs!$B$15+Vehicles!$C$33*(1-Vehicles!$C$16)*Fuel_Specs!$B$16+Vehicles!$C$16*Fuel_Specs!$B$45)*(Petroleum!B265*Petroleum!$F$262+Petroleum!$F265)+Vehicles!$C$16*Fuel_Specs!$B$45/((1-Vehicles!$C$33)*(1-Vehicles!$C$16)*Fuel_Specs!$B$15+Vehicles!$C$33*(1-Vehicles!$C$16)*Fuel_Specs!$B$16+Vehicles!$C$16*Fuel_Specs!$B$45)*(IDL!$L115*IDL!$M$112+IDL!$M115))/1000000*HLOOKUP($H$10,$Z$3:$AD$4,2,FALSE)/HLOOKUP($J$11,$Z$7:$AD$8,2,FALSE) -> 10757.45667 | AV17: ="SI - E"&TEXT(Vehicles_EtOH_LLBlend_EtOHShare*100,"0") -> SI - E10 | AW17: RNAVGASLLETOH | AY17: ="SIDI - E"&TEXT(Vehicles_EtOH_LLBlend_EtOHShare*100,"0") -> SIDI - E10 | AZ17: RNAVGASLLETOHSIDI | BB17: CIDI - FT Diesel | BC17: RNAVFTDCIDI | BE17: SI HEV - RG from Pyrolysis | BF17: RNAVHEVRENGAS | BH17: SI PHEV - RG and Electricity | BI17: RNAVPHEVRENGAS | BK17: CIDI HEV - FT Diesel | BL17: RNAVHEVFTDIESEL | BN17: CIDI PHEV - FTD and Electricity | BO17: RNAVPHEVFTDIESEL | BQ17: FC PHEV - Liquid H2 and Electricity | BR17: RNAVPHEVFCVLH2
A18: Natural Gas | B18: =B16-B17-B19 -> 177652.4134 | C18: 169419.889 | D18: 177652.4134 | E18: 189788.4703 | F18: 143652.669 | G18: 251118.5078 | H18: 120913.3459 | I18: 916115.7575 | J18: 457584.7417 | K18: 489988.149 | L18: 564785.967 | M18: 383671.6769 | N18: 599355.1752 | O18: 383671.6769 | P18: 452643.8152 | Q18: 62238.81904 | R18: 248839.0267 | S18: 234171.5224 | T18: 228021.0001 | U18: 234171.5224 | V18: 208770.2997 | W18: 289058.0712 | X18: 191781.7422 | Y18: 468592.8987 | Z18: 387877.2456 | AA18: 555960.8977 | AB18: 700567.5011 | AC18: 556225.0242 | AD18: 737030.8535 | AE18: 196750.9806 | AF18: 185438.1179 | AG18: =((1-Vehicles!$C$36)*(1-Vehicles!$C$15)*Fuel_Specs!$B$20/((1-Vehicles!$C$36)*(1-Vehicles!$C$15)*Fuel_Specs!$B$20+Vehicles!$C$36*(1-Vehicles!$C$15)*Fuel_Specs!$B$23+Vehicles!$C$15*IF(Inputs!$E$628=1,Fuel_Specs!$B$41,Fuel_Specs!$B$42))*(Petroleum!B266*Petroleum!$J$262+Petroleum!$J266)+Vehicles!$C$36*(1-Vehicles!$C$15)*Fuel_Specs!$B$23/((1-Vehicles!$C$36)*(1-Vehicles!$C$15)*Fuel_Specs!$B$20+Vehicles!$C$36*(1-Vehicles!$C$15)*Fuel_Specs!$B$23+Vehicles!$C$15*IF(Inputs!$E$628=1,Fuel_Specs!$B$41,Fuel_Specs!$B$42))*(Petroleum!B266*Petroleum!$K$262+Petroleum!$K266)+Vehicles!$C$15*IF(Inputs!$E$628=1,Fuel_Specs!$B$41,Fuel_Specs!$B$42)/((1-Vehicles!$C$36)*(1-Vehicles!$C$15)*Fuel_Specs!$B$20+Vehicles!$C$36*(1-Vehicles!$C$15)*Fuel_Specs!$B$23+Vehicles!$C$15*IF(Inputs!$E$628=1,Fuel_Specs!$B$41,Fuel_Specs!$B$42))*(Pyrolysis!$AB175*Pyrolysis!$AC$171+Pyrolysis!$AC175))/1000000*HLOOKUP($H$10,$Z$3:$AD$4,2,FALSE)/HLOOKUP($J$11,$Z$7:$AD$8,2,FALSE) -> 278087.3175 | AH18: =AH16-AH17-AH19 -> 207139.9973 | AI18: 245359.3903 | AJ18: 515446.8634 | AK18: 648712.4698 | AL18: 250491.2113 | AM18: 258148.5895 | AN18: 401136.791 | AO18: 612527.76 | AP18: 809968.1372 | AQ18: 544658.9539 | AR18: 678709.477 | AS18: 92568.82499 | AV18: SI - Bi-Fuel CNGV on CNG | AW18: RNAVCNGBI | AY18: SIDI - Dedi. MeOH | AZ18: RNAVMEOHSIDI | BB18: CIDI - Biodiesel | BC18: RNAVBIODIESELCIDI | BE18: ="SI HEV - E"&TEXT(Vehicles_EtOH_LLBlend_EtOHShare*100,"0") -> SI HEV - E10 | BF18: RNAVHEVLLETOH | BH18: ="SI PHEV - E"&TEXT(Vehicles_EtOH_LLBlend_EtOHShare*100,"0") -> SI PHEV - E10 | BI18: RNAVPHEVLLETOH | BK18: CIDI HEV - Biodiesel | BL18: RNAVHEVBIODIESEL | BN18: CIDI PHEV - BD and Electricity | BO18: RNAVPHEVBIODIESEL | BQ18: FCV - Gaseous H2 | BR18: RNAVFCVGH2
A19: Petroleum | B19: =(Inputs!$E$1398*(Petroleum!$B267*Petroleum!$F$262+Petroleum!$F267)+(1-Inputs!$E$1398)*(Petroleum!$B267*Petroleum!$D$262+Petroleum!$D267))/1000000*HLOOKUP($H$10,$Z$3:$AD$4,2,FALSE)/HLOOKUP($J$11,$Z$7:$AD$8,2,FALSE) -> 95707.10258 | C19: =(Petroleum!$C267*Petroleum!$G$262+Petroleum!$G267)/1000000*HLOOKUP($H$10,$Z$3:$AD$4,2,FALSE)/HLOOKUP($J$11,$Z$7:$AD$8,2,FALSE) -> 80748.72032 | D19: =((1-Vehicles!$C$28)*(1-Vehicles!$C$7)*Fuel_Specs!$B$15/((1-Vehicles!$C$28)*(1-Vehicles!$C$7)*Fuel_Specs!$B$15+Vehicles!$C$28*(1-Vehicles!$C$7)*Fuel_Specs!$B$16+Vehicles!$C$7*Fuel_Specs!$B$31)*(Petroleum!$B267*Petroleum!$D$262+(Petroleum!$D267-'T&D'!G216))+Vehicles!$C$28*(1-Vehicles!$C$7)*Fuel_Specs!$B$16/((1-Vehicles!$C$28)*(1-Vehicles!$C$7)*Fuel_Specs!$B$15+Vehicles!$C$28*(1-Vehicles!$C$7)*Fuel_Specs!$B$16+Vehicles!$C$7*Fuel_Specs!$B$31)*(Petroleum!B267*Petroleum!$F$262+Petroleum!$F267)+Vehicles!$C$7*Fuel_Specs!$B$31/((1-Vehicles!$C$28)*(1-Vehicles!$C$7)*Fuel_Specs!$B$15+Vehicles!$C$28*(1-Vehicles!$C$7)*Fuel_Specs!$B$16+Vehicles!$C$7*Fuel_Specs!$B$31)*(EtOH!BR494*EtOH!$BS$489+EtOH!$BS494)+Petroleum!AR128+Petroleum!AS128)/1000000*HLOOKUP($H$10,$Z$3:$AD$4,2,FALSE)/HLOOKUP($J$11,$Z$7:$AD$8,2,FALSE) -> 95707.10258 | E19: =(Inputs!$E$97*(IF(Inputs!F$102=1,Petroleum!$B267,Petroleum!$C267)*Petroleum!$K$262+Petroleum!$K267)+(1-Inputs!$E$97)*(IF(Inputs!F$101=1,Petroleum!$B267,Petroleum!$C267)*Petroleum!$J$262+Petroleum!$J267))/1000000*HLOOKUP($H$10,$Z$3:$AD$4,2,FALSE)/HLOOKUP($J$11,$Z$7:$AD$8,2,FALSE) -> 75165.43566 | F19: =(NG!$I89*NG!$J$84+NG!$J89)/1000000*HLOOKUP($H$10,$Z$3:$AD$4,2,FALSE)/HLOOKUP($J$11,$Z$7:$AD$8,2,FALSE) -> 7135.354271 | G19: =(NG!$Q89*NG!$R$84+NG!$R89)/1000000*HLOOKUP($H$10,$Z$3:$AD$4,2,FALSE)/HLOOKUP($J$11,$Z$7:$AD$8,2,FALSE) -> 7860.549484 | H19: =(NG!$W89*NG!$X$84+NG!$X89)/1000000*HLOOKUP($H$10,$Z$3:$AD$4,2,FALSE)/HLOOKUP($J$11,$Z$7:$AD$8,2,FALSE) -> 37272.45711 | I19: =('MeOH&FTD'!BJ142*'MeOH&FTD'!BK$137+'MeOH&FTD'!BK142)/1000000*HLOOKUP($H$10,$Z$3:$AD$4,2,FALSE)/HLOOKUP($J$11,$Z$7:$AD$8,2,FALSE) -> 6393.880224 | J19: =((1-Vehicles!$C$27)*(1-Vehicles!$C$5)*Fuel_Specs!$B$15/((1-Vehicles!$C$27)*(1-Vehicles!$C$5)*Fuel_Specs!$B$15+Vehicles!$C$27*(1-Vehicles!$C$5)*Fuel_Specs!$B$16+Vehicles!$C$5*Fuel_Specs!$B$30)*(Petroleum!$B267*Petroleum!$D$262+Petroleum!$D267)+Vehicles!$C$27*(1-Vehicles!$C$5)*Fuel_Specs!$B$16/((1-Vehicles!$C$27)*(1-Vehicles!$C$5)*Fuel_Specs!$B$15+Vehicles!$C$27*(1-Vehicles!$C$5)*Fuel_Specs!$B$16+Vehicles!$C$5*Fuel_Specs!$B$30)*(Petroleum!B267*Petroleum!$F$262+Petroleum!$F267)+Vehicles!$C$5*Fuel_Specs!$B$30/((1-Vehicles!$C$27)*(1-Vehicles!$C$5)*Fuel_Specs!$B$15+Vehicles!$C$27*(1-Vehicles!$C$5)*Fuel_Specs!$B$16+Vehicles!$C$5*Fuel_Specs!$B$30)*('MeOH&FTD'!$N142*'MeOH&FTD'!$O$137+'MeOH&FTD'!$O142))/1000000*HLOOKUP($H$10,$Z$3:$AD$4,2,FALSE)/HLOOKUP($J$11,$Z$7:$AD$8,2,FALSE) -> 43736.99517 | K19: =((1-Vehicles!$C$27)*(1-Vehicles!$C$6)*Fuel_Specs!$B$15/((1-Vehicles!$C$27)*(1-Vehicles!$C$6)*Fuel_Specs!$B$15+Vehicles!$C$27*(1-Vehicles!$C$6)*Fuel_Specs!$B$16+Vehicles!$C$6*Fuel_Specs!$B$30)*(Petroleum!$B267*Petroleum!$D$262+Petroleum!$D267)+Vehicles!$C$27*(1-Vehicles!$C$6)*Fuel_Specs!$B$16/((1-Vehicles!$C$27)*(1-Vehicles!$C$6)*Fuel_Specs!$B$15+Vehicles!$C$27*(1-Vehicles!$C$6)*Fuel_Specs!$B$16+Vehicles!$C$6*Fuel_Specs!$B$30)*(Petroleum!B267*Petroleum!$F$262+Petroleum!$F267)+Vehicles!$C$6*Fuel_Specs!$B$30/((1-Vehicles!$C$27)*(1-Vehicles!$C$6)*Fuel_Specs!$B$15+Vehicles!$C$27*(1-Vehicles!$C$6)*Fuel_Specs!$B$16+Vehicles!$C$6*Fuel_Specs!$B$30)*('MeOH&FTD'!$N142*'MeOH&FTD'!$O$137+'MeOH&FTD'!$O142))/1000000*HLOOKUP($H$10,$Z$3:$AD$4,2,FALSE)/HLOOKUP($J$11,$Z$7:$AD$8,2,FALSE) -> 37822.44926 | L19: =('MeOH&FTD'!$N142*'MeOH&FTD'!$O$137+'MeOH&FTD'!$O142)/1000000*HLOOKUP($H$10,$Z$3:$AD$4,2,FALSE)/HLOOKUP($J$11,$Z$7:$AD$8,2,FALSE) -> 24169.71439 | M19: =((1-Vehicles!$C$29)*(1-Vehicles!$C$8)*Fuel_Specs!$B$15/((1-Vehicles!$C$29)*(1-Vehicles!$C$8)*Fuel_Specs!$B$15+Vehicles!$C$29*(1-Vehicles!$C$8)*Fuel_Specs!$B$16+Vehicles!$C$8*Fuel_Specs!$B$31)*(Petroleum!$B267*Petroleum!$D$262+(Petroleum!$D267-'T&D'!G216))+Vehicles!$C$29*(1-Vehicles!$C$8)*Fuel_Specs!$B$16/((1-Vehicles!$C$29)*(1-Vehicles!$C$8)*Fuel_Specs!$B$15+Vehicles!$C$29*(1-Vehicles!$C$8)*Fuel_Specs!$B$16+Vehicles!$C$8*Fuel_Specs!$B$31)*(Petroleum!B267*Petroleum!$F$262+Petroleum!$F267)+Vehicles!$C$8*Fuel_Specs!$B$31/((1-Vehicles!$C$29)*(1-Vehicles!$C$8)*Fuel_Specs!$B$15+Vehicles!$C$29*(1-Vehicles!$C$8)*Fuel_Specs!$B$16+Vehicles!$C$8*Fuel_Specs!$B$31)*(EtOH!BR494*EtOH!$BS$489+EtOH!$BS494)+Petroleum!AR128+Petroleum!AS128)/1000000*HLOOKUP($H$10,$Z$3:$AD$4,2,FALSE)/HLOOKUP($J$11,$Z$7:$AD$8,2,FALSE) -> 66538.98635 | N19: =((1-Vehicles!$C$30)*(1-Vehicles!$C$12)*Fuel_Specs!$B$15/((1-Vehicles!$C$30)*(1-Vehicles!$C$12)*Fuel_Specs!$B$15+Vehicles!$C$30*(1-Vehicles!$C$12)*Fuel_Specs!$B$16+Vehicles!$C$12*Fuel_Specs!$B$32)*(Petroleum!$B267*Petroleum!$D$262+Petroleum!$D267)+Vehicles!$C$30*(1-Vehicles!$C$12)*Fuel_Specs!$B$16/((1-Vehicles!$C$30)*(1-Vehicles!$C$12)*Fuel_Specs!$B$15+Vehicles!$C$30*(1-Vehicles!$C$12)*Fuel_Specs!$B$16+Vehicles!$C$12*Fuel_Specs!$B$32)*(Petroleum!B267*Petroleum!$F$262+Petroleum!$F267)+Vehicles!$C$12*Fuel_Specs!$B$32/((1-Vehicles!$C$30)*(1-Vehicles!$C$12)*Fuel_Specs!$B$15+Vehicles!$C$30*(1-Vehicles!$C$12)*Fuel_Specs!$B$16+Vehicles!$C$12*Fuel_Specs!$B$32)*(EtOH!$BT494*EtOH!$BU$489+EtOH!$BU494))/1000000*HLOOKUP($H$10,$Z$3:$AD$4,2,FALSE)/HLOOKUP($J$11,$Z$7:$AD$8,2,FALSE) -> 55318.37595 | O19: =((1-Vehicles!$C$29)*(1-Vehicles!$C$9)*Fuel_Specs!$B$15/((1-Vehicles!$C$29)*(1-Vehicles!$C$9)*Fuel_Specs!$B$15+Vehicles!$C$29*(1-Vehicles!$C$9)*Fuel_Specs!$B$16+Vehicles!$C$9*Fuel_Specs!$B$31)*(Petroleum!$B267*Petroleum!$D$262+(Petroleum!$D267-'T&D'!G216))+Vehicles!$C$29*(1-Vehicles!$C$9)*Fuel_Specs!$B$16/((1-Vehicles!$C$29)*(1-Vehicles!$C$9)*Fuel_Specs!$B$15+Vehicles!$C$29*(1-Vehicles!$C$9)*Fuel_Specs!$B$16+Vehicles!$C$9*Fuel_Specs!$B$31)*(Petroleum!B267*Petroleum!$F$262+Petroleum!$F267)+Vehicles!$C$9*Fuel_Specs!$B$31/((1-Vehicles!$C$29)*(1-Vehicles!$C$9)*Fuel_Specs!$B$15+Vehicles!$C$29*(1-Vehicles!$C$9)*Fuel_Specs!$B$16+Vehicles!$C$9*Fuel_Specs!$B$31)*(EtOH!BR494*EtOH!$BS$489+EtOH!$BS494)+Petroleum!AR128+Petroleum!AS128)/1000000*HLOOKUP($H$10,$Z$3:$AD$4,2,FALSE)/HLOOKUP($J$11,$Z$7:$AD$8,2,FALSE) -> 66538.98635 | P19: =(EtOH!$BP494*EtOH!$BQ$489+EtOH!$BQ494)/1000000*HLOOKUP($H$10,$Z$3:$AD$4,2,FALSE)/HLOOKUP($J$11,$Z$7:$AD$8,2,FALSE) -> 57754.61666 | Q19: =((1-Vehicles!$C$33)*(1-Vehicles!$C$16)*Fuel_Specs!$B$15/((1-Vehicles!$C$33)*(1-Vehicles!$C$16)*Fuel_Specs!$B$15+Vehicles!$C$33*(1-Vehicles!$C$16)*Fuel_Specs!$B$16+Vehicles!$C$16*Fuel_Specs!$B$44)*(Petroleum!$B267*Petroleum!$D$262+Petroleum!$D267)+Vehicles!$C$33*(1-Vehicles!$C$16)*Fuel_Specs!$B$16/((1-Vehicles!$C$33)*(1-Vehicles!$C$16)*Fuel_Specs!$B$15+Vehicles!$C$33*(1-Vehicles!$C$16)*Fuel_Specs!$B$16+Vehicles!$C$16*Fuel_Specs!$B$44)*(Petroleum!B267*Petroleum!$F$262+Petroleum!$F267)+Vehicles!$C$16*Fuel_Specs!$B$44/((1-Vehicles!$C$33)*(1-Vehicles!$C$16)*Fuel_Specs!$B$15+Vehicles!$C$33*(1-Vehicles!$C$16)*Fuel_Specs!$B$16+Vehicles!$C$16*Fuel_Specs!$B$44)*(BioOil!$BO339*BioOil!$BP$333+BioOil!$BP339))/1000000*HLOOKUP($H$10,$Z$3:$AD$4,2,FALSE)/HLOOKUP($J$11,$Z$7:$AD$8,2,FALSE) -> 58877.27156 | R19: =((1-Vehicles!$C$33)*(1-Vehicles!$C$16)*Fuel_Specs!$B$15/((1-Vehicles!$C$33)*(1-Vehicles!$C$16)*Fuel_Specs!$B$15+Vehicles!$C$33*(1-Vehicles!$C$16)*Fuel_Specs!$B$16+Vehicles!$C$16*Fuel_Specs!$B$44)*(Petroleum!$B267*Petroleum!$D$262+Petroleum!$D267)+Vehicles!$C$33*(1-Vehicles!$C$16)*Fuel_Specs!$B$16/((1-Vehicles!$C$33)*(1-Vehicles!$C$16)*Fuel_Specs!$B$15+Vehicles!$C$33*(1-Vehicles!$C$16)*Fuel_Specs!$B$16+Vehicles!$C$16*Fuel_Specs!$B$44)*(Petroleum!B267*Petroleum!$F$262+Petroleum!$F267)+Vehicles!$C$16*Fuel_Specs!$B$44/((1-Vehicles!$C$33)*(1-Vehicles!$C$16)*Fuel_Specs!$B$15+Vehicles!$C$33*(1-Vehicles!$C$16)*Fuel_Specs!$B$16+Vehicles!$C$16*Fuel_Specs!$B$44)*(Pyrolysis!$Z176*Pyrolysis!$AA$171+Pyrolysis!$AA176))/1000000*HLOOKUP($H$10,$Z$3:$AD$4,2,FALSE)/HLOOKUP($J$11,$Z$7:$AD$8,2,FALSE) -> 76314.98149 | S19: =AN19*(Vehicles!$C$23/Vehicles!$AR$59)/(Vehicles!$C$23*(1/Vehicles!$AR$59+1/Vehicles!$AS$59)+Vehicles!$C$24/Vehicles!$AT$59)+B19*(Vehicles!$C$23/Vehicles!$AS$59+Vehicles!$C$24/Vehicles!$AT$59)/(Vehicles!$C$23*(1/Vehicles!$AR$59+1/Vehicles!$AS$59)+Vehicles!$C$24/Vehicles!$AT$59) -> 84836.09555 | T19: =AN19*(Vehicles!$D$23/Vehicles!$AV$59)/(Vehicles!$D$23*(1/Vehicles!$AV$59+1/Vehicles!$AW$59)+Vehicles!$D$24/Vehicles!$AX$59)+C19*(Vehicles!$D$23/Vehicles!$AW$59+Vehicles!$D$24/Vehicles!$AX$59)/(Vehicles!$D$23*(1/Vehicles!$AV$59+1/Vehicles!$AW$59)+Vehicles!$D$24/Vehicles!$AX$59) -> 73660.68214 | U19: =AN19*(Vehicles!$F$23/Vehicles!$BD$59)/(Vehicles!$F$23*(1/Vehicles!$BD$59+1/Vehicles!$BE$59)+Vehicles!$F$24/Vehicles!$BF$59)+D19*(Vehicles!$F$23/Vehicles!$BE$59+Vehicles!$F$24/Vehicles!$BF$59)/(Vehicles!$F$23*(1/Vehicles!$BD$59+1/Vehicles!$BE$59)+Vehicles!$F$24/Vehicles!$BF$59) -> 84836.09555 | V19: =AN19*(Vehicles!$G$23/Vehicles!$BH$59)/(Vehicles!$G$23*(1/Vehicles!$BH$59+1/Vehicles!$BI$59)+Vehicles!$G$24/Vehicles!$BJ$59)+F19*(Vehicles!$G$23/Vehicles!$BI$59+Vehicles!$G$24/Vehicles!$BJ$59)/(Vehicles!$G$23*(1/Vehicles!$BH$59+1/Vehicles!$BI$59)+Vehicles!$G$24/Vehicles!$BJ$59) -> 18664.10671 | W19: =AN19*(Vehicles!$H$23/Vehicles!$BL$59)/(Vehicles!$H$23*(1/Vehicles!$BL$59+1/Vehicles!$BM$59)+Vehicles!$H$24/Vehicles!$BN$59)+G19*(Vehicles!$H$23/Vehicles!$BM$59+Vehicles!$H$24/Vehicles!$BN$59)/(Vehicles!$H$23*(1/Vehicles!$BL$59+1/Vehicles!$BM$59)+Vehicles!$H$24/Vehicles!$BN$59) -> 19205.90034 | X19: =AN19*(Vehicles!$I$23/Vehicles!$BP$59)/(Vehicles!$I$23*(1/Vehicles!$BP$59+1/Vehicles!$BQ$59)+Vehicles!$I$24/Vehicles!$BR$59)+H19*(Vehicles!$I$23/Vehicles!$BQ$59+Vehicles!$I$24/Vehicles!$BR$59)/(Vehicles!$I$23*(1/Vehicles!$BP$59+1/Vehicles!$BQ$59)+Vehicles!$I$24/Vehicles!$BR$59) -> 41179.54838 | Y19: =AN19*(Vehicles!$J$23/Vehicles!$BT$59)/(Vehicles!$J$23*(1/Vehicles!$BT$59+1/Vehicles!$BU$59)+Vehicles!$J$24/Vehicles!$BV$59)+K19*(Vehicles!$J$23/Vehicles!$BU$59+Vehicles!$J$24/Vehicles!$BV$59)/(Vehicles!$J$23*(1/Vehicles!$BT$59+1/Vehicles!$BU$59)+Vehicles!$J$24/Vehicles!$BV$59) -> 41410.14729 | Z19: =AN19*(Vehicles!$K$23/Vehicles!$BX$59)/(Vehicles!$K$23*(1/Vehicles!$BX$59+1/Vehicles!$BY$59)+Vehicles!$K$24/Vehicles!$BZ$59)+O19*(Vehicles!$K$23/Vehicles!$BY$59+Vehicles!$K$24/Vehicles!$BZ$59)/(Vehicles!$K$23*(1/Vehicles!$BX$59+1/Vehicles!$BY$59)+Vehicles!$K$24/Vehicles!$BZ$59) -> 63211.79291 | AA19: =AN19*(Vehicles!$L$23/Vehicles!$CB$59)/(Vehicles!$L$23*(1/Vehicles!$CB$59+1/Vehicles!$CC$59)+Vehicles!$L$24/Vehicles!$CD$59)+AO19*(Vehicles!$L$23/Vehicles!$CC$59+Vehicles!$L$24/Vehicles!$CD$59)/(Vehicles!$L$23*(1/Vehicles!$CB$59+1/Vehicles!$CC$59)+Vehicles!$L$24/Vehicles!$CD$59) -> 27351.33577 | AB19: =AN19*(Vehicles!$L$23/Vehicles!$CB$59)/(Vehicles!$L$23*(1/Vehicles!$CB$59+1/Vehicles!$CC$59)+Vehicles!$L$24/Vehicles!$CE$59)+AP19*(Vehicles!$L$23/Vehicles!$CC$59+Vehicles!$L$24/Vehicles!$CE$59)/(Vehicles!$L$23*(1/Vehicles!$CB$59+1/Vehicles!$CC$59)+Vehicles!$L$24/Vehicles!$CE$59) -> 52890.89346 | AC19: =('MeOH&FTD'!$AJ142*'MeOH&FTD'!$AK$137+'MeOH&FTD'!$AK142)/1000000*HLOOKUP($H$10,$Z$3:$AD$4,2,FALSE)/HLOOKUP($J$11,$Z$7:$AD$8,2,FALSE) -> 17473.80353 | AD19: =((1-Vehicles!$C$34)*(1-Vehicles!$C$13)*Fuel_Specs!$B$20/((1-Vehicles!$C$34)*(1-Vehicles!$C$13)*Fuel_Specs!$B$20+Vehicles!$C$34*(1-Vehicles!$C$13)*Fuel_Specs!$B$23+Vehicles!$C$13*Fuel_Specs!$B$40)*(Petroleum!B267*Petroleum!$J$262+Petroleum!$J267)+Vehicles!$C$34*(1-Vehicles!$C$13)*Fuel_Specs!$B$23/((1-Vehicles!$C$34)*(1-Vehicles!$C$13)*Fuel_Specs!$B$20+Vehicles!$C$34*(1-Vehicles!$C$13)*Fuel_Specs!$B$23+Vehicles!$C$13*Fuel_Specs!$B$40)*(Petroleum!B267*Petroleum!$K$262+Petroleum!$K267)+Vehicles!$C$13*Fuel_Specs!$B$40/((1-Vehicles!$C$34)*(1-Vehicles!$C$13)*Fuel_Specs!$B$20+Vehicles!$C$34*(1-Vehicles!$C$13)*Fuel_Specs!$B$23+Vehicles!$C$13*Fuel_Specs!$B$40)*('MeOH&FTD'!$AZ142*'MeOH&FTD'!$BA$137+'MeOH&FTD'!$BA142))/1000000*HLOOKUP($H$10,$Z$3:$AD$4,2,FALSE)/HLOOKUP($J$11,$Z$7:$AD$8,2,FALSE) -> 9298.107583 | AE19: =((1-Vehicles!$C$35)*(1-Vehicles!$C$14)*Fuel_Specs!$B$20/((1-Vehicles!$C$35)*(1-Vehicles!$C$14)*Fuel_Specs!$B$20+Vehicles!$C$35*(1-Vehicles!$C$14)*Fuel_Specs!$B$23+Vehicles!$C$14*Fuel_Specs!$B$39)*(Petroleum!B267*Petroleum!$J$262+Petroleum!$J267)+Vehicles!$C$35*(1-Vehicles!$C$14)*Fuel_Specs!$B$23/((1-Vehicles!$C$35)*(1-Vehicles!$C$14)*Fuel_Specs!$B$20+Vehicles!$C$35*(1-Vehicles!$C$14)*Fuel_Specs!$B$23+Vehicles!$C$14*Fuel_Specs!$B$39)*(Petroleum!B267*Petroleum!$K$262+Petroleum!$K267)+Vehicles!$C$14*Fuel_Specs!$B$39/((1-Vehicles!$C$35)*(1-Vehicles!$C$14)*Fuel_Specs!$B$20+Vehicles!$C$35*(1-Vehicles!$C$14)*Fuel_Specs!$B$23+Vehicles!$C$14*Fuel_Specs!$B$39)*(BioOil!$W339*BioOil!$X$333+BioOil!$X339))/1000000*HLOOKUP($H$10,$Z$3:$AD$4,2,FALSE)/HLOOKUP($J$11,$Z$7:$AD$8,2,FALSE) -> 75237.05366 | AF19: =((1-Vehicles!$C$36)*(1-Vehicles!$C$15)*Fuel_Specs!$B$20/((1-Vehicles!$C$36)*(1-Vehicles!$C$15)*Fuel_Specs!$B$20+Vehicles!$C$36*(1-Vehicles!$C$15)*Fuel_Specs!$B$23+Vehicles!$C$15*IF(Inputs!$E$628=1,IF(Inputs!$E$628=1,Fuel_Specs!$B$41,IF(Inputs!$E$628=3,Fuel_Specs!$B$43,Fuel_Specs!$B$42)),Fuel_Specs!$B$42))*(Petroleum!B267*Petroleum!$J$262+Petroleum!$J267)+Vehicles!$C$36*(1-Vehicles!$C$15)*Fuel_Specs!$B$23/((1-Vehicles!$C$36)*(1-Vehicles!$C$15)*Fuel_Specs!$B$20+Vehicles!$C$36*(1-Vehicles!$C$15)*Fuel_Specs!$B$23+Vehicles!$C$15*IF(Inputs!$E$628=1,IF(Inputs!$E$628=1,Fuel_Specs!$B$41,IF(Inputs!$E$628=3,Fuel_Specs!$B$43,Fuel_Specs!$B$42)),Fuel_Specs!$B$42))*(Petroleum!B267*Petroleum!$K$262+Petroleum!$K267)+Vehicles!$C$15*IF(Inputs!$E$628=1,IF(Inputs!$E$628=1,Fuel_Specs!$B$41,IF(Inputs!$E$628=3,Fuel_Specs!$B$43,Fuel_Specs!$B$42)),Fuel_Specs!$B$42)/((1-Vehicles!$C$36)*(1-Vehicles!$C$15)*Fuel_Specs!$B$20+Vehicles!$C$36*(1-Vehicles!$C$15)*Fuel_Specs!$B$23+Vehicles!$C$15*IF(Inputs!$E$628=1,IF(Inputs!$E$628=1,Fuel_Specs!$B$41,IF(Inputs!$E$628=3,Fuel_Specs!$B$43,Fuel_Specs!$B$42)),Fuel_Specs!$B$42))*(BioOil!$BA339*BioOil!$BB$333+BioOil!$BB339))/1000000*HLOOKUP($H$10,$Z$3:$AD$4,2,FALSE)/HLOOKUP($J$11,$Z$7:$AD$8,2,FALSE) -> 56798.95205 | AG19: =((1-Vehicles!$C$36)*(1-Vehicles!$C$15)*Fuel_Specs!$B$20/((1-Vehicles!$C$36)*(1-Vehicles!$C$15)*Fuel_Specs!$B$20+Vehicles!$C$36*(1-Vehicles!$C$15)*Fuel_Specs!$B$23+Vehicles!$C$15*IF(Inputs!$E$628=1,Fuel_Specs!$B$41,Fuel_Specs!$B$42))*(Petroleum!B267*Petroleum!$J$262+Petroleum!$J267)+Vehicles!$C$36*(1-Vehicles!$C$15)*Fuel_Specs!$B$23/((1-Vehicles!$C$36)*(1-Vehicles!$C$15)*Fuel_Specs!$B$20+Vehicles!$C$36*(1-Vehicles!$C$15)*Fuel_Specs!$B$23+Vehicles!$C$15*IF(Inputs!$E$628=1,Fuel_Specs!$B$41,Fuel_Specs!$B$42))*(Petroleum!B267*Petroleum!$K$262+Petroleum!$K267)+Vehicles!$C$15*IF(Inputs!$E$628=1,Fuel_Specs!$B$41,Fuel_Specs!$B$42)/((1-Vehicles!$C$36)*(1-Vehicles!$C$15)*Fuel_Specs!$B$20+Vehicles!$C$36*(1-Vehicles!$C$15)*Fuel_Specs!$B$23+Vehicles!$C$15*IF(Inputs!$E$628=1,Fuel_Specs!$B$41,Fuel_Specs!$B$42))*(Pyrolysis!$AB176*Pyrolysis!$AC$171+Pyrolysis!$AC176))/1000000*HLOOKUP($H$10,$Z$3:$AD$4,2,FALSE)/HLOOKUP($J$11,$Z$7:$AD$8,2,FALSE) -> 82088.63421 | AH19: =(((1-Vehicles!$C$37)*(1-Vehicles!$C$17-Vehicles!$C$18)*Fuel_Specs!$B$20*(Petroleum!B267*Petroleum!$J$262+Petroleum!$J267)+Vehicles!$C$37*(1-Vehicles!$C$17-Vehicles!$C$18)*Fuel_Specs!$B$23*(Petroleum!B267*Petroleum!$K$262+Petroleum!$K267)+Vehicles!$C$17*Fuel_Specs!$B$31*(EtOH!BP494*EtOH!$BQ$489+EtOH!$BQ494)+Vehicles!$C$18*Fuel_Specs!$B$34*('E-D Additives'!$B58*'E-D Additives'!$B$53))/((1-Vehicles!$C$37)*(1-Vehicles!$C$17-Vehicles!$C$18)*Fuel_Specs!$B$20+Vehicles!$C$37*(1-Vehicles!$C$17-Vehicles!$C$18)*Fuel_Specs!$B$23+Vehicles!$C$17*Fuel_Specs!$B$31+Vehicles!$C$18*Fuel_Specs!$B$34))/1000000*HLOOKUP($H$10,$Z$3:$AD$4,2,FALSE)/HLOOKUP($J$11,$Z$7:$AD$8,2,FALSE) -> 73535.43571 | AI19: =AN19*(Vehicles!$M$23/Vehicles!$CM$59)/(Vehicles!$M$23*(1/Vehicles!$CM$59+1/Vehicles!$CN$59)+Vehicles!$M$24/Vehicles!$CO$59)+E19*(Vehicles!$M$23/Vehicles!$CN$59+Vehicles!$M$24/Vehicles!$CO$59)/(Vehicles!$M$23*(1/Vehicles!$CM$59+1/Vehicles!$CN$59)+Vehicles!$M$24/Vehicles!$CO$59) -> 69264.17012 | AJ19: =AN19*(Vehicles!$N$23/Vehicles!$CQ$59)/(Vehicles!$N$23*(1/Vehicles!$CQ$59+1/Vehicles!$CR$59)+Vehicles!$N$24/Vehicles!$CS$59)+AC19*(Vehicles!$N$23/Vehicles!$CR$59+Vehicles!$N$24/Vehicles!$CS$59)/(Vehicles!$N$23*(1/Vehicles!$CQ$59+1/Vehicles!$CR$59)+Vehicles!$N$24/Vehicles!$CS$59) -> 26741.70074 | AK19: =AN19*(Vehicles!$O$23/Vehicles!$CU$59)/(Vehicles!$O$23*(1/Vehicles!$CU$59+1/Vehicles!$CV$59)+Vehicles!$O$24/Vehicles!$CW$59)+AD19*(Vehicles!$O$23/Vehicles!$CV$59+Vehicles!$O$24/Vehicles!$CW$59)/(Vehicles!$O$23*(1/Vehicles!$CU$59+1/Vehicles!$CV$59)+Vehicles!$O$24/Vehicles!$CW$59) -> 20715.68331 | AL19: =AN19*(Vehicles!$P$23/Vehicles!$CY$59)/(Vehicles!$P$23*(1/Vehicles!$CY$59+1/Vehicles!$CZ$59)+Vehicles!$P$24/Vehicles!$DA$59)+AE19*(Vehicles!$P$23/Vehicles!$CZ$59+Vehicles!$P$24/Vehicles!$DA$59)/(Vehicles!$P$23*(1/Vehicles!$CY$59+1/Vehicles!$CZ$59)+Vehicles!$P$24/Vehicles!$DA$59) -> 69316.95722 | AM19: =AN19*(Vehicles!$R$23/Vehicles!$DG$59)/(Vehicles!$R$23*(1/Vehicles!$DG$59+1/Vehicles!$DH$59)+Vehicles!$R$24/Vehicles!$DI$59)+AH19*(Vehicles!$R$23/Vehicles!$DH$59+Vehicles!$R$24/Vehicles!$DI$59)/(Vehicles!$R$23*(1/Vehicles!$DG$59+1/Vehicles!$DH$59)+Vehicles!$R$24/Vehicles!$DI$59) -> 68062.75459 | AN19: =(Electric!$G190+Electric!$F190-1000000*(Electric!$F190+Electric!$G190)/(Electric!$F$186+Electric!$G$186))/1000000*HLOOKUP($H$10,$Z$3:$AD$4,2,FALSE)/HLOOKUP($J$11,$Z$7:$AD$8,2,FALSE) -> 52721.6366 | AO19: =((Hydrogen!$AF167*Hydrogen!$AG$162+Hydrogen!$AG167)-1000000*(Hydrogen!$M$7+Hydrogen!$C$7+Hydrogen!$D$7+Hydrogen!$E$7))/1000000*HLOOKUP($H$10,$Z$3:$AD$4,2,FALSE)/HLOOKUP($J$11,$Z$7:$AD$8,2,FALSE) -> 18081.98913 | AP19: =((Hydrogen!$BJ167*Hydrogen!$BK$162+Hydrogen!$BK167)-1000000*(Hydrogen!$M$8+Hydrogen!$C$8+Hydrogen!$D$8+Hydrogen!$E$8))/1000000*HLOOKUP($H$10,$Z$3:$AD$4,2,FALSE)/HLOOKUP($J$11,$Z$7:$AD$8,2,FALSE) -> 52952.7335 | AQ19: =AN19*(Vehicles!$S$23/Vehicles!$DW$59)/(Vehicles!$S$23*(1/Vehicles!$DW$59+1/Vehicles!$DX$59)+Vehicles!$S$24/Vehicles!$DY$59)+AO19*(Vehicles!$S$23/Vehicles!$DX$59+Vehicles!$S$24/Vehicles!$DY$59)/(Vehicles!$S$23*(1/Vehicles!$DW$59+1/Vehicles!$DX$59)+Vehicles!$S$24/Vehicles!$DY$59) -> 29203.33234 | AR19: =AN19*(Vehicles!$S$23/Vehicles!$DW$59)/(Vehicles!$S$23*(1/Vehicles!$DW$59+1/Vehicles!$DX$59)+Vehicles!$S$24/Vehicles!$DY$59)+AP19*(Vehicles!$S$23/Vehicles!$DX$59+Vehicles!$S$24/Vehicles!$DY$59)/(Vehicles!$S$23*(1/Vehicles!$DW$59+1/Vehicles!$DX$59)+Vehicles!$S$24/Vehicles!$DY$59) -> 52878.53794 | AS19: =((1-Vehicles!$C$33)*(1-Vehicles!$C$16)*Fuel_Specs!$B$15/((1-Vehicles!$C$33)*(1-Vehicles!$C$16)*Fuel_Specs!$B$15+Vehicles!$C$33*(1-Vehicles!$C$16)*Fuel_Specs!$B$16+Vehicles!$C$16*Fuel_Specs!$B$45)*(Petroleum!$B267*Petroleum!$D$262+Petroleum!$D267)+Vehicles!$C$33*(1-Vehicles!$C$16)*Fuel_Specs!$B$16/((1-Vehicles!$C$33)*(1-Vehicles!$C$16)*Fuel_Specs!$B$15+Vehicles!$C$33*(1-Vehicles!$C$16)*Fuel_Specs!$B$16+Vehicles!$C$16*Fuel_Specs!$B$45)*(Petroleum!B267*Petroleum!$F$262+Petroleum!$F267)+Vehicles!$C$16*Fuel_Specs!$B$45/((1-Vehicles!$C$33)*(1-Vehicles!$C$16)*Fuel_Specs!$B$15+Vehicles!$C$33*(1-Vehicles!$C$16)*Fuel_Specs!$B$16+Vehicles!$C$16*Fuel_Specs!$B$45)*(IDL!$L117*IDL!$M$112+IDL!$M117))/1000000*HLOOKUP($H$10,$Z$3:$AD$4,2,FALSE)/HLOOKUP($J$11,$Z$7:$AD$8,2,FALSE) -> 81205.45025 | AV19: SI - EtOH FFV | AW19: RNAVETOHFFV | AY19: SIDI - Dedi. EtOH | AZ19: RNAVETOHSIDI | BB19: CIDI - RD from Bio Oil | BC19: RNAVRENDIESEL1CIDI | BE19: SI HEV - CNG | BF19: RNAVHEVCNG | BH19: SI PHEV - CNG and Electricity | BI19: RNAVPHEVCNG | BK19: CIDI HEV - RD from Pyrolysis | BL19: RNAVHEVRENDIESEL | BN19: CIDI PHEV - RD from Pyrolysis and Electricity | BO19: RNAVPHEVRENDIESEL | BQ19: FCV - Liquid H2 | BR19: RNAVFCVLH2
A20: Water consumption | B20: =(Inputs!$E$1398*(Petroleum!$B268*Petroleum!$F$262+Petroleum!$F268)+(1-Inputs!$E$1398)*(Petroleum!$B268*Petroleum!$D$262+Petroleum!$D268))/1000000/HLOOKUP(Results_EnergyFunctionalUnit,$Z$7:$AD$8,2,0) -> 57.18993343 | C20: =(Petroleum!$C268*Petroleum!$G$262+Petroleum!$G268)/1000000/HLOOKUP(Results_EnergyFunctionalUnit,$Z$7:$AD$8,2,0) -> 58.96576884 | D20: =((1-Vehicles!$C$28)*(1-Vehicles!$C$7)*Fuel_Specs!$B$15/((1-Vehicles!$C$28)*(1-Vehicles!$C$7)*Fuel_Specs!$B$15+Vehicles!$C$28*(1-Vehicles!$C$7)*Fuel_Specs!$B$16+Vehicles!$C$7*Fuel_Specs!$B$31)*(Petroleum!$B268*Petroleum!$D$262+(Petroleum!$D268-'T&D'!G217))+Vehicles!$C$28*(1-Vehicles!$C$7)*Fuel_Specs!$B$16/((1-Vehicles!$C$28)*(1-Vehicles!$C$7)*Fuel_Specs!$B$15+Vehicles!$C$28*(1-Vehicles!$C$7)*Fuel_Specs!$B$16+Vehicles!$C$7*Fuel_Specs!$B$31)*(Petroleum!B268*Petroleum!$F$262+Petroleum!$F268)+Vehicles!$C$7*Fuel_Specs!$B$31/((1-Vehicles!$C$28)*(1-Vehicles!$C$7)*Fuel_Specs!$B$15+Vehicles!$C$28*(1-Vehicles!$C$7)*Fuel_Specs!$B$16+Vehicles!$C$7*Fuel_Specs!$B$31)*(EtOH!BR495*EtOH!$BS$489+EtOH!$BS495)+Petroleum!AR129+Petroleum!AS129)/1000000/HLOOKUP(Results_EnergyFunctionalUnit,$Z$7:$AD$8,2,0) -> 57.18993343 | E20: =(Inputs!$E$97*(IF(Inputs!F$102=1,Petroleum!$B268,Petroleum!$C268)*Petroleum!$K$262+Petroleum!$K268)+(1-Inputs!$E$97)*(IF(Inputs!F$101=1,Petroleum!$B268,Petroleum!$C268)*Petroleum!$J$262+Petroleum!$J268))/1000000/HLOOKUP(Results_EnergyFunctionalUnit,$Z$7:$AD$8,2,0) -> 24.53720632 | F20: =(NG!$I90*NG!$J$84+NG!$J90)/1000000/HLOOKUP(Results_EnergyFunctionalUnit,$Z$7:$AD$8,2,0) -> 9.740656042 | G20: =(NG!$Q90*NG!$R$84+NG!$R90)/1000000/HLOOKUP(Results_EnergyFunctionalUnit,$Z$7:$AD$8,2,0) -> 5.364734299 | H20: =(NG!$W90*NG!$X$84+NG!$X90)/1000000/HLOOKUP(Results_EnergyFunctionalUnit,$Z$7:$AD$8,2,0) -> 12.40210679 | I20: =('MeOH&FTD'!BJ143*'MeOH&FTD'!BK$137+'MeOH&FTD'!BK143)/1000000/HLOOKUP(Results_EnergyFunctionalUnit,$Z$7:$AD$8,2,0) -> -2.21903519 | J20: =((1-Vehicles!$C$27)*(1-Vehicles!$C$5)*Fuel_Specs!$B$15/((1-Vehicles!$C$27)*(1-Vehicles!$C$5)*Fuel_Specs!$B$15+Vehicles!$C$27*(1-Vehicles!$C$5)*Fuel_Specs!$B$16+Vehicles!$C$5*Fuel_Specs!$B$30)*(Petroleum!$B268*Petroleum!$D$262+Petroleum!$D268)+Vehicles!$C$27*(1-Vehicles!$C$5)*Fuel_Specs!$B$16/((1-Vehicles!$C$27)*(1-Vehicles!$C$5)*Fuel_Specs!$B$15+Vehicles!$C$27*(1-Vehicles!$C$5)*Fuel_Specs!$B$16+Vehicles!$C$5*Fuel_Specs!$B$30)*(Petroleum!B268*Petroleum!$F$262+Petroleum!$F268)+Vehicles!$C$5*Fuel_Specs!$B$30/((1-Vehicles!$C$27)*(1-Vehicles!$C$5)*Fuel_Specs!$B$15+Vehicles!$C$27*(1-Vehicles!$C$5)*Fuel_Specs!$B$16+Vehicles!$C$5*Fuel_Specs!$B$30)*('MeOH&FTD'!$N143*'MeOH&FTD'!$O$137+'MeOH&FTD'!$O143))/1000000/HLOOKUP(Results_EnergyFunctionalUnit,$Z$7:$AD$8,2,0) -> 17.91356038 | K20: =((1-Vehicles!$C$27)*(1-Vehicles!$C$6)*Fuel_Specs!$B$15/((1-Vehicles!$C$27)*(1-Vehicles!$C$6)*Fuel_Specs!$B$15+Vehicles!$C$27*(1-Vehicles!$C$6)*Fuel_Specs!$B$16+Vehicles!$C$6*Fuel_Specs!$B$30)*(Petroleum!$B268*Petroleum!$D$262+Petroleum!$D268)+Vehicles!$C$27*(1-Vehicles!$C$6)*Fuel_Specs!$B$16/((1-Vehicles!$C$27)*(1-Vehicles!$C$6)*Fuel_Specs!$B$15+Vehicles!$C$27*(1-Vehicles!$C$6)*Fuel_Specs!$B$16+Vehicles!$C$6*Fuel_Specs!$B$30)*(Petroleum!B268*Petroleum!$F$262+Petroleum!$F268)+Vehicles!$C$6*Fuel_Specs!$B$30/((1-Vehicles!$C$27)*(1-Vehicles!$C$6)*Fuel_Specs!$B$15+Vehicles!$C$27*(1-Vehicles!$C$6)*Fuel_Specs!$B$16+Vehicles!$C$6*Fuel_Specs!$B$30)*('MeOH&FTD'!$N143*'MeOH&FTD'!$O$137+'MeOH&FTD'!$O143))/1000000/HLOOKUP(Results_EnergyFunctionalUnit,$Z$7:$AD$8,2,0) -> 16.85772611 | L20: =('MeOH&FTD'!$N143*'MeOH&FTD'!$O$137+'MeOH&FTD'!$O143)/1000000/HLOOKUP(Results_EnergyFunctionalUnit,$Z$7:$AD$8,2,0) -> 14.42051023 | M20: =((1-Vehicles!$C$29)*(1-Vehicles!$C$8)*Fuel_Specs!$B$15/((1-Vehicles!$C$29)*(1-Vehicles!$C$8)*Fuel_Specs!$B$15+Vehicles!$C$29*(1-Vehicles!$C$8)*Fuel_Specs!$B$16+Vehicles!$C$8*Fuel_Specs!$B$31)*(Petroleum!$B268*Petroleum!$D$262+(Petroleum!$D268-'T&D'!G217))+Vehicles!$C$29*(1-Vehicles!$C$8)*Fuel_Specs!$B$16/((1-Vehicles!$C$29)*(1-Vehicles!$C$8)*Fuel_Specs!$B$15+Vehicles!$C$29*(1-Vehicles!$C$8)*Fuel_Specs!$B$16+Vehicles!$C$8*Fuel_Specs!$B$31)*(Petroleum!B268*Petroleum!$F$262+Petroleum!$F268)+Vehicles!$C$8*Fuel_Specs!$B$31/((1-Vehicles!$C$29)*(1-Vehicles!$C$8)*Fuel_Specs!$B$15+Vehicles!$C$29*(1-Vehicles!$C$8)*Fuel_Specs!$B$16+Vehicles!$C$8*Fuel_Specs!$B$31)*(EtOH!BR495*EtOH!$BS$489+EtOH!$BS495)+Petroleum!AR129+Petroleum!AS129)/1000000/HLOOKUP(Results_EnergyFunctionalUnit,$Z$7:$AD$8,2,0) -> 366.8993975 | N20: =((1-Vehicles!$C$30)*(1-Vehicles!$C$12)*Fuel_Specs!$B$15/((1-Vehicles!$C$30)*(1-Vehicles!$C$12)*Fuel_Specs!$B$15+Vehicles!$C$30*(1-Vehicles!$C$12)*Fuel_Specs!$B$16+Vehicles!$C$12*Fuel_Specs!$B$32)*(Petroleum!$B268*Petroleum!$D$262+Petroleum!$D268)+Vehicles!$C$30*(1-Vehicles!$C$12)*Fuel_Specs!$B$16/((1-Vehicles!$C$30)*(1-Vehicles!$C$12)*Fuel_Specs!$B$15+Vehicles!$C$30*(1-Vehicles!$C$12)*Fuel_Specs!$B$16+Vehicles!$C$12*Fuel_Specs!$B$32)*(Petroleum!B268*Petroleum!$F$262+Petroleum!$F268)+Vehicles!$C$12*Fuel_Specs!$B$32/((1-Vehicles!$C$30)*(1-Vehicles!$C$12)*Fuel_Specs!$B$15+Vehicles!$C$30*(1-Vehicles!$C$12)*Fuel_Specs!$B$16+Vehicles!$C$12*Fuel_Specs!$B$32)*(EtOH!$BT495*EtOH!$BU$489+EtOH!$BU495))/1000000/HLOOKUP(Results_EnergyFunctionalUnit,$Z$7:$AD$8,2,0) -> 485.5124002 | O20: =((1-Vehicles!$C$29)*(1-Vehicles!$C$9)*Fuel_Specs!$B$15/((1-Vehicles!$C$29)*(1-Vehicles!$C$9)*Fuel_Specs!$B$15+Vehicles!$C$29*(1-Vehicles!$C$9)*Fuel_Specs!$B$16+Vehicles!$C$9*Fuel_Specs!$B$31)*(Petroleum!$B268*Petroleum!$D$262+(Petroleum!$D268-'T&D'!G217))+Vehicles!$C$29*(1-Vehicles!$C$9)*Fuel_Specs!$B$16/((1-Vehicles!$C$29)*(1-Vehicles!$C$9)*Fuel_Specs!$B$15+Vehicles!$C$29*(1-Vehicles!$C$9)*Fuel_Specs!$B$16+Vehicles!$C$9*Fuel_Specs!$B$31)*(Petroleum!B268*Petroleum!$F$262+Petroleum!$F268)+Vehicles!$C$9*Fuel_Specs!$B$31/((1-Vehicles!$C$29)*(1-Vehicles!$C$9)*Fuel_Specs!$B$15+Vehicles!$C$29*(1-Vehicles!$C$9)*Fuel_Specs!$B$16+Vehicles!$C$9*Fuel_Specs!$B$31)*(EtOH!BR495*EtOH!$BS$489+EtOH!$BS495)+Petroleum!AR129+Petroleum!AS129)/1000000/HLOOKUP(Results_EnergyFunctionalUnit,$Z$7:$AD$8,2,0) -> 366.8993975 | P20: =(EtOH!$BP495*EtOH!$BQ$489+EtOH!$BQ495)/1000000/HLOOKUP(Results_EnergyFunctionalUnit,$Z$7:$AD$8,2,0) -> 470.3535324 | Q20: =((1-Vehicles!$C$33)*(1-Vehicles!$C$16)*Fuel_Specs!$B$15/((1-Vehicles!$C$33)*(1-Vehicles!$C$16)*Fuel_Specs!$B$15+Vehicles!$C$33*(1-Vehicles!$C$16)*Fuel_Specs!$B$16+Vehicles!$C$16*Fuel_Specs!$B$44)*(Petroleum!$B268*Petroleum!$D$262+Petroleum!$D268)+Vehicles!$C$33*(1-Vehicles!$C$16)*Fuel_Specs!$B$16/((1-Vehicles!$C$33)*(1-Vehicles!$C$16)*Fuel_Specs!$B$15+Vehicles!$C$33*(1-Vehicles!$C$16)*Fuel_Specs!$B$16+Vehicles!$C$16*Fuel_Specs!$B$44)*(Petroleum!B268*Petroleum!$F$262+Petroleum!$F268)+Vehicles!$C$16*Fuel_Specs!$B$44/((1-Vehicles!$C$33)*(1-Vehicles!$C$16)*Fuel_Specs!$B$15+Vehicles!$C$33*(1-Vehicles!$C$16)*Fuel_Specs!$B$16+Vehicles!$C$16*Fuel_Specs!$B$44)*(BioOil!$BO340*BioOil!$BP$333+BioOil!$BP340))/1000000/HLOOKUP(Results_EnergyFunctionalUnit,$Z$7:$AD$8,2,0) -> 652.1484314 | R20: =((1-Vehicles!$C$33)*(1-Vehicles!$C$16)*Fuel_Specs!$B$15/((1-Vehicles!$C$33)*(1-Vehicles!$C$16)*Fuel_Specs!$B$15+Vehicles!$C$33*(1-Vehicles!$C$16)*Fuel_Specs!$B$16+Vehicles!$C$16*Fuel_Specs!$B$44)*(Petroleum!$B268*Petroleum!$D$262+Petroleum!$D268)+Vehicles!$C$33*(1-Vehicles!$C$16)*Fuel_Specs!$B$16/((1-Vehicles!$C$33)*(1-Vehicles!$C$16)*Fuel_Specs!$B$15+Vehicles!$C$33*(1-Vehicles!$C$16)*Fuel_Specs!$B$16+Vehicles!$C$16*Fuel_Specs!$B$44)*(Petroleum!B268*Petroleum!$F$262+Petroleum!$F268)+Vehicles!$C$16*Fuel_Specs!$B$44/((1-Vehicles!$C$33)*(1-Vehicles!$C$16)*Fuel_Specs!$B$15+Vehicles!$C$33*(1-Vehicles!$C$16)*Fuel_Specs!$B$16+Vehicles!$C$16*Fuel_Specs!$B$44)*(Pyrolysis!$Z177*Pyrolysis!$AA$171+Pyrolysis!$AA177))/1000000/HLOOKUP(Results_EnergyFunctionalUnit,$Z$7:$AD$8,2,0) -> 12.38294314 | S20: =AN20*(Vehicles!$C$23/Vehicles!$AR$59)/(Vehicles!$C$23*(1/Vehicles!$AR$59+1/Vehicles!$AS$59)+Vehicles!$C$24/Vehicles!$AT$59)+B20*(Vehicles!$C$23/Vehicles!$AS$59+Vehicles!$C$24/Vehicles!$AT$59)/(Vehicles!$C$23*(1/Vehicles!$AR$59+1/Vehicles!$AS$59)+Vehicles!$C$24/Vehicles!$AT$59) -> 86.47879091 | T20: =AN20*(Vehicles!$D$23/Vehicles!$AV$59)/(Vehicles!$D$23*(1/Vehicles!$AV$59+1/Vehicles!$AW$59)+Vehicles!$D$24/Vehicles!$AX$59)+C20*(Vehicles!$D$23/Vehicles!$AW$59+Vehicles!$D$24/Vehicles!$AX$59)/(Vehicles!$D$23*(1/Vehicles!$AV$59+1/Vehicles!$AW$59)+Vehicles!$D$24/Vehicles!$AX$59) -> 87.80551826 | U20: =AN20*(Vehicles!$F$23/Vehicles!$BD$59)/(Vehicles!$F$23*(1/Vehicles!$BD$59+1/Vehicles!$BE$59)+Vehicles!$F$24/Vehicles!$BF$59)+D20*(Vehicles!$F$23/Vehicles!$BE$59+Vehicles!$F$24/Vehicles!$BF$59)/(Vehicles!$F$23*(1/Vehicles!$BD$59+1/Vehicles!$BE$59)+Vehicles!$F$24/Vehicles!$BF$59) -> 86.47879091 | V20: =AN20*(Vehicles!$G$23/Vehicles!$BH$59)/(Vehicles!$G$23*(1/Vehicles!$BH$59+1/Vehicles!$BI$59)+Vehicles!$G$24/Vehicles!$BJ$59)+F20*(Vehicles!$G$23/Vehicles!$BI$59+Vehicles!$G$24/Vehicles!$BJ$59)/(Vehicles!$G$23*(1/Vehicles!$BH$59+1/Vehicles!$BI$59)+Vehicles!$G$24/Vehicles!$BJ$59) -> 51.02941666 | W20: =AN20*(Vehicles!$H$23/Vehicles!$BL$59)/(Vehicles!$H$23*(1/Vehicles!$BL$59+1/Vehicles!$BM$59)+Vehicles!$H$24/Vehicles!$BN$59)+G20*(Vehicles!$H$23/Vehicles!$BM$59+Vehicles!$H$24/Vehicles!$BN$59)/(Vehicles!$H$23*(1/Vehicles!$BL$59+1/Vehicles!$BM$59)+Vehicles!$H$24/Vehicles!$BN$59) -> 47.76016376 | X20: =AN20*(Vehicles!$I$23/Vehicles!$BP$59)/(Vehicles!$I$23*(1/Vehicles!$BP$59+1/Vehicles!$BQ$59)+Vehicles!$I$24/Vehicles!$BR$59)+H20*(Vehicles!$I$23/Vehicles!$BQ$59+Vehicles!$I$24/Vehicles!$BR$59)/(Vehicles!$I$23*(1/Vehicles!$BP$59+1/Vehicles!$BQ$59)+Vehicles!$I$24/Vehicles!$BR$59) -> 53.01778758 | Y20: =AN20*(Vehicles!$J$23/Vehicles!$BT$59)/(Vehicles!$J$23*(1/Vehicles!$BT$59+1/Vehicles!$BU$59)+Vehicles!$J$24/Vehicles!$BV$59)+K20*(Vehicles!$J$23/Vehicles!$BU$59+Vehicles!$J$24/Vehicles!$BV$59)/(Vehicles!$J$23*(1/Vehicles!$BT$59+1/Vehicles!$BU$59)+Vehicles!$J$24/Vehicles!$BV$59) -> 54.45702272 | Z20: =AN20*(Vehicles!$K$23/Vehicles!$BX$59)/(Vehicles!$K$23*(1/Vehicles!$BX$59+1/Vehicles!$BY$59)+Vehicles!$K$24/Vehicles!$BZ$59)+O20*(Vehicles!$K$23/Vehicles!$BY$59+Vehicles!$K$24/Vehicles!$BZ$59)/(Vehicles!$K$23*(1/Vehicles!$BX$59+1/Vehicles!$BY$59)+Vehicles!$K$24/Vehicles!$BZ$59) -> 320.2092772 | AA20: =AN20*(Vehicles!$L$23/Vehicles!$CB$59)/(Vehicles!$L$23*(1/Vehicles!$CB$59+1/Vehicles!$CC$59)+Vehicles!$L$24/Vehicles!$CD$59)+AO20*(Vehicles!$L$23/Vehicles!$CC$59+Vehicles!$L$24/Vehicles!$CD$59)/(Vehicles!$L$23*(1/Vehicles!$CB$59+1/Vehicles!$CC$59)+Vehicles!$L$24/Vehicles!$CD$59) -> 83.81330194 | AB20: =AN20*(Vehicles!$L$23/Vehicles!$CB$59)/(Vehicles!$L$23*(1/Vehicles!$CB$59+1/Vehicles!$CC$59)+Vehicles!$L$24/Vehicles!$CE$59)+AP20*(Vehicles!$L$23/Vehicles!$CC$59+Vehicles!$L$24/Vehicles!$CE$59)/(Vehicles!$L$23*(1/Vehicles!$CB$59+1/Vehicles!$CC$59)+Vehicles!$L$24/Vehicles!$CE$59) -> 117.77228 | AC20: =('MeOH&FTD'!$AJ143*'MeOH&FTD'!$AK$137+'MeOH&FTD'!$AK143)/1000000/HLOOKUP(Results_EnergyFunctionalUnit,$Z$7:$AD$8,2,0) -> 13.71517527 | AD20: =((1-Vehicles!$C$34)*(1-Vehicles!$C$13)*Fuel_Specs!$B$20/((1-Vehicles!$C$34)*(1-Vehicles!$C$13)*Fuel_Specs!$B$20+Vehicles!$C$34*(1-Vehicles!$C$13)*Fuel_Specs!$B$23+Vehicles!$C$13*Fuel_Specs!$B$40)*(Petroleum!B268*Petroleum!$J$262+Petroleum!$J268)+Vehicles!$C$34*(1-Vehicles!$C$13)*Fuel_Specs!$B$23/((1-Vehicles!$C$34)*(1-Vehicles!$C$13)*Fuel_Specs!$B$20+Vehicles!$C$34*(1-Vehicles!$C$13)*Fuel_Specs!$B$23+Vehicles!$C$13*Fuel_Specs!$B$40)*(Petroleum!B268*Petroleum!$K$262+Petroleum!$K268)+Vehicles!$C$13*Fuel_Specs!$B$40/((1-Vehicles!$C$34)*(1-Vehicles!$C$13)*Fuel_Specs!$B$20+Vehicles!$C$34*(1-Vehicles!$C$13)*Fuel_Specs!$B$23+Vehicles!$C$13*Fuel_Specs!$B$40)*('MeOH&FTD'!$AZ143*'MeOH&FTD'!$BA$137+'MeOH&FTD'!$BA143))/1000000/HLOOKUP(Results_EnergyFunctionalUnit,$Z$7:$AD$8,2,0) -> 30.70273319 | AE20: =((1-Vehicles!$C$35)*(1-Vehicles!$C$14)*Fuel_Specs!$B$20/((1-Vehicles!$C$35)*(1-Vehicles!$C$14)*Fuel_Specs!$B$20+Vehicles!$C$35*(1-Vehicles!$C$14)*Fuel_Specs!$B$23+Vehicles!$C$14*Fuel_Specs!$B$39)*(Petroleum!B268*Petroleum!$J$262+Petroleum!$J268)+Vehicles!$C$35*(1-Vehicles!$C$14)*Fuel_Specs!$B$23/((1-Vehicles!$C$35)*(1-Vehicles!$C$14)*Fuel_Specs!$B$20+Vehicles!$C$35*(1-Vehicles!$C$14)*Fuel_Specs!$B$23+Vehicles!$C$14*Fuel_Specs!$B$39)*(Petroleum!B268*Petroleum!$K$262+Petroleum!$K268)+Vehicles!$C$14*Fuel_Specs!$B$39/((1-Vehicles!$C$35)*(1-Vehicles!$C$14)*Fuel_Specs!$B$20+Vehicles!$C$35*(1-Vehicles!$C$14)*Fuel_Specs!$B$23+Vehicles!$C$14*Fuel_Specs!$B$39)*(BioOil!$W340*BioOil!$X$333+BioOil!$X340))/1000000/HLOOKUP(Results_EnergyFunctionalUnit,$Z$7:$AD$8,2,0) -> 151.5322587 | AF20: =((1-Vehicles!$C$36)*(1-Vehicles!$C$15)*Fuel_Specs!$B$20/((1-Vehicles!$C$36)*(1-Vehicles!$C$15)*Fuel_Specs!$B$20+Vehicles!$C$36*(1-Vehicles!$C$15)*Fuel_Specs!$B$23+Vehicles!$C$15*IF(Inputs!$E$628=1,IF(Inputs!$E$628=1,Fuel_Specs!$B$41,IF(Inputs!$E$628=3,Fuel_Specs!$B$43,Fuel_Specs!$B$42)),Fuel_Specs!$B$42))*(Petroleum!B268*Petroleum!$J$262+Petroleum!$J268)+Vehicles!$C$36*(1-Vehicles!$C$15)*Fuel_Specs!$B$23/((1-Vehicles!$C$36)*(1-Vehicles!$C$15)*Fuel_Specs!$B$20+Vehicles!$C$36*(1-Vehicles!$C$15)*Fuel_Specs!$B$23+Vehicles!$C$15*IF(Inputs!$E$628=1,IF(Inputs!$E$628=1,Fuel_Specs!$B$41,IF(Inputs!$E$628=3,Fuel_Specs!$B$43,Fuel_Specs!$B$42)),Fuel_Specs!$B$42))*(Petroleum!B268*Petroleum!$K$262+Petroleum!$K268)+Vehicles!$C$15*IF(Inputs!$E$628=1,IF(Inputs!$E$628=1,Fuel_Specs!$B$41,IF(Inputs!$E$628=3,Fuel_Specs!$B$43,Fuel_Specs!$B$42)),Fuel_Specs!$B$42)/((1-Vehicles!$C$36)*(1-Vehicles!$C$15)*Fuel_Specs!$B$20+Vehicles!$C$36*(1-Vehicles!$C$15)*Fuel_Specs!$B$23+Vehicles!$C$15*IF(Inputs!$E$628=1,IF(Inputs!$E$628=1,Fuel_Specs!$B$41,IF(Inputs!$E$628=3,Fuel_Specs!$B$43,Fuel_Specs!$B$42)),Fuel_Specs!$B$42))*(BioOil!$BA340*BioOil!$BB$333+BioOil!$BB340))/1000000/HLOOKUP(Results_EnergyFunctionalUnit,$Z$7:$AD$8,2,0) -> 603.7809749 | AG20: =((1-Vehicles!$C$36)*(1-Vehicles!$C$15)*Fuel_Specs!$B$20/((1-Vehicles!$C$36)*(1-Vehicles!$C$15)*Fuel_Specs!$B$20+Vehicles!$C$36*(1-Vehicles!$C$15)*Fuel_Specs!$B$23+Vehicles!$C$15*IF(Inputs!$E$628=1,Fuel_Specs!$B$41,Fuel_Specs!$B$42))*(Petroleum!B268*Petroleum!$J$262+Petroleum!$J268)+Vehicles!$C$36*(1-Vehicles!$C$15)*Fuel_Specs!$B$23/((1-Vehicles!$C$36)*(1-Vehicles!$C$15)*Fuel_Specs!$B$20+Vehicles!$C$36*(1-Vehicles!$C$15)*Fuel_Specs!$B$23+Vehicles!$C$15*IF(Inputs!$E$628=1,Fuel_Specs!$B$41,Fuel_Specs!$B$42))*(Petroleum!B268*Petroleum!$K$262+Petroleum!$K268)+Vehicles!$C$15*IF(Inputs!$E$628=1,Fuel_Specs!$B$41,Fuel_Specs!$B$42)/((1-Vehicles!$C$36)*(1-Vehicles!$C$15)*Fuel_Specs!$B$20+Vehicles!$C$36*(1-Vehicles!$C$15)*Fuel_Specs!$B$23+Vehicles!$C$15*IF(Inputs!$E$628=1,Fuel_Specs!$B$41,Fuel_Specs!$B$42))*(Pyrolysis!$AB177*Pyrolysis!$AC$171+Pyrolysis!$AC177))/1000000/HLOOKUP(Results_EnergyFunctionalUnit,$Z$7:$AD$8,2,0) -> 11.57155475 | AH20: =(((1-Vehicles!$C$37)*(1-Vehicles!$C$17-Vehicles!$C$18)*Fuel_Specs!$B$20*(Petroleum!B268*Petroleum!$J$262+Petroleum!$J268)+Vehicles!$C$37*(1-Vehicles!$C$17-Vehicles!$C$18)*Fuel_Specs!$B$23*(Petroleum!B268*Petroleum!$K$262+Petroleum!$K268)+Vehicles!$C$17*Fuel_Specs!$B$31*(EtOH!BP495*EtOH!$BQ$489+EtOH!$BQ495)+Vehicles!$C$18*Fuel_Specs!$B$34*('E-D Additives'!$B59*'E-D Additives'!$B$53))/((1-Vehicles!$C$37)*(1-Vehicles!$C$17-Vehicles!$C$18)*Fuel_Specs!$B$20+Vehicles!$C$37*(1-Vehicles!$C$17-Vehicles!$C$18)*Fuel_Specs!$B$23+Vehicles!$C$17*Fuel_Specs!$B$31+Vehicles!$C$18*Fuel_Specs!$B$34))/1000000/HLOOKUP(Results_EnergyFunctionalUnit,$Z$7:$AD$8,2,0) -> 51.85319579 | AI20: =AN20*(Vehicles!$M$23/Vehicles!$CM$59)/(Vehicles!$M$23*(1/Vehicles!$CM$59+1/Vehicles!$CN$59)+Vehicles!$M$24/Vehicles!$CO$59)+E20*(Vehicles!$M$23/Vehicles!$CN$59+Vehicles!$M$24/Vehicles!$CO$59)/(Vehicles!$M$23*(1/Vehicles!$CM$59+1/Vehicles!$CN$59)+Vehicles!$M$24/Vehicles!$CO$59) -> 63.57386527 | AJ20: =AN20*(Vehicles!$N$23/Vehicles!$CQ$59)/(Vehicles!$N$23*(1/Vehicles!$CQ$59+1/Vehicles!$CR$59)+Vehicles!$N$24/Vehicles!$CS$59)+AC20*(Vehicles!$N$23/Vehicles!$CR$59+Vehicles!$N$24/Vehicles!$CS$59)/(Vehicles!$N$23*(1/Vehicles!$CQ$59+1/Vehicles!$CR$59)+Vehicles!$N$24/Vehicles!$CS$59) -> 55.59732747 | AK20: =AN20*(Vehicles!$O$23/Vehicles!$CU$59)/(Vehicles!$O$23*(1/Vehicles!$CU$59+1/Vehicles!$CV$59)+Vehicles!$O$24/Vehicles!$CW$59)+AD20*(Vehicles!$O$23/Vehicles!$CV$59+Vehicles!$O$24/Vehicles!$CW$59)/(Vehicles!$O$23*(1/Vehicles!$CU$59+1/Vehicles!$CV$59)+Vehicles!$O$24/Vehicles!$CW$59) -> 68.11825789 | AL20: =AN20*(Vehicles!$P$23/Vehicles!$CY$59)/(Vehicles!$P$23*(1/Vehicles!$CY$59+1/Vehicles!$CZ$59)+Vehicles!$P$24/Vehicles!$DA$59)+AE20*(Vehicles!$P$23/Vehicles!$CZ$59+Vehicles!$P$24/Vehicles!$DA$59)/(Vehicles!$P$23*(1/Vehicles!$CY$59+1/Vehicles!$CZ$59)+Vehicles!$P$24/Vehicles!$DA$59) -> 157.177444 | AM20: =AN20*(Vehicles!$R$23/Vehicles!$DG$59)/(Vehicles!$R$23*(1/Vehicles!$DG$59+1/Vehicles!$DH$59)+Vehicles!$R$24/Vehicles!$DI$59)+AH20*(Vehicles!$R$23/Vehicles!$DH$59+Vehicles!$R$24/Vehicles!$DI$59)/(Vehicles!$R$23*(1/Vehicles!$DG$59+1/Vehicles!$DH$59)+Vehicles!$R$24/Vehicles!$DI$59) -> 83.70751867 | AN20: =(Electric!$G191+Electric!$F191)/1000000/HLOOKUP(Results_EnergyFunctionalUnit,$Z$7:$AD$8,2,0) -> 173.0021285 | AO20: =(Hydrogen!$AF168*Hydrogen!$AG$162+Hydrogen!$AG168)/1000000*HLOOKUP($H$10,$Z$3:$AD$4,2,FALSE)/HLOOKUP($J$11,$Z$7:$AD$8,2,FALSE) -> 51.22708407 | AP20: =(Hydrogen!$BJ168*Hydrogen!$BK$162+Hydrogen!$BK168)/1000000/HLOOKUP(Results_EnergyFunctionalUnit,$Z$7:$AD$8,2,0) -> 97.59338598 | AQ20: =AN20*(Vehicles!$S$23/Vehicles!$DW$59)/(Vehicles!$S$23*(1/Vehicles!$DW$59+1/Vehicles!$DX$59)+Vehicles!$S$24/Vehicles!$DY$59)+AO20*(Vehicles!$S$23/Vehicles!$DX$59+Vehicles!$S$24/Vehicles!$DY$59)/(Vehicles!$S$23*(1/Vehicles!$DW$59+1/Vehicles!$DX$59)+Vehicles!$S$24/Vehicles!$DY$59) -> 90.32396185 | AR20: =AN20*(Vehicles!$S$23/Vehicles!$DW$59)/(Vehicles!$S$23*(1/Vehicles!$DW$59+1/Vehicles!$DX$59)+Vehicles!$S$24/Vehicles!$DY$59)+AP20*(Vehicles!$S$23/Vehicles!$DX$59+Vehicles!$S$24/Vehicles!$DY$59)/(Vehicles!$S$23*(1/Vehicles!$DW$59+1/Vehicles!$DX$59)+Vehicles!$S$24/Vehicles!$DY$59) -> 121.8039819 | AS20: =((1-Vehicles!$C$33)*(1-Vehicles!$C$16)*Fuel_Specs!$B$15/((1-Vehicles!$C$33)*(1-Vehicles!$C$16)*Fuel_Specs!$B$15+Vehicles!$C$33*(1-Vehicles!$C$16)*Fuel_Specs!$B$16+Vehicles!$C$16*Fuel_Specs!$B$45)*(Petroleum!$B268*Petroleum!$D$262+Petroleum!$D268)+Vehicles!$C$33*(1-Vehicles!$C$16)*Fuel_Specs!$B$16/((1-Vehicles!$C$33)*(1-Vehicles!$C$16)*Fuel_Specs!$B$15+Vehicles!$C$33*(1-Vehicles!$C$16)*Fuel_Specs!$B$16+Vehicles!$C$16*Fuel_Specs!$B$45)*(Petroleum!B268*Petroleum!$F$262+Petroleum!$F268)+Vehicles!$C$16*Fuel_Specs!$B$45/((1-Vehicles!$C$33)*(1-Vehicles!$C$16)*Fuel_Specs!$B$15+Vehicles!$C$33*(1-Vehicles!$C$16)*Fuel_Specs!$B$16+Vehicles!$C$16*Fuel_Specs!$B$45)*(IDL!$L118*IDL!$M$112+IDL!$M118))/1000000/HLOOKUP(Results_EnergyFunctionalUnit,$Z$7:$AD$8,2,0) -> 36.41745713 | AV20: SI - BtOH FFV | AW20: RNAVBTOHFFV | BB20: CIDI - RD from Pyrolysis | BC20: RNAVRENDIESEL2CIDI | BE20: SI HEV - LNG | BF20: RNAVHEVLNG | BH20: SI PHEV - LNG and Electricity | BI20: RNAVPHEVLNG | BK20: CIDI HEV - E-Diesel | BL20: RNAVHEVEDIESEL | BN20: CIDI PHEV - E-Diesel and Electricity | BO20: RNAVPHEVEDIESEL | BQ20: FCV - MeOH | BR20: RNAVFCVMEOH
A21: CO2 (w/ C in VOC & CO) | B21: =(Inputs!$E$1398*(Petroleum!$B279*Petroleum!$F$262+Petroleum!$F279)+(1-Inputs!$E$1398)*(Petroleum!$B279*Petroleum!$D$262+Petroleum!$D279)+Vehicles!B82/Vehicles!B60*1000000)/1000000*HLOOKUP($J$10,$Z$5:$AD$6,2,FALSE)/HLOOKUP($J$11,$Z$7:$AD$8,2,FALSE)+B25*Fuel_Specs!$B$108/Fuel_Specs!$B$111+B26*Fuel_Specs!$B$109/Fuel_Specs!$B$111 -> 13665.43169 | C21: =((Petroleum!$C279*Petroleum!$G$262+Petroleum!$G279)+Vehicles!C82/Vehicles!C60*1000000)/1000000*HLOOKUP($J$10,$Z$5:$AD$6,2,FALSE)/HLOOKUP($J$11,$Z$7:$AD$8,2,FALSE)+C25*Fuel_Specs!$B$108/Fuel_Specs!$B$111+C26*Fuel_Specs!$B$109/Fuel_Specs!$B$111 -> 11868.88211 | D21: =((1-Vehicles!$C$28)*(1-Vehicles!$C$7)*Fuel_Specs!$B$15/((1-Vehicles!$C$28)*(1-Vehicles!$C$7)*Fuel_Specs!$B$15+Vehicles!$C$28*(1-Vehicles!$C$7)*Fuel_Specs!$B$16+Vehicles!$C$7*Fuel_Specs!$B$31)*(Petroleum!$B279*Petroleum!$D$262+(Petroleum!$D279-'T&D'!G229))+Vehicles!$C$28*(1-Vehicles!$C$7)*Fuel_Specs!$B$16/((1-Vehicles!$C$28)*(1-Vehicles!$C$7)*Fuel_Specs!$B$15+Vehicles!$C$28*(1-Vehicles!$C$7)*Fuel_Specs!$B$16+Vehicles!$C$7*Fuel_Specs!$B$31)*(Petroleum!B279*Petroleum!$F$262+Petroleum!$F279)+Vehicles!$C$7*Fuel_Specs!$B$31/((1-Vehicles!$C$28)*(1-Vehicles!$C$7)*Fuel_Specs!$B$15+Vehicles!$C$28*(1-Vehicles!$C$7)*Fuel_Specs!$B$16+Vehicles!$C$7*Fuel_Specs!$B$31)*(EtOH!BR506*EtOH!$BS$489+EtOH!$BS506)+Petroleum!AR141+Petroleum!AS141+Vehicles!D82/Vehicles!D60*1000000)/1000000*HLOOKUP($J$10,$Z$5:$AD$6,2,FALSE)/HLOOKUP($J$11,$Z$7:$AD$8,2,FALSE)+D25*Fuel_Specs!$B$108/Fuel_Specs!$B$111+D26*Fuel_Specs!$B$109/Fuel_Specs!$B$111 -> 13665.43169 | E21: =(Inputs!$E$97*(IF(Inputs!F$102=1,Petroleum!$B279,Petroleum!$C279)*Petroleum!$K$262+Petroleum!$K279)+(1-Inputs!$E$97)*(IF(Inputs!F$101=1,Petroleum!$B279,Petroleum!$C279)*Petroleum!$J$262+Petroleum!$J279))/1000000*HLOOKUP($J$10,$Z$5:$AD$6,2,FALSE)/HLOOKUP($J$11,$Z$7:$AD$8,2,FALSE)+E25*Fuel_Specs!$B$108/Fuel_Specs!$B$111+E26*Fuel_Specs!$B$109/Fuel_Specs!$B$111 -> 19750.27711 | F21: =(NG!$I101*NG!$J$84+NG!$J101)/1000000*HLOOKUP($J$10,$Z$5:$AD$6,2,FALSE)/HLOOKUP($J$11,$Z$7:$AD$8,2,FALSE)+F25*Fuel_Specs!$B$108/Fuel_Specs!$B$111+F26*Fuel_Specs!$B$109/Fuel_Specs!$B$111 -> 10746.59905 | G21: =(NG!$Q101*NG!$R$84+NG!$R101)/1000000*HLOOKUP($J$10,$Z$5:$AD$6,2,FALSE)/HLOOKUP($J$11,$Z$7:$AD$8,2,FALSE)+G25*Fuel_Specs!$B$108/Fuel_Specs!$B$111+G26*Fuel_Specs!$B$109/Fuel_Specs!$B$111 -> 15626.46159 | H21: =(NG!$W101*NG!$X$84+NG!$X101)/1000000*HLOOKUP($J$10,$Z$5:$AD$6,2,FALSE)/HLOOKUP($J$11,$Z$7:$AD$8,2,FALSE)+H25*Fuel_Specs!$B$108/Fuel_Specs!$B$111+H26*Fuel_Specs!$B$109/Fuel_Specs!$B$111 -> 11344.54511 | I21: =('MeOH&FTD'!BJ154*'MeOH&FTD'!BK$137+'MeOH&FTD'!BK154)/1000000*HLOOKUP($J$10,$Z$5:$AD$6,2,FALSE)/HLOOKUP($J$11,$Z$7:$AD$8,2,FALSE)+I25*Fuel_Specs!$B$108/Fuel_Specs!$B$111+I26*Fuel_Specs!$B$109/Fuel_Specs!$B$111 -> 38669.62644 | J21: =((1-Vehicles!$C$27)*(1-Vehicles!$C$5)*Fuel_Specs!$B$15/((1-Vehicles!$C$27)*(1-Vehicles!$C$5)*Fuel_Specs!$B$15+Vehicles!$C$27*(1-Vehicles!$C$5)*Fuel_Specs!$B$16+Vehicles!$C$5*Fuel_Specs!$B$30)*(Petroleum!$B279*Petroleum!$D$262+Petroleum!$D279)+Vehicles!$C$27*(1-Vehicles!$C$5)*Fuel_Specs!$B$16/((1-Vehicles!$C$27)*(1-Vehicles!$C$5)*Fuel_Specs!$B$15+Vehicles!$C$27*(1-Vehicles!$C$5)*Fuel_Specs!$B$16+Vehicles!$C$5*Fuel_Specs!$B$30)*(Petroleum!B279*Petroleum!$F$262+Petroleum!$F279)+Vehicles!$C$5*Fuel_Specs!$B$30/((1-Vehicles!$C$27)*(1-Vehicles!$C$5)*Fuel_Specs!$B$15+Vehicles!$C$27*(1-Vehicles!$C$5)*Fuel_Specs!$B$16+Vehicles!$C$5*Fuel_Specs!$B$30)*('MeOH&FTD'!$N154*'MeOH&FTD'!$O$137+'MeOH&FTD'!$O154)+Vehicles!I82/Vehicles!I60*1000000)/1000000*HLOOKUP($J$10,$Z$5:$AD$6,2,FALSE)/HLOOKUP($J$11,$Z$7:$AD$8,2,FALSE)+J25*Fuel_Specs!$B$108/Fuel_Specs!$B$111+J26*Fuel_Specs!$B$109/Fuel_Specs!$B$111 -> 23384.92397 | K21: =((1-Vehicles!$C$27)*(1-Vehicles!$C$6)*Fuel_Specs!$B$15/((1-Vehicles!$C$27)*(1-Vehicles!$C$6)*Fuel_Specs!$B$15+Vehicles!$C$27*(1-Vehicles!$C$6)*Fuel_Specs!$B$16+Vehicles!$C$6*Fuel_Specs!$B$30)*(Petroleum!$B279*Petroleum!$D$262+Petroleum!$D279)+Vehicles!$C$27*(1-Vehicles!$C$6)*Fuel_Specs!$B$16/((1-Vehicles!$C$27)*(1-Vehicles!$C$6)*Fuel_Specs!$B$15+Vehicles!$C$27*(1-Vehicles!$C$6)*Fuel_Specs!$B$16+Vehicles!$C$6*Fuel_Specs!$B$30)*(Petroleum!B279*Petroleum!$F$262+Petroleum!$F279)+Vehicles!$C$6*Fuel_Specs!$B$30/((1-Vehicles!$C$27)*(1-Vehicles!$C$6)*Fuel_Specs!$B$15+Vehicles!$C$27*(1-Vehicles!$C$6)*Fuel_Specs!$B$16+Vehicles!$C$6*Fuel_Specs!$B$30)*('MeOH&FTD'!$N154*'MeOH&FTD'!$O$137+'MeOH&FTD'!$O154)+Vehicles!J82/Vehicles!J60*1000000)/1000000*HLOOKUP($J$10,$Z$5:$AD$6,2,FALSE)/HLOOKUP($J$11,$Z$7:$AD$8,2,FALSE)+K25*Fuel_Specs!$B$108/Fuel_Specs!$B$111+K26*Fuel_Specs!$B$109/Fuel_Specs!$B$111 -> 24055.99343 | L21: =('MeOH&FTD'!$N154*'MeOH&FTD'!$O$137+'MeOH&FTD'!$O154)/1000000*HLOOKUP($J$10,$Z$5:$AD$6,2,FALSE)/HLOOKUP($J$11,$Z$7:$AD$8,2,FALSE)+L25*Fuel_Specs!$B$108/Fuel_Specs!$B$111+L26*Fuel_Specs!$B$109/Fuel_Specs!$B$111 -> 25605.04446 | M21: =((1-Vehicles!$C$29)*(1-Vehicles!$C$8)*Fuel_Specs!$B$15/((1-Vehicles!$C$29)*(1-Vehicles!$C$8)*Fuel_Specs!$B$15+Vehicles!$C$29*(1-Vehicles!$C$8)*Fuel_Specs!$B$16+Vehicles!$C$8*Fuel_Specs!$B$31)*(Petroleum!$B279*Petroleum!$D$262+(Petroleum!$D279-'T&D'!G229))+Vehicles!$C$29*(1-Vehicles!$C$8)*Fuel_Specs!$B$16/((1-Vehicles!$C$29)*(1-Vehicles!$C$8)*Fuel_Specs!$B$15+Vehicles!$C$29*(1-Vehicles!$C$8)*Fuel_Specs!$B$16+Vehicles!$C$8*Fuel_Specs!$B$31)*(Petroleum!B279*Petroleum!$F$262+Petroleum!$F279)+Vehicles!$C$8*Fuel_Specs!$B$31/((1-Vehicles!$C$29)*(1-Vehicles!$C$8)*Fuel_Specs!$B$15+Vehicles!$C$29*(1-Vehicles!$C$8)*Fuel_Specs!$B$16+Vehicles!$C$8*Fuel_Specs!$B$31)*(EtOH!BR506*EtOH!$BS$489+EtOH!$BS506)+Petroleum!AR141+Petroleum!AS141+Vehicles!K82/Vehicles!K60*1000000)/1000000*HLOOKUP($J$10,$Z$5:$AD$6,2,FALSE)/HLOOKUP($J$11,$Z$7:$AD$8,2,FALSE)+M25*Fuel_Specs!$B$108/Fuel_Specs!$B$111+M26*Fuel_Specs!$B$109/Fuel_Specs!$B$111 -> -23285.64414 | N21: =((1-Vehicles!$C$30)*(1-Vehicles!$C$12)*Fuel_Specs!$B$15/((1-Vehicles!$C$30)*(1-Vehicles!$C$12)*Fuel_Specs!$B$15+Vehicles!$C$30*(1-Vehicles!$C$12)*Fuel_Specs!$B$16+Vehicles!$C$12*Fuel_Specs!$B$32)*(Petroleum!$B279*Petroleum!$D$262+Petroleum!$D279)+Vehicles!$C$30*(1-Vehicles!$C$12)*Fuel_Specs!$B$16/((1-Vehicles!$C$30)*(1-Vehicles!$C$12)*Fuel_Specs!$B$15+Vehicles!$C$30*(1-Vehicles!$C$12)*Fuel_Specs!$B$16+Vehicles!$C$12*Fuel_Specs!$B$32)*(Petroleum!B279*Petroleum!$F$262+Petroleum!$F279)+Vehicles!$C$12*Fuel_Specs!$B$32/((1-Vehicles!$C$30)*(1-Vehicles!$C$12)*Fuel_Specs!$B$15+Vehicles!$C$30*(1-Vehicles!$C$12)*Fuel_Specs!$B$16+Vehicles!$C$12*Fuel_Specs!$B$32)*(EtOH!$BT506*EtOH!$BU$489+EtOH!$BU506)+Vehicles!L82/Vehicles!L60*1000000)/1000000*HLOOKUP($J$10,$Z$5:$AD$6,2,FALSE)/HLOOKUP($J$11,$Z$7:$AD$8,2,FALSE)+N25*Fuel_Specs!$B$108/Fuel_Specs!$B$111+N26*Fuel_Specs!$B$109/Fuel_Specs!$B$111 -> -30349.31214 | O21: =((1-Vehicles!$C$29)*(1-Vehicles!$C$9)*Fuel_Specs!$B$15/((1-Vehicles!$C$29)*(1-Vehicles!$C$9)*Fuel_Specs!$B$15+Vehicles!$C$29*(1-Vehicles!$C$9)*Fuel_Specs!$B$16+Vehicles!$C$9*Fuel_Specs!$B$31)*(Petroleum!$B279*Petroleum!$D$262+(Petroleum!$D279-'T&D'!G229))+Vehicles!$C$29*(1-Vehicles!$C$9)*Fuel_Specs!$B$16/((1-Vehicles!$C$29)*(1-Vehicles!$C$9)*Fuel_Specs!$B$15+Vehicles!$C$29*(1-Vehicles!$C$9)*Fuel_Specs!$B$16+Vehicles!$C$9*Fuel_Specs!$B$31)*(Petroleum!B279*Petroleum!$F$262+Petroleum!$F279)+Vehicles!$C$9*Fuel_Specs!$B$31/((1-Vehicles!$C$29)*(1-Vehicles!$C$9)*Fuel_Specs!$B$15+Vehicles!$C$29*(1-Vehicles!$C$9)*Fuel_Specs!$B$16+Vehicles!$C$9*Fuel_Specs!$B$31)*(EtOH!BR506*EtOH!$BS$489+EtOH!$BS506)+Petroleum!AR141+Petroleum!AS141+Vehicles!M82/Vehicles!M60*1000000)/1000000*HLOOKUP($J$10,$Z$5:$AD$6,2,FALSE)/HLOOKUP($J$11,$Z$7:$AD$8,2,FALSE)+O25*Fuel_Specs!$B$108/Fuel_Specs!$B$111+O26*Fuel_Specs!$B$109/Fuel_Specs!$B$111 -> -23285.64414 | P21: =(EtOH!$BP506*EtOH!$BQ$489+EtOH!$BQ506+Vehicles!DQ82/Vehicles!DQ60*1000000)/1000000*HLOOKUP($J$10,$Z$5:$AD$6,2,FALSE)/HLOOKUP($J$11,$Z$7:$AD$8,2,FALSE)+P25*Fuel_Specs!$B$108/Fuel_Specs!$B$111+P26*Fuel_Specs!$B$109/Fuel_Specs!$B$111 -> -35543.39813 | Q21: =((1-Vehicles!$C$33)*(1-Vehicles!$C$16)*Fuel_Specs!$B$15/((1-Vehicles!$C$33)*(1-Vehicles!$C$16)*Fuel_Specs!$B$15+Vehicles!$C$33*(1-Vehicles!$C$16)*Fuel_Specs!$B$16+Vehicles!$C$16*Fuel_Specs!$B44)*(Petroleum!$B279*Petroleum!$D$262+Petroleum!$D279)+Vehicles!$C$33*(1-Vehicles!$C$16)*Fuel_Specs!$B$16/((1-Vehicles!$C$33)*(1-Vehicles!$C$16)*Fuel_Specs!$B$15+Vehicles!$C$33*(1-Vehicles!$C$16)*Fuel_Specs!$B$16+Vehicles!$C$16*Fuel_Specs!$B44)*(Petroleum!B279*Petroleum!$F$262+Petroleum!$F279)+Vehicles!$C$16*Fuel_Specs!$B44/((1-Vehicles!$C$33)*(1-Vehicles!$C$16)*Fuel_Specs!$B$15+Vehicles!$C$33*(1-Vehicles!$C$16)*Fuel_Specs!$B$16+Vehicles!$C$16*Fuel_Specs!$B44)*(BioOil!$BO351*BioOil!$BP$333+BioOil!$BP351)+Vehicles!P82/Vehicles!P60*1000000)/1000000*HLOOKUP($J$10,$Z$5:$AD$6,2,FALSE)/HLOOKUP($J$11,$Z$7:$AD$8,2,FALSE)+Q25*Fuel_Specs!$B$108/Fuel_Specs!$B$111+Q26*Fuel_Specs!$B$109/Fuel_Specs!$B$111 -> -64372.06396 | R21: =((1-Vehicles!$C$33)*(1-Vehicles!$C$16)*Fuel_Specs!$B$15/((1-Vehicles!$C$33)*(1-Vehicles!$C$16)*Fuel_Specs!$B$15+Vehicles!$C$33*(1-Vehicles!$C$16)*Fuel_Specs!$B$16+Vehicles!$C$16*Fuel_Specs!$B44)*(Petroleum!$B279*Petroleum!$D$262+Petroleum!$D279)+Vehicles!$C$33*(1-Vehicles!$C$16)*Fuel_Specs!$B$16/((1-Vehicles!$C$33)*(1-Vehicles!$C$16)*Fuel_Specs!$B$15+Vehicles!$C$33*(1-Vehicles!$C$16)*Fuel_Specs!$B$16+Vehicles!$C$16*Fuel_Specs!$B44)*(Petroleum!B279*Petroleum!$F$262+Petroleum!$F279)+Vehicles!$C$16*Fuel_Specs!$B44/((1-Vehicles!$C$33)*(1-Vehicles!$C$16)*Fuel_Specs!$B$15+Vehicles!$C$33*(1-Vehicles!$C$16)*Fuel_Specs!$B$16+Vehicles!$C$16*Fuel_Specs!$B44)*(Pyrolysis!$Z188*Pyrolysis!$AA$171+Pyrolysis!$AA188)+Vehicles!P82/Vehicles!P60*1000000)/1000000*HLOOKUP($J$10,$Z$5:$AD$6,2,FALSE)/HLOOKUP($J$11,$Z$7:$AD$8,2,FALSE)+R25*Fuel_Specs!$B$108/Fuel_Specs!$B$111+R26*Fuel_Specs!$B$109/Fuel_Specs!$B$111 -> -52446.52695 | S21: =AN21*(Vehicles!$C$23/Vehicles!$AR$59)/(Vehicles!$C$23*(1/Vehicles!$AR$59+1/Vehicles!$AS$59)+Vehicles!$C$24/Vehicles!$AT$59)+B21*(Vehicles!$C$23/Vehicles!$AS$59+Vehicles!$C$24/Vehicles!$AT$59)/(Vehicles!$C$23*(1/Vehicles!$AR$59+1/Vehicles!$AS$59)+Vehicles!$C$24/Vehicles!$AT$59) -> 52665.25927 | T21: =AN21*(Vehicles!$D$23/Vehicles!$AV$59)/(Vehicles!$D$23*(1/Vehicles!$AV$59+1/Vehicles!$AW$59)+Vehicles!$D$24/Vehicles!$AX$59)+C21*(Vehicles!$D$23/Vehicles!$AW$59+Vehicles!$D$24/Vehicles!$AX$59)/(Vehicles!$D$23*(1/Vehicles!$AV$59+1/Vehicles!$AW$59)+Vehicles!$D$24/Vehicles!$AX$59) -> 51323.05635 | U21: =AN21*(Vehicles!$F$23/Vehicles!$BD$59)/(Vehicles!$F$23*(1/Vehicles!$BD$59+1/Vehicles!$BE$59)+Vehicles!$F$24/Vehicles!$BF$59)+D21*(Vehicles!$F$23/Vehicles!$BE$59+Vehicles!$F$24/Vehicles!$BF$59)/(Vehicles!$F$23*(1/Vehicles!$BD$59+1/Vehicles!$BE$59)+Vehicles!$F$24/Vehicles!$BF$59) -> 52665.25927 | V21: =AN21*(Vehicles!$G$23/Vehicles!$BH$59)/(Vehicles!$G$23*(1/Vehicles!$BH$59+1/Vehicles!$BI$59)+Vehicles!$G$24/Vehicles!$BJ$59)+F21*(Vehicles!$G$23/Vehicles!$BI$59+Vehicles!$G$24/Vehicles!$BJ$59)/(Vehicles!$G$23*(1/Vehicles!$BH$59+1/Vehicles!$BI$59)+Vehicles!$G$24/Vehicles!$BJ$59) -> 50484.59822 | W21: =AN21*(Vehicles!$H$23/Vehicles!$BL$59)/(Vehicles!$H$23*(1/Vehicles!$BL$59+1/Vehicles!$BM$59)+Vehicles!$H$24/Vehicles!$BN$59)+G21*(Vehicles!$H$23/Vehicles!$BM$59+Vehicles!$H$24/Vehicles!$BN$59)/(Vehicles!$H$23*(1/Vehicles!$BL$59+1/Vehicles!$BM$59)+Vehicles!$H$24/Vehicles!$BN$59) -> 54130.3455 | X21: =AN21*(Vehicles!$I$23/Vehicles!$BP$59)/(Vehicles!$I$23*(1/Vehicles!$BP$59+1/Vehicles!$BQ$59)+Vehicles!$I$24/Vehicles!$BR$59)+H21*(Vehicles!$I$23/Vehicles!$BQ$59+Vehicles!$I$24/Vehicles!$BR$59)/(Vehicles!$I$23*(1/Vehicles!$BP$59+1/Vehicles!$BQ$59)+Vehicles!$I$24/Vehicles!$BR$59) -> 50931.32397 | Y21: =AN21*(Vehicles!$J$23/Vehicles!$BT$59)/(Vehicles!$J$23*(1/Vehicles!$BT$59+1/Vehicles!$BU$59)+Vehicles!$J$24/Vehicles!$BV$59)+K21*(Vehicles!$J$23/Vehicles!$BU$59+Vehicles!$J$24/Vehicles!$BV$59)/(Vehicles!$J$23*(1/Vehicles!$BT$59+1/Vehicles!$BU$59)+Vehicles!$J$24/Vehicles!$BV$59) -> 58687.63247 | Z21: =AN21*(Vehicles!$K$23/Vehicles!$BX$59)/(Vehicles!$K$23*(1/Vehicles!$BX$59+1/Vehicles!$BY$59)+Vehicles!$K$24/Vehicles!$BZ$59)+O21*(Vehicles!$K$23/Vehicles!$BY$59+Vehicles!$K$24/Vehicles!$BZ$59)/(Vehicles!$K$23*(1/Vehicles!$BX$59+1/Vehicles!$BY$59)+Vehicles!$K$24/Vehicles!$BZ$59) -> 22745.7777 | AA21: =AN21*(Vehicles!$L$23/Vehicles!$CB$59)/(Vehicles!$L$23*(1/Vehicles!$CB$59+1/Vehicles!$CC$59)+Vehicles!$L$24/Vehicles!$CD$59)+AO21*(Vehicles!$L$23/Vehicles!$CC$59+Vehicles!$L$24/Vehicles!$CD$59)/(Vehicles!$L$23*(1/Vehicles!$CB$59+1/Vehicles!$CC$59)+Vehicles!$L$24/Vehicles!$CD$59) -> 121150.9562 | AB21: =AN21*(Vehicles!$L$23/Vehicles!$CB$59)/(Vehicles!$L$23*(1/Vehicles!$CB$59+1/Vehicles!$CC$59)+Vehicles!$L$24/Vehicles!$CE$59)+AP21*(Vehicles!$L$23/Vehicles!$CC$59+Vehicles!$L$24/Vehicles!$CE$59)/(Vehicles!$L$23*(1/Vehicles!$CB$59+1/Vehicles!$CC$59)+Vehicles!$L$24/Vehicles!$CE$59) -> 144692.3349 | AC21: =('MeOH&FTD'!$AJ154*'MeOH&FTD'!$AK$137+'MeOH&FTD'!$AK154+Vehicles!AA82/Vehicles!AA60*1000000)/1000000*HLOOKUP($J$10,$Z$5:$AD$6,2,FALSE)/HLOOKUP($J$11,$Z$7:$AD$8,2,FALSE)+AC25*Fuel_Specs!$B$108/Fuel_Specs!$B$111+AC26*Fuel_Specs!$B$109/Fuel_Specs!$B$111 -> 26678.67907 | AD21: =((1-Vehicles!$C$34)*(1-Vehicles!$C$13)*Fuel_Specs!$B$20/((1-Vehicles!$C$34)*(1-Vehicles!$C$13)*Fuel_Specs!$B$20+Vehicles!$C$34*(1-Vehicles!$C$13)*Fuel_Specs!$B$23+Vehicles!$C$13*Fuel_Specs!$B$40)*(Petroleum!B279*Petroleum!$J$262+Petroleum!$J279)+Vehicles!$C$34*(1-Vehicles!$C$13)*Fuel_Specs!$B$23/((1-Vehicles!$C$34)*(1-Vehicles!$C$13)*Fuel_Specs!$B$20+Vehicles!$C$34*(1-Vehicles!$C$13)*Fuel_Specs!$B$23+Vehicles!$C$13*Fuel_Specs!$B$40)*(Petroleum!B279*Petroleum!$K$262+Petroleum!$K279)+Vehicles!$C$13*Fuel_Specs!$B$40/((1-Vehicles!$C$34)*(1-Vehicles!$C$13)*Fuel_Specs!$B$20+Vehicles!$C$34*(1-Vehicles!$C$13)*Fuel_Specs!$B$23+Vehicles!$C$13*Fuel_Specs!$B$40)*('MeOH&FTD'!$AZ154*'MeOH&FTD'!$BA$137+'MeOH&FTD'!$BA154)+Vehicles!AB82/Vehicles!AB60*1000000)/1000000*HLOOKUP($J$10,$Z$5:$AD$6,2,FALSE)/HLOOKUP($J$11,$Z$7:$AD$8,2,FALSE)+AD25*Fuel_Specs!$B$108/Fuel_Specs!$B$111+AD26*Fuel_Specs!$B$109/Fuel_Specs!$B$111 -> 27498.32185 | AE21: =((1-Vehicles!$C$35)*(1-Vehicles!$C$14)*Fuel_Specs!$B$20/((1-Vehicles!$C$35)*(1-Vehicles!$C$14)*Fuel_Specs!$B$20+Vehicles!$C$35*(1-Vehicles!$C$14)*Fuel_Specs!$B$23+Vehicles!$C$14*Fuel_Specs!$B39)*(Petroleum!B279*Petroleum!$J$262+Petroleum!$J279)+Vehicles!$C$35*(1-Vehicles!$C$14)*Fuel_Specs!$B$23/((1-Vehicles!$C$35)*(1-Vehicles!$C$14)*Fuel_Specs!$B$20+Vehicles!$C$35*(1-Vehicles!$C$14)*Fuel_Specs!$B$23+Vehicles!$C$14*Fuel_Specs!$B39)*(Petroleum!B279*Petroleum!$K$262+Petroleum!$K279)+Vehicles!$C$14*Fuel_Specs!$B39/((1-Vehicles!$C$35)*(1-Vehicles!$C$14)*Fuel_Specs!$B$20+Vehicles!$C$35*(1-Vehicles!$C$14)*Fuel_Specs!$B$23+Vehicles!$C$14*Fuel_Specs!$B39)*(BioOil!$W351*BioOil!$X$333+BioOil!$X351)+Vehicles!AC82/Vehicles!AC60*1000000)/1000000*HLOOKUP($J$10,$Z$5:$AD$6,2,FALSE)/HLOOKUP($J$11,$Z$7:$AD$8,2,FALSE)+AE25*Fuel_Specs!$B$108/Fuel_Specs!$B$111+AE26*Fuel_Specs!$B$109/Fuel_Specs!$B$111 -> 5157.559377 | AF21: =((1-Vehicles!$C$36)*(1-Vehicles!$C$15)*Fuel_Specs!$B$20/((1-Vehicles!$C$36)*(1-Vehicles!$C$15)*Fuel_Specs!$B$20+Vehicles!$C$36*(1-Vehicles!$C$15)*Fuel_Specs!$B$23+Vehicles!$C$15*IF(Inputs!$E$628=1,Fuel_Specs!$B$41,Fuel_Specs!$B$42))*(Petroleum!B279*Petroleum!$J$262+Petroleum!$J279)+Vehicles!$C$36*(1-Vehicles!$C$15)*Fuel_Specs!$B$23/((1-Vehicles!$C$36)*(1-Vehicles!$C$15)*Fuel_Specs!$B$20+Vehicles!$C$36*(1-Vehicles!$C$15)*Fuel_Specs!$B$23+Vehicles!$C$15*IF(Inputs!$E$628=1,Fuel_Specs!$B$41,Fuel_Specs!$B$42))*(Petroleum!B279*Petroleum!$K$262+Petroleum!$K279)+Vehicles!$C$15*IF(Inputs!$E$628=1,Fuel_Specs!$B$41,Fuel_Specs!$B$42)/((1-Vehicles!$C$36)*(1-Vehicles!$C$15)*Fuel_Specs!$B$20+Vehicles!$C$36*(1-Vehicles!$C$15)*Fuel_Specs!$B$23+Vehicles!$C$15*IF(Inputs!$E$628=1,Fuel_Specs!$B$41,Fuel_Specs!$B$42))*(BioOil!$BA351*BioOil!$BB$333+BioOil!$BB351)+Vehicles!AD82/Vehicles!AD60*1000000)/1000000*HLOOKUP($J$10,$Z$5:$AD$6,2,FALSE)/HLOOKUP($J$11,$Z$7:$AD$8,2,FALSE)+AF25*Fuel_Specs!$B$108/Fuel_Specs!$B$111+AF26*Fuel_Specs!$B$109/Fuel_Specs!$B$111 -> -59071.77483 | AG21: =((1-Vehicles!$C$36)*(1-Vehicles!$C$15)*Fuel_Specs!$B$20/((1-Vehicles!$C$36)*(1-Vehicles!$C$15)*Fuel_Specs!$B$20+Vehicles!$C$36*(1-Vehicles!$C$15)*Fuel_Specs!$B$23+Vehicles!$C$15*IF(Inputs!$E$628=1,Fuel_Specs!$B$41,Fuel_Specs!$B$42))*(Petroleum!B279*Petroleum!$J$262+Petroleum!$J279)+Vehicles!$C$36*(1-Vehicles!$C$15)*Fuel_Specs!$B$23/((1-Vehicles!$C$36)*(1-Vehicles!$C$15)*Fuel_Specs!$B$20+Vehicles!$C$36*(1-Vehicles!$C$15)*Fuel_Specs!$B$23+Vehicles!$C$15*IF(Inputs!$E$628=1,Fuel_Specs!$B$41,Fuel_Specs!$B$42))*(Petroleum!B279*Petroleum!$K$262+Petroleum!$K279)+Vehicles!$C$15*IF(Inputs!$E$628=1,Fuel_Specs!$B$41,Fuel_Specs!$B$42)/((1-Vehicles!$C$36)*(1-Vehicles!$C$15)*Fuel_Specs!$B$20+Vehicles!$C$36*(1-Vehicles!$C$15)*Fuel_Specs!$B$23+Vehicles!$C$15*IF(Inputs!$E$628=1,Fuel_Specs!$B$41,Fuel_Specs!$B$42))*(Pyrolysis!$AB188*Pyrolysis!$AC$171+Pyrolysis!$AC188)+Vehicles!AD82/Vehicles!AD60*1000000)/1000000*HLOOKUP($J$10,$Z$5:$AD$6,2,FALSE)/HLOOKUP($J$11,$Z$7:$AD$8,2,FALSE)+AG25*Fuel_Specs!$B$108/Fuel_Specs!$B$111+AG26*Fuel_Specs!$B$109/Fuel_Specs!$B$111 -> -51014.74083 | AH21: =(((1-Vehicles!$C$37)*(1-Vehicles!$C$17-Vehicles!$C$18)*Fuel_Specs!$B$20*(Petroleum!B279*Petroleum!$J$262+Petroleum!$J279)+Vehicles!$C$37*(1-Vehicles!$C$17-Vehicles!$C$18)*Fuel_Specs!$B$23*(Petroleum!B279*Petroleum!$K$262+Petroleum!$K279)+Vehicles!$C$17*Fuel_Specs!$B$31*(EtOH!BP506*EtOH!$BQ$489+EtOH!$BQ506)+Vehicles!$C$18*Fuel_Specs!$B$34*('E-D Additives'!$B70*'E-D Additives'!$B$53))/((1-Vehicles!$C$37)*(1-Vehicles!$C$17-Vehicles!$C$18)*Fuel_Specs!$B$20+Vehicles!$C$37*(1-Vehicles!$C$17-Vehicles!$C$18)*Fuel_Specs!$B$23+Vehicles!$C$17*Fuel_Specs!$B$31+Vehicles!$C$18*Fuel_Specs!$B$34)+Vehicles!AE82/Vehicles!AE60*1000000)/1000000*HLOOKUP($J$10,$Z$5:$AD$6,2,FALSE)/HLOOKUP($J$11,$Z$7:$AD$8,2,FALSE)+AH25*Fuel_Specs!$B$108/Fuel_Specs!$B$111+AH26*Fuel_Specs!$B$109/Fuel_Specs!$B$111 -> 16378.72905 | AI21: =AN21*(Vehicles!$M$23/Vehicles!$CM$59)/(Vehicles!$M$23*(1/Vehicles!$CM$59+1/Vehicles!$CN$59)+Vehicles!$M$24/Vehicles!$CO$59)+E21*(Vehicles!$M$23/Vehicles!$CN$59+Vehicles!$M$24/Vehicles!$CO$59)/(Vehicles!$M$23*(1/Vehicles!$CM$59+1/Vehicles!$CN$59)+Vehicles!$M$24/Vehicles!$CO$59) -> 58697.78706 | AJ21: =AN21*(Vehicles!$N$23/Vehicles!$CQ$59)/(Vehicles!$N$23*(1/Vehicles!$CQ$59+1/Vehicles!$CR$59)+Vehicles!$N$24/Vehicles!$CS$59)+AC21*(Vehicles!$N$23/Vehicles!$CR$59+Vehicles!$N$24/Vehicles!$CS$59)/(Vehicles!$N$23*(1/Vehicles!$CQ$59+1/Vehicles!$CR$59)+Vehicles!$N$24/Vehicles!$CS$59) -> 63804.46803 | AK21: =AN21*(Vehicles!$O$23/Vehicles!$CU$59)/(Vehicles!$O$23*(1/Vehicles!$CU$59+1/Vehicles!$CV$59)+Vehicles!$O$24/Vehicles!$CW$59)+AD21*(Vehicles!$O$23/Vehicles!$CV$59+Vehicles!$O$24/Vehicles!$CW$59)/(Vehicles!$O$23*(1/Vehicles!$CU$59+1/Vehicles!$CV$59)+Vehicles!$O$24/Vehicles!$CW$59) -> 64408.59785 | AL21: =AN21*(Vehicles!$P$23/Vehicles!$CY$59)/(Vehicles!$P$23*(1/Vehicles!$CY$59+1/Vehicles!$CZ$59)+Vehicles!$P$24/Vehicles!$DA$59)+AE21*(Vehicles!$P$23/Vehicles!$CZ$59+Vehicles!$P$24/Vehicles!$DA$59)/(Vehicles!$P$23*(1/Vehicles!$CY$59+1/Vehicles!$CZ$59)+Vehicles!$P$24/Vehicles!$DA$59) -> 47942.00896 | AM21: =AN21*(Vehicles!$R$23/Vehicles!$DG$59)/(Vehicles!$R$23*(1/Vehicles!$DG$59+1/Vehicles!$DH$59)+Vehicles!$R$24/Vehicles!$DI$59)+AH21*(Vehicles!$R$23/Vehicles!$DH$59+Vehicles!$R$24/Vehicles!$DI$59)/(Vehicles!$R$23*(1/Vehicles!$DG$59+1/Vehicles!$DH$59)+Vehicles!$R$24/Vehicles!$DI$59) -> 56212.73777 | AN21: =(Electric!$G202+Electric!$F202)/1000000*HLOOKUP($J$10,$Z$5:$AD$6,2,FALSE)/HLOOKUP($J$11,$Z$7:$AD$8,2,FALSE)+AN25*Fuel_Specs!$B$108/Fuel_Specs!$B$111+AN26*Fuel_Specs!$B$109/Fuel_Specs!$B$111 -> 167876.1462 | AO21: =(Hydrogen!$AF179*Hydrogen!$AG$162+Hydrogen!$AG179)/1000000*HLOOKUP($J$10,$Z$5:$AD$6,2,FALSE)/HLOOKUP($J$11,$Z$7:$AD$8,2,FALSE)+AO25*Fuel_Specs!$B$108/Fuel_Specs!$B$111+AO26*Fuel_Specs!$B$109/Fuel_Specs!$B$111 -> 104079.3422 | AP21: =(Hydrogen!$BJ179*Hydrogen!$BK$162+Hydrogen!$BK179)/1000000*HLOOKUP($J$10,$Z$5:$AD$6,2,FALSE)/HLOOKUP($J$11,$Z$7:$AD$8,2,FALSE)+AP25*Fuel_Specs!$B$108/Fuel_Specs!$B$111+AP26*Fuel_Specs!$B$109/Fuel_Specs!$B$111 -> 136221.8486 | AQ21: =AN21*(Vehicles!$S$23/Vehicles!$DW$59)/(Vehicles!$S$23*(1/Vehicles!$DW$59+1/Vehicles!$DX$59)+Vehicles!$S$24/Vehicles!$DY$59)+AO21*(Vehicles!$S$23/Vehicles!$DX$59+Vehicles!$S$24/Vehicles!$DY$59)/(Vehicles!$S$23*(1/Vehicles!$DW$59+1/Vehicles!$DX$59)+Vehicles!$S$24/Vehicles!$DY$59) -> 124561.8299 | AR21: =AN21*(Vehicles!$S$23/Vehicles!$DW$59)/(Vehicles!$S$23*(1/Vehicles!$DW$59+1/Vehicles!$DX$59)+Vehicles!$S$24/Vehicles!$DY$59)+AP21*(Vehicles!$S$23/Vehicles!$DX$59+Vehicles!$S$24/Vehicles!$DY$59)/(Vehicles!$S$23*(1/Vehicles!$DW$59+1/Vehicles!$DX$59)+Vehicles!$S$24/Vehicles!$DY$59) -> 146384.7208 | AS21: =((1-Vehicles!$C$33)*(1-Vehicles!$C$16)*Fuel_Specs!$B$15/((1-Vehicles!$C$33)*(1-Vehicles!$C$16)*Fuel_Specs!$B$15+Vehicles!$C$33*(1-Vehicles!$C$16)*Fuel_Specs!$B$16+Vehicles!$C$16*Fuel_Specs!$B$45)*(Petroleum!$B279*Petroleum!$D$262+Petroleum!$D279)+Vehicles!$C$33*(1-Vehicles!$C$16)*Fuel_Specs!$B$16/((1-Vehicles!$C$33)*(1-Vehicles!$C$16)*Fuel_Specs!$B$15+Vehicles!$C$33*(1-Vehicles!$C$16)*Fuel_Specs!$B$16+Vehicles!$C$16*Fuel_Specs!$B$45)*(Petroleum!B279*Petroleum!$F$262+Petroleum!$F279)+Vehicles!$C$16*Fuel_Specs!$B$45/((1-Vehicles!$C$33)*(1-Vehicles!$C$16)*Fuel_Specs!$B$15+Vehicles!$C$33*(1-Vehicles!$C$16)*Fuel_Specs!$B$16+Vehicles!$C$16*Fuel_Specs!$B$45)*(IDL!$L129*IDL!$M$112+IDL!$M129)+Vehicles!Q82/Vehicles!Q60*1000000)/1000000*HLOOKUP($J$10,$Z$5:$AD$6,2,FALSE)/HLOOKUP($J$11,$Z$7:$AD$8,2,FALSE)+AS25*Fuel_Specs!$B$108/Fuel_Specs!$B$111+AS26*Fuel_Specs!$B$109/Fuel_Specs!$B$111 -> -60329.27946 | AV21: SI - MeOH FFV | AW21: RNAVMEOHFFV | BB21: CIDI - E-Diesel | BC21: RNAVEDIESELCIDI | BE21: SI HEV - LPG | BF21: RNAVHEVLPG | BH21: SI PHEV - LPG and Electricity | BI21: RNAVPHEVLPG | BQ21: FCV - Gasoline | BR21: RNAVFCVGAS
A22: CH4 | B22: =(Inputs!$E$1398*(Petroleum!$B277*Petroleum!$F$262+Petroleum!$F277)+(1-Inputs!$E$1398)*(Petroleum!$B277*Petroleum!$D$262+Petroleum!$D277))/1000000*HLOOKUP($J$10,$Z$5:$AD$6,2,FALSE)/HLOOKUP($J$11,$Z$7:$AD$8,2,FALSE) -> 188.5373282 | C22: =(Petroleum!$C277*Petroleum!$G$262+Petroleum!$G277)/1000000*HLOOKUP($J$10,$Z$5:$AD$6,2,FALSE)/HLOOKUP($J$11,$Z$7:$AD$8,2,FALSE) -> 201.6212296 | D22: =((1-Vehicles!$C$28)*(1-Vehicles!$C$7)*Fuel_Specs!$B$15/((1-Vehicles!$C$28)*(1-Vehicles!$C$7)*Fuel_Specs!$B$15+Vehicles!$C$28*(1-Vehicles!$C$7)*Fuel_Specs!$B$16+Vehicles!$C$7*Fuel_Specs!$B$31)*(Petroleum!$B277*Petroleum!$D$262+(Petroleum!$D277-'T&D'!G227))+Vehicles!$C$28*(1-Vehicles!$C$7)*Fuel_Specs!$B$16/((1-Vehicles!$C$28)*(1-Vehicles!$C$7)*Fuel_Specs!$B$15+Vehicles!$C$28*(1-Vehicles!$C$7)*Fuel_Specs!$B$16+Vehicles!$C$7*Fuel_Specs!$B$31)*(Petroleum!B277*Petroleum!$F$262+Petroleum!$F277)+Vehicles!$C$7*Fuel_Specs!$B$31/((1-Vehicles!$C$28)*(1-Vehicles!$C$7)*Fuel_Specs!$B$15+Vehicles!$C$28*(1-Vehicles!$C$7)*Fuel_Specs!$B$16+Vehicles!$C$7*Fuel_Specs!$B$31)*(EtOH!BR504*EtOH!$BS$489+EtOH!$BS504)+Petroleum!AR139+Petroleum!AS139)/1000000*HLOOKUP($J$10,$Z$5:$AD$6,2,FALSE)/HLOOKUP($J$11,$Z$7:$AD$8,2,FALSE) -> 188.5373282 | E22: =(Inputs!$E$97*(IF(Inputs!F$102=1,Petroleum!$B277,Petroleum!$C277)*Petroleum!$K$262+Petroleum!$K277)+(1-Inputs!$E$97)*(IF(Inputs!F$101=1,Petroleum!$B277,Petroleum!$C277)*Petroleum!$J$262+Petroleum!$J277))/1000000*HLOOKUP($J$10,$Z$5:$AD$6,2,FALSE)/HLOOKUP($J$11,$Z$7:$AD$8,2,FALSE) -> 197.2298408 | F22: =(NG!$I99*NG!$J$84+NG!$J99)/1000000*HLOOKUP($J$10,$Z$5:$AD$6,2,FALSE)/HLOOKUP($J$11,$Z$7:$AD$8,2,FALSE) -> 363.6654584 | G22: =(NG!$Q99*NG!$R$84+NG!$R99)/1000000*HLOOKUP($J$10,$Z$5:$AD$6,2,FALSE)/HLOOKUP($J$11,$Z$7:$AD$8,2,FALSE) -> 433.804552 | H22: =(NG!$W99*NG!$X$84+NG!$X99)/1000000*HLOOKUP($J$10,$Z$5:$AD$6,2,FALSE)/HLOOKUP($J$11,$Z$7:$AD$8,2,FALSE) -> 217.3978018 | I22: =('MeOH&FTD'!BJ152*'MeOH&FTD'!BK$137+'MeOH&FTD'!BK152)/1000000*HLOOKUP($J$10,$Z$5:$AD$6,2,FALSE)/HLOOKUP($J$11,$Z$7:$AD$8,2,FALSE) -> 344.3852123 | J22: =((1-Vehicles!$C$27)*(1-Vehicles!$C$5)*Fuel_Specs!$B$15/((1-Vehicles!$C$27)*(1-Vehicles!$C$5)*Fuel_Specs!$B$15+Vehicles!$C$27*(1-Vehicles!$C$5)*Fuel_Specs!$B$16+Vehicles!$C$5*Fuel_Specs!$B$30)*(Petroleum!$B277*Petroleum!$D$262+Petroleum!$D277)+Vehicles!$C$27*(1-Vehicles!$C$5)*Fuel_Specs!$B$16/((1-Vehicles!$C$27)*(1-Vehicles!$C$5)*Fuel_Specs!$B$15+Vehicles!$C$27*(1-Vehicles!$C$5)*Fuel_Specs!$B$16+Vehicles!$C$5*Fuel_Specs!$B$30)*(Petroleum!B277*Petroleum!$F$262+Petroleum!$F277)+Vehicles!$C$5*Fuel_Specs!$B$30/((1-Vehicles!$C$27)*(1-Vehicles!$C$5)*Fuel_Specs!$B$15+Vehicles!$C$27*(1-Vehicles!$C$5)*Fuel_Specs!$B$16+Vehicles!$C$5*Fuel_Specs!$B$30)*('MeOH&FTD'!$N152*'MeOH&FTD'!$O$137+'MeOH&FTD'!$O152))/1000000*HLOOKUP($J$10,$Z$5:$AD$6,2,FALSE)/HLOOKUP($J$11,$Z$7:$AD$8,2,FALSE) -> 281.2260945 | K22: =((1-Vehicles!$C$27)*(1-Vehicles!$C$6)*Fuel_Specs!$B$15/((1-Vehicles!$C$27)*(1-Vehicles!$C$6)*Fuel_Specs!$B$15+Vehicles!$C$27*(1-Vehicles!$C$6)*Fuel_Specs!$B$16+Vehicles!$C$6*Fuel_Specs!$B$30)*(Petroleum!$B277*Petroleum!$D$262+Petroleum!$D277)+Vehicles!$C$27*(1-Vehicles!$C$6)*Fuel_Specs!$B$16/((1-Vehicles!$C$27)*(1-Vehicles!$C$6)*Fuel_Specs!$B$15+Vehicles!$C$27*(1-Vehicles!$C$6)*Fuel_Specs!$B$16+Vehicles!$C$6*Fuel_Specs!$B$30)*(Petroleum!B277*Petroleum!$F$262+Petroleum!$F277)+Vehicles!$C$6*Fuel_Specs!$B$30/((1-Vehicles!$C$27)*(1-Vehicles!$C$6)*Fuel_Specs!$B$15+Vehicles!$C$27*(1-Vehicles!$C$6)*Fuel_Specs!$B$16+Vehicles!$C$6*Fuel_Specs!$B$30)*('MeOH&FTD'!$N152*'MeOH&FTD'!$O$137+'MeOH&FTD'!$O152))/1000000*HLOOKUP($J$10,$Z$5:$AD$6,2,FALSE)/HLOOKUP($J$11,$Z$7:$AD$8,2,FALSE) -> 290.8681779 | L22: =('MeOH&FTD'!$N152*'MeOH&FTD'!$O$137+'MeOH&FTD'!$O152)/1000000*HLOOKUP($J$10,$Z$5:$AD$6,2,FALSE)/HLOOKUP($J$11,$Z$7:$AD$8,2,FALSE) -> 313.1253063 | M22: =((1-Vehicles!$C$29)*(1-Vehicles!$C$8)*Fuel_Specs!$B$15/((1-Vehicles!$C$29)*(1-Vehicles!$C$8)*Fuel_Specs!$B$15+Vehicles!$C$29*(1-Vehicles!$C$8)*Fuel_Specs!$B$16+Vehicles!$C$8*Fuel_Specs!$B$31)*(Petroleum!$B277*Petroleum!$D$262+(Petroleum!$D277-'T&D'!G227))+Vehicles!$C$29*(1-Vehicles!$C$8)*Fuel_Specs!$B$16/((1-Vehicles!$C$29)*(1-Vehicles!$C$8)*Fuel_Specs!$B$15+Vehicles!$C$29*(1-Vehicles!$C$8)*Fuel_Specs!$B$16+Vehicles!$C$8*Fuel_Specs!$B$31)*(Petroleum!B277*Petroleum!$F$262+Petroleum!$F277)+Vehicles!$C$8*Fuel_Specs!$B$31/((1-Vehicles!$C$29)*(1-Vehicles!$C$8)*Fuel_Specs!$B$15+Vehicles!$C$29*(1-Vehicles!$C$8)*Fuel_Specs!$B$16+Vehicles!$C$8*Fuel_Specs!$B$31)*(EtOH!BR504*EtOH!$BS$489+EtOH!$BS504)+Petroleum!AR139+Petroleum!AS139)/1000000*HLOOKUP($J$10,$Z$5:$AD$6,2,FALSE)/HLOOKUP($J$11,$Z$7:$AD$8,2,FALSE) -> 151.1865069 | N22: =((1-Vehicles!$C$30)*(1-Vehicles!$C$12)*Fuel_Specs!$B$15/((1-Vehicles!$C$30)*(1-Vehicles!$C$12)*Fuel_Specs!$B$15+Vehicles!$C$30*(1-Vehicles!$C$12)*Fuel_Specs!$B$16+Vehicles!$C$12*Fuel_Specs!$B$32)*(Petroleum!$B277*Petroleum!$D$262+Petroleum!$D277)+Vehicles!$C$30*(1-Vehicles!$C$12)*Fuel_Specs!$B$16/((1-Vehicles!$C$30)*(1-Vehicles!$C$12)*Fuel_Specs!$B$15+Vehicles!$C$30*(1-Vehicles!$C$12)*Fuel_Specs!$B$16+Vehicles!$C$12*Fuel_Specs!$B$32)*(Petroleum!B277*Petroleum!$F$262+Petroleum!$F277)+Vehicles!$C$12*Fuel_Specs!$B$32/((1-Vehicles!$C$30)*(1-Vehicles!$C$12)*Fuel_Specs!$B$15+Vehicles!$C$30*(1-Vehicles!$C$12)*Fuel_Specs!$B$16+Vehicles!$C$12*Fuel_Specs!$B$32)*(EtOH!$BT504*EtOH!$BU$489+EtOH!$BU504))/1000000*HLOOKUP($J$10,$Z$5:$AD$6,2,FALSE)/HLOOKUP($J$11,$Z$7:$AD$8,2,FALSE) -> 169.8944833 | O22: =((1-Vehicles!$C$29)*(1-Vehicles!$C$9)*Fuel_Specs!$B$15/((1-Vehicles!$C$29)*(1-Vehicles!$C$9)*Fuel_Specs!$B$15+Vehicles!$C$29*(1-Vehicles!$C$9)*Fuel_Specs!$B$16+Vehicles!$C$9*Fuel_Specs!$B$31)*(Petroleum!$B277*Petroleum!$D$262+(Petroleum!$D277-'T&D'!G227))+Vehicles!$C$29*(1-Vehicles!$C$9)*Fuel_Specs!$B$16/((1-Vehicles!$C$29)*(1-Vehicles!$C$9)*Fuel_Specs!$B$15+Vehicles!$C$29*(1-Vehicles!$C$9)*Fuel_Specs!$B$16+Vehicles!$C$9*Fuel_Specs!$B$31)*(Petroleum!B277*Petroleum!$F$262+Petroleum!$F277)+Vehicles!$C$9*Fuel_Specs!$B$31/((1-Vehicles!$C$29)*(1-Vehicles!$C$9)*Fuel_Specs!$B$15+Vehicles!$C$29*(1-Vehicles!$C$9)*Fuel_Specs!$B$16+Vehicles!$C$9*Fuel_Specs!$B$31)*(EtOH!BR504*EtOH!$BS$489+EtOH!$BS504)+Petroleum!AR139+Petroleum!AS139)/1000000*HLOOKUP($J$10,$Z$5:$AD$6,2,FALSE)/HLOOKUP($J$11,$Z$7:$AD$8,2,FALSE) -> 151.1865069 | P22: =(EtOH!$BP504*EtOH!$BQ$489+EtOH!$BQ504)/1000000*HLOOKUP($J$10,$Z$5:$AD$6,2,FALSE)/HLOOKUP($J$11,$Z$7:$AD$8,2,FALSE) -> 138.9051162 | Q22: =((1-Vehicles!$C$33)*(1-Vehicles!$C$16)*Fuel_Specs!$B$15/((1-Vehicles!$C$33)*(1-Vehicles!$C$16)*Fuel_Specs!$B$15+Vehicles!$C$33*(1-Vehicles!$C$16)*Fuel_Specs!$B$16+Vehicles!$C$16*Fuel_Specs!$B$44)*(Petroleum!$B277*Petroleum!$D$262+Petroleum!$D277)+Vehicles!$C$33*(1-Vehicles!$C$16)*Fuel_Specs!$B$16/((1-Vehicles!$C$33)*(1-Vehicles!$C$16)*Fuel_Specs!$B$15+Vehicles!$C$33*(1-Vehicles!$C$16)*Fuel_Specs!$B$16+Vehicles!$C$16*Fuel_Specs!$B$44)*(Petroleum!B277*Petroleum!$F$262+Petroleum!$F277)+Vehicles!$C$16*Fuel_Specs!$B$44/((1-Vehicles!$C$33)*(1-Vehicles!$C$16)*Fuel_Specs!$B$15+Vehicles!$C$33*(1-Vehicles!$C$16)*Fuel_Specs!$B$16+Vehicles!$C$16*Fuel_Specs!$B$44)*(BioOil!$BO349*BioOil!$BP$333+BioOil!$BP349))/1000000*HLOOKUP($J$10,$Z$5:$AD$6,2,FALSE)/HLOOKUP($J$11,$Z$7:$AD$8,2,FALSE) -> 30.0270337 | R22: =((1-Vehicles!$C$33)*(1-Vehicles!$C$16)*Fuel_Specs!$B$15/((1-Vehicles!$C$33)*(1-Vehicles!$C$16)*Fuel_Specs!$B$15+Vehicles!$C$33*(1-Vehicles!$C$16)*Fuel_Specs!$B$16+Vehicles!$C$16*Fuel_Specs!$B$44)*(Petroleum!$B277*Petroleum!$D$262+Petroleum!$D277)+Vehicles!$C$33*(1-Vehicles!$C$16)*Fuel_Specs!$B$16/((1-Vehicles!$C$33)*(1-Vehicles!$C$16)*Fuel_Specs!$B$15+Vehicles!$C$33*(1-Vehicles!$C$16)*Fuel_Specs!$B$16+Vehicles!$C$16*Fuel_Specs!$B$44)*(Petroleum!B277*Petroleum!$F$262+Petroleum!$F277)+Vehicles!$C$16*Fuel_Specs!$B$44/((1-Vehicles!$C$33)*(1-Vehicles!$C$16)*Fuel_Specs!$B$15+Vehicles!$C$33*(1-Vehicles!$C$16)*Fuel_Specs!$B$16+Vehicles!$C$16*Fuel_Specs!$B$44)*(Pyrolysis!$Z186*Pyrolysis!$AA$171+Pyrolysis!$AA186))/1000000*HLOOKUP($J$10,$Z$5:$AD$6,2,FALSE)/HLOOKUP($J$11,$Z$7:$AD$8,2,FALSE) -> 87.54265 | S22: =AN22*(Vehicles!$C$23/Vehicles!$AR$59)/(Vehicles!$C$23*(1/Vehicles!$AR$59+1/Vehicles!$AS$59)+Vehicles!$C$24/Vehicles!$AT$59)+B22*(Vehicles!$C$23/Vehicles!$AS$59+Vehicles!$C$24/Vehicles!$AT$59)/(Vehicles!$C$23*(1/Vehicles!$AR$59+1/Vehicles!$AS$59)+Vehicles!$C$24/Vehicles!$AT$59) -> 228.6220469 | T22: =AN22*(Vehicles!$D$23/Vehicles!$AV$59)/(Vehicles!$D$23*(1/Vehicles!$AV$59+1/Vehicles!$AW$59)+Vehicles!$D$24/Vehicles!$AX$59)+C22*(Vehicles!$D$23/Vehicles!$AW$59+Vehicles!$D$24/Vehicles!$AX$59)/(Vehicles!$D$23*(1/Vehicles!$AV$59+1/Vehicles!$AW$59)+Vehicles!$D$24/Vehicles!$AX$59) -> 238.3970349 | U22: =AN22*(Vehicles!$F$23/Vehicles!$BD$59)/(Vehicles!$F$23*(1/Vehicles!$BD$59+1/Vehicles!$BE$59)+Vehicles!$F$24/Vehicles!$BF$59)+D22*(Vehicles!$F$23/Vehicles!$BE$59+Vehicles!$F$24/Vehicles!$BF$59)/(Vehicles!$F$23*(1/Vehicles!$BD$59+1/Vehicles!$BE$59)+Vehicles!$F$24/Vehicles!$BF$59) -> 228.6220469 | V22: =AN22*(Vehicles!$G$23/Vehicles!$BH$59)/(Vehicles!$G$23*(1/Vehicles!$BH$59+1/Vehicles!$BI$59)+Vehicles!$G$24/Vehicles!$BJ$59)+F22*(Vehicles!$G$23/Vehicles!$BI$59+Vehicles!$G$24/Vehicles!$BJ$59)/(Vehicles!$G$23*(1/Vehicles!$BH$59+1/Vehicles!$BI$59)+Vehicles!$G$24/Vehicles!$BJ$59) -> 359.4603435 | W22: =AN22*(Vehicles!$H$23/Vehicles!$BL$59)/(Vehicles!$H$23*(1/Vehicles!$BL$59+1/Vehicles!$BM$59)+Vehicles!$H$24/Vehicles!$BN$59)+G22*(Vehicles!$H$23/Vehicles!$BM$59+Vehicles!$H$24/Vehicles!$BN$59)/(Vehicles!$H$23*(1/Vehicles!$BL$59+1/Vehicles!$BM$59)+Vehicles!$H$24/Vehicles!$BN$59) -> 411.8612886 | X22: =AN22*(Vehicles!$I$23/Vehicles!$BP$59)/(Vehicles!$I$23*(1/Vehicles!$BP$59+1/Vehicles!$BQ$59)+Vehicles!$I$24/Vehicles!$BR$59)+H22*(Vehicles!$I$23/Vehicles!$BQ$59+Vehicles!$I$24/Vehicles!$BR$59)/(Vehicles!$I$23*(1/Vehicles!$BP$59+1/Vehicles!$BQ$59)+Vehicles!$I$24/Vehicles!$BR$59) -> 250.1837183 | Y22: =AN22*(Vehicles!$J$23/Vehicles!$BT$59)/(Vehicles!$J$23*(1/Vehicles!$BT$59+1/Vehicles!$BU$59)+Vehicles!$J$24/Vehicles!$BV$59)+K22*(Vehicles!$J$23/Vehicles!$BU$59+Vehicles!$J$24/Vehicles!$BV$59)/(Vehicles!$J$23*(1/Vehicles!$BT$59+1/Vehicles!$BU$59)+Vehicles!$J$24/Vehicles!$BV$59) -> 304.3937364 | Z22: =AN22*(Vehicles!$K$23/Vehicles!$BX$59)/(Vehicles!$K$23*(1/Vehicles!$BX$59+1/Vehicles!$BY$59)+Vehicles!$K$24/Vehicles!$BZ$59)+O22*(Vehicles!$K$23/Vehicles!$BY$59+Vehicles!$K$24/Vehicles!$BZ$59)/(Vehicles!$K$23*(1/Vehicles!$BX$59+1/Vehicles!$BY$59)+Vehicles!$K$24/Vehicles!$BZ$59) -> 198.3471653 | AA22: =AN22*(Vehicles!$L$23/Vehicles!$CB$59)/(Vehicles!$L$23*(1/Vehicles!$CB$59+1/Vehicles!$CC$59)+Vehicles!$L$24/Vehicles!$CD$59)+AO22*(Vehicles!$L$23/Vehicles!$CC$59+Vehicles!$L$24/Vehicles!$CD$59)/(Vehicles!$L$23*(1/Vehicles!$CB$59+1/Vehicles!$CC$59)+Vehicles!$L$24/Vehicles!$CD$59) -> 472.8029271 | AB22: =AN22*(Vehicles!$L$23/Vehicles!$CB$59)/(Vehicles!$L$23*(1/Vehicles!$CB$59+1/Vehicles!$CC$59)+Vehicles!$L$24/Vehicles!$CE$59)+AP22*(Vehicles!$L$23/Vehicles!$CC$59+Vehicles!$L$24/Vehicles!$CE$59)/(Vehicles!$L$23*(1/Vehicles!$CB$59+1/Vehicles!$CC$59)+Vehicles!$L$24/Vehicles!$CE$59) -> 423.0628429 | AC22: =('MeOH&FTD'!$AJ152*'MeOH&FTD'!$AK$137+'MeOH&FTD'!$AK152)/1000000*HLOOKUP($J$10,$Z$5:$AD$6,2,FALSE)/HLOOKUP($J$11,$Z$7:$AD$8,2,FALSE) -> 309.8417677 | AD22: =((1-Vehicles!$C$34)*(1-Vehicles!$C$13)*Fuel_Specs!$B$20/((1-Vehicles!$C$34)*(1-Vehicles!$C$13)*Fuel_Specs!$B$20+Vehicles!$C$34*(1-Vehicles!$C$13)*Fuel_Specs!$B$23+Vehicles!$C$13*Fuel_Specs!$B$40)*(Petroleum!B277*Petroleum!$J$262+Petroleum!$J277)+Vehicles!$C$34*(1-Vehicles!$C$13)*Fuel_Specs!$B$23/((1-Vehicles!$C$34)*(1-Vehicles!$C$13)*Fuel_Specs!$B$20+Vehicles!$C$34*(1-Vehicles!$C$13)*Fuel_Specs!$B$23+Vehicles!$C$13*Fuel_Specs!$B$40)*(Petroleum!B277*Petroleum!$K$262+Petroleum!$K277)+Vehicles!$C$13*Fuel_Specs!$B$40/((1-Vehicles!$C$34)*(1-Vehicles!$C$13)*Fuel_Specs!$B$20+Vehicles!$C$34*(1-Vehicles!$C$13)*Fuel_Specs!$B$23+Vehicles!$C$13*Fuel_Specs!$B$40)*('MeOH&FTD'!$AZ152*'MeOH&FTD'!$BA$137+'MeOH&FTD'!$BA152))/1000000*HLOOKUP($J$10,$Z$5:$AD$6,2,FALSE)/HLOOKUP($J$11,$Z$7:$AD$8,2,FALSE) -> 320.6787419 | AE22: =((1-Vehicles!$C$35)*(1-Vehicles!$C$14)*Fuel_Specs!$B$20/((1-Vehicles!$C$35)*(1-Vehicles!$C$14)*Fuel_Specs!$B$20+Vehicles!$C$35*(1-Vehicles!$C$14)*Fuel_Specs!$B$23+Vehicles!$C$14*Fuel_Specs!$B$39)*(Petroleum!B277*Petroleum!$J$262+Petroleum!$J277)+Vehicles!$C$35*(1-Vehicles!$C$14)*Fuel_Specs!$B$23/((1-Vehicles!$C$35)*(1-Vehicles!$C$14)*Fuel_Specs!$B$20+Vehicles!$C$35*(1-Vehicles!$C$14)*Fuel_Specs!$B$23+Vehicles!$C$14*Fuel_Specs!$B$39)*(Petroleum!B277*Petroleum!$K$262+Petroleum!$K277)+Vehicles!$C$14*Fuel_Specs!$B$39/((1-Vehicles!$C$35)*(1-Vehicles!$C$14)*Fuel_Specs!$B$20+Vehicles!$C$35*(1-Vehicles!$C$14)*Fuel_Specs!$B$23+Vehicles!$C$14*Fuel_Specs!$B$39)*(BioOil!$W349*BioOil!$X$333+BioOil!$X349))/1000000*HLOOKUP($J$10,$Z$5:$AD$6,2,FALSE)/HLOOKUP($J$11,$Z$7:$AD$8,2,FALSE) -> 173.3957308 | AF22: =((1-Vehicles!$C$36)*(1-Vehicles!$C$15)*Fuel_Specs!$B$20/((1-Vehicles!$C$36)*(1-Vehicles!$C$15)*Fuel_Specs!$B$20+Vehicles!$C$36*(1-Vehicles!$C$15)*Fuel_Specs!$B$23+Vehicles!$C$15*IF(Inputs!$E$628=1,IF(Inputs!$E$628=1,Fuel_Specs!$B$41,IF(Inputs!$E$628=3,Fuel_Specs!$B$43,Fuel_Specs!$B$42)),Fuel_Specs!$B$42))*(Petroleum!B277*Petroleum!$J$262+Petroleum!$J277)+Vehicles!$C$36*(1-Vehicles!$C$15)*Fuel_Specs!$B$23/((1-Vehicles!$C$36)*(1-Vehicles!$C$15)*Fuel_Specs!$B$20+Vehicles!$C$36*(1-Vehicles!$C$15)*Fuel_Specs!$B$23+Vehicles!$C$15*IF(Inputs!$E$628=1,IF(Inputs!$E$628=1,Fuel_Specs!$B$41,IF(Inputs!$E$628=3,Fuel_Specs!$B$43,Fuel_Specs!$B$42)),Fuel_Specs!$B$42))*(Petroleum!B277*Petroleum!$K$262+Petroleum!$K277)+Vehicles!$C$15*IF(Inputs!$E$628=1,IF(Inputs!$E$628=1,Fuel_Specs!$B$41,IF(Inputs!$E$628=3,Fuel_Specs!$B$43,Fuel_Specs!$B$42)),Fuel_Specs!$B$42)/((1-Vehicles!$C$36)*(1-Vehicles!$C$15)*Fuel_Specs!$B$20+Vehicles!$C$36*(1-Vehicles!$C$15)*Fuel_Specs!$B$23+Vehicles!$C$15*IF(Inputs!$E$628=1,IF(Inputs!$E$628=1,Fuel_Specs!$B$41,IF(Inputs!$E$628=3,Fuel_Specs!$B$43,Fuel_Specs!$B$42)),Fuel_Specs!$B$42))*(BioOil!$BA349*BioOil!$BB$333+BioOil!$BB349))/1000000*HLOOKUP($J$10,$Z$5:$AD$6,2,FALSE)/HLOOKUP($J$11,$Z$7:$AD$8,2,FALSE) -> 52.8832634 | AG22: =((1-Vehicles!$C$36)*(1-Vehicles!$C$15)*Fuel_Specs!$B$20/((1-Vehicles!$C$36)*(1-Vehicles!$C$15)*Fuel_Specs!$B$20+Vehicles!$C$36*(1-Vehicles!$C$15)*Fuel_Specs!$B$23+Vehicles!$C$15*IF(Inputs!$E$628=1,Fuel_Specs!$B$41,Fuel_Specs!$B$42))*(Petroleum!B277*Petroleum!$J$262+Petroleum!$J277)+Vehicles!$C$36*(1-Vehicles!$C$15)*Fuel_Specs!$B$23/((1-Vehicles!$C$36)*(1-Vehicles!$C$15)*Fuel_Specs!$B$20+Vehicles!$C$36*(1-Vehicles!$C$15)*Fuel_Specs!$B$23+Vehicles!$C$15*IF(Inputs!$E$628=1,Fuel_Specs!$B$41,Fuel_Specs!$B$42))*(Petroleum!B277*Petroleum!$K$262+Petroleum!$K277)+Vehicles!$C$15*IF(Inputs!$E$628=1,Fuel_Specs!$B$41,Fuel_Specs!$B$42)/((1-Vehicles!$C$36)*(1-Vehicles!$C$15)*Fuel_Specs!$B$20+Vehicles!$C$36*(1-Vehicles!$C$15)*Fuel_Specs!$B$23+Vehicles!$C$15*IF(Inputs!$E$628=1,Fuel_Specs!$B$41,Fuel_Specs!$B$42))*(Pyrolysis!$AB186*Pyrolysis!$AC$171+Pyrolysis!$AC186))/1000000*HLOOKUP($J$10,$Z$5:$AD$6,2,FALSE)/HLOOKUP($J$11,$Z$7:$AD$8,2,FALSE) -> 90.69826418 | AH22: =(((1-Vehicles!$C$37)*(1-Vehicles!$C$17-Vehicles!$C$18)*Fuel_Specs!$B$20*(Petroleum!B277*Petroleum!$J$262+Petroleum!$J277)+Vehicles!$C$37*(1-Vehicles!$C$17-Vehicles!$C$18)*Fuel_Specs!$B$23*(Petroleum!B277*Petroleum!$K$262+Petroleum!$K277)+Vehicles!$C$17*Fuel_Specs!$B$31*(EtOH!BP504*EtOH!$BQ$489+EtOH!$BQ504)+Vehicles!$C$18*Fuel_Specs!$B$34*('E-D Additives'!$B68*'E-D Additives'!$B$53))/((1-Vehicles!$C$37)*(1-Vehicles!$C$17-Vehicles!$C$18)*Fuel_Specs!$B$20+Vehicles!$C$37*(1-Vehicles!$C$17-Vehicles!$C$18)*Fuel_Specs!$B$23+Vehicles!$C$17*Fuel_Specs!$B$31+Vehicles!$C$18*Fuel_Specs!$B$34))/1000000*HLOOKUP($J$10,$Z$5:$AD$6,2,FALSE)/HLOOKUP($J$11,$Z$7:$AD$8,2,FALSE) -> 192.6787622 | AI22: =AN22*(Vehicles!$M$23/Vehicles!$CM$59)/(Vehicles!$M$23*(1/Vehicles!$CM$59+1/Vehicles!$CN$59)+Vehicles!$M$24/Vehicles!$CO$59)+E22*(Vehicles!$M$23/Vehicles!$CN$59+Vehicles!$M$24/Vehicles!$CO$59)/(Vehicles!$M$23*(1/Vehicles!$CM$59+1/Vehicles!$CN$59)+Vehicles!$M$24/Vehicles!$CO$59) -> 236.6196452 | AJ22: =AN22*(Vehicles!$N$23/Vehicles!$CQ$59)/(Vehicles!$N$23*(1/Vehicles!$CQ$59+1/Vehicles!$CR$59)+Vehicles!$N$24/Vehicles!$CS$59)+AC22*(Vehicles!$N$23/Vehicles!$CR$59+Vehicles!$N$24/Vehicles!$CS$59)/(Vehicles!$N$23*(1/Vehicles!$CQ$59+1/Vehicles!$CR$59)+Vehicles!$N$24/Vehicles!$CS$59) -> 319.6219288 | AK22: =AN22*(Vehicles!$O$23/Vehicles!$CU$59)/(Vehicles!$O$23*(1/Vehicles!$CU$59+1/Vehicles!$CV$59)+Vehicles!$O$24/Vehicles!$CW$59)+AD22*(Vehicles!$O$23/Vehicles!$CV$59+Vehicles!$O$24/Vehicles!$CW$59)/(Vehicles!$O$23*(1/Vehicles!$CU$59+1/Vehicles!$CV$59)+Vehicles!$O$24/Vehicles!$CW$59) -> 327.6094807 | AL22: =AN22*(Vehicles!$P$23/Vehicles!$CY$59)/(Vehicles!$P$23*(1/Vehicles!$CY$59+1/Vehicles!$CZ$59)+Vehicles!$P$24/Vehicles!$DA$59)+AE22*(Vehicles!$P$23/Vehicles!$CZ$59+Vehicles!$P$24/Vehicles!$DA$59)/(Vehicles!$P$23*(1/Vehicles!$CY$59+1/Vehicles!$CZ$59)+Vehicles!$P$24/Vehicles!$DA$59) -> 219.0523625 | AM22: =AN22*(Vehicles!$R$23/Vehicles!$DG$59)/(Vehicles!$R$23*(1/Vehicles!$DG$59+1/Vehicles!$DH$59)+Vehicles!$R$24/Vehicles!$DI$59)+AH22*(Vehicles!$R$23/Vehicles!$DH$59+Vehicles!$R$24/Vehicles!$DI$59)/(Vehicles!$R$23*(1/Vehicles!$DG$59+1/Vehicles!$DH$59)+Vehicles!$R$24/Vehicles!$DI$59) -> 233.2652055 | AN22: =(Electric!$G200+Electric!$F200)/1000000*HLOOKUP($J$10,$Z$5:$AD$6,2,FALSE)/HLOOKUP($J$11,$Z$7:$AD$8,2,FALSE) -> 347.0378522 | AO22: =(Hydrogen!$AF177*Hydrogen!$AG$162+Hydrogen!$AG177)/1000000*HLOOKUP($J$10,$Z$5:$AD$6,2,FALSE)/HLOOKUP($J$11,$Z$7:$AD$8,2,FALSE) -> 518.7527203 | AP22: =(Hydrogen!$BJ177*Hydrogen!$BK$162+Hydrogen!$BK177)/1000000*HLOOKUP($J$10,$Z$5:$AD$6,2,FALSE)/HLOOKUP($J$11,$Z$7:$AD$8,2,FALSE) -> 450.8394939 | AQ22: =AN22*(Vehicles!$S$23/Vehicles!$DW$59)/(Vehicles!$S$23*(1/Vehicles!$DW$59+1/Vehicles!$DX$59)+Vehicles!$S$24/Vehicles!$DY$59)+AO22*(Vehicles!$S$23/Vehicles!$DX$59+Vehicles!$S$24/Vehicles!$DY$59)/(Vehicles!$S$23*(1/Vehicles!$DW$59+1/Vehicles!$DX$59)+Vehicles!$S$24/Vehicles!$DY$59) -> 463.6222521 | AR22: =AN22*(Vehicles!$S$23/Vehicles!$DW$59)/(Vehicles!$S$23*(1/Vehicles!$DW$59+1/Vehicles!$DX$59)+Vehicles!$S$24/Vehicles!$DY$59)+AP22*(Vehicles!$S$23/Vehicles!$DX$59+Vehicles!$S$24/Vehicles!$DY$59)/(Vehicles!$S$23*(1/Vehicles!$DW$59+1/Vehicles!$DX$59)+Vehicles!$S$24/Vehicles!$DY$59) -> 417.5131247 | AS22: =((1-Vehicles!$C$33)*(1-Vehicles!$C$16)*Fuel_Specs!$B$15/((1-Vehicles!$C$33)*(1-Vehicles!$C$16)*Fuel_Specs!$B$15+Vehicles!$C$33*(1-Vehicles!$C$16)*Fuel_Specs!$B$16+Vehicles!$C$16*Fuel_Specs!$B$45)*(Petroleum!$B277*Petroleum!$D$262+Petroleum!$D277)+Vehicles!$C$33*(1-Vehicles!$C$16)*Fuel_Specs!$B$16/((1-Vehicles!$C$33)*(1-Vehicles!$C$16)*Fuel_Specs!$B$15+Vehicles!$C$33*(1-Vehicles!$C$16)*Fuel_Specs!$B$16+Vehicles!$C$16*Fuel_Specs!$B$45)*(Petroleum!B277*Petroleum!$F$262+Petroleum!$F277)+Vehicles!$C$16*Fuel_Specs!$B$45/((1-Vehicles!$C$33)*(1-Vehicles!$C$16)*Fuel_Specs!$B$15+Vehicles!$C$33*(1-Vehicles!$C$16)*Fuel_Specs!$B$16+Vehicles!$C$16*Fuel_Specs!$B$45)*(IDL!$L127*IDL!$M$112+IDL!$M127))/1000000*HLOOKUP($J$10,$Z$5:$AD$6,2,FALSE)/HLOOKUP($J$11,$Z$7:$AD$8,2,FALSE) -> 61.17621049 | AV22: SI - CNG Vehicle | AW22: RNAVCNG | BE22: SI HEV - MeOH | BF22: RNAVHEVMEOH | BH22: SI PHEV - MeOH and Electricity | BI22: RNAVPHEVMEOH | BQ22: FCV - CA gasoline | BR22: RNAVFCVCARFG
A23: N2O | B23: =(Inputs!$E$1398*(Petroleum!$B278*Petroleum!$F$262+Petroleum!$F278)+(1-Inputs!$E$1398)*(Petroleum!$B278*Petroleum!$D$262+Petroleum!$D278))/1000000*HLOOKUP($J$10,$Z$5:$AD$6,2,FALSE)/HLOOKUP($J$11,$Z$7:$AD$8,2,FALSE) -> 2.877064304 | C23: =(Petroleum!$C278*Petroleum!$G$262+Petroleum!$G278)/1000000*HLOOKUP($J$10,$Z$5:$AD$6,2,FALSE)/HLOOKUP($J$11,$Z$7:$AD$8,2,FALSE) -> 2.864500286 | D23: =((1-Vehicles!$C$28)*(1-Vehicles!$C$7)*Fuel_Specs!$B$15/((1-Vehicles!$C$28)*(1-Vehicles!$C$7)*Fuel_Specs!$B$15+Vehicles!$C$28*(1-Vehicles!$C$7)*Fuel_Specs!$B$16+Vehicles!$C$7*Fuel_Specs!$B$31)*(Petroleum!$B278*Petroleum!$D$262+(Petroleum!$D278-'T&D'!G228))+Vehicles!$C$28*(1-Vehicles!$C$7)*Fuel_Specs!$B$16/((1-Vehicles!$C$28)*(1-Vehicles!$C$7)*Fuel_Specs!$B$15+Vehicles!$C$28*(1-Vehicles!$C$7)*Fuel_Specs!$B$16+Vehicles!$C$7*Fuel_Specs!$B$31)*(Petroleum!B278*Petroleum!$F$262+Petroleum!$F278)+Vehicles!$C$7*Fuel_Specs!$B$31/((1-Vehicles!$C$28)*(1-Vehicles!$C$7)*Fuel_Specs!$B$15+Vehicles!$C$28*(1-Vehicles!$C$7)*Fuel_Specs!$B$16+Vehicles!$C$7*Fuel_Specs!$B$31)*(EtOH!BR505*EtOH!$BS$489+EtOH!$BS505)+Petroleum!AR140+Petroleum!AS140)/1000000*HLOOKUP($J$10,$Z$5:$AD$6,2,FALSE)/HLOOKUP($J$11,$Z$7:$AD$8,2,FALSE) -> 2.877064304 | E23: =(Inputs!$E$97*(IF(Inputs!F$102=1,Petroleum!$B278,Petroleum!$C278)*Petroleum!$K$262+Petroleum!$K278)+(1-Inputs!$E$97)*(IF(Inputs!F$101=1,Petroleum!$B278,Petroleum!$C278)*Petroleum!$J$262+Petroleum!$J278))/1000000*HLOOKUP($J$10,$Z$5:$AD$6,2,FALSE)/HLOOKUP($J$11,$Z$7:$AD$8,2,FALSE) -> 0.3454744884 | F23: =(NG!$I100*NG!$J$84+NG!$J100)/1000000*HLOOKUP($J$10,$Z$5:$AD$6,2,FALSE)/HLOOKUP($J$11,$Z$7:$AD$8,2,FALSE) -> 2.138670967 | G23: =(NG!$Q100*NG!$R$84+NG!$R100)/1000000*HLOOKUP($J$10,$Z$5:$AD$6,2,FALSE)/HLOOKUP($J$11,$Z$7:$AD$8,2,FALSE) -> 2.341509075 | H23: =(NG!$W100*NG!$X$84+NG!$X100)/1000000*HLOOKUP($J$10,$Z$5:$AD$6,2,FALSE)/HLOOKUP($J$11,$Z$7:$AD$8,2,FALSE) -> 0.2079854731 | I23: =('MeOH&FTD'!BJ153*'MeOH&FTD'!BK$137+'MeOH&FTD'!BK153)/1000000*HLOOKUP($J$10,$Z$5:$AD$6,2,FALSE)/HLOOKUP($J$11,$Z$7:$AD$8,2,FALSE) -> 0.1713739843 | J23: =((1-Vehicles!$C$27)*(1-Vehicles!$C$5)*Fuel_Specs!$B$15/((1-Vehicles!$C$27)*(1-Vehicles!$C$5)*Fuel_Specs!$B$15+Vehicles!$C$27*(1-Vehicles!$C$5)*Fuel_Specs!$B$16+Vehicles!$C$5*Fuel_Specs!$B$30)*(Petroleum!$B278*Petroleum!$D$262+Petroleum!$D278)+Vehicles!$C$27*(1-Vehicles!$C$5)*Fuel_Specs!$B$16/((1-Vehicles!$C$27)*(1-Vehicles!$C$5)*Fuel_Specs!$B$15+Vehicles!$C$27*(1-Vehicles!$C$5)*Fuel_Specs!$B$16+Vehicles!$C$5*Fuel_Specs!$B$30)*(Petroleum!B278*Petroleum!$F$262+Petroleum!$F278)+Vehicles!$C$5*Fuel_Specs!$B$30/((1-Vehicles!$C$27)*(1-Vehicles!$C$5)*Fuel_Specs!$B$15+Vehicles!$C$27*(1-Vehicles!$C$5)*Fuel_Specs!$B$16+Vehicles!$C$5*Fuel_Specs!$B$30)*('MeOH&FTD'!$N153*'MeOH&FTD'!$O$137+'MeOH&FTD'!$O153))/1000000*HLOOKUP($J$10,$Z$5:$AD$6,2,FALSE)/HLOOKUP($J$11,$Z$7:$AD$8,2,FALSE) -> 0.352506897 | K23: =((1-Vehicles!$C$27)*(1-Vehicles!$C$6)*Fuel_Specs!$B$15/((1-Vehicles!$C$27)*(1-Vehicles!$C$6)*Fuel_Specs!$B$15+Vehicles!$C$27*(1-Vehicles!$C$6)*Fuel_Specs!$B$16+Vehicles!$C$6*Fuel_Specs!$B$30)*(Petroleum!$B278*Petroleum!$D$262+Petroleum!$D278)+Vehicles!$C$27*(1-Vehicles!$C$6)*Fuel_Specs!$B$16/((1-Vehicles!$C$27)*(1-Vehicles!$C$6)*Fuel_Specs!$B$15+Vehicles!$C$27*(1-Vehicles!$C$6)*Fuel_Specs!$B$16+Vehicles!$C$6*Fuel_Specs!$B$30)*(Petroleum!B278*Petroleum!$F$262+Petroleum!$F278)+Vehicles!$C$6*Fuel_Specs!$B$30/((1-Vehicles!$C$27)*(1-Vehicles!$C$6)*Fuel_Specs!$B$15+Vehicles!$C$27*(1-Vehicles!$C$6)*Fuel_Specs!$B$16+Vehicles!$C$6*Fuel_Specs!$B$30)*('MeOH&FTD'!$N153*'MeOH&FTD'!$O$137+'MeOH&FTD'!$O153))/1000000*HLOOKUP($J$10,$Z$5:$AD$6,2,FALSE)/HLOOKUP($J$11,$Z$7:$AD$8,2,FALSE) -> 0.3551625105 | L23: =('MeOH&FTD'!$N153*'MeOH&FTD'!$O$137+'MeOH&FTD'!$O153)/1000000*HLOOKUP($J$10,$Z$5:$AD$6,2,FALSE)/HLOOKUP($J$11,$Z$7:$AD$8,2,FALSE) -> 0.3612925478 | M23: =((1-Vehicles!$C$29)*(1-Vehicles!$C$8)*Fuel_Specs!$B$15/((1-Vehicles!$C$29)*(1-Vehicles!$C$8)*Fuel_Specs!$B$15+Vehicles!$C$29*(1-Vehicles!$C$8)*Fuel_Specs!$B$16+Vehicles!$C$8*Fuel_Specs!$B$31)*(Petroleum!$B278*Petroleum!$D$262+(Petroleum!$D278-'T&D'!G228))+Vehicles!$C$29*(1-Vehicles!$C$8)*Fuel_Specs!$B$16/((1-Vehicles!$C$29)*(1-Vehicles!$C$8)*Fuel_Specs!$B$15+Vehicles!$C$29*(1-Vehicles!$C$8)*Fuel_Specs!$B$16+Vehicles!$C$8*Fuel_Specs!$B$31)*(Petroleum!B278*Petroleum!$F$262+Petroleum!$F278)+Vehicles!$C$8*Fuel_Specs!$B$31/((1-Vehicles!$C$29)*(1-Vehicles!$C$8)*Fuel_Specs!$B$15+Vehicles!$C$29*(1-Vehicles!$C$8)*Fuel_Specs!$B$16+Vehicles!$C$8*Fuel_Specs!$B$31)*(EtOH!BR505*EtOH!$BS$489+EtOH!$BS505)+Petroleum!AR140+Petroleum!AS140)/1000000*HLOOKUP($J$10,$Z$5:$AD$6,2,FALSE)/HLOOKUP($J$11,$Z$7:$AD$8,2,FALSE) -> 29.62680669 | N23: =((1-Vehicles!$C$30)*(1-Vehicles!$C$12)*Fuel_Specs!$B$15/((1-Vehicles!$C$30)*(1-Vehicles!$C$12)*Fuel_Specs!$B$15+Vehicles!$C$30*(1-Vehicles!$C$12)*Fuel_Specs!$B$16+Vehicles!$C$12*Fuel_Specs!$B$32)*(Petroleum!$B278*Petroleum!$D$262+Petroleum!$D278)+Vehicles!$C$30*(1-Vehicles!$C$12)*Fuel_Specs!$B$16/((1-Vehicles!$C$30)*(1-Vehicles!$C$12)*Fuel_Specs!$B$15+Vehicles!$C$30*(1-Vehicles!$C$12)*Fuel_Specs!$B$16+Vehicles!$C$12*Fuel_Specs!$B$32)*(Petroleum!B278*Petroleum!$F$262+Petroleum!$F278)+Vehicles!$C$12*Fuel_Specs!$B$32/((1-Vehicles!$C$30)*(1-Vehicles!$C$12)*Fuel_Specs!$B$15+Vehicles!$C$30*(1-Vehicles!$C$12)*Fuel_Specs!$B$16+Vehicles!$C$12*Fuel_Specs!$B$32)*(EtOH!$BT505*EtOH!$BU$489+EtOH!$BU505))/1000000*HLOOKUP($J$10,$Z$5:$AD$6,2,FALSE)/HLOOKUP($J$11,$Z$7:$AD$8,2,FALSE) -> 34.99105121 | O23: =((1-Vehicles!$C$29)*(1-Vehicles!$C$9)*Fuel_Specs!$B$15/((1-Vehicles!$C$29)*(1-Vehicles!$C$9)*Fuel_Specs!$B$15+Vehicles!$C$29*(1-Vehicles!$C$9)*Fuel_Specs!$B$16+Vehicles!$C$9*Fuel_Specs!$B$31)*(Petroleum!$B278*Petroleum!$D$262+(Petroleum!$D278-'T&D'!G228))+Vehicles!$C$29*(1-Vehicles!$C$9)*Fuel_Specs!$B$16/((1-Vehicles!$C$29)*(1-Vehicles!$C$9)*Fuel_Specs!$B$15+Vehicles!$C$29*(1-Vehicles!$C$9)*Fuel_Specs!$B$16+Vehicles!$C$9*Fuel_Specs!$B$31)*(Petroleum!B278*Petroleum!$F$262+Petroleum!$F278)+Vehicles!$C$9*Fuel_Specs!$B$31/((1-Vehicles!$C$29)*(1-Vehicles!$C$9)*Fuel_Specs!$B$15+Vehicles!$C$29*(1-Vehicles!$C$9)*Fuel_Specs!$B$16+Vehicles!$C$9*Fuel_Specs!$B$31)*(EtOH!BR505*EtOH!$BS$489+EtOH!$BS505)+Petroleum!AR140+Petroleum!AS140)/1000000*HLOOKUP($J$10,$Z$5:$AD$6,2,FALSE)/HLOOKUP($J$11,$Z$7:$AD$8,2,FALSE) -> 29.62680669 | P23: =(EtOH!$BP505*EtOH!$BQ$489+EtOH!$BQ505)/1000000*HLOOKUP($J$10,$Z$5:$AD$6,2,FALSE)/HLOOKUP($J$11,$Z$7:$AD$8,2,FALSE) -> 38.5606462 | Q23: =((1-Vehicles!$C$33)*(1-Vehicles!$C$16)*Fuel_Specs!$B$15/((1-Vehicles!$C$33)*(1-Vehicles!$C$16)*Fuel_Specs!$B$15+Vehicles!$C$33*(1-Vehicles!$C$16)*Fuel_Specs!$B$16+Vehicles!$C$16*Fuel_Specs!$B$44)*(Petroleum!$B278*Petroleum!$D$262+Petroleum!$D278)+Vehicles!$C$33*(1-Vehicles!$C$16)*Fuel_Specs!$B$16/((1-Vehicles!$C$33)*(1-Vehicles!$C$16)*Fuel_Specs!$B$15+Vehicles!$C$33*(1-Vehicles!$C$16)*Fuel_Specs!$B$16+Vehicles!$C$16*Fuel_Specs!$B$44)*(Petroleum!B278*Petroleum!$F$262+Petroleum!$F278)+Vehicles!$C$16*Fuel_Specs!$B$44/((1-Vehicles!$C$33)*(1-Vehicles!$C$16)*Fuel_Specs!$B$15+Vehicles!$C$33*(1-Vehicles!$C$16)*Fuel_Specs!$B$16+Vehicles!$C$16*Fuel_Specs!$B$44)*(BioOil!$BO350*BioOil!$BP$333+BioOil!$BP350))/1000000*HLOOKUP($J$10,$Z$5:$AD$6,2,FALSE)/HLOOKUP($J$11,$Z$7:$AD$8,2,FALSE) -> 23.5329643 | R23: =((1-Vehicles!$C$33)*(1-Vehicles!$C$16)*Fuel_Specs!$B$15/((1-Vehicles!$C$33)*(1-Vehicles!$C$16)*Fuel_Specs!$B$15+Vehicles!$C$33*(1-Vehicles!$C$16)*Fuel_Specs!$B$16+Vehicles!$C$16*Fuel_Specs!$B$44)*(Petroleum!$B278*Petroleum!$D$262+Petroleum!$D278)+Vehicles!$C$33*(1-Vehicles!$C$16)*Fuel_Specs!$B$16/((1-Vehicles!$C$33)*(1-Vehicles!$C$16)*Fuel_Specs!$B$15+Vehicles!$C$33*(1-Vehicles!$C$16)*Fuel_Specs!$B$16+Vehicles!$C$16*Fuel_Specs!$B$44)*(Petroleum!B278*Petroleum!$F$262+Petroleum!$F278)+Vehicles!$C$16*Fuel_Specs!$B$44/((1-Vehicles!$C$33)*(1-Vehicles!$C$16)*Fuel_Specs!$B$15+Vehicles!$C$33*(1-Vehicles!$C$16)*Fuel_Specs!$B$16+Vehicles!$C$16*Fuel_Specs!$B$44)*(Pyrolysis!$Z187*Pyrolysis!$AA$171+Pyrolysis!$AA187))/1000000*HLOOKUP($J$10,$Z$5:$AD$6,2,FALSE)/HLOOKUP($J$11,$Z$7:$AD$8,2,FALSE) -> 0.4093245585 | S23: =AN23*(Vehicles!$C$23/Vehicles!$AR$59)/(Vehicles!$C$23*(1/Vehicles!$AR$59+1/Vehicles!$AS$59)+Vehicles!$C$24/Vehicles!$AT$59)+B23*(Vehicles!$C$23/Vehicles!$AS$59+Vehicles!$C$24/Vehicles!$AT$59)/(Vehicles!$C$23*(1/Vehicles!$AR$59+1/Vehicles!$AS$59)+Vehicles!$C$24/Vehicles!$AT$59) -> 2.889140862 | T23: =AN23*(Vehicles!$D$23/Vehicles!$AV$59)/(Vehicles!$D$23*(1/Vehicles!$AV$59+1/Vehicles!$AW$59)+Vehicles!$D$24/Vehicles!$AX$59)+C23*(Vehicles!$D$23/Vehicles!$AW$59+Vehicles!$D$24/Vehicles!$AX$59)/(Vehicles!$D$23*(1/Vehicles!$AV$59+1/Vehicles!$AW$59)+Vehicles!$D$24/Vehicles!$AX$59) -> 2.879754279 | U23: =AN23*(Vehicles!$F$23/Vehicles!$BD$59)/(Vehicles!$F$23*(1/Vehicles!$BD$59+1/Vehicles!$BE$59)+Vehicles!$F$24/Vehicles!$BF$59)+D23*(Vehicles!$F$23/Vehicles!$BE$59+Vehicles!$F$24/Vehicles!$BF$59)/(Vehicles!$F$23*(1/Vehicles!$BD$59+1/Vehicles!$BE$59)+Vehicles!$F$24/Vehicles!$BF$59) -> 2.889140862 | V23: =AN23*(Vehicles!$G$23/Vehicles!$BH$59)/(Vehicles!$G$23*(1/Vehicles!$BH$59+1/Vehicles!$BI$59)+Vehicles!$G$24/Vehicles!$BJ$59)+F23*(Vehicles!$G$23/Vehicles!$BI$59+Vehicles!$G$24/Vehicles!$BJ$59)/(Vehicles!$G$23*(1/Vehicles!$BH$59+1/Vehicles!$BI$59)+Vehicles!$G$24/Vehicles!$BJ$59) -> 2.337486903 | W23: =AN23*(Vehicles!$H$23/Vehicles!$BL$59)/(Vehicles!$H$23*(1/Vehicles!$BL$59+1/Vehicles!$BM$59)+Vehicles!$H$24/Vehicles!$BN$59)+G23*(Vehicles!$H$23/Vehicles!$BM$59+Vehicles!$H$24/Vehicles!$BN$59)/(Vehicles!$H$23*(1/Vehicles!$BL$59+1/Vehicles!$BM$59)+Vehicles!$H$24/Vehicles!$BN$59) -> 2.489027335 | X23: =AN23*(Vehicles!$I$23/Vehicles!$BP$59)/(Vehicles!$I$23*(1/Vehicles!$BP$59+1/Vehicles!$BQ$59)+Vehicles!$I$24/Vehicles!$BR$59)+H23*(Vehicles!$I$23/Vehicles!$BQ$59+Vehicles!$I$24/Vehicles!$BR$59)/(Vehicles!$I$23*(1/Vehicles!$BP$59+1/Vehicles!$BQ$59)+Vehicles!$I$24/Vehicles!$BR$59) -> 0.8950709921 | Y23: =AN23*(Vehicles!$J$23/Vehicles!$BT$59)/(Vehicles!$J$23*(1/Vehicles!$BT$59+1/Vehicles!$BU$59)+Vehicles!$J$24/Vehicles!$BV$59)+K23*(Vehicles!$J$23/Vehicles!$BU$59+Vehicles!$J$24/Vehicles!$BV$59)/(Vehicles!$J$23*(1/Vehicles!$BT$59+1/Vehicles!$BU$59)+Vehicles!$J$24/Vehicles!$BV$59) -> 0.9739307021 | Z23: =AN23*(Vehicles!$K$23/Vehicles!$BX$59)/(Vehicles!$K$23*(1/Vehicles!$BX$59+1/Vehicles!$BY$59)+Vehicles!$K$24/Vehicles!$BZ$59)+O23*(Vehicles!$K$23/Vehicles!$BY$59+Vehicles!$K$24/Vehicles!$BZ$59)/(Vehicles!$K$23*(1/Vehicles!$BX$59+1/Vehicles!$BY$59)+Vehicles!$K$24/Vehicles!$BZ$59) -> 23.19701461 | AA23: =AN23*(Vehicles!$L$23/Vehicles!$CB$59)/(Vehicles!$L$23*(1/Vehicles!$CB$59+1/Vehicles!$CC$59)+Vehicles!$L$24/Vehicles!$CD$59)+AO23*(Vehicles!$L$23/Vehicles!$CC$59+Vehicles!$L$24/Vehicles!$CD$59)/(Vehicles!$L$23*(1/Vehicles!$CB$59+1/Vehicles!$CC$59)+Vehicles!$L$24/Vehicles!$CD$59) -> 2.523245333 | AB23: =AN23*(Vehicles!$L$23/Vehicles!$CB$59)/(Vehicles!$L$23*(1/Vehicles!$CB$59+1/Vehicles!$CC$59)+Vehicles!$L$24/Vehicles!$CE$59)+AP23*(Vehicles!$L$23/Vehicles!$CC$59+Vehicles!$L$24/Vehicles!$CE$59)/(Vehicles!$L$23*(1/Vehicles!$CB$59+1/Vehicles!$CC$59)+Vehicles!$L$24/Vehicles!$CE$59) -> 1.647317888 | AC23: =('MeOH&FTD'!$AJ153*'MeOH&FTD'!$AK$137+'MeOH&FTD'!$AK153)/1000000*HLOOKUP($J$10,$Z$5:$AD$6,2,FALSE)/HLOOKUP($J$11,$Z$7:$AD$8,2,FALSE) -> 0.4144054679 | AD23: =((1-Vehicles!$C$34)*(1-Vehicles!$C$13)*Fuel_Specs!$B$20/((1-Vehicles!$C$34)*(1-Vehicles!$C$13)*Fuel_Specs!$B$20+Vehicles!$C$34*(1-Vehicles!$C$13)*Fuel_Specs!$B$23+Vehicles!$C$13*Fuel_Specs!$B$40)*(Petroleum!B278*Petroleum!$J$262+Petroleum!$J278)+Vehicles!$C$34*(1-Vehicles!$C$13)*Fuel_Specs!$B$23/((1-Vehicles!$C$34)*(1-Vehicles!$C$13)*Fuel_Specs!$B$20+Vehicles!$C$34*(1-Vehicles!$C$13)*Fuel_Specs!$B$23+Vehicles!$C$13*Fuel_Specs!$B$40)*(Petroleum!B278*Petroleum!$K$262+Petroleum!$K278)+Vehicles!$C$13*Fuel_Specs!$B$40/((1-Vehicles!$C$34)*(1-Vehicles!$C$13)*Fuel_Specs!$B$20+Vehicles!$C$34*(1-Vehicles!$C$13)*Fuel_Specs!$B$23+Vehicles!$C$13*Fuel_Specs!$B$40)*('MeOH&FTD'!$AZ153*'MeOH&FTD'!$BA$137+'MeOH&FTD'!$BA153))/1000000*HLOOKUP($J$10,$Z$5:$AD$6,2,FALSE)/HLOOKUP($J$11,$Z$7:$AD$8,2,FALSE) -> 0.2084499901 | AE23: =((1-Vehicles!$C$35)*(1-Vehicles!$C$14)*Fuel_Specs!$B$20/((1-Vehicles!$C$35)*(1-Vehicles!$C$14)*Fuel_Specs!$B$20+Vehicles!$C$35*(1-Vehicles!$C$14)*Fuel_Specs!$B$23+Vehicles!$C$14*Fuel_Specs!$B$39)*(Petroleum!B278*Petroleum!$J$262+Petroleum!$J278)+Vehicles!$C$35*(1-Vehicles!$C$14)*Fuel_Specs!$B$23/((1-Vehicles!$C$35)*(1-Vehicles!$C$14)*Fuel_Specs!$B$20+Vehicles!$C$35*(1-Vehicles!$C$14)*Fuel_Specs!$B$23+Vehicles!$C$14*Fuel_Specs!$B$39)*(Petroleum!B278*Petroleum!$K$262+Petroleum!$K278)+Vehicles!$C$14*Fuel_Specs!$B$39/((1-Vehicles!$C$35)*(1-Vehicles!$C$14)*Fuel_Specs!$B$20+Vehicles!$C$35*(1-Vehicles!$C$14)*Fuel_Specs!$B$23+Vehicles!$C$14*Fuel_Specs!$B$39)*(BioOil!$W350*BioOil!$X$333+BioOil!$X350))/1000000*HLOOKUP($J$10,$Z$5:$AD$6,2,FALSE)/HLOOKUP($J$11,$Z$7:$AD$8,2,FALSE) -> 4.788607312 | AF23: =((1-Vehicles!$C$36)*(1-Vehicles!$C$15)*Fuel_Specs!$B$20/((1-Vehicles!$C$36)*(1-Vehicles!$C$15)*Fuel_Specs!$B$20+Vehicles!$C$36*(1-Vehicles!$C$15)*Fuel_Specs!$B$23+Vehicles!$C$15*IF(Inputs!$E$628=1,IF(Inputs!$E$628=1,Fuel_Specs!$B$41,IF(Inputs!$E$628=3,Fuel_Specs!$B$43,Fuel_Specs!$B$42)),Fuel_Specs!$B$42))*(Petroleum!B278*Petroleum!$J$262+Petroleum!$J278)+Vehicles!$C$36*(1-Vehicles!$C$15)*Fuel_Specs!$B$23/((1-Vehicles!$C$36)*(1-Vehicles!$C$15)*Fuel_Specs!$B$20+Vehicles!$C$36*(1-Vehicles!$C$15)*Fuel_Specs!$B$23+Vehicles!$C$15*IF(Inputs!$E$628=1,IF(Inputs!$E$628=1,Fuel_Specs!$B$41,IF(Inputs!$E$628=3,Fuel_Specs!$B$43,Fuel_Specs!$B$42)),Fuel_Specs!$B$42))*(Petroleum!B278*Petroleum!$K$262+Petroleum!$K278)+Vehicles!$C$15*IF(Inputs!$E$628=1,IF(Inputs!$E$628=1,Fuel_Specs!$B$41,IF(Inputs!$E$628=3,Fuel_Specs!$B$43,Fuel_Specs!$B$42)),Fuel_Specs!$B$42)/((1-Vehicles!$C$36)*(1-Vehicles!$C$15)*Fuel_Specs!$B$20+Vehicles!$C$36*(1-Vehicles!$C$15)*Fuel_Specs!$B$23+Vehicles!$C$15*IF(Inputs!$E$628=1,IF(Inputs!$E$628=1,Fuel_Specs!$B$41,IF(Inputs!$E$628=3,Fuel_Specs!$B$43,Fuel_Specs!$B$42)),Fuel_Specs!$B$42))*(BioOil!$BA350*BioOil!$BB$333+BioOil!$BB350))/1000000*HLOOKUP($J$10,$Z$5:$AD$6,2,FALSE)/HLOOKUP($J$11,$Z$7:$AD$8,2,FALSE) -> 21.78294356 | AG23: =((1-Vehicles!$C$36)*(1-Vehicles!$C$15)*Fuel_Specs!$B$20/((1-Vehicles!$C$36)*(1-Vehicles!$C$15)*Fuel_Specs!$B$20+Vehicles!$C$36*(1-Vehicles!$C$15)*Fuel_Specs!$B$23+Vehicles!$C$15*IF(Inputs!$E$628=1,Fuel_Specs!$B$41,Fuel_Specs!$B$42))*(Petroleum!B278*Petroleum!$J$262+Petroleum!$J278)+Vehicles!$C$36*(1-Vehicles!$C$15)*Fuel_Specs!$B$23/((1-Vehicles!$C$36)*(1-Vehicles!$C$15)*Fuel_Specs!$B$20+Vehicles!$C$36*(1-Vehicles!$C$15)*Fuel_Specs!$B$23+Vehicles!$C$15*IF(Inputs!$E$628=1,Fuel_Specs!$B$41,Fuel_Specs!$B$42))*(Petroleum!B278*Petroleum!$K$262+Petroleum!$K278)+Vehicles!$C$15*IF(Inputs!$E$628=1,Fuel_Specs!$B$41,Fuel_Specs!$B$42)/((1-Vehicles!$C$36)*(1-Vehicles!$C$15)*Fuel_Specs!$B$20+Vehicles!$C$36*(1-Vehicles!$C$15)*Fuel_Specs!$B$23+Vehicles!$C$15*IF(Inputs!$E$628=1,Fuel_Specs!$B$41,Fuel_Specs!$B$42))*(Pyrolysis!$AB187*Pyrolysis!$AC$171+Pyrolysis!$AC187))/1000000*HLOOKUP($J$10,$Z$5:$AD$6,2,FALSE)/HLOOKUP($J$11,$Z$7:$AD$8,2,FALSE) -> 0.4526717835 | AH23: =(((1-Vehicles!$C$37)*(1-Vehicles!$C$17-Vehicles!$C$18)*Fuel_Specs!$B$20*(Petroleum!B278*Petroleum!$J$262+Petroleum!$J278)+Vehicles!$C$37*(1-Vehicles!$C$17-Vehicles!$C$18)*Fuel_Specs!$B$23*(Petroleum!B278*Petroleum!$K$262+Petroleum!$K278)+Vehicles!$C$17*Fuel_Specs!$B$31*(EtOH!BP505*EtOH!$BQ$489+EtOH!$BQ505)+Vehicles!$C$18*Fuel_Specs!$B$34*('E-D Additives'!$B69*'E-D Additives'!$B$53))/((1-Vehicles!$C$37)*(1-Vehicles!$C$17-Vehicles!$C$18)*Fuel_Specs!$B$20+Vehicles!$C$37*(1-Vehicles!$C$17-Vehicles!$C$18)*Fuel_Specs!$B$23+Vehicles!$C$17*Fuel_Specs!$B$31+Vehicles!$C$18*Fuel_Specs!$B$34))/1000000*HLOOKUP($J$10,$Z$5:$AD$6,2,FALSE)/HLOOKUP($J$11,$Z$7:$AD$8,2,FALSE) -> 2.699331177 | AI23: =AN23*(Vehicles!$M$23/Vehicles!$CM$59)/(Vehicles!$M$23*(1/Vehicles!$CM$59+1/Vehicles!$CN$59)+Vehicles!$M$24/Vehicles!$CO$59)+E23*(Vehicles!$M$23/Vehicles!$CN$59+Vehicles!$M$24/Vehicles!$CO$59)/(Vehicles!$M$23*(1/Vehicles!$CM$59+1/Vehicles!$CN$59)+Vehicles!$M$24/Vehicles!$CO$59) -> 1.023674431 | AJ23: =AN23*(Vehicles!$N$23/Vehicles!$CQ$59)/(Vehicles!$N$23*(1/Vehicles!$CQ$59+1/Vehicles!$CR$59)+Vehicles!$N$24/Vehicles!$CS$59)+AC23*(Vehicles!$N$23/Vehicles!$CR$59+Vehicles!$N$24/Vehicles!$CS$59)/(Vehicles!$N$23*(1/Vehicles!$CQ$59+1/Vehicles!$CR$59)+Vehicles!$N$24/Vehicles!$CS$59) -> 1.074481027 | AK23: =AN23*(Vehicles!$O$23/Vehicles!$CU$59)/(Vehicles!$O$23*(1/Vehicles!$CU$59+1/Vehicles!$CV$59)+Vehicles!$O$24/Vehicles!$CW$59)+AD23*(Vehicles!$O$23/Vehicles!$CV$59+Vehicles!$O$24/Vehicles!$CW$59)/(Vehicles!$O$23*(1/Vehicles!$CU$59+1/Vehicles!$CV$59)+Vehicles!$O$24/Vehicles!$CW$59) -> 0.9226785008 | AL23: =AN23*(Vehicles!$P$23/Vehicles!$CY$59)/(Vehicles!$P$23*(1/Vehicles!$CY$59+1/Vehicles!$CZ$59)+Vehicles!$P$24/Vehicles!$DA$59)+AE23*(Vehicles!$P$23/Vehicles!$CZ$59+Vehicles!$P$24/Vehicles!$DA$59)/(Vehicles!$P$23*(1/Vehicles!$CY$59+1/Vehicles!$CZ$59)+Vehicles!$P$24/Vehicles!$DA$59) -> 4.298551089 | AM23: =AN23*(Vehicles!$R$23/Vehicles!$DG$59)/(Vehicles!$R$23*(1/Vehicles!$DG$59+1/Vehicles!$DH$59)+Vehicles!$R$24/Vehicles!$DI$59)+AH23*(Vehicles!$R$23/Vehicles!$DH$59+Vehicles!$R$24/Vehicles!$DI$59)/(Vehicles!$R$23*(1/Vehicles!$DG$59+1/Vehicles!$DH$59)+Vehicles!$R$24/Vehicles!$DI$59) -> 2.758619262 | AN23: =(Electric!$G201+Electric!$F201)/1000000*HLOOKUP($J$10,$Z$5:$AD$6,2,FALSE)/HLOOKUP($J$11,$Z$7:$AD$8,2,FALSE) -> 2.924816685 | AO23: =(Hydrogen!$AF178*Hydrogen!$AG$162+Hydrogen!$AG178)/1000000*HLOOKUP($J$10,$Z$5:$AD$6,2,FALSE)/HLOOKUP($J$11,$Z$7:$AD$8,2,FALSE) -> 2.376526377 | AP23: =(Hydrogen!$BJ178*Hydrogen!$BK$162+Hydrogen!$BK178)/1000000*HLOOKUP($J$10,$Z$5:$AD$6,2,FALSE)/HLOOKUP($J$11,$Z$7:$AD$8,2,FALSE) -> 1.180568232 | AQ23: =AN23*(Vehicles!$S$23/Vehicles!$DW$59)/(Vehicles!$S$23*(1/Vehicles!$DW$59+1/Vehicles!$DX$59)+Vehicles!$S$24/Vehicles!$DY$59)+AO23*(Vehicles!$S$23/Vehicles!$DX$59+Vehicles!$S$24/Vehicles!$DY$59)/(Vehicles!$S$23*(1/Vehicles!$DW$59+1/Vehicles!$DX$59)+Vehicles!$S$24/Vehicles!$DY$59) -> 2.552559482 | AR23: =AN23*(Vehicles!$S$23/Vehicles!$DW$59)/(Vehicles!$S$23*(1/Vehicles!$DW$59+1/Vehicles!$DX$59)+Vehicles!$S$24/Vehicles!$DY$59)+AP23*(Vehicles!$S$23/Vehicles!$DX$59+Vehicles!$S$24/Vehicles!$DY$59)/(Vehicles!$S$23*(1/Vehicles!$DW$59+1/Vehicles!$DX$59)+Vehicles!$S$24/Vehicles!$DY$59) -> 1.740573518 | AS23: =((1-Vehicles!$C$33)*(1-Vehicles!$C$16)*Fuel_Specs!$B$15/((1-Vehicles!$C$33)*(1-Vehicles!$C$16)*Fuel_Specs!$B$15+Vehicles!$C$33*(1-Vehicles!$C$16)*Fuel_Specs!$B$16+Vehicles!$C$16*Fuel_Specs!$B$45)*(Petroleum!$B278*Petroleum!$D$262+Petroleum!$D278)+Vehicles!$C$33*(1-Vehicles!$C$16)*Fuel_Specs!$B$16/((1-Vehicles!$C$33)*(1-Vehicles!$C$16)*Fuel_Specs!$B$15+Vehicles!$C$33*(1-Vehicles!$C$16)*Fuel_Specs!$B$16+Vehicles!$C$16*Fuel_Specs!$B$45)*(Petroleum!B278*Petroleum!$F$262+Petroleum!$F278)+Vehicles!$C$16*Fuel_Specs!$B$45/((1-Vehicles!$C$33)*(1-Vehicles!$C$16)*Fuel_Specs!$B$15+Vehicles!$C$33*(1-Vehicles!$C$16)*Fuel_Specs!$B$16+Vehicles!$C$16*Fuel_Specs!$B$45)*(IDL!$L128*IDL!$M$112+IDL!$M128))/1000000*HLOOKUP($J$10,$Z$5:$AD$6,2,FALSE)/HLOOKUP($J$11,$Z$7:$AD$8,2,FALSE) -> 7.060378494 | AV23: SI - LNG Vehicle | AW23: RNAVLNG | BE23: SI HEV - EtOH | BF23: RNAVHEVETOH | BH23: SI PHEV - EtOH and Electricity | BI23: RNAVPHEVETOH | BQ23: FCV - Diesel | BR23: RNAVFCVDIESEL
A24: GHGs | B24: =B21+SUMPRODUCT(B22:B23,Fuel_Specs!$B$95:$B$96)+SUMPRODUCT(B25:B27,Fuel_Specs!$B$101:$B$103)+SUMPRODUCT(B31:B32,Fuel_Specs!$B$104:$B$105) -> 21775.31274 | C24: =C21+SUMPRODUCT(C22:C23,Fuel_Specs!$B$95:$B$96)+SUMPRODUCT(C25:C27,Fuel_Specs!$B$101:$B$103)+SUMPRODUCT(C31:C32,Fuel_Specs!$B$104:$B$105) -> 20778.8265 | D24: =D21+SUMPRODUCT(D22:D23,Fuel_Specs!$B$95:$B$96)+SUMPRODUCT(D25:D27,Fuel_Specs!$B$101:$B$103)+SUMPRODUCT(D31:D32,Fuel_Specs!$B$104:$B$105) -> 21775.31274 | E24: =E21+SUMPRODUCT(E22:E23,Fuel_Specs!$B$95:$B$96)+SUMPRODUCT(E25:E27,Fuel_Specs!$B$101:$B$103)+SUMPRODUCT(E31:E32,Fuel_Specs!$B$104:$B$105) -> 26755.53468 | F24: =F21+SUMPRODUCT(F22:F23,Fuel_Specs!$B$95:$B$96)+SUMPRODUCT(F25:F27,Fuel_Specs!$B$101:$B$103)+SUMPRODUCT(F31:F32,Fuel_Specs!$B$104:$B$105) -> 22815.26664 | G24: =G21+SUMPRODUCT(G22:G23,Fuel_Specs!$B$95:$B$96)+SUMPRODUCT(G25:G27,Fuel_Specs!$B$101:$B$103)+SUMPRODUCT(G31:G32,Fuel_Specs!$B$104:$B$105) -> 29490.40899 | H24: =H21+SUMPRODUCT(H22:H23,Fuel_Specs!$B$95:$B$96)+SUMPRODUCT(H25:H27,Fuel_Specs!$B$101:$B$103)+SUMPRODUCT(H31:H32,Fuel_Specs!$B$104:$B$105) -> 18468.43227 | I24: =I21+SUMPRODUCT(I22:I23,Fuel_Specs!$B$95:$B$96)+SUMPRODUCT(I25:I27,Fuel_Specs!$B$101:$B$103)+SUMPRODUCT(I31:I32,Fuel_Specs!$B$104:$B$105) -> 49279.13285 | J24: =J21+SUMPRODUCT(J22:J23,Fuel_Specs!$B$95:$B$96)+SUMPRODUCT(J25:J27,Fuel_Specs!$B$101:$B$103)+SUMPRODUCT(J31:J32,Fuel_Specs!$B$104:$B$105) -> 32836.12381 | K24: =K21+SUMPRODUCT(K22:K23,Fuel_Specs!$B$95:$B$96)+SUMPRODUCT(K25:K27,Fuel_Specs!$B$101:$B$103)+SUMPRODUCT(K31:K32,Fuel_Specs!$B$104:$B$105) -> 33751.0494 | L24: =L21+SUMPRODUCT(L22:L23,Fuel_Specs!$B$95:$B$96)+SUMPRODUCT(L25:L27,Fuel_Specs!$B$101:$B$103)+SUMPRODUCT(L31:L32,Fuel_Specs!$B$104:$B$105) -> 35863.00128 | M24: =M21+SUMPRODUCT(M22:M23,Fuel_Specs!$B$95:$B$96)+SUMPRODUCT(M25:M27,Fuel_Specs!$B$101:$B$103)+SUMPRODUCT(M31:M32,Fuel_Specs!$B$104:$B$105) -> -5601.23123 | N24: =N21+SUMPRODUCT(N22:N23,Fuel_Specs!$B$95:$B$96)+SUMPRODUCT(N25:N27,Fuel_Specs!$B$101:$B$103)+SUMPRODUCT(N31:N32,Fuel_Specs!$B$104:$B$105) -> -9182.067349 | O24: =O21+SUMPRODUCT(O22:O23,Fuel_Specs!$B$95:$B$96)+SUMPRODUCT(O25:O27,Fuel_Specs!$B$101:$B$103)+SUMPRODUCT(O31:O32,Fuel_Specs!$B$104:$B$105) -> -5601.23123 | P24: =P21+SUMPRODUCT(P22:P23,Fuel_Specs!$B$95:$B$96)+SUMPRODUCT(P25:P27,Fuel_Specs!$B$101:$B$103)+SUMPRODUCT(P31:P32,Fuel_Specs!$B$104:$B$105) -> -14650.3328 | Q24: =Q21+SUMPRODUCT(Q22:Q23,Fuel_Specs!$B$95:$B$96)+SUMPRODUCT(Q25:Q27,Fuel_Specs!$B$101:$B$103)+SUMPRODUCT(Q31:Q32,Fuel_Specs!$B$104:$B$105) -> -45804.48276 | R24: =R21+SUMPRODUCT(R22:R23,Fuel_Specs!$B$95:$B$96)+SUMPRODUCT(R25:R27,Fuel_Specs!$B$101:$B$103)+SUMPRODUCT(R31:R32,Fuel_Specs!$B$104:$B$105) -> -46121.21137 | S24: =S21+SUMPRODUCT(S22:S23,Fuel_Specs!$B$95:$B$96)+SUMPRODUCT(S25:S27,Fuel_Specs!$B$101:$B$103)+SUMPRODUCT(S31:S32,Fuel_Specs!$B$104:$B$105) -> 64543.53665 | T24: =T21+SUMPRODUCT(T22:T23,Fuel_Specs!$B$95:$B$96)+SUMPRODUCT(T25:T27,Fuel_Specs!$B$101:$B$103)+SUMPRODUCT(T31:T32,Fuel_Specs!$B$104:$B$105) -> 63799.06138 | U24: =U21+SUMPRODUCT(U22:U23,Fuel_Specs!$B$95:$B$96)+SUMPRODUCT(U25:U27,Fuel_Specs!$B$101:$B$103)+SUMPRODUCT(U31:U32,Fuel_Specs!$B$104:$B$105) -> 64543.53665 | V24: =V21+SUMPRODUCT(V22:V23,Fuel_Specs!$B$95:$B$96)+SUMPRODUCT(V25:V27,Fuel_Specs!$B$101:$B$103)+SUMPRODUCT(V31:V32,Fuel_Specs!$B$104:$B$105) -> 65320.48663 | W24: =W21+SUMPRODUCT(W22:W23,Fuel_Specs!$B$95:$B$96)+SUMPRODUCT(W25:W27,Fuel_Specs!$B$101:$B$103)+SUMPRODUCT(W31:W32,Fuel_Specs!$B$104:$B$105) -> 70307.48816 | X24: =X21+SUMPRODUCT(X22:X23,Fuel_Specs!$B$95:$B$96)+SUMPRODUCT(X25:X27,Fuel_Specs!$B$101:$B$103)+SUMPRODUCT(X31:X32,Fuel_Specs!$B$104:$B$105) -> 62072.96492 | Y24: =Y21+SUMPRODUCT(Y22:Y23,Fuel_Specs!$B$95:$B$96)+SUMPRODUCT(Y25:Y27,Fuel_Specs!$B$101:$B$103)+SUMPRODUCT(Y31:Y32,Fuel_Specs!$B$104:$B$105) -> 71589.05796 | Z24: =Z21+SUMPRODUCT(Z22:Z23,Fuel_Specs!$B$95:$B$96)+SUMPRODUCT(Z25:Z27,Fuel_Specs!$B$101:$B$103)+SUMPRODUCT(Z31:Z32,Fuel_Specs!$B$104:$B$105) -> 41712.73708 | AA24: =AA21+SUMPRODUCT(AA22:AA23,Fuel_Specs!$B$95:$B$96)+SUMPRODUCT(AA25:AA27,Fuel_Specs!$B$101:$B$103)+SUMPRODUCT(AA31:AA32,Fuel_Specs!$B$104:$B$105) -> 140764.1627 | AB24: =AB21+SUMPRODUCT(AB22:AB23,Fuel_Specs!$B$95:$B$96)+SUMPRODUCT(AB25:AB27,Fuel_Specs!$B$101:$B$103)+SUMPRODUCT(AB31:AB32,Fuel_Specs!$B$104:$B$105) -> 165376.0687 | AC24: =AC21+SUMPRODUCT(AC22:AC23,Fuel_Specs!$B$95:$B$96)+SUMPRODUCT(AC25:AC27,Fuel_Specs!$B$101:$B$103)+SUMPRODUCT(AC31:AC32,Fuel_Specs!$B$104:$B$105) -> 36786.98264 | AD24: =AD21+SUMPRODUCT(AD22:AD23,Fuel_Specs!$B$95:$B$96)+SUMPRODUCT(AD25:AD27,Fuel_Specs!$B$101:$B$103)+SUMPRODUCT(AD31:AD32,Fuel_Specs!$B$104:$B$105) -> 37570.42216 | AE24: =AE21+SUMPRODUCT(AE22:AE23,Fuel_Specs!$B$95:$B$96)+SUMPRODUCT(AE25:AE27,Fuel_Specs!$B$101:$B$103)+SUMPRODUCT(AE31:AE32,Fuel_Specs!$B$104:$B$105) -> 13597.4447 | AF24: =AF21+SUMPRODUCT(AF22:AF23,Fuel_Specs!$B$95:$B$96)+SUMPRODUCT(AF25:AF27,Fuel_Specs!$B$101:$B$103)+SUMPRODUCT(AF31:AF32,Fuel_Specs!$B$104:$B$105) -> -46412.65995 | AG24: =AG21+SUMPRODUCT(AG22:AG23,Fuel_Specs!$B$95:$B$96)+SUMPRODUCT(AG25:AG27,Fuel_Specs!$B$101:$B$103)+SUMPRODUCT(AG31:AG32,Fuel_Specs!$B$104:$B$105) -> -44525.99154 | AH24: =AH21+SUMPRODUCT(AH22:AH23,Fuel_Specs!$B$95:$B$96)+SUMPRODUCT(AH25:AH27,Fuel_Specs!$B$101:$B$103)+SUMPRODUCT(AH31:AH32,Fuel_Specs!$B$104:$B$105) -> 24213.73564 | AI24: =AI21+SUMPRODUCT(AI22:AI23,Fuel_Specs!$B$95:$B$96)+SUMPRODUCT(AI25:AI27,Fuel_Specs!$B$101:$B$103)+SUMPRODUCT(AI31:AI32,Fuel_Specs!$B$104:$B$105) -> 69911.424 | AJ24: =AJ21+SUMPRODUCT(AJ22:AJ23,Fuel_Specs!$B$95:$B$96)+SUMPRODUCT(AJ25:AJ27,Fuel_Specs!$B$101:$B$103)+SUMPRODUCT(AJ31:AJ32,Fuel_Specs!$B$104:$B$105) -> 77305.25085 | AK24: =AK21+SUMPRODUCT(AK22:AK23,Fuel_Specs!$B$95:$B$96)+SUMPRODUCT(AK25:AK27,Fuel_Specs!$B$101:$B$103)+SUMPRODUCT(AK31:AK32,Fuel_Specs!$B$104:$B$105) -> 77882.69652 | AL24: =AL21+SUMPRODUCT(AL22:AL23,Fuel_Specs!$B$95:$B$96)+SUMPRODUCT(AL25:AL27,Fuel_Specs!$B$101:$B$103)+SUMPRODUCT(AL31:AL32,Fuel_Specs!$B$104:$B$105) -> 60213.05948 | AM24: =AM21+SUMPRODUCT(AM22:AM23,Fuel_Specs!$B$95:$B$96)+SUMPRODUCT(AM25:AM27,Fuel_Specs!$B$101:$B$103)+SUMPRODUCT(AM31:AM32,Fuel_Specs!$B$104:$B$105) -> 68037.95348 | AN24: =AN21+SUMPRODUCT(AN22:AN23,Fuel_Specs!$B$95:$B$96)+SUMPRODUCT(AN25:AN27,Fuel_Specs!$B$101:$B$103)+SUMPRODUCT(AN31:AN32,Fuel_Specs!$B$104:$B$105) -> 190886.7878 | AO24: =AO21+SUMPRODUCT(AO22:AO23,Fuel_Specs!$B$95:$B$96)+SUMPRODUCT(AO25:AO27,Fuel_Specs!$B$101:$B$103)+SUMPRODUCT(AO31:AO32,Fuel_Specs!$B$104:$B$105) -> 122451.2547 | AP24: =AP21+SUMPRODUCT(AP22:AP23,Fuel_Specs!$B$95:$B$96)+SUMPRODUCT(AP25:AP27,Fuel_Specs!$B$101:$B$103)+SUMPRODUCT(AP31:AP32,Fuel_Specs!$B$104:$B$105) -> 156055.4186 | AQ24: =AQ21+SUMPRODUCT(AQ22:AQ23,Fuel_Specs!$B$95:$B$96)+SUMPRODUCT(AQ25:AQ27,Fuel_Specs!$B$101:$B$103)+SUMPRODUCT(AQ31:AQ32,Fuel_Specs!$B$104:$B$105) -> 144423.0444 | AR24: =AR21+SUMPRODUCT(AR22:AR23,Fuel_Specs!$B$95:$B$96)+SUMPRODUCT(AR25:AR27,Fuel_Specs!$B$101:$B$103)+SUMPRODUCT(AR31:AR32,Fuel_Specs!$B$104:$B$105) -> 167238.3156 | AS24: =AS21+SUMPRODUCT(AS22:AS23,Fuel_Specs!$B$95:$B$96)+SUMPRODUCT(AS25:AS27,Fuel_Specs!$B$101:$B$103)+SUMPRODUCT(AS31:AS32,Fuel_Specs!$B$104:$B$105) -> -37860.28876 | AV24: SI - LPG Vehicle | AW24: RNAVLPG | BE24: SI HEV - Gaseous H2 | BF24: RNAVHEVGH2 | BH24: SI PHEV - Gaseous H2 and Electricity | BI24: RNAVPHEVGH2 | BQ24: FCV - EtOH | BR24: RNAVFCVETOH
A25: VOC: Total | B25: =(Inputs!$E$1398*(Petroleum!$B269*Petroleum!$F$262+Petroleum!$F269)+(1-Inputs!$E$1398)*(Petroleum!$B269*Petroleum!$D$262+Petroleum!$D269))/1000000*HLOOKUP($J$10,$Z$5:$AD$6,2,FALSE)/HLOOKUP($J$11,$Z$7:$AD$8,2,FALSE) -> 30.11409778 | C25: =(Petroleum!$C269*Petroleum!$G$262+Petroleum!$G269)/1000000*HLOOKUP($J$10,$Z$5:$AD$6,2,FALSE)/HLOOKUP($J$11,$Z$7:$AD$8,2,FALSE) -> 30.70992389 | D25: =((1-Vehicles!$C$28)*(1-Vehicles!$C$7)*Fuel_Specs!$B$15/((1-Vehicles!$C$28)*(1-Vehicles!$C$7)*Fuel_Specs!$B$15+Vehicles!$C$28*(1-Vehicles!$C$7)*Fuel_Specs!$B$16+Vehicles!$C$7*Fuel_Specs!$B$31)*(Petroleum!$B269*Petroleum!$D$262+(Petroleum!$D269-'T&D'!G219))+Vehicles!$C$28*(1-Vehicles!$C$7)*Fuel_Specs!$B$16/((1-Vehicles!$C$28)*(1-Vehicles!$C$7)*Fuel_Specs!$B$15+Vehicles!$C$28*(1-Vehicles!$C$7)*Fuel_Specs!$B$16+Vehicles!$C$7*Fuel_Specs!$B$31)*(Petroleum!B269*Petroleum!$F$262+Petroleum!$F269)+Vehicles!$C$7*Fuel_Specs!$B$31/((1-Vehicles!$C$28)*(1-Vehicles!$C$7)*Fuel_Specs!$B$15+Vehicles!$C$28*(1-Vehicles!$C$7)*Fuel_Specs!$B$16+Vehicles!$C$7*Fuel_Specs!$B$31)*(EtOH!BR496*EtOH!$BS$489+EtOH!$BS496)+Petroleum!AR131+Petroleum!AS131)/1000000*HLOOKUP($J$10,$Z$5:$AD$6,2,FALSE)/HLOOKUP($J$11,$Z$7:$AD$8,2,FALSE) -> 30.11409778 | E25: =(Inputs!$E$97*(IF(Inputs!F$102=1,Petroleum!$B269,Petroleum!$C269)*Petroleum!$K$262+Petroleum!$K269)+(1-Inputs!$E$97)*(IF(Inputs!F$101=1,Petroleum!$B269,Petroleum!$C269)*Petroleum!$J$262+Petroleum!$J269))/1000000*HLOOKUP($J$10,$Z$5:$AD$6,2,FALSE)/HLOOKUP($J$11,$Z$7:$AD$8,2,FALSE) -> 9.685145112 | F25: =(NG!$I91*NG!$J$84+NG!$J91)/1000000*HLOOKUP($J$10,$Z$5:$AD$6,2,FALSE)/HLOOKUP($J$11,$Z$7:$AD$8,2,FALSE) -> 12.73788954 | G25: =(NG!$Q91*NG!$R$84+NG!$R91)/1000000*HLOOKUP($J$10,$Z$5:$AD$6,2,FALSE)/HLOOKUP($J$11,$Z$7:$AD$8,2,FALSE) -> 13.89968848 | H25: =(NG!$W91*NG!$X$84+NG!$X91)/1000000*HLOOKUP($J$10,$Z$5:$AD$6,2,FALSE)/HLOOKUP($J$11,$Z$7:$AD$8,2,FALSE) -> 11.62508049 | I25: =('MeOH&FTD'!BJ144*'MeOH&FTD'!BK$137+'MeOH&FTD'!BK144)/1000000*HLOOKUP($J$10,$Z$5:$AD$6,2,FALSE)/HLOOKUP($J$11,$Z$7:$AD$8,2,FALSE) -> 33.4332078 | J25: =((1-Vehicles!$C$27)*(1-Vehicles!$C$5)*Fuel_Specs!$B$15/((1-Vehicles!$C$27)*(1-Vehicles!$C$5)*Fuel_Specs!$B$15+Vehicles!$C$27*(1-Vehicles!$C$5)*Fuel_Specs!$B$16+Vehicles!$C$5*Fuel_Specs!$B$30)*(Petroleum!$B269*Petroleum!$D$262+Petroleum!$D269)+Vehicles!$C$27*(1-Vehicles!$C$5)*Fuel_Specs!$B$16/((1-Vehicles!$C$27)*(1-Vehicles!$C$5)*Fuel_Specs!$B$15+Vehicles!$C$27*(1-Vehicles!$C$5)*Fuel_Specs!$B$16+Vehicles!$C$5*Fuel_Specs!$B$30)*(Petroleum!B269*Petroleum!$F$262+Petroleum!$F269)+Vehicles!$C$5*Fuel_Specs!$B$30/((1-Vehicles!$C$27)*(1-Vehicles!$C$5)*Fuel_Specs!$B$15+Vehicles!$C$27*(1-Vehicles!$C$5)*Fuel_Specs!$B$16+Vehicles!$C$5*Fuel_Specs!$B$30)*('MeOH&FTD'!$N144*'MeOH&FTD'!$O$137+'MeOH&FTD'!$O144))/1000000*HLOOKUP($J$10,$Z$5:$AD$6,2,FALSE)/HLOOKUP($J$11,$Z$7:$AD$8,2,FALSE) -> 25.76750268 | K25: =((1-Vehicles!$C$27)*(1-Vehicles!$C$6)*Fuel_Specs!$B$15/((1-Vehicles!$C$27)*(1-Vehicles!$C$6)*Fuel_Specs!$B$15+Vehicles!$C$27*(1-Vehicles!$C$6)*Fuel_Specs!$B$16+Vehicles!$C$6*Fuel_Specs!$B$30)*(Petroleum!$B269*Petroleum!$D$262+Petroleum!$D269)+Vehicles!$C$27*(1-Vehicles!$C$6)*Fuel_Specs!$B$16/((1-Vehicles!$C$27)*(1-Vehicles!$C$6)*Fuel_Specs!$B$15+Vehicles!$C$27*(1-Vehicles!$C$6)*Fuel_Specs!$B$16+Vehicles!$C$6*Fuel_Specs!$B$30)*(Petroleum!B269*Petroleum!$F$262+Petroleum!$F269)+Vehicles!$C$6*Fuel_Specs!$B$30/((1-Vehicles!$C$27)*(1-Vehicles!$C$6)*Fuel_Specs!$B$15+Vehicles!$C$27*(1-Vehicles!$C$6)*Fuel_Specs!$B$16+Vehicles!$C$6*Fuel_Specs!$B$30)*('MeOH&FTD'!$N144*'MeOH&FTD'!$O$137+'MeOH&FTD'!$O144))/1000000*HLOOKUP($J$10,$Z$5:$AD$6,2,FALSE)/HLOOKUP($J$11,$Z$7:$AD$8,2,FALSE) -> 25.51811373 | L25: =('MeOH&FTD'!$N144*'MeOH&FTD'!$O$137+'MeOH&FTD'!$O144)/1000000*HLOOKUP($J$10,$Z$5:$AD$6,2,FALSE)/HLOOKUP($J$11,$Z$7:$AD$8,2,FALSE) -> 24.94244127 | M25: =((1-Vehicles!$C$29)*(1-Vehicles!$C$8)*Fuel_Specs!$B$15/((1-Vehicles!$C$29)*(1-Vehicles!$C$8)*Fuel_Specs!$B$15+Vehicles!$C$29*(1-Vehicles!$C$8)*Fuel_Specs!$B$16+Vehicles!$C$8*Fuel_Specs!$B$31)*(Petroleum!$B269*Petroleum!$D$262+(Petroleum!$D269-'T&D'!G219))+Vehicles!$C$29*(1-Vehicles!$C$8)*Fuel_Specs!$B$16/((1-Vehicles!$C$29)*(1-Vehicles!$C$8)*Fuel_Specs!$B$15+Vehicles!$C$29*(1-Vehicles!$C$8)*Fuel_Specs!$B$16+Vehicles!$C$8*Fuel_Specs!$B$31)*(Petroleum!B269*Petroleum!$F$262+Petroleum!$F269)+Vehicles!$C$8*Fuel_Specs!$B$31/((1-Vehicles!$C$29)*(1-Vehicles!$C$8)*Fuel_Specs!$B$15+Vehicles!$C$29*(1-Vehicles!$C$8)*Fuel_Specs!$B$16+Vehicles!$C$8*Fuel_Specs!$B$31)*(EtOH!BR496*EtOH!$BS$489+EtOH!$BS496)+Petroleum!AR131+Petroleum!AS131)/1000000*HLOOKUP($J$10,$Z$5:$AD$6,2,FALSE)/HLOOKUP($J$11,$Z$7:$AD$8,2,FALSE) -> 51.51385281 | N25: =((1-Vehicles!$C$30)*(1-Vehicles!$C$12)*Fuel_Specs!$B$15/((1-Vehicles!$C$30)*(1-Vehicles!$C$12)*Fuel_Specs!$B$15+Vehicles!$C$30*(1-Vehicles!$C$12)*Fuel_Specs!$B$16+Vehicles!$C$12*Fuel_Specs!$B$32)*(Petroleum!$B269*Petroleum!$D$262+Petroleum!$D269)+Vehicles!$C$30*(1-Vehicles!$C$12)*Fuel_Specs!$B$16/((1-Vehicles!$C$30)*(1-Vehicles!$C$12)*Fuel_Specs!$B$15+Vehicles!$C$30*(1-Vehicles!$C$12)*Fuel_Specs!$B$16+Vehicles!$C$12*Fuel_Specs!$B$32)*(Petroleum!B269*Petroleum!$F$262+Petroleum!$F269)+Vehicles!$C$12*Fuel_Specs!$B$32/((1-Vehicles!$C$30)*(1-Vehicles!$C$12)*Fuel_Specs!$B$15+Vehicles!$C$30*(1-Vehicles!$C$12)*Fuel_Specs!$B$16+Vehicles!$C$12*Fuel_Specs!$B$32)*(EtOH!$BT496*EtOH!$BU$489+EtOH!$BU496))/1000000*HLOOKUP($J$10,$Z$5:$AD$6,2,FALSE)/HLOOKUP($J$11,$Z$7:$AD$8,2,FALSE) -> 58.53391956 | O25: =((1-Vehicles!$C$29)*(1-Vehicles!$C$9)*Fuel_Specs!$B$15/((1-Vehicles!$C$29)*(1-Vehicles!$C$9)*Fuel_Specs!$B$15+Vehicles!$C$29*(1-Vehicles!$C$9)*Fuel_Specs!$B$16+Vehicles!$C$9*Fuel_Specs!$B$31)*(Petroleum!$B269*Petroleum!$D$262+(Petroleum!$D269-'T&D'!G219))+Vehicles!$C$29*(1-Vehicles!$C$9)*Fuel_Specs!$B$16/((1-Vehicles!$C$29)*(1-Vehicles!$C$9)*Fuel_Specs!$B$15+Vehicles!$C$29*(1-Vehicles!$C$9)*Fuel_Specs!$B$16+Vehicles!$C$9*Fuel_Specs!$B$31)*(Petroleum!B269*Petroleum!$F$262+Petroleum!$F269)+Vehicles!$C$9*Fuel_Specs!$B$31/((1-Vehicles!$C$29)*(1-Vehicles!$C$9)*Fuel_Specs!$B$15+Vehicles!$C$29*(1-Vehicles!$C$9)*Fuel_Specs!$B$16+Vehicles!$C$9*Fuel_Specs!$B$31)*(EtOH!BR496*EtOH!$BS$489+EtOH!$BS496)+Petroleum!AR131+Petroleum!AS131)/1000000*HLOOKUP($J$10,$Z$5:$AD$6,2,FALSE)/HLOOKUP($J$11,$Z$7:$AD$8,2,FALSE) -> 51.51385281 | P25: =(EtOH!$BP496*EtOH!$BQ$489+EtOH!$BQ496)/1000000*HLOOKUP($J$10,$Z$5:$AD$6,2,FALSE)/HLOOKUP($J$11,$Z$7:$AD$8,2,FALSE) -> 58.68407758 | Q25: =((1-Vehicles!$C$33)*(1-Vehicles!$C$16)*Fuel_Specs!$B$15/((1-Vehicles!$C$33)*(1-Vehicles!$C$16)*Fuel_Specs!$B$15+Vehicles!$C$33*(1-Vehicles!$C$16)*Fuel_Specs!$B$16+Vehicles!$C$16*Fuel_Specs!$B$44)*(Petroleum!$B269*Petroleum!$D$262+Petroleum!$D269)+Vehicles!$C$33*(1-Vehicles!$C$16)*Fuel_Specs!$B$16/((1-Vehicles!$C$33)*(1-Vehicles!$C$16)*Fuel_Specs!$B$15+Vehicles!$C$33*(1-Vehicles!$C$16)*Fuel_Specs!$B$16+Vehicles!$C$16*Fuel_Specs!$B$44)*(Petroleum!B269*Petroleum!$F$262+Petroleum!$F269)+Vehicles!$C$16*Fuel_Specs!$B$44/((1-Vehicles!$C$33)*(1-Vehicles!$C$16)*Fuel_Specs!$B$15+Vehicles!$C$33*(1-Vehicles!$C$16)*Fuel_Specs!$B$16+Vehicles!$C$16*Fuel_Specs!$B$44)*(BioOil!$BO341*BioOil!$BP$333+BioOil!$BP341))/1000000*HLOOKUP($J$10,$Z$5:$AD$6,2,FALSE)/HLOOKUP($J$11,$Z$7:$AD$8,2,FALSE) -> 25.46149776 | R25: =((1-Vehicles!$C$33)*(1-Vehicles!$C$16)*Fuel_Specs!$B$15/((1-Vehicles!$C$33)*(1-Vehicles!$C$16)*Fuel_Specs!$B$15+Vehicles!$C$33*(1-Vehicles!$C$16)*Fuel_Specs!$B$16+Vehicles!$C$16*Fuel_Specs!$B$44)*(Petroleum!$B269*Petroleum!$D$262+Petroleum!$D269)+Vehicles!$C$33*(1-Vehicles!$C$16)*Fuel_Specs!$B$16/((1-Vehicles!$C$33)*(1-Vehicles!$C$16)*Fuel_Specs!$B$15+Vehicles!$C$33*(1-Vehicles!$C$16)*Fuel_Specs!$B$16+Vehicles!$C$16*Fuel_Specs!$B$44)*(Petroleum!B269*Petroleum!$F$262+Petroleum!$F269)+Vehicles!$C$16*Fuel_Specs!$B$44/((1-Vehicles!$C$33)*(1-Vehicles!$C$16)*Fuel_Specs!$B$15+Vehicles!$C$33*(1-Vehicles!$C$16)*Fuel_Specs!$B$16+Vehicles!$C$16*Fuel_Specs!$B$44)*(Pyrolysis!$Z178*Pyrolysis!$AA$171+Pyrolysis!$AA178))/1000000*HLOOKUP($J$10,$Z$5:$AD$6,2,FALSE)/HLOOKUP($J$11,$Z$7:$AD$8,2,FALSE) -> 7.56674189 | S25: =AN25*(Vehicles!$C$23/Vehicles!$AR$59)/(Vehicles!$C$23*(1/Vehicles!$AR$59+1/Vehicles!$AS$59)+Vehicles!$C$24/Vehicles!$AT$59)+B25*(Vehicles!$C$23/Vehicles!$AS$59+Vehicles!$C$24/Vehicles!$AT$59)/(Vehicles!$C$23*(1/Vehicles!$AR$59+1/Vehicles!$AS$59)+Vehicles!$C$24/Vehicles!$AT$59) -> 27.33330443 | T25: =AN25*(Vehicles!$D$23/Vehicles!$AV$59)/(Vehicles!$D$23*(1/Vehicles!$AV$59+1/Vehicles!$AW$59)+Vehicles!$D$24/Vehicles!$AX$59)+C25*(Vehicles!$D$23/Vehicles!$AW$59+Vehicles!$D$24/Vehicles!$AX$59)/(Vehicles!$D$23*(1/Vehicles!$AV$59+1/Vehicles!$AW$59)+Vehicles!$D$24/Vehicles!$AX$59) -> 27.77844636 | U25: =AN25*(Vehicles!$F$23/Vehicles!$BD$59)/(Vehicles!$F$23*(1/Vehicles!$BD$59+1/Vehicles!$BE$59)+Vehicles!$F$24/Vehicles!$BF$59)+D25*(Vehicles!$F$23/Vehicles!$BE$59+Vehicles!$F$24/Vehicles!$BF$59)/(Vehicles!$F$23*(1/Vehicles!$BD$59+1/Vehicles!$BE$59)+Vehicles!$F$24/Vehicles!$BF$59) -> 27.33330443 | V25: =AN25*(Vehicles!$G$23/Vehicles!$BH$59)/(Vehicles!$G$23*(1/Vehicles!$BH$59+1/Vehicles!$BI$59)+Vehicles!$G$24/Vehicles!$BJ$59)+F25*(Vehicles!$G$23/Vehicles!$BI$59+Vehicles!$G$24/Vehicles!$BJ$59)/(Vehicles!$G$23*(1/Vehicles!$BH$59+1/Vehicles!$BI$59)+Vehicles!$G$24/Vehicles!$BJ$59) -> 14.35153226 | W25: =AN25*(Vehicles!$H$23/Vehicles!$BL$59)/(Vehicles!$H$23*(1/Vehicles!$BL$59+1/Vehicles!$BM$59)+Vehicles!$H$24/Vehicles!$BN$59)+G25*(Vehicles!$H$23/Vehicles!$BM$59+Vehicles!$H$24/Vehicles!$BN$59)/(Vehicles!$H$23*(1/Vehicles!$BL$59+1/Vehicles!$BM$59)+Vehicles!$H$24/Vehicles!$BN$59) -> 15.21951272 | X25: =AN25*(Vehicles!$I$23/Vehicles!$BP$59)/(Vehicles!$I$23*(1/Vehicles!$BP$59+1/Vehicles!$BQ$59)+Vehicles!$I$24/Vehicles!$BR$59)+H25*(Vehicles!$I$23/Vehicles!$BQ$59+Vehicles!$I$24/Vehicles!$BR$59)/(Vehicles!$I$23*(1/Vehicles!$BP$59+1/Vehicles!$BQ$59)+Vehicles!$I$24/Vehicles!$BR$59) -> 13.52015217 | Y25: =AN25*(Vehicles!$J$23/Vehicles!$BT$59)/(Vehicles!$J$23*(1/Vehicles!$BT$59+1/Vehicles!$BU$59)+Vehicles!$J$24/Vehicles!$BV$59)+K25*(Vehicles!$J$23/Vehicles!$BU$59+Vehicles!$J$24/Vehicles!$BV$59)/(Vehicles!$J$23*(1/Vehicles!$BT$59+1/Vehicles!$BU$59)+Vehicles!$J$24/Vehicles!$BV$59) -> 23.97708747 | Z25: =AN25*(Vehicles!$K$23/Vehicles!$BX$59)/(Vehicles!$K$23*(1/Vehicles!$BX$59+1/Vehicles!$BY$59)+Vehicles!$K$24/Vehicles!$BZ$59)+O25*(Vehicles!$K$23/Vehicles!$BY$59+Vehicles!$K$24/Vehicles!$BZ$59)/(Vehicles!$K$23*(1/Vehicles!$BX$59+1/Vehicles!$BY$59)+Vehicles!$K$24/Vehicles!$BZ$59) -> 43.71309844 | AA25: =AN25*(Vehicles!$L$23/Vehicles!$CB$59)/(Vehicles!$L$23*(1/Vehicles!$CB$59+1/Vehicles!$CC$59)+Vehicles!$L$24/Vehicles!$CD$59)+AO25*(Vehicles!$L$23/Vehicles!$CC$59+Vehicles!$L$24/Vehicles!$CD$59)/(Vehicles!$L$23*(1/Vehicles!$CB$59+1/Vehicles!$CC$59)+Vehicles!$L$24/Vehicles!$CD$59) -> 19.43287276 | AB25: =AN25*(Vehicles!$L$23/Vehicles!$CB$59)/(Vehicles!$L$23*(1/Vehicles!$CB$59+1/Vehicles!$CC$59)+Vehicles!$L$24/Vehicles!$CE$59)+AP25*(Vehicles!$L$23/Vehicles!$CC$59+Vehicles!$L$24/Vehicles!$CE$59)/(Vehicles!$L$23*(1/Vehicles!$CB$59+1/Vehicles!$CC$59)+Vehicles!$L$24/Vehicles!$CE$59) -> 20.88925609 | AC25: =('MeOH&FTD'!$AJ144*'MeOH&FTD'!$AK$137+'MeOH&FTD'!$AK144)/1000000*HLOOKUP($J$10,$Z$5:$AD$6,2,FALSE)/HLOOKUP($J$11,$Z$7:$AD$8,2,FALSE) -> 13.02784295 | AD25: =((1-Vehicles!$C$34)*(1-Vehicles!$C$13)*Fuel_Specs!$B$20/((1-Vehicles!$C$34)*(1-Vehicles!$C$13)*Fuel_Specs!$B$20+Vehicles!$C$34*(1-Vehicles!$C$13)*Fuel_Specs!$B$23+Vehicles!$C$13*Fuel_Specs!$B$40)*(Petroleum!B269*Petroleum!$J$262+Petroleum!$J269)+Vehicles!$C$34*(1-Vehicles!$C$13)*Fuel_Specs!$B$23/((1-Vehicles!$C$34)*(1-Vehicles!$C$13)*Fuel_Specs!$B$20+Vehicles!$C$34*(1-Vehicles!$C$13)*Fuel_Specs!$B$23+Vehicles!$C$13*Fuel_Specs!$B$40)*(Petroleum!B269*Petroleum!$K$262+Petroleum!$K269)+Vehicles!$C$13*Fuel_Specs!$B$40/((1-Vehicles!$C$34)*(1-Vehicles!$C$13)*Fuel_Specs!$B$20+Vehicles!$C$34*(1-Vehicles!$C$13)*Fuel_Specs!$B$23+Vehicles!$C$13*Fuel_Specs!$B$40)*('MeOH&FTD'!$AZ144*'MeOH&FTD'!$BA$137+'MeOH&FTD'!$BA144))/1000000*HLOOKUP($J$10,$Z$5:$AD$6,2,FALSE)/HLOOKUP($J$11,$Z$7:$AD$8,2,FALSE) -> 14.05750578 | AE25: =((1-Vehicles!$C$35)*(1-Vehicles!$C$14)*Fuel_Specs!$B$20/((1-Vehicles!$C$35)*(1-Vehicles!$C$14)*Fuel_Specs!$B$20+Vehicles!$C$35*(1-Vehicles!$C$14)*Fuel_Specs!$B$23+Vehicles!$C$14*Fuel_Specs!$B$39)*(Petroleum!B269*Petroleum!$J$262+Petroleum!$J269)+Vehicles!$C$35*(1-Vehicles!$C$14)*Fuel_Specs!$B$23/((1-Vehicles!$C$35)*(1-Vehicles!$C$14)*Fuel_Specs!$B$20+Vehicles!$C$35*(1-Vehicles!$C$14)*Fuel_Specs!$B$23+Vehicles!$C$14*Fuel_Specs!$B$39)*(Petroleum!B269*Petroleum!$K$262+Petroleum!$K269)+Vehicles!$C$14*Fuel_Specs!$B$39/((1-Vehicles!$C$35)*(1-Vehicles!$C$14)*Fuel_Specs!$B$20+Vehicles!$C$35*(1-Vehicles!$C$14)*Fuel_Specs!$B$23+Vehicles!$C$14*Fuel_Specs!$B$39)*(BioOil!$W341*BioOil!$X$333+BioOil!$X341))/1000000*HLOOKUP($J$10,$Z$5:$AD$6,2,FALSE)/HLOOKUP($J$11,$Z$7:$AD$8,2,FALSE) -> 13.07111967 | AF25: =((1-Vehicles!$C$36)*(1-Vehicles!$C$15)*Fuel_Specs!$B$20/((1-Vehicles!$C$36)*(1-Vehicles!$C$15)*Fuel_Specs!$B$20+Vehicles!$C$36*(1-Vehicles!$C$15)*Fuel_Specs!$B$23+Vehicles!$C$15*IF(Inputs!$E$628=1,IF(Inputs!$E$628=1,Fuel_Specs!$B$41,IF(Inputs!$E$628=3,Fuel_Specs!$B$43,Fuel_Specs!$B$42)),Fuel_Specs!$B$42))*(Petroleum!B269*Petroleum!$J$262+Petroleum!$J269)+Vehicles!$C$36*(1-Vehicles!$C$15)*Fuel_Specs!$B$23/((1-Vehicles!$C$36)*(1-Vehicles!$C$15)*Fuel_Specs!$B$20+Vehicles!$C$36*(1-Vehicles!$C$15)*Fuel_Specs!$B$23+Vehicles!$C$15*IF(Inputs!$E$628=1,IF(Inputs!$E$628=1,Fuel_Specs!$B$41,IF(Inputs!$E$628=3,Fuel_Specs!$B$43,Fuel_Specs!$B$42)),Fuel_Specs!$B$42))*(Petroleum!B269*Petroleum!$K$262+Petroleum!$K269)+Vehicles!$C$15*IF(Inputs!$E$628=1,IF(Inputs!$E$628=1,Fuel_Specs!$B$41,IF(Inputs!$E$628=3,Fuel_Specs!$B$43,Fuel_Specs!$B$42)),Fuel_Specs!$B$42)/((1-Vehicles!$C$36)*(1-Vehicles!$C$15)*Fuel_Specs!$B$20+Vehicles!$C$36*(1-Vehicles!$C$15)*Fuel_Specs!$B$23+Vehicles!$C$15*IF(Inputs!$E$628=1,IF(Inputs!$E$628=1,Fuel_Specs!$B$41,IF(Inputs!$E$628=3,Fuel_Specs!$B$43,Fuel_Specs!$B$42)),Fuel_Specs!$B$42))*(BioOil!$BA341*BioOil!$BB$333+BioOil!$BB341))/1000000*HLOOKUP($J$10,$Z$5:$AD$6,2,FALSE)/HLOOKUP($J$11,$Z$7:$AD$8,2,FALSE) -> 24.68604345 | AG25: =((1-Vehicles!$C$36)*(1-Vehicles!$C$15)*Fuel_Specs!$B$20/((1-Vehicles!$C$36)*(1-Vehicles!$C$15)*Fuel_Specs!$B$20+Vehicles!$C$36*(1-Vehicles!$C$15)*Fuel_Specs!$B$23+Vehicles!$C$15*IF(Inputs!$E$628=1,Fuel_Specs!$B$41,Fuel_Specs!$B$42))*(Petroleum!B269*Petroleum!$J$262+Petroleum!$J269)+Vehicles!$C$36*(1-Vehicles!$C$15)*Fuel_Specs!$B$23/((1-Vehicles!$C$36)*(1-Vehicles!$C$15)*Fuel_Specs!$B$20+Vehicles!$C$36*(1-Vehicles!$C$15)*Fuel_Specs!$B$23+Vehicles!$C$15*IF(Inputs!$E$628=1,Fuel_Specs!$B$41,Fuel_Specs!$B$42))*(Petroleum!B269*Petroleum!$K$262+Petroleum!$K269)+Vehicles!$C$15*IF(Inputs!$E$628=1,Fuel_Specs!$B$41,Fuel_Specs!$B$42)/((1-Vehicles!$C$36)*(1-Vehicles!$C$15)*Fuel_Specs!$B$20+Vehicles!$C$36*(1-Vehicles!$C$15)*Fuel_Specs!$B$23+Vehicles!$C$15*IF(Inputs!$E$628=1,Fuel_Specs!$B$41,Fuel_Specs!$B$42))*(Pyrolysis!$AB178*Pyrolysis!$AC$171+Pyrolysis!$AC178))/1000000*HLOOKUP($J$10,$Z$5:$AD$6,2,FALSE)/HLOOKUP($J$11,$Z$7:$AD$8,2,FALSE) -> 8.300293889 | AH25: =(((1-Vehicles!$C$37)*(1-Vehicles!$C$17-Vehicles!$C$18)*Fuel_Specs!$B$20*(Petroleum!B269*Petroleum!$J$262+Petroleum!$J269)+Vehicles!$C$37*(1-Vehicles!$C$17-Vehicles!$C$18)*Fuel_Specs!$B$23*(Petroleum!B269*Petroleum!$K$262+Petroleum!$K269)+Vehicles!$C$17*Fuel_Specs!$B$31*(EtOH!BP496*EtOH!$BQ$489+EtOH!$BQ496)+Vehicles!$C$18*Fuel_Specs!$B$34*('E-D Additives'!$B60*'E-D Additives'!$B$53))/((1-Vehicles!$C$37)*(1-Vehicles!$C$17-Vehicles!$C$18)*Fuel_Specs!$B$20+Vehicles!$C$37*(1-Vehicles!$C$17-Vehicles!$C$18)*Fuel_Specs!$B$23+Vehicles!$C$17*Fuel_Specs!$B$31+Vehicles!$C$18*Fuel_Specs!$B$34))/1000000*HLOOKUP($J$10,$Z$5:$AD$6,2,FALSE)/HLOOKUP($J$11,$Z$7:$AD$8,2,FALSE) -> 12.65204886 | AI25: =AN25*(Vehicles!$M$23/Vehicles!$CM$59)/(Vehicles!$M$23*(1/Vehicles!$CM$59+1/Vehicles!$CN$59)+Vehicles!$M$24/Vehicles!$CO$59)+E25*(Vehicles!$M$23/Vehicles!$CN$59+Vehicles!$M$24/Vehicles!$CO$59)/(Vehicles!$M$23*(1/Vehicles!$CM$59+1/Vehicles!$CN$59)+Vehicles!$M$24/Vehicles!$CO$59) -> 12.16549494 | AJ25: =AN25*(Vehicles!$N$23/Vehicles!$CQ$59)/(Vehicles!$N$23*(1/Vehicles!$CQ$59+1/Vehicles!$CR$59)+Vehicles!$N$24/Vehicles!$CS$59)+AC25*(Vehicles!$N$23/Vehicles!$CR$59+Vehicles!$N$24/Vehicles!$CS$59)/(Vehicles!$N$23*(1/Vehicles!$CQ$59+1/Vehicles!$CR$59)+Vehicles!$N$24/Vehicles!$CS$59) -> 14.62927975 | AK25: =AN25*(Vehicles!$O$23/Vehicles!$CU$59)/(Vehicles!$O$23*(1/Vehicles!$CU$59+1/Vehicles!$CV$59)+Vehicles!$O$24/Vehicles!$CW$59)+AD25*(Vehicles!$O$23/Vehicles!$CV$59+Vehicles!$O$24/Vehicles!$CW$59)/(Vehicles!$O$23*(1/Vehicles!$CU$59+1/Vehicles!$CV$59)+Vehicles!$O$24/Vehicles!$CW$59) -> 15.38820794 | AL25: =AN25*(Vehicles!$P$23/Vehicles!$CY$59)/(Vehicles!$P$23*(1/Vehicles!$CY$59+1/Vehicles!$CZ$59)+Vehicles!$P$24/Vehicles!$DA$59)+AE25*(Vehicles!$P$23/Vehicles!$CZ$59+Vehicles!$P$24/Vehicles!$DA$59)/(Vehicles!$P$23*(1/Vehicles!$CY$59+1/Vehicles!$CZ$59)+Vehicles!$P$24/Vehicles!$DA$59) -> 14.66117749 | AM25: =AN25*(Vehicles!$R$23/Vehicles!$DG$59)/(Vehicles!$R$23*(1/Vehicles!$DG$59+1/Vehicles!$DH$59)+Vehicles!$R$24/Vehicles!$DI$59)+AH25*(Vehicles!$R$23/Vehicles!$DH$59+Vehicles!$R$24/Vehicles!$DI$59)/(Vehicles!$R$23*(1/Vehicles!$DG$59+1/Vehicles!$DH$59)+Vehicles!$R$24/Vehicles!$DI$59) -> 14.35229516 | AN25: =(Electric!$G192+Electric!$F192)/1000000*HLOOKUP($J$10,$Z$5:$AD$6,2,FALSE)/HLOOKUP($J$11,$Z$7:$AD$8,2,FALSE) -> 19.11845612 | AO25: =(Hydrogen!$AF169*Hydrogen!$AG$162+Hydrogen!$AG169)/1000000*HLOOKUP($J$10,$Z$5:$AD$6,2,FALSE)/HLOOKUP($J$11,$Z$7:$AD$8,2,FALSE) -> 19.54774868 | AP25: =(Hydrogen!$BJ169*Hydrogen!$BK$162+Hydrogen!$BK169)/1000000*HLOOKUP($J$10,$Z$5:$AD$6,2,FALSE)/HLOOKUP($J$11,$Z$7:$AD$8,2,FALSE) -> 21.5362393 | AQ25: =AN25*(Vehicles!$S$23/Vehicles!$DW$59)/(Vehicles!$S$23*(1/Vehicles!$DW$59+1/Vehicles!$DX$59)+Vehicles!$S$24/Vehicles!$DY$59)+AO25*(Vehicles!$S$23/Vehicles!$DX$59+Vehicles!$S$24/Vehicles!$DY$59)/(Vehicles!$S$23*(1/Vehicles!$DW$59+1/Vehicles!$DX$59)+Vehicles!$S$24/Vehicles!$DY$59) -> 19.40992078 | AR25: =AN25*(Vehicles!$S$23/Vehicles!$DW$59)/(Vehicles!$S$23*(1/Vehicles!$DW$59+1/Vehicles!$DX$59)+Vehicles!$S$24/Vehicles!$DY$59)+AP25*(Vehicles!$S$23/Vehicles!$DX$59+Vehicles!$S$24/Vehicles!$DY$59)/(Vehicles!$S$23*(1/Vehicles!$DW$59+1/Vehicles!$DX$59)+Vehicles!$S$24/Vehicles!$DY$59) -> 20.75999016 | AS25: =((1-Vehicles!$C$33)*(1-Vehicles!$C$16)*Fuel_Specs!$B$15/((1-Vehicles!$C$33)*(1-Vehicles!$C$16)*Fuel_Specs!$B$15+Vehicles!$C$33*(1-Vehicles!$C$16)*Fuel_Specs!$B$16+Vehicles!$C$16*Fuel_Specs!$B$45)*(Petroleum!$B269*Petroleum!$D$262+Petroleum!$D269)+Vehicles!$C$33*(1-Vehicles!$C$16)*Fuel_Specs!$B$16/((1-Vehicles!$C$33)*(1-Vehicles!$C$16)*Fuel_Specs!$B$15+Vehicles!$C$33*(1-Vehicles!$C$16)*Fuel_Specs!$B$16+Vehicles!$C$16*Fuel_Specs!$B$45)*(Petroleum!B269*Petroleum!$F$262+Petroleum!$F269)+Vehicles!$C$16*Fuel_Specs!$B$45/((1-Vehicles!$C$33)*(1-Vehicles!$C$16)*Fuel_Specs!$B$15+Vehicles!$C$33*(1-Vehicles!$C$16)*Fuel_Specs!$B$16+Vehicles!$C$16*Fuel_Specs!$B$45)*(IDL!$L119*IDL!$M$112+IDL!$M119))/1000000*HLOOKUP($J$10,$Z$5:$AD$6,2,FALSE)/HLOOKUP($J$11,$Z$7:$AD$8,2,FALSE) -> 19.18246409 | AV25: SI - Dedi. MeOH Vehicle | AW25: RNAVMEOH | BE25: SI HEV - Liquid H2 | BF25: RNAVHEVLH2 | BH25: SI PHEV - Liquid H2 and Electricity | BI25: RNAVPHEVLH2 | BQ25: FCV - CNG | BR25: RNAVFCVCNG
A26: CO: Total | B26: =(Inputs!$E$1398*(Petroleum!$B270*Petroleum!$F$262+Petroleum!$F270)+(1-Inputs!$E$1398)*(Petroleum!$B270*Petroleum!$D$262+Petroleum!$D270))/1000000*HLOOKUP($J$10,$Z$5:$AD$6,2,FALSE)/HLOOKUP($J$11,$Z$7:$AD$8,2,FALSE) -> 21.03845738 | C26: =(Petroleum!$C270*Petroleum!$G$262+Petroleum!$G270)/1000000*HLOOKUP($J$10,$Z$5:$AD$6,2,FALSE)/HLOOKUP($J$11,$Z$7:$AD$8,2,FALSE) -> 20.92309877 | D26: =((1-Vehicles!$C$28)*(1-Vehicles!$C$7)*Fuel_Specs!$B$15/((1-Vehicles!$C$28)*(1-Vehicles!$C$7)*Fuel_Specs!$B$15+Vehicles!$C$28*(1-Vehicles!$C$7)*Fuel_Specs!$B$16+Vehicles!$C$7*Fuel_Specs!$B$31)*(Petroleum!$B270*Petroleum!$D$262+(Petroleum!$D270-'T&D'!G220))+Vehicles!$C$28*(1-Vehicles!$C$7)*Fuel_Specs!$B$16/((1-Vehicles!$C$28)*(1-Vehicles!$C$7)*Fuel_Specs!$B$15+Vehicles!$C$28*(1-Vehicles!$C$7)*Fuel_Specs!$B$16+Vehicles!$C$7*Fuel_Specs!$B$31)*(Petroleum!B270*Petroleum!$F$262+Petroleum!$F270)+Vehicles!$C$7*Fuel_Specs!$B$31/((1-Vehicles!$C$28)*(1-Vehicles!$C$7)*Fuel_Specs!$B$15+Vehicles!$C$28*(1-Vehicles!$C$7)*Fuel_Specs!$B$16+Vehicles!$C$7*Fuel_Specs!$B$31)*(EtOH!BR497*EtOH!$BS$489+EtOH!$BS497)+Petroleum!AR132+Petroleum!AS132)/1000000*HLOOKUP($J$10,$Z$5:$AD$6,2,FALSE)/HLOOKUP($J$11,$Z$7:$AD$8,2,FALSE) -> 21.03845738 | E26: =(Inputs!$E$97*(IF(Inputs!F$102=1,Petroleum!$B270,Petroleum!$C270)*Petroleum!$K$262+Petroleum!$K270)+(1-Inputs!$E$97)*(IF(Inputs!F$101=1,Petroleum!$B270,Petroleum!$C270)*Petroleum!$J$262+Petroleum!$J270))/1000000*HLOOKUP($J$10,$Z$5:$AD$6,2,FALSE)/HLOOKUP($J$11,$Z$7:$AD$8,2,FALSE) -> 19.00506522 | F26: =(NG!$I92*NG!$J$84+NG!$J92)/1000000*HLOOKUP($J$10,$Z$5:$AD$6,2,FALSE)/HLOOKUP($J$11,$Z$7:$AD$8,2,FALSE) -> 45.58095802 | G26: =(NG!$Q92*NG!$R$84+NG!$R92)/1000000*HLOOKUP($J$10,$Z$5:$AD$6,2,FALSE)/HLOOKUP($J$11,$Z$7:$AD$8,2,FALSE) -> 51.82997109 | H26: =(NG!$W92*NG!$X$84+NG!$X92)/1000000*HLOOKUP($J$10,$Z$5:$AD$6,2,FALSE)/HLOOKUP($J$11,$Z$7:$AD$8,2,FALSE) -> 17.637634 | I26: =('MeOH&FTD'!BJ145*'MeOH&FTD'!BK$137+'MeOH&FTD'!BK145)/1000000*HLOOKUP($J$10,$Z$5:$AD$6,2,FALSE)/HLOOKUP($J$11,$Z$7:$AD$8,2,FALSE) -> 31.48488138 | J26: =((1-Vehicles!$C$27)*(1-Vehicles!$C$5)*Fuel_Specs!$B$15/((1-Vehicles!$C$27)*(1-Vehicles!$C$5)*Fuel_Specs!$B$15+Vehicles!$C$27*(1-Vehicles!$C$5)*Fuel_Specs!$B$16+Vehicles!$C$5*Fuel_Specs!$B$30)*(Petroleum!$B270*Petroleum!$D$262+Petroleum!$D270)+Vehicles!$C$27*(1-Vehicles!$C$5)*Fuel_Specs!$B$16/((1-Vehicles!$C$27)*(1-Vehicles!$C$5)*Fuel_Specs!$B$15+Vehicles!$C$27*(1-Vehicles!$C$5)*Fuel_Specs!$B$16+Vehicles!$C$5*Fuel_Specs!$B$30)*(Petroleum!B270*Petroleum!$F$262+Petroleum!$F270)+Vehicles!$C$5*Fuel_Specs!$B$30/((1-Vehicles!$C$27)*(1-Vehicles!$C$5)*Fuel_Specs!$B$15+Vehicles!$C$27*(1-Vehicles!$C$5)*Fuel_Specs!$B$16+Vehicles!$C$5*Fuel_Specs!$B$30)*('MeOH&FTD'!$N145*'MeOH&FTD'!$O$137+'MeOH&FTD'!$O145))/1000000*HLOOKUP($J$10,$Z$5:$AD$6,2,FALSE)/HLOOKUP($J$11,$Z$7:$AD$8,2,FALSE) -> 25.65021853 | K26: =((1-Vehicles!$C$27)*(1-Vehicles!$C$6)*Fuel_Specs!$B$15/((1-Vehicles!$C$27)*(1-Vehicles!$C$6)*Fuel_Specs!$B$15+Vehicles!$C$27*(1-Vehicles!$C$6)*Fuel_Specs!$B$16+Vehicles!$C$6*Fuel_Specs!$B$30)*(Petroleum!$B270*Petroleum!$D$262+Petroleum!$D270)+Vehicles!$C$27*(1-Vehicles!$C$6)*Fuel_Specs!$B$16/((1-Vehicles!$C$27)*(1-Vehicles!$C$6)*Fuel_Specs!$B$15+Vehicles!$C$27*(1-Vehicles!$C$6)*Fuel_Specs!$B$16+Vehicles!$C$6*Fuel_Specs!$B$30)*(Petroleum!B270*Petroleum!$F$262+Petroleum!$F270)+Vehicles!$C$6*Fuel_Specs!$B$30/((1-Vehicles!$C$27)*(1-Vehicles!$C$6)*Fuel_Specs!$B$15+Vehicles!$C$27*(1-Vehicles!$C$6)*Fuel_Specs!$B$16+Vehicles!$C$6*Fuel_Specs!$B$30)*('MeOH&FTD'!$N145*'MeOH&FTD'!$O$137+'MeOH&FTD'!$O145))/1000000*HLOOKUP($J$10,$Z$5:$AD$6,2,FALSE)/HLOOKUP($J$11,$Z$7:$AD$8,2,FALSE) -> 26.41118446 | L26: =('MeOH&FTD'!$N145*'MeOH&FTD'!$O$137+'MeOH&FTD'!$O145)/1000000*HLOOKUP($J$10,$Z$5:$AD$6,2,FALSE)/HLOOKUP($J$11,$Z$7:$AD$8,2,FALSE) -> 28.16774638 | M26: =((1-Vehicles!$C$29)*(1-Vehicles!$C$8)*Fuel_Specs!$B$15/((1-Vehicles!$C$29)*(1-Vehicles!$C$8)*Fuel_Specs!$B$15+Vehicles!$C$29*(1-Vehicles!$C$8)*Fuel_Specs!$B$16+Vehicles!$C$8*Fuel_Specs!$B$31)*(Petroleum!$B270*Petroleum!$D$262+(Petroleum!$D270-'T&D'!G220))+Vehicles!$C$29*(1-Vehicles!$C$8)*Fuel_Specs!$B$16/((1-Vehicles!$C$29)*(1-Vehicles!$C$8)*Fuel_Specs!$B$15+Vehicles!$C$29*(1-Vehicles!$C$8)*Fuel_Specs!$B$16+Vehicles!$C$8*Fuel_Specs!$B$31)*(Petroleum!B270*Petroleum!$F$262+Petroleum!$F270)+Vehicles!$C$8*Fuel_Specs!$B$31/((1-Vehicles!$C$29)*(1-Vehicles!$C$8)*Fuel_Specs!$B$15+Vehicles!$C$29*(1-Vehicles!$C$8)*Fuel_Specs!$B$16+Vehicles!$C$8*Fuel_Specs!$B$31)*(EtOH!BR497*EtOH!$BS$489+EtOH!$BS497)+Petroleum!AR132+Petroleum!AS132)/1000000*HLOOKUP($J$10,$Z$5:$AD$6,2,FALSE)/HLOOKUP($J$11,$Z$7:$AD$8,2,FALSE) -> 46.41239359 | N26: =((1-Vehicles!$C$30)*(1-Vehicles!$C$12)*Fuel_Specs!$B$15/((1-Vehicles!$C$30)*(1-Vehicles!$C$12)*Fuel_Specs!$B$15+Vehicles!$C$30*(1-Vehicles!$C$12)*Fuel_Specs!$B$16+Vehicles!$C$12*Fuel_Specs!$B$32)*(Petroleum!$B270*Petroleum!$D$262+Petroleum!$D270)+Vehicles!$C$30*(1-Vehicles!$C$12)*Fuel_Specs!$B$16/((1-Vehicles!$C$30)*(1-Vehicles!$C$12)*Fuel_Specs!$B$15+Vehicles!$C$30*(1-Vehicles!$C$12)*Fuel_Specs!$B$16+Vehicles!$C$12*Fuel_Specs!$B$32)*(Petroleum!B270*Petroleum!$F$262+Petroleum!$F270)+Vehicles!$C$12*Fuel_Specs!$B$32/((1-Vehicles!$C$30)*(1-Vehicles!$C$12)*Fuel_Specs!$B$15+Vehicles!$C$30*(1-Vehicles!$C$12)*Fuel_Specs!$B$16+Vehicles!$C$12*Fuel_Specs!$B$32)*(EtOH!$BT497*EtOH!$BU$489+EtOH!$BU497))/1000000*HLOOKUP($J$10,$Z$5:$AD$6,2,FALSE)/HLOOKUP($J$11,$Z$7:$AD$8,2,FALSE) -> 61.51918212 | O26: =((1-Vehicles!$C$29)*(1-Vehicles!$C$9)*Fuel_Specs!$B$15/((1-Vehicles!$C$29)*(1-Vehicles!$C$9)*Fuel_Specs!$B$15+Vehicles!$C$29*(1-Vehicles!$C$9)*Fuel_Specs!$B$16+Vehicles!$C$9*Fuel_Specs!$B$31)*(Petroleum!$B270*Petroleum!$D$262+(Petroleum!$D270-'T&D'!G220))+Vehicles!$C$29*(1-Vehicles!$C$9)*Fuel_Specs!$B$16/((1-Vehicles!$C$29)*(1-Vehicles!$C$9)*Fuel_Specs!$B$15+Vehicles!$C$29*(1-Vehicles!$C$9)*Fuel_Specs!$B$16+Vehicles!$C$9*Fuel_Specs!$B$31)*(Petroleum!B270*Petroleum!$F$262+Petroleum!$F270)+Vehicles!$C$9*Fuel_Specs!$B$31/((1-Vehicles!$C$29)*(1-Vehicles!$C$9)*Fuel_Specs!$B$15+Vehicles!$C$29*(1-Vehicles!$C$9)*Fuel_Specs!$B$16+Vehicles!$C$9*Fuel_Specs!$B$31)*(EtOH!BR497*EtOH!$BS$489+EtOH!$BS497)+Petroleum!AR132+Petroleum!AS132)/1000000*HLOOKUP($J$10,$Z$5:$AD$6,2,FALSE)/HLOOKUP($J$11,$Z$7:$AD$8,2,FALSE) -> 46.41239359 | P26: =(EtOH!$BP497*EtOH!$BQ$489+EtOH!$BQ497)/1000000*HLOOKUP($J$10,$Z$5:$AD$6,2,FALSE)/HLOOKUP($J$11,$Z$7:$AD$8,2,FALSE) -> 54.96425118 | Q26: =((1-Vehicles!$C$33)*(1-Vehicles!$C$16)*Fuel_Specs!$B$15/((1-Vehicles!$C$33)*(1-Vehicles!$C$16)*Fuel_Specs!$B$15+Vehicles!$C$33*(1-Vehicles!$C$16)*Fuel_Specs!$B$16+Vehicles!$C$16*Fuel_Specs!$B$44)*(Petroleum!$B270*Petroleum!$D$262+Petroleum!$D270)+Vehicles!$C$33*(1-Vehicles!$C$16)*Fuel_Specs!$B$16/((1-Vehicles!$C$33)*(1-Vehicles!$C$16)*Fuel_Specs!$B$15+Vehicles!$C$33*(1-Vehicles!$C$16)*Fuel_Specs!$B$16+Vehicles!$C$16*Fuel_Specs!$B$44)*(Petroleum!B270*Petroleum!$F$262+Petroleum!$F270)+Vehicles!$C$16*Fuel_Specs!$B$44/((1-Vehicles!$C$33)*(1-Vehicles!$C$16)*Fuel_Specs!$B$15+Vehicles!$C$33*(1-Vehicles!$C$16)*Fuel_Specs!$B$16+Vehicles!$C$16*Fuel_Specs!$B$44)*(BioOil!$BO342*BioOil!$BP$333+BioOil!$BP342))/1000000*HLOOKUP($J$10,$Z$5:$AD$6,2,FALSE)/HLOOKUP($J$11,$Z$7:$AD$8,2,FALSE) -> 191.1049879 | R26: =((1-Vehicles!$C$33)*(1-Vehicles!$C$16)*Fuel_Specs!$B$15/((1-Vehicles!$C$33)*(1-Vehicles!$C$16)*Fuel_Specs!$B$15+Vehicles!$C$33*(1-Vehicles!$C$16)*Fuel_Specs!$B$16+Vehicles!$C$16*Fuel_Specs!$B$44)*(Petroleum!$B270*Petroleum!$D$262+Petroleum!$D270)+Vehicles!$C$33*(1-Vehicles!$C$16)*Fuel_Specs!$B$16/((1-Vehicles!$C$33)*(1-Vehicles!$C$16)*Fuel_Specs!$B$15+Vehicles!$C$33*(1-Vehicles!$C$16)*Fuel_Specs!$B$16+Vehicles!$C$16*Fuel_Specs!$B$44)*(Petroleum!B270*Petroleum!$F$262+Petroleum!$F270)+Vehicles!$C$16*Fuel_Specs!$B$44/((1-Vehicles!$C$33)*(1-Vehicles!$C$16)*Fuel_Specs!$B$15+Vehicles!$C$33*(1-Vehicles!$C$16)*Fuel_Specs!$B$16+Vehicles!$C$16*Fuel_Specs!$B$44)*(Pyrolysis!$Z179*Pyrolysis!$AA$171+Pyrolysis!$AA179))/1000000*HLOOKUP($J$10,$Z$5:$AD$6,2,FALSE)/HLOOKUP($J$11,$Z$7:$AD$8,2,FALSE) -> 24.81198644 | S26: =AN26*(Vehicles!$C$23/Vehicles!$AR$59)/(Vehicles!$C$23*(1/Vehicles!$AR$59+1/Vehicles!$AS$59)+Vehicles!$C$24/Vehicles!$AT$59)+B26*(Vehicles!$C$23/Vehicles!$AS$59+Vehicles!$C$24/Vehicles!$AT$59)/(Vehicles!$C$23*(1/Vehicles!$AR$59+1/Vehicles!$AS$59)+Vehicles!$C$24/Vehicles!$AT$59) -> 35.96801272 | T26: =AN26*(Vehicles!$D$23/Vehicles!$AV$59)/(Vehicles!$D$23*(1/Vehicles!$AV$59+1/Vehicles!$AW$59)+Vehicles!$D$24/Vehicles!$AX$59)+C26*(Vehicles!$D$23/Vehicles!$AW$59+Vehicles!$D$24/Vehicles!$AX$59)/(Vehicles!$D$23*(1/Vehicles!$AV$59+1/Vehicles!$AW$59)+Vehicles!$D$24/Vehicles!$AX$59) -> 35.88182825 | U26: =AN26*(Vehicles!$F$23/Vehicles!$BD$59)/(Vehicles!$F$23*(1/Vehicles!$BD$59+1/Vehicles!$BE$59)+Vehicles!$F$24/Vehicles!$BF$59)+D26*(Vehicles!$F$23/Vehicles!$BE$59+Vehicles!$F$24/Vehicles!$BF$59)/(Vehicles!$F$23*(1/Vehicles!$BD$59+1/Vehicles!$BE$59)+Vehicles!$F$24/Vehicles!$BF$59) -> 35.96801272 | V26: =AN26*(Vehicles!$G$23/Vehicles!$BH$59)/(Vehicles!$G$23*(1/Vehicles!$BH$59+1/Vehicles!$BI$59)+Vehicles!$G$24/Vehicles!$BJ$59)+F26*(Vehicles!$G$23/Vehicles!$BI$59+Vehicles!$G$24/Vehicles!$BJ$59)/(Vehicles!$G$23*(1/Vehicles!$BH$59+1/Vehicles!$BI$59)+Vehicles!$G$24/Vehicles!$BJ$59) -> 54.30372483 | W26: =AN26*(Vehicles!$H$23/Vehicles!$BL$59)/(Vehicles!$H$23*(1/Vehicles!$BL$59+1/Vehicles!$BM$59)+Vehicles!$H$24/Vehicles!$BN$59)+G26*(Vehicles!$H$23/Vehicles!$BM$59+Vehicles!$H$24/Vehicles!$BN$59)/(Vehicles!$H$23*(1/Vehicles!$BL$59+1/Vehicles!$BM$59)+Vehicles!$H$24/Vehicles!$BN$59) -> 58.97236501 | X26: =AN26*(Vehicles!$I$23/Vehicles!$BP$59)/(Vehicles!$I$23*(1/Vehicles!$BP$59+1/Vehicles!$BQ$59)+Vehicles!$I$24/Vehicles!$BR$59)+H26*(Vehicles!$I$23/Vehicles!$BQ$59+Vehicles!$I$24/Vehicles!$BR$59)/(Vehicles!$I$23*(1/Vehicles!$BP$59+1/Vehicles!$BQ$59)+Vehicles!$I$24/Vehicles!$BR$59) -> 33.4272562 | Y26: =AN26*(Vehicles!$J$23/Vehicles!$BT$59)/(Vehicles!$J$23*(1/Vehicles!$BT$59+1/Vehicles!$BU$59)+Vehicles!$J$24/Vehicles!$BV$59)+K26*(Vehicles!$J$23/Vehicles!$BU$59+Vehicles!$J$24/Vehicles!$BV$59)/(Vehicles!$J$23*(1/Vehicles!$BT$59+1/Vehicles!$BU$59)+Vehicles!$J$24/Vehicles!$BV$59) -> 39.33261054 | Z26: =AN26*(Vehicles!$K$23/Vehicles!$BX$59)/(Vehicles!$K$23*(1/Vehicles!$BX$59+1/Vehicles!$BY$59)+Vehicles!$K$24/Vehicles!$BZ$59)+O26*(Vehicles!$K$23/Vehicles!$BY$59+Vehicles!$K$24/Vehicles!$BZ$59)/(Vehicles!$K$23*(1/Vehicles!$BX$59+1/Vehicles!$BY$59)+Vehicles!$K$24/Vehicles!$BZ$59) -> 54.5175638 | AA26: =AN26*(Vehicles!$L$23/Vehicles!$CB$59)/(Vehicles!$L$23*(1/Vehicles!$CB$59+1/Vehicles!$CC$59)+Vehicles!$L$24/Vehicles!$CD$59)+AO26*(Vehicles!$L$23/Vehicles!$CC$59+Vehicles!$L$24/Vehicles!$CD$59)/(Vehicles!$L$23*(1/Vehicles!$CB$59+1/Vehicles!$CC$59)+Vehicles!$L$24/Vehicles!$CD$59) -> 75.65421579 | AB26: =AN26*(Vehicles!$L$23/Vehicles!$CB$59)/(Vehicles!$L$23*(1/Vehicles!$CB$59+1/Vehicles!$CC$59)+Vehicles!$L$24/Vehicles!$CE$59)+AP26*(Vehicles!$L$23/Vehicles!$CC$59+Vehicles!$L$24/Vehicles!$CE$59)/(Vehicles!$L$23*(1/Vehicles!$CB$59+1/Vehicles!$CC$59)+Vehicles!$L$24/Vehicles!$CE$59) -> 85.14290437 | AC26: =('MeOH&FTD'!$AJ145*'MeOH&FTD'!$AK$137+'MeOH&FTD'!$AK145)/1000000*HLOOKUP($J$10,$Z$5:$AD$6,2,FALSE)/HLOOKUP($J$11,$Z$7:$AD$8,2,FALSE) -> 28.79702257 | AD26: =((1-Vehicles!$C$34)*(1-Vehicles!$C$13)*Fuel_Specs!$B$20/((1-Vehicles!$C$34)*(1-Vehicles!$C$13)*Fuel_Specs!$B$20+Vehicles!$C$34*(1-Vehicles!$C$13)*Fuel_Specs!$B$23+Vehicles!$C$13*Fuel_Specs!$B$40)*(Petroleum!B270*Petroleum!$J$262+Petroleum!$J270)+Vehicles!$C$34*(1-Vehicles!$C$13)*Fuel_Specs!$B$23/((1-Vehicles!$C$34)*(1-Vehicles!$C$13)*Fuel_Specs!$B$20+Vehicles!$C$34*(1-Vehicles!$C$13)*Fuel_Specs!$B$23+Vehicles!$C$13*Fuel_Specs!$B$40)*(Petroleum!B270*Petroleum!$K$262+Petroleum!$K270)+Vehicles!$C$13*Fuel_Specs!$B$40/((1-Vehicles!$C$34)*(1-Vehicles!$C$13)*Fuel_Specs!$B$20+Vehicles!$C$34*(1-Vehicles!$C$13)*Fuel_Specs!$B$23+Vehicles!$C$13*Fuel_Specs!$B$40)*('MeOH&FTD'!$AZ145*'MeOH&FTD'!$BA$137+'MeOH&FTD'!$BA145))/1000000*HLOOKUP($J$10,$Z$5:$AD$6,2,FALSE)/HLOOKUP($J$11,$Z$7:$AD$8,2,FALSE) -> 32.33971684 | AE26: =((1-Vehicles!$C$35)*(1-Vehicles!$C$14)*Fuel_Specs!$B$20/((1-Vehicles!$C$35)*(1-Vehicles!$C$14)*Fuel_Specs!$B$20+Vehicles!$C$35*(1-Vehicles!$C$14)*Fuel_Specs!$B$23+Vehicles!$C$14*Fuel_Specs!$B$39)*(Petroleum!B270*Petroleum!$J$262+Petroleum!$J270)+Vehicles!$C$35*(1-Vehicles!$C$14)*Fuel_Specs!$B$23/((1-Vehicles!$C$35)*(1-Vehicles!$C$14)*Fuel_Specs!$B$20+Vehicles!$C$35*(1-Vehicles!$C$14)*Fuel_Specs!$B$23+Vehicles!$C$14*Fuel_Specs!$B$39)*(Petroleum!B270*Petroleum!$K$262+Petroleum!$K270)+Vehicles!$C$14*Fuel_Specs!$B$39/((1-Vehicles!$C$35)*(1-Vehicles!$C$14)*Fuel_Specs!$B$20+Vehicles!$C$35*(1-Vehicles!$C$14)*Fuel_Specs!$B$23+Vehicles!$C$14*Fuel_Specs!$B$39)*(BioOil!$W342*BioOil!$X$333+BioOil!$X342))/1000000*HLOOKUP($J$10,$Z$5:$AD$6,2,FALSE)/HLOOKUP($J$11,$Z$7:$AD$8,2,FALSE) -> 23.97028426 | AF26: =((1-Vehicles!$C$36)*(1-Vehicles!$C$15)*Fuel_Specs!$B$20/((1-Vehicles!$C$36)*(1-Vehicles!$C$15)*Fuel_Specs!$B$20+Vehicles!$C$36*(1-Vehicles!$C$15)*Fuel_Specs!$B$23+Vehicles!$C$15*IF(Inputs!$E$628=1,IF(Inputs!$E$628=1,Fuel_Specs!$B$41,IF(Inputs!$E$628=3,Fuel_Specs!$B$43,Fuel_Specs!$B$42)),Fuel_Specs!$B$42))*(Petroleum!B270*Petroleum!$J$262+Petroleum!$J270)+Vehicles!$C$36*(1-Vehicles!$C$15)*Fuel_Specs!$B$23/((1-Vehicles!$C$36)*(1-Vehicles!$C$15)*Fuel_Specs!$B$20+Vehicles!$C$36*(1-Vehicles!$C$15)*Fuel_Specs!$B$23+Vehicles!$C$15*IF(Inputs!$E$628=1,IF(Inputs!$E$628=1,Fuel_Specs!$B$41,IF(Inputs!$E$628=3,Fuel_Specs!$B$43,Fuel_Specs!$B$42)),Fuel_Specs!$B$42))*(Petroleum!B270*Petroleum!$K$262+Petroleum!$K270)+Vehicles!$C$15*IF(Inputs!$E$628=1,IF(Inputs!$E$628=1,Fuel_Specs!$B$41,IF(Inputs!$E$628=3,Fuel_Specs!$B$43,Fuel_Specs!$B$42)),Fuel_Specs!$B$42)/((1-Vehicles!$C$36)*(1-Vehicles!$C$15)*Fuel_Specs!$B$20+Vehicles!$C$36*(1-Vehicles!$C$15)*Fuel_Specs!$B$23+Vehicles!$C$15*IF(Inputs!$E$628=1,IF(Inputs!$E$628=1,Fuel_Specs!$B$41,IF(Inputs!$E$628=3,Fuel_Specs!$B$43,Fuel_Specs!$B$42)),Fuel_Specs!$B$42))*(BioOil!$BA342*BioOil!$BB$333+BioOil!$BB342))/1000000*HLOOKUP($J$10,$Z$5:$AD$6,2,FALSE)/HLOOKUP($J$11,$Z$7:$AD$8,2,FALSE) -> 37.76045005 | AG26: =((1-Vehicles!$C$36)*(1-Vehicles!$C$15)*Fuel_Specs!$B$20/((1-Vehicles!$C$36)*(1-Vehicles!$C$15)*Fuel_Specs!$B$20+Vehicles!$C$36*(1-Vehicles!$C$15)*Fuel_Specs!$B$23+Vehicles!$C$15*IF(Inputs!$E$628=1,Fuel_Specs!$B$41,Fuel_Specs!$B$42))*(Petroleum!B270*Petroleum!$J$262+Petroleum!$J270)+Vehicles!$C$36*(1-Vehicles!$C$15)*Fuel_Specs!$B$23/((1-Vehicles!$C$36)*(1-Vehicles!$C$15)*Fuel_Specs!$B$20+Vehicles!$C$36*(1-Vehicles!$C$15)*Fuel_Specs!$B$23+Vehicles!$C$15*IF(Inputs!$E$628=1,Fuel_Specs!$B$41,Fuel_Specs!$B$42))*(Petroleum!B270*Petroleum!$K$262+Petroleum!$K270)+Vehicles!$C$15*IF(Inputs!$E$628=1,Fuel_Specs!$B$41,Fuel_Specs!$B$42)/((1-Vehicles!$C$36)*(1-Vehicles!$C$15)*Fuel_Specs!$B$20+Vehicles!$C$36*(1-Vehicles!$C$15)*Fuel_Specs!$B$23+Vehicles!$C$15*IF(Inputs!$E$628=1,Fuel_Specs!$B$41,Fuel_Specs!$B$42))*(Pyrolysis!$AB179*Pyrolysis!$AC$171+Pyrolysis!$AC179))/1000000*HLOOKUP($J$10,$Z$5:$AD$6,2,FALSE)/HLOOKUP($J$11,$Z$7:$AD$8,2,FALSE) -> 26.13114014 | AH26: =(((1-Vehicles!$C$37)*(1-Vehicles!$C$17-Vehicles!$C$18)*Fuel_Specs!$B$20*(Petroleum!B270*Petroleum!$J$262+Petroleum!$J270)+Vehicles!$C$37*(1-Vehicles!$C$17-Vehicles!$C$18)*Fuel_Specs!$B$23*(Petroleum!B270*Petroleum!$K$262+Petroleum!$K270)+Vehicles!$C$17*Fuel_Specs!$B$31*(EtOH!BP497*EtOH!$BQ$489+EtOH!$BQ497)+Vehicles!$C$18*Fuel_Specs!$B$34*('E-D Additives'!$B61*'E-D Additives'!$B$53))/((1-Vehicles!$C$37)*(1-Vehicles!$C$17-Vehicles!$C$18)*Fuel_Specs!$B$20+Vehicles!$C$37*(1-Vehicles!$C$17-Vehicles!$C$18)*Fuel_Specs!$B$23+Vehicles!$C$17*Fuel_Specs!$B$31+Vehicles!$C$18*Fuel_Specs!$B$34))/1000000*HLOOKUP($J$10,$Z$5:$AD$6,2,FALSE)/HLOOKUP($J$11,$Z$7:$AD$8,2,FALSE) -> 21.24033929 | AI26: =AN26*(Vehicles!$M$23/Vehicles!$CM$59)/(Vehicles!$M$23*(1/Vehicles!$CM$59+1/Vehicles!$CN$59)+Vehicles!$M$24/Vehicles!$CO$59)+E26*(Vehicles!$M$23/Vehicles!$CN$59+Vehicles!$M$24/Vehicles!$CO$59)/(Vehicles!$M$23*(1/Vehicles!$CM$59+1/Vehicles!$CN$59)+Vehicles!$M$24/Vehicles!$CO$59) -> 35.06171 | AJ26: =AN26*(Vehicles!$N$23/Vehicles!$CQ$59)/(Vehicles!$N$23*(1/Vehicles!$CQ$59+1/Vehicles!$CR$59)+Vehicles!$N$24/Vehicles!$CS$59)+AC26*(Vehicles!$N$23/Vehicles!$CR$59+Vehicles!$N$24/Vehicles!$CS$59)/(Vehicles!$N$23*(1/Vehicles!$CQ$59+1/Vehicles!$CR$59)+Vehicles!$N$24/Vehicles!$CS$59) -> 42.27901676 | AK26: =AN26*(Vehicles!$O$23/Vehicles!$CU$59)/(Vehicles!$O$23*(1/Vehicles!$CU$59+1/Vehicles!$CV$59)+Vehicles!$O$24/Vehicles!$CW$59)+AD26*(Vehicles!$O$23/Vehicles!$CV$59+Vehicles!$O$24/Vehicles!$CW$59)/(Vehicles!$O$23*(1/Vehicles!$CU$59+1/Vehicles!$CV$59)+Vehicles!$O$24/Vehicles!$CW$59) -> 44.89021189 | AL26: =AN26*(Vehicles!$P$23/Vehicles!$CY$59)/(Vehicles!$P$23*(1/Vehicles!$CY$59+1/Vehicles!$CZ$59)+Vehicles!$P$24/Vehicles!$DA$59)+AE26*(Vehicles!$P$23/Vehicles!$CZ$59+Vehicles!$P$24/Vehicles!$DA$59)/(Vehicles!$P$23*(1/Vehicles!$CY$59+1/Vehicles!$CZ$59)+Vehicles!$P$24/Vehicles!$DA$59) -> 38.72139802 | AM26: =AN26*(Vehicles!$R$23/Vehicles!$DG$59)/(Vehicles!$R$23*(1/Vehicles!$DG$59+1/Vehicles!$DH$59)+Vehicles!$R$24/Vehicles!$DI$59)+AH26*(Vehicles!$R$23/Vehicles!$DH$59+Vehicles!$R$24/Vehicles!$DI$59)/(Vehicles!$R$23*(1/Vehicles!$DG$59+1/Vehicles!$DH$59)+Vehicles!$R$24/Vehicles!$DI$59) -> 36.70925176 | AN26: =(Electric!$G193+Electric!$F193)/1000000*HLOOKUP($J$10,$Z$5:$AD$6,2,FALSE)/HLOOKUP($J$11,$Z$7:$AD$8,2,FALSE) -> 80.07198493 | AO26: =(Hydrogen!$AF170*Hydrogen!$AG$162+Hydrogen!$AG170)/1000000*HLOOKUP($J$10,$Z$5:$AD$6,2,FALSE)/HLOOKUP($J$11,$Z$7:$AD$8,2,FALSE) -> 74.04013033 | AP26: =(Hydrogen!$BJ170*Hydrogen!$BK$162+Hydrogen!$BK170)/1000000*HLOOKUP($J$10,$Z$5:$AD$6,2,FALSE)/HLOOKUP($J$11,$Z$7:$AD$8,2,FALSE) -> 86.99562619 | AQ26: =AN26*(Vehicles!$S$23/Vehicles!$DW$59)/(Vehicles!$S$23*(1/Vehicles!$DW$59+1/Vehicles!$DX$59)+Vehicles!$S$24/Vehicles!$DY$59)+AO26*(Vehicles!$S$23/Vehicles!$DX$59+Vehicles!$S$24/Vehicles!$DY$59)/(Vehicles!$S$23*(1/Vehicles!$DW$59+1/Vehicles!$DX$59)+Vehicles!$S$24/Vehicles!$DY$59) -> 75.97670677 | AR26: =AN26*(Vehicles!$S$23/Vehicles!$DW$59)/(Vehicles!$S$23*(1/Vehicles!$DW$59+1/Vehicles!$DX$59)+Vehicles!$S$24/Vehicles!$DY$59)+AP26*(Vehicles!$S$23/Vehicles!$DX$59+Vehicles!$S$24/Vehicles!$DY$59)/(Vehicles!$S$23*(1/Vehicles!$DW$59+1/Vehicles!$DX$59)+Vehicles!$S$24/Vehicles!$DY$59) -> 84.77273432 | AS26: =((1-Vehicles!$C$33)*(1-Vehicles!$C$16)*Fuel_Specs!$B$15/((1-Vehicles!$C$33)*(1-Vehicles!$C$16)*Fuel_Specs!$B$15+Vehicles!$C$33*(1-Vehicles!$C$16)*Fuel_Specs!$B$16+Vehicles!$C$16*Fuel_Specs!$B$45)*(Petroleum!$B270*Petroleum!$D$262+Petroleum!$D270)+Vehicles!$C$33*(1-Vehicles!$C$16)*Fuel_Specs!$B$16/((1-Vehicles!$C$33)*(1-Vehicles!$C$16)*Fuel_Specs!$B$15+Vehicles!$C$33*(1-Vehicles!$C$16)*Fuel_Specs!$B$16+Vehicles!$C$16*Fuel_Specs!$B$45)*(Petroleum!B270*Petroleum!$F$262+Petroleum!$F270)+Vehicles!$C$16*Fuel_Specs!$B$45/((1-Vehicles!$C$33)*(1-Vehicles!$C$16)*Fuel_Specs!$B$15+Vehicles!$C$33*(1-Vehicles!$C$16)*Fuel_Specs!$B$16+Vehicles!$C$16*Fuel_Specs!$B$45)*(IDL!$L120*IDL!$M$112+IDL!$M120))/1000000*HLOOKUP($J$10,$Z$5:$AD$6,2,FALSE)/HLOOKUP($J$11,$Z$7:$AD$8,2,FALSE) -> 119.6239375 | AV26: SI - Dedi. EtOH Vehicle | AW26: RNAVETOHDED | BQ26: FCV - LNG | BR26: RNAVFCVLNG
A27: NOx: Total | B27: =(Inputs!$E$1398*(Petroleum!$B271*Petroleum!$F$262+Petroleum!$F271)+(1-Inputs!$E$1398)*(Petroleum!$B271*Petroleum!$D$262+Petroleum!$D271))/1000000*HLOOKUP($J$10,$Z$5:$AD$6,2,FALSE)/HLOOKUP($J$11,$Z$7:$AD$8,2,FALSE) -> 45.89595227 | C27: =(Petroleum!$C271*Petroleum!$G$262+Petroleum!$G271)/1000000*HLOOKUP($J$10,$Z$5:$AD$6,2,FALSE)/HLOOKUP($J$11,$Z$7:$AD$8,2,FALSE) -> 53.82891807 | D27: =((1-Vehicles!$C$28)*(1-Vehicles!$C$7)*Fuel_Specs!$B$15/((1-Vehicles!$C$28)*(1-Vehicles!$C$7)*Fuel_Specs!$B$15+Vehicles!$C$28*(1-Vehicles!$C$7)*Fuel_Specs!$B$16+Vehicles!$C$7*Fuel_Specs!$B$31)*(Petroleum!$B271*Petroleum!$D$262+(Petroleum!$D271-'T&D'!G221))+Vehicles!$C$28*(1-Vehicles!$C$7)*Fuel_Specs!$B$16/((1-Vehicles!$C$28)*(1-Vehicles!$C$7)*Fuel_Specs!$B$15+Vehicles!$C$28*(1-Vehicles!$C$7)*Fuel_Specs!$B$16+Vehicles!$C$7*Fuel_Specs!$B$31)*(Petroleum!B271*Petroleum!$F$262+Petroleum!$F271)+Vehicles!$C$7*Fuel_Specs!$B$31/((1-Vehicles!$C$28)*(1-Vehicles!$C$7)*Fuel_Specs!$B$15+Vehicles!$C$28*(1-Vehicles!$C$7)*Fuel_Specs!$B$16+Vehicles!$C$7*Fuel_Specs!$B$31)*(EtOH!BR498*EtOH!$BS$489+EtOH!$BS498)+Petroleum!AR133+Petroleum!AS133)/1000000*HLOOKUP($J$10,$Z$5:$AD$6,2,FALSE)/HLOOKUP($J$11,$Z$7:$AD$8,2,FALSE) -> 45.89595227 | E27: =(Inputs!$E$97*(IF(Inputs!F$102=1,Petroleum!$B271,Petroleum!$C271)*Petroleum!$K$262+Petroleum!$K271)+(1-Inputs!$E$97)*(IF(Inputs!F$101=1,Petroleum!$B271,Petroleum!$C271)*Petroleum!$J$262+Petroleum!$J271))/1000000*HLOOKUP($J$10,$Z$5:$AD$6,2,FALSE)/HLOOKUP($J$11,$Z$7:$AD$8,2,FALSE) -> 37.79980832 | F27: =(NG!$I93*NG!$J$84+NG!$J93)/1000000*HLOOKUP($J$10,$Z$5:$AD$6,2,FALSE)/HLOOKUP($J$11,$Z$7:$AD$8,2,FALSE) -> 54.37998411 | G27: =(NG!$Q93*NG!$R$84+NG!$R93)/1000000*HLOOKUP($J$10,$Z$5:$AD$6,2,FALSE)/HLOOKUP($J$11,$Z$7:$AD$8,2,FALSE) -> 62.44717404 | H27: =(NG!$W93*NG!$X$84+NG!$X93)/1000000*HLOOKUP($J$10,$Z$5:$AD$6,2,FALSE)/HLOOKUP($J$11,$Z$7:$AD$8,2,FALSE) -> 32.46761674 | I27: =('MeOH&FTD'!BJ146*'MeOH&FTD'!BK$137+'MeOH&FTD'!BK146)/1000000*HLOOKUP($J$10,$Z$5:$AD$6,2,FALSE)/HLOOKUP($J$11,$Z$7:$AD$8,2,FALSE) -> 49.62357429 | J27: =((1-Vehicles!$C$27)*(1-Vehicles!$C$5)*Fuel_Specs!$B$15/((1-Vehicles!$C$27)*(1-Vehicles!$C$5)*Fuel_Specs!$B$15+Vehicles!$C$27*(1-Vehicles!$C$5)*Fuel_Specs!$B$16+Vehicles!$C$5*Fuel_Specs!$B$30)*(Petroleum!$B271*Petroleum!$D$262+Petroleum!$D271)+Vehicles!$C$27*(1-Vehicles!$C$5)*Fuel_Specs!$B$16/((1-Vehicles!$C$27)*(1-Vehicles!$C$5)*Fuel_Specs!$B$15+Vehicles!$C$27*(1-Vehicles!$C$5)*Fuel_Specs!$B$16+Vehicles!$C$5*Fuel_Specs!$B$30)*(Petroleum!B271*Petroleum!$F$262+Petroleum!$F271)+Vehicles!$C$5*Fuel_Specs!$B$30/((1-Vehicles!$C$27)*(1-Vehicles!$C$5)*Fuel_Specs!$B$15+Vehicles!$C$27*(1-Vehicles!$C$5)*Fuel_Specs!$B$16+Vehicles!$C$5*Fuel_Specs!$B$30)*('MeOH&FTD'!$N146*'MeOH&FTD'!$O$137+'MeOH&FTD'!$O146))/1000000*HLOOKUP($J$10,$Z$5:$AD$6,2,FALSE)/HLOOKUP($J$11,$Z$7:$AD$8,2,FALSE) -> 40.11237923 | K27: =((1-Vehicles!$C$27)*(1-Vehicles!$C$6)*Fuel_Specs!$B$15/((1-Vehicles!$C$27)*(1-Vehicles!$C$6)*Fuel_Specs!$B$15+Vehicles!$C$27*(1-Vehicles!$C$6)*Fuel_Specs!$B$16+Vehicles!$C$6*Fuel_Specs!$B$30)*(Petroleum!$B271*Petroleum!$D$262+Petroleum!$D271)+Vehicles!$C$27*(1-Vehicles!$C$6)*Fuel_Specs!$B$16/((1-Vehicles!$C$27)*(1-Vehicles!$C$6)*Fuel_Specs!$B$15+Vehicles!$C$27*(1-Vehicles!$C$6)*Fuel_Specs!$B$16+Vehicles!$C$6*Fuel_Specs!$B$30)*(Petroleum!B271*Petroleum!$F$262+Petroleum!$F271)+Vehicles!$C$6*Fuel_Specs!$B$30/((1-Vehicles!$C$27)*(1-Vehicles!$C$6)*Fuel_Specs!$B$15+Vehicles!$C$27*(1-Vehicles!$C$6)*Fuel_Specs!$B$16+Vehicles!$C$6*Fuel_Specs!$B$30)*('MeOH&FTD'!$N146*'MeOH&FTD'!$O$137+'MeOH&FTD'!$O146))/1000000*HLOOKUP($J$10,$Z$5:$AD$6,2,FALSE)/HLOOKUP($J$11,$Z$7:$AD$8,2,FALSE) -> 39.97025256 | L27: =('MeOH&FTD'!$N146*'MeOH&FTD'!$O$137+'MeOH&FTD'!$O146)/1000000*HLOOKUP($J$10,$Z$5:$AD$6,2,FALSE)/HLOOKUP($J$11,$Z$7:$AD$8,2,FALSE) -> 39.64217704 | M27: =((1-Vehicles!$C$29)*(1-Vehicles!$C$8)*Fuel_Specs!$B$15/((1-Vehicles!$C$29)*(1-Vehicles!$C$8)*Fuel_Specs!$B$15+Vehicles!$C$29*(1-Vehicles!$C$8)*Fuel_Specs!$B$16+Vehicles!$C$8*Fuel_Specs!$B$31)*(Petroleum!$B271*Petroleum!$D$262+(Petroleum!$D271-'T&D'!G221))+Vehicles!$C$29*(1-Vehicles!$C$8)*Fuel_Specs!$B$16/((1-Vehicles!$C$29)*(1-Vehicles!$C$8)*Fuel_Specs!$B$15+Vehicles!$C$29*(1-Vehicles!$C$8)*Fuel_Specs!$B$16+Vehicles!$C$8*Fuel_Specs!$B$31)*(Petroleum!B271*Petroleum!$F$262+Petroleum!$F271)+Vehicles!$C$8*Fuel_Specs!$B$31/((1-Vehicles!$C$29)*(1-Vehicles!$C$8)*Fuel_Specs!$B$15+Vehicles!$C$29*(1-Vehicles!$C$8)*Fuel_Specs!$B$16+Vehicles!$C$8*Fuel_Specs!$B$31)*(EtOH!BR498*EtOH!$BS$489+EtOH!$BS498)+Petroleum!AR133+Petroleum!AS133)/1000000*HLOOKUP($J$10,$Z$5:$AD$6,2,FALSE)/HLOOKUP($J$11,$Z$7:$AD$8,2,FALSE) -> 92.64300912 | N27: =((1-Vehicles!$C$30)*(1-Vehicles!$C$12)*Fuel_Specs!$B$15/((1-Vehicles!$C$30)*(1-Vehicles!$C$12)*Fuel_Specs!$B$15+Vehicles!$C$30*(1-Vehicles!$C$12)*Fuel_Specs!$B$16+Vehicles!$C$12*Fuel_Specs!$B$32)*(Petroleum!$B271*Petroleum!$D$262+Petroleum!$D271)+Vehicles!$C$30*(1-Vehicles!$C$12)*Fuel_Specs!$B$16/((1-Vehicles!$C$30)*(1-Vehicles!$C$12)*Fuel_Specs!$B$15+Vehicles!$C$30*(1-Vehicles!$C$12)*Fuel_Specs!$B$16+Vehicles!$C$12*Fuel_Specs!$B$32)*(Petroleum!B271*Petroleum!$F$262+Petroleum!$F271)+Vehicles!$C$12*Fuel_Specs!$B$32/((1-Vehicles!$C$30)*(1-Vehicles!$C$12)*Fuel_Specs!$B$15+Vehicles!$C$30*(1-Vehicles!$C$12)*Fuel_Specs!$B$16+Vehicles!$C$12*Fuel_Specs!$B$32)*(EtOH!$BT498*EtOH!$BU$489+EtOH!$BU498))/1000000*HLOOKUP($J$10,$Z$5:$AD$6,2,FALSE)/HLOOKUP($J$11,$Z$7:$AD$8,2,FALSE) -> 102.7628368 | O27: =((1-Vehicles!$C$29)*(1-Vehicles!$C$9)*Fuel_Specs!$B$15/((1-Vehicles!$C$29)*(1-Vehicles!$C$9)*Fuel_Specs!$B$15+Vehicles!$C$29*(1-Vehicles!$C$9)*Fuel_Specs!$B$16+Vehicles!$C$9*Fuel_Specs!$B$31)*(Petroleum!$B271*Petroleum!$D$262+(Petroleum!$D271-'T&D'!G221))+Vehicles!$C$29*(1-Vehicles!$C$9)*Fuel_Specs!$B$16/((1-Vehicles!$C$29)*(1-Vehicles!$C$9)*Fuel_Specs!$B$15+Vehicles!$C$29*(1-Vehicles!$C$9)*Fuel_Specs!$B$16+Vehicles!$C$9*Fuel_Specs!$B$31)*(Petroleum!B271*Petroleum!$F$262+Petroleum!$F271)+Vehicles!$C$9*Fuel_Specs!$B$31/((1-Vehicles!$C$29)*(1-Vehicles!$C$9)*Fuel_Specs!$B$15+Vehicles!$C$29*(1-Vehicles!$C$9)*Fuel_Specs!$B$16+Vehicles!$C$9*Fuel_Specs!$B$31)*(EtOH!BR498*EtOH!$BS$489+EtOH!$BS498)+Petroleum!AR133+Petroleum!AS133)/1000000*HLOOKUP($J$10,$Z$5:$AD$6,2,FALSE)/HLOOKUP($J$11,$Z$7:$AD$8,2,FALSE) -> 92.64300912 | P27: =(EtOH!$BP498*EtOH!$BQ$489+EtOH!$BQ498)/1000000*HLOOKUP($J$10,$Z$5:$AD$6,2,FALSE)/HLOOKUP($J$11,$Z$7:$AD$8,2,FALSE) -> 108.4631564 | Q27: =((1-Vehicles!$C$33)*(1-Vehicles!$C$16)*Fuel_Specs!$B$15/((1-Vehicles!$C$33)*(1-Vehicles!$C$16)*Fuel_Specs!$B$15+Vehicles!$C$33*(1-Vehicles!$C$16)*Fuel_Specs!$B$16+Vehicles!$C$16*Fuel_Specs!$B$44)*(Petroleum!$B271*Petroleum!$D$262+Petroleum!$D271)+Vehicles!$C$33*(1-Vehicles!$C$16)*Fuel_Specs!$B$16/((1-Vehicles!$C$33)*(1-Vehicles!$C$16)*Fuel_Specs!$B$15+Vehicles!$C$33*(1-Vehicles!$C$16)*Fuel_Specs!$B$16+Vehicles!$C$16*Fuel_Specs!$B$44)*(Petroleum!B271*Petroleum!$F$262+Petroleum!$F271)+Vehicles!$C$16*Fuel_Specs!$B$44/((1-Vehicles!$C$33)*(1-Vehicles!$C$16)*Fuel_Specs!$B$15+Vehicles!$C$33*(1-Vehicles!$C$16)*Fuel_Specs!$B$16+Vehicles!$C$16*Fuel_Specs!$B$44)*(BioOil!$BO343*BioOil!$BP$333+BioOil!$BP343))/1000000*HLOOKUP($J$10,$Z$5:$AD$6,2,FALSE)/HLOOKUP($J$11,$Z$7:$AD$8,2,FALSE) -> 296.8796945 | R27: =((1-Vehicles!$C$33)*(1-Vehicles!$C$16)*Fuel_Specs!$B$15/((1-Vehicles!$C$33)*(1-Vehicles!$C$16)*Fuel_Specs!$B$15+Vehicles!$C$33*(1-Vehicles!$C$16)*Fuel_Specs!$B$16+Vehicles!$C$16*Fuel_Specs!$B$44)*(Petroleum!$B271*Petroleum!$D$262+Petroleum!$D271)+Vehicles!$C$33*(1-Vehicles!$C$16)*Fuel_Specs!$B$16/((1-Vehicles!$C$33)*(1-Vehicles!$C$16)*Fuel_Specs!$B$15+Vehicles!$C$33*(1-Vehicles!$C$16)*Fuel_Specs!$B$16+Vehicles!$C$16*Fuel_Specs!$B$44)*(Petroleum!B271*Petroleum!$F$262+Petroleum!$F271)+Vehicles!$C$16*Fuel_Specs!$B$44/((1-Vehicles!$C$33)*(1-Vehicles!$C$16)*Fuel_Specs!$B$15+Vehicles!$C$33*(1-Vehicles!$C$16)*Fuel_Specs!$B$16+Vehicles!$C$16*Fuel_Specs!$B$44)*(Pyrolysis!$Z180*Pyrolysis!$AA$171+Pyrolysis!$AA180))/1000000*HLOOKUP($J$10,$Z$5:$AD$6,2,FALSE)/HLOOKUP($J$11,$Z$7:$AD$8,2,FALSE) -> 44.19659615 | S27: =AN27*(Vehicles!$C$23/Vehicles!$AR$59)/(Vehicles!$C$23*(1/Vehicles!$AR$59+1/Vehicles!$AS$59)+Vehicles!$C$24/Vehicles!$AT$59)+B27*(Vehicles!$C$23/Vehicles!$AS$59+Vehicles!$C$24/Vehicles!$AT$59)/(Vehicles!$C$23*(1/Vehicles!$AR$59+1/Vehicles!$AS$59)+Vehicles!$C$24/Vehicles!$AT$59) -> 92.15092695 | T27: =AN27*(Vehicles!$D$23/Vehicles!$AV$59)/(Vehicles!$D$23*(1/Vehicles!$AV$59+1/Vehicles!$AW$59)+Vehicles!$D$24/Vehicles!$AX$59)+C27*(Vehicles!$D$23/Vehicles!$AW$59+Vehicles!$D$24/Vehicles!$AX$59)/(Vehicles!$D$23*(1/Vehicles!$AV$59+1/Vehicles!$AW$59)+Vehicles!$D$24/Vehicles!$AX$59) -> 98.07764889 | U27: =AN27*(Vehicles!$F$23/Vehicles!$BD$59)/(Vehicles!$F$23*(1/Vehicles!$BD$59+1/Vehicles!$BE$59)+Vehicles!$F$24/Vehicles!$BF$59)+D27*(Vehicles!$F$23/Vehicles!$BE$59+Vehicles!$F$24/Vehicles!$BF$59)/(Vehicles!$F$23*(1/Vehicles!$BD$59+1/Vehicles!$BE$59)+Vehicles!$F$24/Vehicles!$BF$59) -> 92.15092695 | V27: =AN27*(Vehicles!$G$23/Vehicles!$BH$59)/(Vehicles!$G$23*(1/Vehicles!$BH$59+1/Vehicles!$BI$59)+Vehicles!$G$24/Vehicles!$BJ$59)+F27*(Vehicles!$G$23/Vehicles!$BI$59+Vehicles!$G$24/Vehicles!$BJ$59)/(Vehicles!$G$23*(1/Vehicles!$BH$59+1/Vehicles!$BI$59)+Vehicles!$G$24/Vehicles!$BJ$59) -> 98.48935055 | W27: =AN27*(Vehicles!$H$23/Vehicles!$BL$59)/(Vehicles!$H$23*(1/Vehicles!$BL$59+1/Vehicles!$BM$59)+Vehicles!$H$24/Vehicles!$BN$59)+G27*(Vehicles!$H$23/Vehicles!$BM$59+Vehicles!$H$24/Vehicles!$BN$59)/(Vehicles!$H$23*(1/Vehicles!$BL$59+1/Vehicles!$BM$59)+Vehicles!$H$24/Vehicles!$BN$59) -> 104.5163514 | X27: =AN27*(Vehicles!$I$23/Vehicles!$BP$59)/(Vehicles!$I$23*(1/Vehicles!$BP$59+1/Vehicles!$BQ$59)+Vehicles!$I$24/Vehicles!$BR$59)+H27*(Vehicles!$I$23/Vehicles!$BQ$59+Vehicles!$I$24/Vehicles!$BR$59)/(Vehicles!$I$23*(1/Vehicles!$BP$59+1/Vehicles!$BQ$59)+Vehicles!$I$24/Vehicles!$BR$59) -> 82.11861206 | Y27: =AN27*(Vehicles!$J$23/Vehicles!$BT$59)/(Vehicles!$J$23*(1/Vehicles!$BT$59+1/Vehicles!$BU$59)+Vehicles!$J$24/Vehicles!$BV$59)+K27*(Vehicles!$J$23/Vehicles!$BU$59+Vehicles!$J$24/Vehicles!$BV$59)/(Vehicles!$J$23*(1/Vehicles!$BT$59+1/Vehicles!$BU$59)+Vehicles!$J$24/Vehicles!$BV$59) -> 85.43880356 | Z27: =AN27*(Vehicles!$K$23/Vehicles!$BX$59)/(Vehicles!$K$23*(1/Vehicles!$BX$59+1/Vehicles!$BY$59)+Vehicles!$K$24/Vehicles!$BZ$59)+O27*(Vehicles!$K$23/Vehicles!$BY$59+Vehicles!$K$24/Vehicles!$BZ$59)/(Vehicles!$K$23*(1/Vehicles!$BX$59+1/Vehicles!$BY$59)+Vehicles!$K$24/Vehicles!$BZ$59) -> 125.4280533 | AA27: =AN27*(Vehicles!$L$23/Vehicles!$CB$59)/(Vehicles!$L$23*(1/Vehicles!$CB$59+1/Vehicles!$CC$59)+Vehicles!$L$24/Vehicles!$CD$59)+AO27*(Vehicles!$L$23/Vehicles!$CC$59+Vehicles!$L$24/Vehicles!$CD$59)/(Vehicles!$L$23*(1/Vehicles!$CB$59+1/Vehicles!$CC$59)+Vehicles!$L$24/Vehicles!$CD$59) -> 129.3697309 | AB27: =AN27*(Vehicles!$L$23/Vehicles!$CB$59)/(Vehicles!$L$23*(1/Vehicles!$CB$59+1/Vehicles!$CC$59)+Vehicles!$L$24/Vehicles!$CE$59)+AP27*(Vehicles!$L$23/Vehicles!$CC$59+Vehicles!$L$24/Vehicles!$CE$59)/(Vehicles!$L$23*(1/Vehicles!$CB$59+1/Vehicles!$CC$59)+Vehicles!$L$24/Vehicles!$CE$59) -> 139.1348861 | AC27: =('MeOH&FTD'!$AJ146*'MeOH&FTD'!$AK$137+'MeOH&FTD'!$AK146)/1000000*HLOOKUP($J$10,$Z$5:$AD$6,2,FALSE)/HLOOKUP($J$11,$Z$7:$AD$8,2,FALSE) -> 39.82315824 | AD27: =((1-Vehicles!$C$34)*(1-Vehicles!$C$13)*Fuel_Specs!$B$20/((1-Vehicles!$C$34)*(1-Vehicles!$C$13)*Fuel_Specs!$B$20+Vehicles!$C$34*(1-Vehicles!$C$13)*Fuel_Specs!$B$23+Vehicles!$C$13*Fuel_Specs!$B$40)*(Petroleum!B271*Petroleum!$J$262+Petroleum!$J271)+Vehicles!$C$34*(1-Vehicles!$C$13)*Fuel_Specs!$B$23/((1-Vehicles!$C$34)*(1-Vehicles!$C$13)*Fuel_Specs!$B$20+Vehicles!$C$34*(1-Vehicles!$C$13)*Fuel_Specs!$B$23+Vehicles!$C$13*Fuel_Specs!$B$40)*(Petroleum!B271*Petroleum!$K$262+Petroleum!$K271)+Vehicles!$C$13*Fuel_Specs!$B$40/((1-Vehicles!$C$34)*(1-Vehicles!$C$13)*Fuel_Specs!$B$20+Vehicles!$C$34*(1-Vehicles!$C$13)*Fuel_Specs!$B$23+Vehicles!$C$13*Fuel_Specs!$B$40)*('MeOH&FTD'!$AZ146*'MeOH&FTD'!$BA$137+'MeOH&FTD'!$BA146))/1000000*HLOOKUP($J$10,$Z$5:$AD$6,2,FALSE)/HLOOKUP($J$11,$Z$7:$AD$8,2,FALSE) -> 48.77183144 | AE27: =((1-Vehicles!$C$35)*(1-Vehicles!$C$14)*Fuel_Specs!$B$20/((1-Vehicles!$C$35)*(1-Vehicles!$C$14)*Fuel_Specs!$B$20+Vehicles!$C$35*(1-Vehicles!$C$14)*Fuel_Specs!$B$23+Vehicles!$C$14*Fuel_Specs!$B$39)*(Petroleum!B271*Petroleum!$J$262+Petroleum!$J271)+Vehicles!$C$35*(1-Vehicles!$C$14)*Fuel_Specs!$B$23/((1-Vehicles!$C$35)*(1-Vehicles!$C$14)*Fuel_Specs!$B$20+Vehicles!$C$35*(1-Vehicles!$C$14)*Fuel_Specs!$B$23+Vehicles!$C$14*Fuel_Specs!$B$39)*(Petroleum!B271*Petroleum!$K$262+Petroleum!$K271)+Vehicles!$C$14*Fuel_Specs!$B$39/((1-Vehicles!$C$35)*(1-Vehicles!$C$14)*Fuel_Specs!$B$20+Vehicles!$C$35*(1-Vehicles!$C$14)*Fuel_Specs!$B$23+Vehicles!$C$14*Fuel_Specs!$B$39)*(BioOil!$W343*BioOil!$X$333+BioOil!$X343))/1000000*HLOOKUP($J$10,$Z$5:$AD$6,2,FALSE)/HLOOKUP($J$11,$Z$7:$AD$8,2,FALSE) -> 44.41836842 | AF27: =((1-Vehicles!$C$36)*(1-Vehicles!$C$15)*Fuel_Specs!$B$20/((1-Vehicles!$C$36)*(1-Vehicles!$C$15)*Fuel_Specs!$B$20+Vehicles!$C$36*(1-Vehicles!$C$15)*Fuel_Specs!$B$23+Vehicles!$C$15*IF(Inputs!$E$628=1,IF(Inputs!$E$628=1,Fuel_Specs!$B$41,IF(Inputs!$E$628=3,Fuel_Specs!$B$43,Fuel_Specs!$B$42)),Fuel_Specs!$B$42))*(Petroleum!B271*Petroleum!$J$262+Petroleum!$J271)+Vehicles!$C$36*(1-Vehicles!$C$15)*Fuel_Specs!$B$23/((1-Vehicles!$C$36)*(1-Vehicles!$C$15)*Fuel_Specs!$B$20+Vehicles!$C$36*(1-Vehicles!$C$15)*Fuel_Specs!$B$23+Vehicles!$C$15*IF(Inputs!$E$628=1,IF(Inputs!$E$628=1,Fuel_Specs!$B$41,IF(Inputs!$E$628=3,Fuel_Specs!$B$43,Fuel_Specs!$B$42)),Fuel_Specs!$B$42))*(Petroleum!B271*Petroleum!$K$262+Petroleum!$K271)+Vehicles!$C$15*IF(Inputs!$E$628=1,IF(Inputs!$E$628=1,Fuel_Specs!$B$41,IF(Inputs!$E$628=3,Fuel_Specs!$B$43,Fuel_Specs!$B$42)),Fuel_Specs!$B$42)/((1-Vehicles!$C$36)*(1-Vehicles!$C$15)*Fuel_Specs!$B$20+Vehicles!$C$36*(1-Vehicles!$C$15)*Fuel_Specs!$B$23+Vehicles!$C$15*IF(Inputs!$E$628=1,IF(Inputs!$E$628=1,Fuel_Specs!$B$41,IF(Inputs!$E$628=3,Fuel_Specs!$B$43,Fuel_Specs!$B$42)),Fuel_Specs!$B$42))*(BioOil!$BA343*BioOil!$BB$333+BioOil!$BB343))/1000000*HLOOKUP($J$10,$Z$5:$AD$6,2,FALSE)/HLOOKUP($J$11,$Z$7:$AD$8,2,FALSE) -> 54.59378574 | AG27: =((1-Vehicles!$C$36)*(1-Vehicles!$C$15)*Fuel_Specs!$B$20/((1-Vehicles!$C$36)*(1-Vehicles!$C$15)*Fuel_Specs!$B$20+Vehicles!$C$36*(1-Vehicles!$C$15)*Fuel_Specs!$B$23+Vehicles!$C$15*IF(Inputs!$E$628=1,Fuel_Specs!$B$41,Fuel_Specs!$B$42))*(Petroleum!B271*Petroleum!$J$262+Petroleum!$J271)+Vehicles!$C$36*(1-Vehicles!$C$15)*Fuel_Specs!$B$23/((1-Vehicles!$C$36)*(1-Vehicles!$C$15)*Fuel_Specs!$B$20+Vehicles!$C$36*(1-Vehicles!$C$15)*Fuel_Specs!$B$23+Vehicles!$C$15*IF(Inputs!$E$628=1,Fuel_Specs!$B$41,Fuel_Specs!$B$42))*(Petroleum!B271*Petroleum!$K$262+Petroleum!$K271)+Vehicles!$C$15*IF(Inputs!$E$628=1,Fuel_Specs!$B$41,Fuel_Specs!$B$42)/((1-Vehicles!$C$36)*(1-Vehicles!$C$15)*Fuel_Specs!$B$20+Vehicles!$C$36*(1-Vehicles!$C$15)*Fuel_Specs!$B$23+Vehicles!$C$15*IF(Inputs!$E$628=1,Fuel_Specs!$B$41,Fuel_Specs!$B$42))*(Pyrolysis!$AB180*Pyrolysis!$AC$171+Pyrolysis!$AC180))/1000000*HLOOKUP($J$10,$Z$5:$AD$6,2,FALSE)/HLOOKUP($J$11,$Z$7:$AD$8,2,FALSE) -> 45.59999134 | AH27: =(((1-Vehicles!$C$37)*(1-Vehicles!$C$17-Vehicles!$C$18)*Fuel_Specs!$B$20*(Petroleum!B271*Petroleum!$J$262+Petroleum!$J271)+Vehicles!$C$37*(1-Vehicles!$C$17-Vehicles!$C$18)*Fuel_Specs!$B$23*(Petroleum!B271*Petroleum!$K$262+Petroleum!$K271)+Vehicles!$C$17*Fuel_Specs!$B$31*(EtOH!BP498*EtOH!$BQ$489+EtOH!$BQ498)+Vehicles!$C$18*Fuel_Specs!$B$34*('E-D Additives'!$B62*'E-D Additives'!$B$53))/((1-Vehicles!$C$37)*(1-Vehicles!$C$17-Vehicles!$C$18)*Fuel_Specs!$B$20+Vehicles!$C$37*(1-Vehicles!$C$17-Vehicles!$C$18)*Fuel_Specs!$B$23+Vehicles!$C$17*Fuel_Specs!$B$31+Vehicles!$C$18*Fuel_Specs!$B$34))/1000000*HLOOKUP($J$10,$Z$5:$AD$6,2,FALSE)/HLOOKUP($J$11,$Z$7:$AD$8,2,FALSE) -> 42.0494341 | AI27: =AN27*(Vehicles!$M$23/Vehicles!$CM$59)/(Vehicles!$M$23*(1/Vehicles!$CM$59+1/Vehicles!$CN$59)+Vehicles!$M$24/Vehicles!$CO$59)+E27*(Vehicles!$M$23/Vehicles!$CN$59+Vehicles!$M$24/Vehicles!$CO$59)/(Vehicles!$M$23*(1/Vehicles!$CM$59+1/Vehicles!$CN$59)+Vehicles!$M$24/Vehicles!$CO$59) -> 88.01904799 | AJ27: =AN27*(Vehicles!$N$23/Vehicles!$CQ$59)/(Vehicles!$N$23*(1/Vehicles!$CQ$59+1/Vehicles!$CR$59)+Vehicles!$N$24/Vehicles!$CS$59)+AC27*(Vehicles!$N$23/Vehicles!$CR$59+Vehicles!$N$24/Vehicles!$CS$59)/(Vehicles!$N$23*(1/Vehicles!$CQ$59+1/Vehicles!$CR$59)+Vehicles!$N$24/Vehicles!$CS$59) -> 89.51038793 | AK27: =AN27*(Vehicles!$O$23/Vehicles!$CU$59)/(Vehicles!$O$23*(1/Vehicles!$CU$59+1/Vehicles!$CV$59)+Vehicles!$O$24/Vehicles!$CW$59)+AD27*(Vehicles!$O$23/Vehicles!$CV$59+Vehicles!$O$24/Vehicles!$CW$59)/(Vehicles!$O$23*(1/Vehicles!$CU$59+1/Vehicles!$CV$59)+Vehicles!$O$24/Vehicles!$CW$59) -> 96.10613965 | AL27: =AN27*(Vehicles!$P$23/Vehicles!$CY$59)/(Vehicles!$P$23*(1/Vehicles!$CY$59+1/Vehicles!$CZ$59)+Vehicles!$P$24/Vehicles!$DA$59)+AE27*(Vehicles!$P$23/Vehicles!$CZ$59+Vehicles!$P$24/Vehicles!$DA$59)/(Vehicles!$P$23*(1/Vehicles!$CY$59+1/Vehicles!$CZ$59)+Vehicles!$P$24/Vehicles!$DA$59) -> 92.89735545 | AM27: =AN27*(Vehicles!$R$23/Vehicles!$DG$59)/(Vehicles!$R$23*(1/Vehicles!$DG$59+1/Vehicles!$DH$59)+Vehicles!$R$24/Vehicles!$DI$59)+AH27*(Vehicles!$R$23/Vehicles!$DH$59+Vehicles!$R$24/Vehicles!$DI$59)/(Vehicles!$R$23*(1/Vehicles!$DG$59+1/Vehicles!$DH$59)+Vehicles!$R$24/Vehicles!$DI$59) -> 91.15129742 | AN27: =(Electric!$G194+Electric!$F194)/1000000*HLOOKUP($J$10,$Z$5:$AD$6,2,FALSE)/HLOOKUP($J$11,$Z$7:$AD$8,2,FALSE) -> 228.7945223 | AO27: =(Hydrogen!$AF171*Hydrogen!$AG$162+Hydrogen!$AG171)/1000000*HLOOKUP($J$10,$Z$5:$AD$6,2,FALSE)/HLOOKUP($J$11,$Z$7:$AD$8,2,FALSE) -> 93.04367938 | AP27: =(Hydrogen!$BJ171*Hydrogen!$BK$162+Hydrogen!$BK171)/1000000*HLOOKUP($J$10,$Z$5:$AD$6,2,FALSE)/HLOOKUP($J$11,$Z$7:$AD$8,2,FALSE) -> 106.3766522 | AQ27: =AN27*(Vehicles!$S$23/Vehicles!$DW$59)/(Vehicles!$S$23*(1/Vehicles!$DW$59+1/Vehicles!$DX$59)+Vehicles!$S$24/Vehicles!$DY$59)+AO27*(Vehicles!$S$23/Vehicles!$DX$59+Vehicles!$S$24/Vehicles!$DY$59)/(Vehicles!$S$23*(1/Vehicles!$DW$59+1/Vehicles!$DX$59)+Vehicles!$S$24/Vehicles!$DY$59) -> 136.627602 | AR27: =AN27*(Vehicles!$S$23/Vehicles!$DW$59)/(Vehicles!$S$23*(1/Vehicles!$DW$59+1/Vehicles!$DX$59)+Vehicles!$S$24/Vehicles!$DY$59)+AP27*(Vehicles!$S$23/Vehicles!$DX$59+Vehicles!$S$24/Vehicles!$DY$59)/(Vehicles!$S$23*(1/Vehicles!$DW$59+1/Vehicles!$DX$59)+Vehicles!$S$24/Vehicles!$DY$59) -> 145.6799144 | AS27: =((1-Vehicles!$C$33)*(1-Vehicles!$C$16)*Fuel_Specs!$B$15/((1-Vehicles!$C$33)*(1-Vehicles!$C$16)*Fuel_Specs!$B$15+Vehicles!$C$33*(1-Vehicles!$C$16)*Fuel_Specs!$B$16+Vehicles!$C$16*Fuel_Specs!$B$45)*(Petroleum!$B271*Petroleum!$D$262+Petroleum!$D271)+Vehicles!$C$33*(1-Vehicles!$C$16)*Fuel_Specs!$B$16/((1-Vehicles!$C$33)*(1-Vehicles!$C$16)*Fuel_Specs!$B$15+Vehicles!$C$33*(1-Vehicles!$C$16)*Fuel_Specs!$B$16+Vehicles!$C$16*Fuel_Specs!$B$45)*(Petroleum!B271*Petroleum!$F$262+Petroleum!$F271)+Vehicles!$C$16*Fuel_Specs!$B$45/((1-Vehicles!$C$33)*(1-Vehicles!$C$16)*Fuel_Specs!$B$15+Vehicles!$C$33*(1-Vehicles!$C$16)*Fuel_Specs!$B$16+Vehicles!$C$16*Fuel_Specs!$B$45)*(IDL!$L121*IDL!$M$112+IDL!$M121))/1000000*HLOOKUP($J$10,$Z$5:$AD$6,2,FALSE)/HLOOKUP($J$11,$Z$7:$AD$8,2,FALSE) -> 288.4612205 | AV27: SI - Gaseous H2 | AW27: RNAVGH2ICE | BQ27: FCV - LPG | BR27: RNAVFCVLPG
A28: PM10: Total | B28: =(Inputs!$E$1398*(Petroleum!$B272*Petroleum!$F$262+Petroleum!$F272)+(1-Inputs!$E$1398)*(Petroleum!$B272*Petroleum!$D$262+Petroleum!$D272))/1000000*HLOOKUP($J$10,$Z$5:$AD$6,2,FALSE)/HLOOKUP($J$11,$Z$7:$AD$8,2,FALSE) -> 4.454804802 | C28: =(Petroleum!$C272*Petroleum!$G$262+Petroleum!$G272)/1000000*HLOOKUP($J$10,$Z$5:$AD$6,2,FALSE)/HLOOKUP($J$11,$Z$7:$AD$8,2,FALSE) -> 5.075947126 | D28: =((1-Vehicles!$C$28)*(1-Vehicles!$C$7)*Fuel_Specs!$B$15/((1-Vehicles!$C$28)*(1-Vehicles!$C$7)*Fuel_Specs!$B$15+Vehicles!$C$28*(1-Vehicles!$C$7)*Fuel_Specs!$B$16+Vehicles!$C$7*Fuel_Specs!$B$31)*(Petroleum!$B272*Petroleum!$D$262+(Petroleum!$D272-'T&D'!G222))+Vehicles!$C$28*(1-Vehicles!$C$7)*Fuel_Specs!$B$16/((1-Vehicles!$C$28)*(1-Vehicles!$C$7)*Fuel_Specs!$B$15+Vehicles!$C$28*(1-Vehicles!$C$7)*Fuel_Specs!$B$16+Vehicles!$C$7*Fuel_Specs!$B$31)*(Petroleum!B272*Petroleum!$F$262+Petroleum!$F272)+Vehicles!$C$7*Fuel_Specs!$B$31/((1-Vehicles!$C$28)*(1-Vehicles!$C$7)*Fuel_Specs!$B$15+Vehicles!$C$28*(1-Vehicles!$C$7)*Fuel_Specs!$B$16+Vehicles!$C$7*Fuel_Specs!$B$31)*(EtOH!BR499*EtOH!$BS$489+EtOH!$BS499)+Petroleum!AR134+Petroleum!AS134)/1000000*HLOOKUP($J$10,$Z$5:$AD$6,2,FALSE)/HLOOKUP($J$11,$Z$7:$AD$8,2,FALSE) -> 4.454804802 | E28: =(Inputs!$E$97*(IF(Inputs!F$102=1,Petroleum!$B272,Petroleum!$C272)*Petroleum!$K$262+Petroleum!$K272)+(1-Inputs!$E$97)*(IF(Inputs!F$101=1,Petroleum!$B272,Petroleum!$C272)*Petroleum!$J$262+Petroleum!$J272))/1000000*HLOOKUP($J$10,$Z$5:$AD$6,2,FALSE)/HLOOKUP($J$11,$Z$7:$AD$8,2,FALSE) -> 3.227965213 | F28: =(NG!$I94*NG!$J$84+NG!$J94)/1000000*HLOOKUP($J$10,$Z$5:$AD$6,2,FALSE)/HLOOKUP($J$11,$Z$7:$AD$8,2,FALSE) -> 1.969119935 | G28: =(NG!$Q94*NG!$R$84+NG!$R94)/1000000*HLOOKUP($J$10,$Z$5:$AD$6,2,FALSE)/HLOOKUP($J$11,$Z$7:$AD$8,2,FALSE) -> 1.169418555 | H28: =(NG!$W94*NG!$X$84+NG!$X94)/1000000*HLOOKUP($J$10,$Z$5:$AD$6,2,FALSE)/HLOOKUP($J$11,$Z$7:$AD$8,2,FALSE) -> 1.892505573 | I28: =('MeOH&FTD'!BJ147*'MeOH&FTD'!BK$137+'MeOH&FTD'!BK147)/1000000*HLOOKUP($J$10,$Z$5:$AD$6,2,FALSE)/HLOOKUP($J$11,$Z$7:$AD$8,2,FALSE) -> 13.61167332 | J28: =((1-Vehicles!$C$27)*(1-Vehicles!$C$5)*Fuel_Specs!$B$15/((1-Vehicles!$C$27)*(1-Vehicles!$C$5)*Fuel_Specs!$B$15+Vehicles!$C$27*(1-Vehicles!$C$5)*Fuel_Specs!$B$16+Vehicles!$C$5*Fuel_Specs!$B$30)*(Petroleum!$B272*Petroleum!$D$262+Petroleum!$D272)+Vehicles!$C$27*(1-Vehicles!$C$5)*Fuel_Specs!$B$16/((1-Vehicles!$C$27)*(1-Vehicles!$C$5)*Fuel_Specs!$B$15+Vehicles!$C$27*(1-Vehicles!$C$5)*Fuel_Specs!$B$16+Vehicles!$C$5*Fuel_Specs!$B$30)*(Petroleum!B272*Petroleum!$F$262+Petroleum!$F272)+Vehicles!$C$5*Fuel_Specs!$B$30/((1-Vehicles!$C$27)*(1-Vehicles!$C$5)*Fuel_Specs!$B$15+Vehicles!$C$27*(1-Vehicles!$C$5)*Fuel_Specs!$B$16+Vehicles!$C$5*Fuel_Specs!$B$30)*('MeOH&FTD'!$N147*'MeOH&FTD'!$O$137+'MeOH&FTD'!$O147))/1000000*HLOOKUP($J$10,$Z$5:$AD$6,2,FALSE)/HLOOKUP($J$11,$Z$7:$AD$8,2,FALSE) -> 12.53804056 | K28: =((1-Vehicles!$C$27)*(1-Vehicles!$C$6)*Fuel_Specs!$B$15/((1-Vehicles!$C$27)*(1-Vehicles!$C$6)*Fuel_Specs!$B$15+Vehicles!$C$27*(1-Vehicles!$C$6)*Fuel_Specs!$B$16+Vehicles!$C$6*Fuel_Specs!$B$30)*(Petroleum!$B272*Petroleum!$D$262+Petroleum!$D272)+Vehicles!$C$27*(1-Vehicles!$C$6)*Fuel_Specs!$B$16/((1-Vehicles!$C$27)*(1-Vehicles!$C$6)*Fuel_Specs!$B$15+Vehicles!$C$27*(1-Vehicles!$C$6)*Fuel_Specs!$B$16+Vehicles!$C$6*Fuel_Specs!$B$30)*(Petroleum!B272*Petroleum!$F$262+Petroleum!$F272)+Vehicles!$C$6*Fuel_Specs!$B$30/((1-Vehicles!$C$27)*(1-Vehicles!$C$6)*Fuel_Specs!$B$15+Vehicles!$C$27*(1-Vehicles!$C$6)*Fuel_Specs!$B$16+Vehicles!$C$6*Fuel_Specs!$B$30)*('MeOH&FTD'!$N147*'MeOH&FTD'!$O$137+'MeOH&FTD'!$O147))/1000000*HLOOKUP($J$10,$Z$5:$AD$6,2,FALSE)/HLOOKUP($J$11,$Z$7:$AD$8,2,FALSE) -> 13.52159309 | L28: =('MeOH&FTD'!$N147*'MeOH&FTD'!$O$137+'MeOH&FTD'!$O147)/1000000*HLOOKUP($J$10,$Z$5:$AD$6,2,FALSE)/HLOOKUP($J$11,$Z$7:$AD$8,2,FALSE) -> 15.79195876 | M28: =((1-Vehicles!$C$29)*(1-Vehicles!$C$8)*Fuel_Specs!$B$15/((1-Vehicles!$C$29)*(1-Vehicles!$C$8)*Fuel_Specs!$B$15+Vehicles!$C$29*(1-Vehicles!$C$8)*Fuel_Specs!$B$16+Vehicles!$C$8*Fuel_Specs!$B$31)*(Petroleum!$B272*Petroleum!$D$262+(Petroleum!$D272-'T&D'!G222))+Vehicles!$C$29*(1-Vehicles!$C$8)*Fuel_Specs!$B$16/((1-Vehicles!$C$29)*(1-Vehicles!$C$8)*Fuel_Specs!$B$15+Vehicles!$C$29*(1-Vehicles!$C$8)*Fuel_Specs!$B$16+Vehicles!$C$8*Fuel_Specs!$B$31)*(Petroleum!B272*Petroleum!$F$262+Petroleum!$F272)+Vehicles!$C$8*Fuel_Specs!$B$31/((1-Vehicles!$C$29)*(1-Vehicles!$C$8)*Fuel_Specs!$B$15+Vehicles!$C$29*(1-Vehicles!$C$8)*Fuel_Specs!$B$16+Vehicles!$C$8*Fuel_Specs!$B$31)*(EtOH!BR499*EtOH!$BS$489+EtOH!$BS499)+Petroleum!AR134+Petroleum!AS134)/1000000*HLOOKUP($J$10,$Z$5:$AD$6,2,FALSE)/HLOOKUP($J$11,$Z$7:$AD$8,2,FALSE) -> 15.04970402 | N28: =((1-Vehicles!$C$30)*(1-Vehicles!$C$12)*Fuel_Specs!$B$15/((1-Vehicles!$C$30)*(1-Vehicles!$C$12)*Fuel_Specs!$B$15+Vehicles!$C$30*(1-Vehicles!$C$12)*Fuel_Specs!$B$16+Vehicles!$C$12*Fuel_Specs!$B$32)*(Petroleum!$B272*Petroleum!$D$262+Petroleum!$D272)+Vehicles!$C$30*(1-Vehicles!$C$12)*Fuel_Specs!$B$16/((1-Vehicles!$C$30)*(1-Vehicles!$C$12)*Fuel_Specs!$B$15+Vehicles!$C$30*(1-Vehicles!$C$12)*Fuel_Specs!$B$16+Vehicles!$C$12*Fuel_Specs!$B$32)*(Petroleum!B272*Petroleum!$F$262+Petroleum!$F272)+Vehicles!$C$12*Fuel_Specs!$B$32/((1-Vehicles!$C$30)*(1-Vehicles!$C$12)*Fuel_Specs!$B$15+Vehicles!$C$30*(1-Vehicles!$C$12)*Fuel_Specs!$B$16+Vehicles!$C$12*Fuel_Specs!$B$32)*(EtOH!$BT499*EtOH!$BU$489+EtOH!$BU499))/1000000*HLOOKUP($J$10,$Z$5:$AD$6,2,FALSE)/HLOOKUP($J$11,$Z$7:$AD$8,2,FALSE) -> 14.83347801 | O28: =((1-Vehicles!$C$29)*(1-Vehicles!$C$9)*Fuel_Specs!$B$15/((1-Vehicles!$C$29)*(1-Vehicles!$C$9)*Fuel_Specs!$B$15+Vehicles!$C$29*(1-Vehicles!$C$9)*Fuel_Specs!$B$16+Vehicles!$C$9*Fuel_Specs!$B$31)*(Petroleum!$B272*Petroleum!$D$262+(Petroleum!$D272-'T&D'!G222))+Vehicles!$C$29*(1-Vehicles!$C$9)*Fuel_Specs!$B$16/((1-Vehicles!$C$29)*(1-Vehicles!$C$9)*Fuel_Specs!$B$15+Vehicles!$C$29*(1-Vehicles!$C$9)*Fuel_Specs!$B$16+Vehicles!$C$9*Fuel_Specs!$B$31)*(Petroleum!B272*Petroleum!$F$262+Petroleum!$F272)+Vehicles!$C$9*Fuel_Specs!$B$31/((1-Vehicles!$C$29)*(1-Vehicles!$C$9)*Fuel_Specs!$B$15+Vehicles!$C$29*(1-Vehicles!$C$9)*Fuel_Specs!$B$16+Vehicles!$C$9*Fuel_Specs!$B$31)*(EtOH!BR499*EtOH!$BS$489+EtOH!$BS499)+Petroleum!AR134+Petroleum!AS134)/1000000*HLOOKUP($J$10,$Z$5:$AD$6,2,FALSE)/HLOOKUP($J$11,$Z$7:$AD$8,2,FALSE) -> 15.04970402 | P28: =(EtOH!$BP499*EtOH!$BQ$489+EtOH!$BQ499)/1000000*HLOOKUP($J$10,$Z$5:$AD$6,2,FALSE)/HLOOKUP($J$11,$Z$7:$AD$8,2,FALSE) -> 18.59222335 | Q28: =((1-Vehicles!$C$33)*(1-Vehicles!$C$16)*Fuel_Specs!$B$15/((1-Vehicles!$C$33)*(1-Vehicles!$C$16)*Fuel_Specs!$B$15+Vehicles!$C$33*(1-Vehicles!$C$16)*Fuel_Specs!$B$16+Vehicles!$C$16*Fuel_Specs!$B$44)*(Petroleum!$B272*Petroleum!$D$262+Petroleum!$D272)+Vehicles!$C$33*(1-Vehicles!$C$16)*Fuel_Specs!$B$16/((1-Vehicles!$C$33)*(1-Vehicles!$C$16)*Fuel_Specs!$B$15+Vehicles!$C$33*(1-Vehicles!$C$16)*Fuel_Specs!$B$16+Vehicles!$C$16*Fuel_Specs!$B$44)*(Petroleum!B272*Petroleum!$F$262+Petroleum!$F272)+Vehicles!$C$16*Fuel_Specs!$B$44/((1-Vehicles!$C$33)*(1-Vehicles!$C$16)*Fuel_Specs!$B$15+Vehicles!$C$33*(1-Vehicles!$C$16)*Fuel_Specs!$B$16+Vehicles!$C$16*Fuel_Specs!$B$44)*(BioOil!$BO344*BioOil!$BP$333+BioOil!$BP344))/1000000*HLOOKUP($J$10,$Z$5:$AD$6,2,FALSE)/HLOOKUP($J$11,$Z$7:$AD$8,2,FALSE) -> 3.74751885 | R28: =((1-Vehicles!$C$33)*(1-Vehicles!$C$16)*Fuel_Specs!$B$15/((1-Vehicles!$C$33)*(1-Vehicles!$C$16)*Fuel_Specs!$B$15+Vehicles!$C$33*(1-Vehicles!$C$16)*Fuel_Specs!$B$16+Vehicles!$C$16*Fuel_Specs!$B$44)*(Petroleum!$B272*Petroleum!$D$262+Petroleum!$D272)+Vehicles!$C$33*(1-Vehicles!$C$16)*Fuel_Specs!$B$16/((1-Vehicles!$C$33)*(1-Vehicles!$C$16)*Fuel_Specs!$B$15+Vehicles!$C$33*(1-Vehicles!$C$16)*Fuel_Specs!$B$16+Vehicles!$C$16*Fuel_Specs!$B$44)*(Petroleum!B272*Petroleum!$F$262+Petroleum!$F272)+Vehicles!$C$16*Fuel_Specs!$B$44/((1-Vehicles!$C$33)*(1-Vehicles!$C$16)*Fuel_Specs!$B$15+Vehicles!$C$33*(1-Vehicles!$C$16)*Fuel_Specs!$B$16+Vehicles!$C$16*Fuel_Specs!$B$44)*(Pyrolysis!$Z181*Pyrolysis!$AA$171+Pyrolysis!$AA181))/1000000*HLOOKUP($J$10,$Z$5:$AD$6,2,FALSE)/HLOOKUP($J$11,$Z$7:$AD$8,2,FALSE) -> 7.229098566 | S28: =AN28*(Vehicles!$C$23/Vehicles!$AR$59)/(Vehicles!$C$23*(1/Vehicles!$AR$59+1/Vehicles!$AS$59)+Vehicles!$C$24/Vehicles!$AT$59)+B28*(Vehicles!$C$23/Vehicles!$AS$59+Vehicles!$C$24/Vehicles!$AT$59)/(Vehicles!$C$23*(1/Vehicles!$AR$59+1/Vehicles!$AS$59)+Vehicles!$C$24/Vehicles!$AT$59) -> 19.52744431 | T28: =AN28*(Vehicles!$D$23/Vehicles!$AV$59)/(Vehicles!$D$23*(1/Vehicles!$AV$59+1/Vehicles!$AW$59)+Vehicles!$D$24/Vehicles!$AX$59)+C28*(Vehicles!$D$23/Vehicles!$AW$59+Vehicles!$D$24/Vehicles!$AX$59)/(Vehicles!$D$23*(1/Vehicles!$AV$59+1/Vehicles!$AW$59)+Vehicles!$D$24/Vehicles!$AX$59) -> 19.99149999 | U28: =AN28*(Vehicles!$F$23/Vehicles!$BD$59)/(Vehicles!$F$23*(1/Vehicles!$BD$59+1/Vehicles!$BE$59)+Vehicles!$F$24/Vehicles!$BF$59)+D28*(Vehicles!$F$23/Vehicles!$BE$59+Vehicles!$F$24/Vehicles!$BF$59)/(Vehicles!$F$23*(1/Vehicles!$BD$59+1/Vehicles!$BE$59)+Vehicles!$F$24/Vehicles!$BF$59) -> 19.52744431 | V28: =AN28*(Vehicles!$G$23/Vehicles!$BH$59)/(Vehicles!$G$23*(1/Vehicles!$BH$59+1/Vehicles!$BI$59)+Vehicles!$G$24/Vehicles!$BJ$59)+F28*(Vehicles!$G$23/Vehicles!$BI$59+Vehicles!$G$24/Vehicles!$BJ$59)/(Vehicles!$G$23*(1/Vehicles!$BH$59+1/Vehicles!$BI$59)+Vehicles!$G$24/Vehicles!$BJ$59) -> 17.67038814 | W28: =AN28*(Vehicles!$H$23/Vehicles!$BL$59)/(Vehicles!$H$23*(1/Vehicles!$BL$59+1/Vehicles!$BM$59)+Vehicles!$H$24/Vehicles!$BN$59)+G28*(Vehicles!$H$23/Vehicles!$BM$59+Vehicles!$H$24/Vehicles!$BN$59)/(Vehicles!$H$23*(1/Vehicles!$BL$59+1/Vehicles!$BM$59)+Vehicles!$H$24/Vehicles!$BN$59) -> 17.07293092 | X28: =AN28*(Vehicles!$I$23/Vehicles!$BP$59)/(Vehicles!$I$23*(1/Vehicles!$BP$59+1/Vehicles!$BQ$59)+Vehicles!$I$24/Vehicles!$BR$59)+H28*(Vehicles!$I$23/Vehicles!$BQ$59+Vehicles!$I$24/Vehicles!$BR$59)/(Vehicles!$I$23*(1/Vehicles!$BP$59+1/Vehicles!$BQ$59)+Vehicles!$I$24/Vehicles!$BR$59) -> 17.61314952 | Y28: =AN28*(Vehicles!$J$23/Vehicles!$BT$59)/(Vehicles!$J$23*(1/Vehicles!$BT$59+1/Vehicles!$BU$59)+Vehicles!$J$24/Vehicles!$BV$59)+K28*(Vehicles!$J$23/Vehicles!$BU$59+Vehicles!$J$24/Vehicles!$BV$59)/(Vehicles!$J$23*(1/Vehicles!$BT$59+1/Vehicles!$BU$59)+Vehicles!$J$24/Vehicles!$BV$59) -> 25.68973328 | Z28: =AN28*(Vehicles!$K$23/Vehicles!$BX$59)/(Vehicles!$K$23*(1/Vehicles!$BX$59+1/Vehicles!$BY$59)+Vehicles!$K$24/Vehicles!$BZ$59)+O28*(Vehicles!$K$23/Vehicles!$BY$59+Vehicles!$K$24/Vehicles!$BZ$59)/(Vehicles!$K$23*(1/Vehicles!$BX$59+1/Vehicles!$BY$59)+Vehicles!$K$24/Vehicles!$BZ$59) -> 26.84987779 | AA28: =AN28*(Vehicles!$L$23/Vehicles!$CB$59)/(Vehicles!$L$23*(1/Vehicles!$CB$59+1/Vehicles!$CC$59)+Vehicles!$L$24/Vehicles!$CD$59)+AO28*(Vehicles!$L$23/Vehicles!$CC$59+Vehicles!$L$24/Vehicles!$CD$59)/(Vehicles!$L$23*(1/Vehicles!$CB$59+1/Vehicles!$CC$59)+Vehicles!$L$24/Vehicles!$CD$59) -> 30.96072585 | AB28: =AN28*(Vehicles!$L$23/Vehicles!$CB$59)/(Vehicles!$L$23*(1/Vehicles!$CB$59+1/Vehicles!$CC$59)+Vehicles!$L$24/Vehicles!$CE$59)+AP28*(Vehicles!$L$23/Vehicles!$CC$59+Vehicles!$L$24/Vehicles!$CE$59)/(Vehicles!$L$23*(1/Vehicles!$CB$59+1/Vehicles!$CC$59)+Vehicles!$L$24/Vehicles!$CE$59) -> 41.75237975 | AC28: =('MeOH&FTD'!$AJ147*'MeOH&FTD'!$AK$137+'MeOH&FTD'!$AK147)/1000000*HLOOKUP($J$10,$Z$5:$AD$6,2,FALSE)/HLOOKUP($J$11,$Z$7:$AD$8,2,FALSE) -> 2.86407496 | AD28: =((1-Vehicles!$C$34)*(1-Vehicles!$C$13)*Fuel_Specs!$B$20/((1-Vehicles!$C$34)*(1-Vehicles!$C$13)*Fuel_Specs!$B$20+Vehicles!$C$34*(1-Vehicles!$C$13)*Fuel_Specs!$B$23+Vehicles!$C$13*Fuel_Specs!$B$40)*(Petroleum!B272*Petroleum!$J$262+Petroleum!$J272)+Vehicles!$C$34*(1-Vehicles!$C$13)*Fuel_Specs!$B$23/((1-Vehicles!$C$34)*(1-Vehicles!$C$13)*Fuel_Specs!$B$20+Vehicles!$C$34*(1-Vehicles!$C$13)*Fuel_Specs!$B$23+Vehicles!$C$13*Fuel_Specs!$B$40)*(Petroleum!B272*Petroleum!$K$262+Petroleum!$K272)+Vehicles!$C$13*Fuel_Specs!$B$40/((1-Vehicles!$C$34)*(1-Vehicles!$C$13)*Fuel_Specs!$B$20+Vehicles!$C$34*(1-Vehicles!$C$13)*Fuel_Specs!$B$23+Vehicles!$C$13*Fuel_Specs!$B$40)*('MeOH&FTD'!$AZ147*'MeOH&FTD'!$BA$137+'MeOH&FTD'!$BA147))/1000000*HLOOKUP($J$10,$Z$5:$AD$6,2,FALSE)/HLOOKUP($J$11,$Z$7:$AD$8,2,FALSE) -> 13.84413608 | AE28: =((1-Vehicles!$C$35)*(1-Vehicles!$C$14)*Fuel_Specs!$B$20/((1-Vehicles!$C$35)*(1-Vehicles!$C$14)*Fuel_Specs!$B$20+Vehicles!$C$35*(1-Vehicles!$C$14)*Fuel_Specs!$B$23+Vehicles!$C$14*Fuel_Specs!$B$39)*(Petroleum!B272*Petroleum!$J$262+Petroleum!$J272)+Vehicles!$C$35*(1-Vehicles!$C$14)*Fuel_Specs!$B$23/((1-Vehicles!$C$35)*(1-Vehicles!$C$14)*Fuel_Specs!$B$20+Vehicles!$C$35*(1-Vehicles!$C$14)*Fuel_Specs!$B$23+Vehicles!$C$14*Fuel_Specs!$B$39)*(Petroleum!B272*Petroleum!$K$262+Petroleum!$K272)+Vehicles!$C$14*Fuel_Specs!$B$39/((1-Vehicles!$C$35)*(1-Vehicles!$C$14)*Fuel_Specs!$B$20+Vehicles!$C$35*(1-Vehicles!$C$14)*Fuel_Specs!$B$23+Vehicles!$C$14*Fuel_Specs!$B$39)*(BioOil!$W344*BioOil!$X$333+BioOil!$X344))/1000000*HLOOKUP($J$10,$Z$5:$AD$6,2,FALSE)/HLOOKUP($J$11,$Z$7:$AD$8,2,FALSE) -> 3.640162152 | AF28: =((1-Vehicles!$C$36)*(1-Vehicles!$C$15)*Fuel_Specs!$B$20/((1-Vehicles!$C$36)*(1-Vehicles!$C$15)*Fuel_Specs!$B$20+Vehicles!$C$36*(1-Vehicles!$C$15)*Fuel_Specs!$B$23+Vehicles!$C$15*IF(Inputs!$E$628=1,IF(Inputs!$E$628=1,Fuel_Specs!$B$41,IF(Inputs!$E$628=3,Fuel_Specs!$B$43,Fuel_Specs!$B$42)),Fuel_Specs!$B$42))*(Petroleum!B272*Petroleum!$J$262+Petroleum!$J272)+Vehicles!$C$36*(1-Vehicles!$C$15)*Fuel_Specs!$B$23/((1-Vehicles!$C$36)*(1-Vehicles!$C$15)*Fuel_Specs!$B$20+Vehicles!$C$36*(1-Vehicles!$C$15)*Fuel_Specs!$B$23+Vehicles!$C$15*IF(Inputs!$E$628=1,IF(Inputs!$E$628=1,Fuel_Specs!$B$41,IF(Inputs!$E$628=3,Fuel_Specs!$B$43,Fuel_Specs!$B$42)),Fuel_Specs!$B$42))*(Petroleum!B272*Petroleum!$K$262+Petroleum!$K272)+Vehicles!$C$15*IF(Inputs!$E$628=1,IF(Inputs!$E$628=1,Fuel_Specs!$B$41,IF(Inputs!$E$628=3,Fuel_Specs!$B$43,Fuel_Specs!$B$42)),Fuel_Specs!$B$42)/((1-Vehicles!$C$36)*(1-Vehicles!$C$15)*Fuel_Specs!$B$20+Vehicles!$C$36*(1-Vehicles!$C$15)*Fuel_Specs!$B$23+Vehicles!$C$15*IF(Inputs!$E$628=1,IF(Inputs!$E$628=1,Fuel_Specs!$B$41,IF(Inputs!$E$628=3,Fuel_Specs!$B$43,Fuel_Specs!$B$42)),Fuel_Specs!$B$42))*(BioOil!$BA344*BioOil!$BB$333+BioOil!$BB344))/1000000*HLOOKUP($J$10,$Z$5:$AD$6,2,FALSE)/HLOOKUP($J$11,$Z$7:$AD$8,2,FALSE) -> 4.554846468 | AG28: =((1-Vehicles!$C$36)*(1-Vehicles!$C$15)*Fuel_Specs!$B$20/((1-Vehicles!$C$36)*(1-Vehicles!$C$15)*Fuel_Specs!$B$20+Vehicles!$C$36*(1-Vehicles!$C$15)*Fuel_Specs!$B$23+Vehicles!$C$15*IF(Inputs!$E$628=1,Fuel_Specs!$B$41,Fuel_Specs!$B$42))*(Petroleum!B272*Petroleum!$J$262+Petroleum!$J272)+Vehicles!$C$36*(1-Vehicles!$C$15)*Fuel_Specs!$B$23/((1-Vehicles!$C$36)*(1-Vehicles!$C$15)*Fuel_Specs!$B$20+Vehicles!$C$36*(1-Vehicles!$C$15)*Fuel_Specs!$B$23+Vehicles!$C$15*IF(Inputs!$E$628=1,Fuel_Specs!$B$41,Fuel_Specs!$B$42))*(Petroleum!B272*Petroleum!$K$262+Petroleum!$K272)+Vehicles!$C$15*IF(Inputs!$E$628=1,Fuel_Specs!$B$41,Fuel_Specs!$B$42)/((1-Vehicles!$C$36)*(1-Vehicles!$C$15)*Fuel_Specs!$B$20+Vehicles!$C$36*(1-Vehicles!$C$15)*Fuel_Specs!$B$23+Vehicles!$C$15*IF(Inputs!$E$628=1,Fuel_Specs!$B$41,Fuel_Specs!$B$42))*(Pyrolysis!$AB181*Pyrolysis!$AC$171+Pyrolysis!$AC181))/1000000*HLOOKUP($J$10,$Z$5:$AD$6,2,FALSE)/HLOOKUP($J$11,$Z$7:$AD$8,2,FALSE) -> 7.330815545 | AH28: =(((1-Vehicles!$C$37)*(1-Vehicles!$C$17-Vehicles!$C$18)*Fuel_Specs!$B$20*(Petroleum!B272*Petroleum!$J$262+Petroleum!$J272)+Vehicles!$C$37*(1-Vehicles!$C$17-Vehicles!$C$18)*Fuel_Specs!$B$23*(Petroleum!B272*Petroleum!$K$262+Petroleum!$K272)+Vehicles!$C$17*Fuel_Specs!$B$31*(EtOH!BP499*EtOH!$BQ$489+EtOH!$BQ499)+Vehicles!$C$18*Fuel_Specs!$B$34*('E-D Additives'!$B63*'E-D Additives'!$B$53))/((1-Vehicles!$C$37)*(1-Vehicles!$C$17-Vehicles!$C$18)*Fuel_Specs!$B$20+Vehicles!$C$37*(1-Vehicles!$C$17-Vehicles!$C$18)*Fuel_Specs!$B$23+Vehicles!$C$17*Fuel_Specs!$B$31+Vehicles!$C$18*Fuel_Specs!$B$34))/1000000*HLOOKUP($J$10,$Z$5:$AD$6,2,FALSE)/HLOOKUP($J$11,$Z$7:$AD$8,2,FALSE) -> 4.178644603 | AI28: =AN28*(Vehicles!$M$23/Vehicles!$CM$59)/(Vehicles!$M$23*(1/Vehicles!$CM$59+1/Vehicles!$CN$59)+Vehicles!$M$24/Vehicles!$CO$59)+E28*(Vehicles!$M$23/Vehicles!$CN$59+Vehicles!$M$24/Vehicles!$CO$59)/(Vehicles!$M$23*(1/Vehicles!$CM$59+1/Vehicles!$CN$59)+Vehicles!$M$24/Vehicles!$CO$59) -> 19.22130098 | AJ28: =AN28*(Vehicles!$N$23/Vehicles!$CQ$59)/(Vehicles!$N$23*(1/Vehicles!$CQ$59+1/Vehicles!$CR$59)+Vehicles!$N$24/Vehicles!$CS$59)+AC28*(Vehicles!$N$23/Vehicles!$CR$59+Vehicles!$N$24/Vehicles!$CS$59)/(Vehicles!$N$23*(1/Vehicles!$CQ$59+1/Vehicles!$CR$59)+Vehicles!$N$24/Vehicles!$CS$59) -> 18.9530903 | AK28: =AN28*(Vehicles!$O$23/Vehicles!$CU$59)/(Vehicles!$O$23*(1/Vehicles!$CU$59+1/Vehicles!$CV$59)+Vehicles!$O$24/Vehicles!$CW$59)+AD28*(Vehicles!$O$23/Vehicles!$CV$59+Vehicles!$O$24/Vehicles!$CW$59)/(Vehicles!$O$23*(1/Vehicles!$CU$59+1/Vehicles!$CV$59)+Vehicles!$O$24/Vehicles!$CW$59) -> 27.04610648 | AL28: =AN28*(Vehicles!$P$23/Vehicles!$CY$59)/(Vehicles!$P$23*(1/Vehicles!$CY$59+1/Vehicles!$CZ$59)+Vehicles!$P$24/Vehicles!$DA$59)+AE28*(Vehicles!$P$23/Vehicles!$CZ$59+Vehicles!$P$24/Vehicles!$DA$59)/(Vehicles!$P$23*(1/Vehicles!$CY$59+1/Vehicles!$CZ$59)+Vehicles!$P$24/Vehicles!$DA$59) -> 19.52511682 | AM28: =AN28*(Vehicles!$R$23/Vehicles!$DG$59)/(Vehicles!$R$23*(1/Vehicles!$DG$59+1/Vehicles!$DH$59)+Vehicles!$R$24/Vehicles!$DI$59)+AH28*(Vehicles!$R$23/Vehicles!$DH$59+Vehicles!$R$24/Vehicles!$DI$59)/(Vehicles!$R$23*(1/Vehicles!$DG$59+1/Vehicles!$DH$59)+Vehicles!$R$24/Vehicles!$DI$59) -> 19.92201326 | AN28: =(Electric!$G195+Electric!$F195)/1000000*HLOOKUP($J$10,$Z$5:$AD$6,2,FALSE)/HLOOKUP($J$11,$Z$7:$AD$8,2,FALSE) -> 64.05410696 | AO28: =(Hydrogen!$AF172*Hydrogen!$AG$162+Hydrogen!$AG172)/1000000*HLOOKUP($J$10,$Z$5:$AD$6,2,FALSE)/HLOOKUP($J$11,$Z$7:$AD$8,2,FALSE) -> 18.86965831 | AP28: =(Hydrogen!$BJ172*Hydrogen!$BK$162+Hydrogen!$BK172)/1000000*HLOOKUP($J$10,$Z$5:$AD$6,2,FALSE)/HLOOKUP($J$11,$Z$7:$AD$8,2,FALSE) -> 33.60417364 | AQ28: =AN28*(Vehicles!$S$23/Vehicles!$DW$59)/(Vehicles!$S$23*(1/Vehicles!$DW$59+1/Vehicles!$DX$59)+Vehicles!$S$24/Vehicles!$DY$59)+AO28*(Vehicles!$S$23/Vehicles!$DX$59+Vehicles!$S$24/Vehicles!$DY$59)/(Vehicles!$S$23*(1/Vehicles!$DW$59+1/Vehicles!$DX$59)+Vehicles!$S$24/Vehicles!$DY$59) -> 33.3764965 | AR28: =AN28*(Vehicles!$S$23/Vehicles!$DW$59)/(Vehicles!$S$23*(1/Vehicles!$DW$59+1/Vehicles!$DX$59)+Vehicles!$S$24/Vehicles!$DY$59)+AP28*(Vehicles!$S$23/Vehicles!$DX$59+Vehicles!$S$24/Vehicles!$DY$59)/(Vehicles!$S$23*(1/Vehicles!$DW$59+1/Vehicles!$DX$59)+Vehicles!$S$24/Vehicles!$DY$59) -> 43.38037472 | AS28: =((1-Vehicles!$C$33)*(1-Vehicles!$C$16)*Fuel_Specs!$B$15/((1-Vehicles!$C$33)*(1-Vehicles!$C$16)*Fuel_Specs!$B$15+Vehicles!$C$33*(1-Vehicles!$C$16)*Fuel_Specs!$B$16+Vehicles!$C$16*Fuel_Specs!$B$45)*(Petroleum!$B272*Petroleum!$D$262+Petroleum!$D272)+Vehicles!$C$33*(1-Vehicles!$C$16)*Fuel_Specs!$B$16/((1-Vehicles!$C$33)*(1-Vehicles!$C$16)*Fuel_Specs!$B$15+Vehicles!$C$33*(1-Vehicles!$C$16)*Fuel_Specs!$B$16+Vehicles!$C$16*Fuel_Specs!$B$45)*(Petroleum!B272*Petroleum!$F$262+Petroleum!$F272)+Vehicles!$C$16*Fuel_Specs!$B$45/((1-Vehicles!$C$33)*(1-Vehicles!$C$16)*Fuel_Specs!$B$15+Vehicles!$C$33*(1-Vehicles!$C$16)*Fuel_Specs!$B$16+Vehicles!$C$16*Fuel_Specs!$B$45)*(IDL!$L122*IDL!$M$112+IDL!$M122))/1000000*HLOOKUP($J$10,$Z$5:$AD$6,2,FALSE)/HLOOKUP($J$11,$Z$7:$AD$8,2,FALSE) -> 39.80817926 | AV28: SI - Liquid H2 | AW28: RNAVLH2ICE | BQ28: FCV - Naphtha | BR28: RNAVFCVNAPTHA
